Workbook

Sheet Instructions
G2: How to Use the USDA Foods Database
A4: Vendor-specific product information can be found in the USDA Foods Database by utilizing the 6-digit USDA
A5: material code. Click this link to access the | F5: List of Required Products for the USDA Foods Database.
A7: To search for product information:
A9: 1. | B9: Open the file and select File and Save As to Download a Copy to your computer. Note: the USDA Foods
B10: Database can only be navigated once downloaded and saved.
A12: 2. | B12: Once downloaded, open the file on your computer and click Enable Content in the yellow Security Warning
B13: at the top of the spreadsheet. Another Security Warning may appear asking “Do you want to make this file
B14: a Trusted Document?”. Click Yes.
A16: 3. | B16: Click the Food Category drop-down and select the desired food category. Note: the drop down can be
B17: accessed by single clicking into cell B1 and then clicking the box with the down arrow to the right of Cell B1.
A19: 4. | B19: A pop-up box will appear stating, “Listing only <selected category> in Cell D1.” Click OK.
A21: 5. | B21: Click the Material Code drop-down and select the desired material code. Note: the drop down can be
B22: accessed by single clicking into cell D1/E1 and then clicking the box with the down arrow next to the right of
B23: Cell E1.
A25: 6. | B25: A pop-up box will appear stating, “Would you like to import <selected material code and description>
B26: information?”. Click Yes.
A28: 7. | B28: Product information will appear in all six sections of the spreadsheet. A pop-up box will also appear stating,
B29: “<selected material code and description> information imported.” Click OK.
B30: a. | C30: Each vendor that supplies the selected material will be listed in columns B through E.
B31: b. | C31: The USDA Foods Database will list 4 vendors per page. Scroll down to the next page to see additional
C32: vendors.
B33: c. | C33: If product information is not available in the USDA Foods Database, a pop-up box will appear stating,
C34: “Vendor information for <selected material code and description> is not available.” Click OK to search
C35: for another material code.
A37: 8. | B37: Repeat steps 1 through 5 to search for new product information.
A39: 9. | B39: To clear the product information, click in the food category field (Cell B1) and hit the Delete button on
B40: your keyboard.
A42: 10. | B42: A pop-up box will appear stating “This will clear summary information.” Click OK.
A44: 11. | B44: The product information has been cleared and a pop-up box will appear stating, “Summary information
B45: cleared.”

Sheet List of Required Products
A1: List of Required Products for the USDA Foods Database for States Agencies and School Districts
A2: The USDA Foods Database will provide product information for all USDA Foods direct delivered products found below. However, all products from all vendors are not currently available at this time. Column E, titled "Product Currently Available in the USDA Foods Database", indicates if a product currently contains vendor-specific product information in the database. This column will be updated monthly as more products are included with each UDSA Foods Database release.
A3: Category | B3: USDA Foods Description | C3: Material Code | D3: Pack Size | E3: Product Currently Available in the USDA Foods Database
A4: Beef | B4: Beef, Coarse Ground, Cooked, Canned | C4: 100127 | D4: 24/24 oz can | E4: Yes
A5: Beef | B5: Beef, Crumbles w/SPP, Cooked, Frozen | C5: 100134 | D5: 4/10 lb bag | E5: Yes
A6: Beef | B6: Beef, Fine Ground, 100%, 85/15, Raw, Frozen | C6: 100158 | D6: 40 lb case | E6: Yes
A7: Beef | B7: Beef, Patties, Lean, Raw, 2.0 MMA, Frozen | C7: 100163 | D7: 40 lb case | E7: Yes
A8: Beef | B8: Beef, Fine Ground, 100%, 85/15, LFTB OPT, Raw, Frozen | C8: 110261 | D8: 40 lb case | E8: Yes
A9: Beef | B9: Beef, Patties w/SPP, Cooked, 2.0 MMA, Frozen | C9: 110322 | D9: 40 lb case | E9: Yes
A10: Beef | B10: Beef, Patties, 100%, 90/10, Raw, 2.0 MMA, Frozen | C10: 110346 | D10: 40 lb case | E10: Yes
A11: Beef | B11: Beef, Patties w/SPP, 85/15, Raw, 2.0 MMA, Frozen | C11: 110348 | D11: 40 lb case | E11: No
A12: Beef | B12: Beef, Patties, 100%, 85/15, Raw, 2.0 MMA, Frozen | C12: 110349 | D12: 40 lb case | E12: Yes
A13: Beef | B13: Beef, Patties, Cooked, 2.0 MMA, Frozen | C13: 110711 | D13: 40 lb case | E13: Yes
A14: Cheese | B14: Cheese, Cheddar, White, Shredded, Chilled | C14: 100002 | D14: 6/5 lb bag | E14: Yes
A15: Cheese | B15: Cheese, Cheddar, Yellow, Shredded, Chilled | C15: 100003 | D15: 6/5 lb bag | E15: Yes
A16: Cheese | B16: Cheese, Cheddar, Yellow, Reduced Fat, Shredded, Chilled | C16: 100012 | D16: 6/5 lb bag | E16: Yes
A17: Cheese | B17: Cheese, American, Yellow, Pasteurized, Loaves, Chilled | C17: 100017 | D17: 6/5 lb package | E17: Yes
A18: Cheese | B18: Cheese, American, Yellow, Pasteurized, Sliced, Chilled | C18: 100018 | D18: 6/5 lb package | E18: Yes
A19: Cheese | B19: Cheese, American, White, Pasteurized, Sliced, Chilled | C19: 100019 | D19: 6/5 lb package | E19: No
A20: Cheese | B20: Cheese, Mozzarella, Low Moisture Part Skim, Shredded, Frozen | C20: 100021 | D20: 30 lb case | E20: Yes
A21: Cheese | B21: Cheese, Mozzarella, Low Moisture Part Skim, Loaves, Frozen | C21: 100022 | D21: 8/6 lb package | E21: Yes
A22: Cheese | B22: Cheese, Mozzarella, Lite, Shredded, Frozen | C22: 100034 | D22: 30 lb case | E22: No
A23: Cheese | B23: Cheese, Blended American, Yellow, Reduced Fat, Sliced, Chilled | C23: 100036 | D23: 6/5 lb package | E23: Yes
A24: Cheese | B24: Cheese, Blended American, White, Reduced Fat, Sliced, Chilled | C24: 100037 | D24: 6/5 lb package | E24: Yes
A25: Cheese | B25: Cheese, Mozzarella, Low Moisture Part Skim, String, Chilled | C25: 110396 | D25: 360/1 oz package | E25: Yes
A26: Cheese | B26: Cheese, Cheddar, Yellow, Sliced, Chilled | C26: 111110 | D26: 12 lb case | E26: Yes
A27: Cheese | B27: Cheese, Pepper Jack, Shredded, Chilled | C27: 111220 | D27: 4/5 lb bag | E27: Yes
A28: Egg products | B28: Eggs, Liquid Whole, Frozen | C28: 100046 | D28: 6/5 lb carton | E28: Yes
A29: Egg products | B29: Eggs, Liquid Whole, Frozen | C29: 110845 | D29: 12/2 lb carton | E29: Yes
A30: Egg products | B30: Eggs, Patties, Cooked, 1.0 MMA, Round, Frozen | C30: 111751 | D30: 25 lb case | E30: Yes
A31: Fish | B31: Catfish, Whole Grain-Rich Breaded Fillet Strips, Frozen | C31: 100201 | D31: 8/5 lb or 4/10 lb bag | E31: No
A32: Fish | B32: Alaska Pollock, Whole Grain-Rich Breaded Sticks, Frozen | C32: 110851 | D32: 8/5 lb or 4/10 lb bag | E32: Yes
A33: Fruit | B33: Apple Juice, 100%, Unsweetened, Cups, Frozen | C33: 111790 | D33: 96/4 oz cup | E33: Yes
A34: Fruit | B34: Apple Slices, Unsweetened, Canned | C34: 100206 | D34: 6/#10 can | E34: Yes
A35: Fruit | B35: Mixed Fruit (Peaches, Pears, Grapes), Extra Light Syrup, Canned | C35: 100212 | D35: 6/#10 can | E35: Yes
A36: Fruit | B36: Apricots, Diced, Extra Light Syrup, Canned | C36: 100216 | D36: 6/#10 can | E36: Yes
A37: Fruit | B37: Peaches, Sliced, Extra Light Syrup, Canned | C37: 100219 | D37: 6/#10 can | E37: Yes
A38: Fruit | B38: Peaches, Diced, Extra Light Syrup, Canned | C38: 100220 | D38: 6/#10 can | E38: Yes
A39: Fruit | B39: Pears, Sliced, Extra Light Syrup, Canned | C39: 100224 | D39: 6/#10 can | E39: Yes
A40: Fruit | B40: Pears, Diced, Extra Light Syrup, Canned (K) | C40: 100225 | D40: 6/#10 can | E40: Yes
A41: Fruit | B41: Pears, Halves, Extra Light Syrup, Canned | C41: 100226 | D41: 6/#10 can | E41: Yes
A42: Fruit | B42: Peaches, Sliced, Frozen | C42: 100238 | D42: 12/2 lb bag | E42: Yes
A43: Fruit | B43: Peaches, Sliced, Frozen | C43: 100239 | D43: 20 lb case | E43: Yes
A44: Fruit | B44: Peaches, Diced, Cups, Frozen | C44: 100241 | D44: 96/4.4 oz cup | E44: Yes
A45: Fruit | B45: Blueberries, Wild, Unsweetened, Frozen | C45: 100242 | D45: 8/3 lb bag | E45: Yes
A46: Fruit | B46: Blueberries, Wild, Unsweetened, Frozen | C46: 100243 | D46: 30 lb case | E46: Yes
A47: Fruit | B47: Strawberries, Sliced, Frozen | C47: 100254 | D47: 30 lb pail | E47: Yes
A48: Fruit | B48: Strawberries, Diced, Cups, Frozen | C48: 100256 | D48: 96/4.5 oz cup | E48: Yes
A49: Fruit | B49: Apple Slices, Unsweetened, Frozen (IQF) | C49: 100258 | D49: 30 lb case | E49: No
A50: Fruit | B50: Apricots, Diced, Cups, Frozen | C50: 100261 | D50: 96/4.5 oz cup | E50: Yes
A51: Fruit | B51: Raisins, Unsweetened, Individual Portion | C51: 100293 | D51: 144/1.33 oz unit | E51: Yes
A52: Fruit | B52: Cherries, Tart, Dried | C52: 100299 | D52: 4/4 lb bag | E52: No
A53: Fruit | B53: Mixed Fruit (Apples, Cherries, Cranberries, Raisins), Dried | C53: 110161 | D53: 5/5 lb bag | E53: No
A54: Fruit | B54: Applesauce, Unsweetened, Cups, Shelf-Stable | C54: 110361 | D54: 96/4.5 oz cup | E54: Yes
A55: Fruit | B55: Applesauce, Unsweetened, Canned (K) | C55: 110541 | D55: 6/#10 can | E55: Yes
A56: Fruit | B56: Blueberries, Unsweetened, Frozen | C56: 110623 | D56: 12/2.5 lb bag | E56: Yes
A57: Fruit | B57: Blueberries, Unsweetened, Frozen | C57: 110624 | D57: 30 lb case | E57: Yes
A58: Fruit | B58: Cranberries, Dried, Individual Portion | C58: 110723 | D58: 300/1.16 oz bag | E58: Yes
A59: Fruit | B59: Strawberries, Whole, Unsweetened, Frozen (IQF) | C59: 110846 | D59: 6/5 lb bag | E59: Yes
A60: Fruit | B60: Mixed Berries (Blueberries, Strawberries), Cups, Frozen | C60: 110859 | D60: 96/4 oz cup | E60: Yes
A61: Fruit | B61: Strawberries, Sliced, Unsweetened, Frozen (IQF) | C61: 110860 | D61: 6/5 lb bag | E61: Yes
A62: Fruit | B62: Cherries, Sweet, Pitted, Unsweetened, Frozen (IQF) | C62: 110872 | D62: 12/2.5 lb bag | E62: Yes
A63: Fruit | B63: Cherries, Tart, Dried, Individual Portion | C63: 111643 | D63: 250/1.36 oz bag | E63: No
A64: Grains | B64: Flour, All Purpose, Enriched, Bleached | C64: 100400 | D64: 8/5 lb bag | E64: Yes
A65: Grains | B65: Pasta, Spaghetti, Enriched | C65: 100425 | D65: 20 lb case | E65: Yes
A66: Grains | B66: Oats, Rolled, Quick Cooking | C66: 100465 | D66: 12/42 oz tube | E66: Yes
A67: Grains | B67: Rice, Long Grain, Parboiled | C67: 100494 | D67: 25 lb bag | E67: Yes
A68: Grains | B68: Rice, Brown, Long Grain, Parboiled | C68: 100500 | D68: 24/2 lb bag | E68: Yes
A69: Grains | B69: Rice, Brown, Long Grain, Parboiled | C69: 101031 | D69: 25 lb bag | E69: Yes
A70: Grains | B70: Flour, White Whole Wheat/Enriched 60/40 Blend | C70: 110208 | D70: 25 lb bag | E70: Yes
A71: Grains | B71: Flour, White Whole Wheat/Enriched 60/40 Blend | C71: 110211 | D71: 8/5 lb bag | E71: Yes
A72: Grains | B72: Pancakes, Whole Grain or Whole Grain-Rich, Frozen | C72: 110393 | D72: 144 count/case | E72: Yes
A73: Grains | B73: Tortillas, Whole Grain or Whole Grain-Rich, 8 inch, Frozen | C73: 110394 | D73: 12/24 count | E73: Yes
A74: Grains | B74: Pasta, Macaroni, Whole Grain-Rich Blend | C74: 110501 | D74: 2/10 lb bag | E74: Yes
A75: Grains | B75: Pasta, Rotini, Whole Grain-Rich Blend | C75: 110504 | D75: 2/10 lb bag | E75: Yes
A76: Grains | B76: Pasta, Spaghetti, Whole Grain-Rich Blend | C76: 110506 | D76: 2/10 lb bag | E76: Yes
A77: Grains | B77: Pasta, Penne, Whole Grain-Rich Blend | C77: 110520 | D77: 2/10 lb bag | E77: Yes
A78: Grains | B78: Flour, 100% White Whole Wheat | C78: 110857 | D78: 8/5 lb bag | E78: Yes
A79: Legumes | B79: Beans, Black, Low-sodium, Canned | C79: 100359 | D79: 6/#10 can | E79: Yes
A80: Legumes | B80: Beans, Garbanzo, Low-sodium, Canned (K) | C80: 100360 | D80: 6/#10 can | E80: Yes
A81: Legumes | B81: Beans, Refried, Low-sodium, Canned | C81: 100362 | D81: 6/#10 can | E81: Yes
A82: Legumes | B82: Beans, Vegetarian, Low-sodium, Canned | C82: 100364 | D82: 6/#10 can | E82: Yes
A83: Legumes | B83: Beans, Pinto, Low-sodium, Canned | C83: 100365 | D83: 6/#10 can | E83: Yes
A84: Legumes | B84: Beans, Small Red, Low-sodium, Canned | C84: 100366 | D84: 6/#10 can | E84: Yes
A85: Legumes | B85: Beans, Black-eyed Pea, Low-sodium, Canned | C85: 100368 | D85: 6/#10 can | E85: Yes
A86: Legumes | B86: Beans, Pink, Low-sodium, Canned | C86: 100369 | D86: 6/#10 can | E86: Yes
A87: Legumes | B87: Beans, Kidney, Dark Red, Low-sodium, Canned | C87: 100370 | D87: 6/#10 can | E87: Yes
A88: Legumes | B88: Beans, Baby Lima, Low-sodium, Canned | C88: 100371 | D88: 6/#10 can | E88: Yes
A89: Legumes | B89: Beans, Great Northern, Low-sodium, Canned | C89: 100373 | D89: 6/#10 can | E89: Yes
A90: Legumes | B90: Beans, Pinto, Dry | C90: 100382 | D90: 12/2 lb bag | E90: Yes
A91: Legumes | B91: Black Bean Burger, Patties, Cooked, 2.0 MMA, Frozen | C91: 111860 | D91: 30 lb case | E91: No
A92: Nuts and seeds | B92: Peanut Butter, Smooth | C92: 100396 | D92: 6/5 lb unit | E92: Yes
A93: Nuts and seeds | B93: Sunflower Seed Butter, Smooth (K) | C93: 100935 | D93: 6/5 lb unit | E93: No
A94: Nuts and seeds | B94: Peanut Butter, Individual Portion, Smooth | C94: 110854 | D94: 120/1.1 oz unit | E94: Yes
A95: Oil | B95: Oil, Vegetable | C95: 100439 | D95: 6/1 gallon bottle | E95: No
A96: Pork | B96: Pork, Coarse Ground, Cooked, Canned | C96: 100139 | D96: 24/24 oz can | E96: Yes
A97: Pork | B97: Pork, Leg Roast, Raw, Frozen | C97: 100173 | D97: 36-42 lb case | E97: No
A98: Pork | B98: Ham, 97% Fat Free, Water-Added, Cooked, Frozen | C98: 100184 | D98: 4/10 lb hams | E98: Yes
A99: Pork | B99: Ham, 97% Fat Free, Water-Added, Cooked, Sliced, Frozen | C99: 100187 | D99: 8/5 lb package | E99: Yes
A100: Pork | B100: Ham, 97% Fat Free, Water-Added, Cooked, Diced, Frozen | C100: 100188 | D100: 8/5 lb or 4/10 lb bag | E100: No
A101: Pork | B101: Pork, Pulled, Cooked, Frozen | C101: 110730 | D101: 8/5 lb or 4/10 lb bag | E101: Yes
A102: Poultry | B102: Chicken, Diced, Cooked, Frozen | C102: 100101 | D102: 8/5 lb or 4/10 lb bag | E102: No
A103: Poultry | B103: Chicken, Fajita Seasoned Strips, Cooked, Frozen | C103: 100117 | D103: 6/5 lb or 3/10 lb bag | E103: Yes
A104: Poultry | B104: Chicken, Pulled, Cooked, Frozen | C104: 111881 | D104: 6/5 lb or 3/10 lb bag | E104: Yes
A105: Poultry | B105: Turkey, Taco Filling, Cooked, Frozen | C105: 100119 | D105: 10/3 lb or 6/5 lb bag | E105: Yes
A106: Poultry | B106: Turkey, Deli Breast, Frozen | C106: 100121 | D106: 4/10 lb logs | E106: Yes
A107: Poultry | B107: Turkey, Deli Breast, Smoked, Frozen | C107: 100122 | D107: 4/10 lb logs | E107: Yes
A108: Poultry | B108: Turkey, Roast, Raw, Frozen | C108: 100125 | D108: 4/8-12 lb roasts | E108: Yes
A109: Poultry | B109: Turkey, Deli Ham, Smoked, Frozen | C109: 100126 | D109: 4/10 lb logs | E109: Yes
A110: Poultry | B110: Chicken, Boned, White Meat, Cooked, Canned | C110: 100877 | D110: 12/50 oz can | E110: No
A111: Poultry | B111: K Chicken, Cut-Up, Frozen | C111: 110052 | D111: 40 lb case | E111: No
A112: Poultry | B112: Chicken, Oven Roasted, Cut-up, Cooked, Frozen | C112: 110080 | D112: 3/10 lb bag | E112: No
A113: Poultry | B113: Chicken, Unseasoned Grilled Strips, Cooked, Frozen | C113: 110462 | D113: 6/5 lb or 3/10 lb bag | E113: Yes
A114: Poultry | B114: Turkey, Deli Breast, Sliced, Frozen | C114: 111900 | D114: 8/5 lb package | E114: Yes
A115: Poultry | B115: Turkey, Deli Breast, Smoked, Sliced, Frozen | C115: 111882 | D115: 8/5 lb package | E115: Yes
A116: Poultry | B116: Turkey, Deli Ham, Smoked, Sliced, Frozen | C116: 111893 | D116: 8/5 lb package | E116: Yes
A117: Poultry | B117: Chicken, Grilled Fillet, 2.0 MMA, Cooked, Frozen | C117: 110921 | D117: 6/5 lb or 3/10 lb bag | E117: Yes
A118: Poultry | B118: Chicken, Cut-up, Raw, Frozen | C118: 111361 | D118: 4/10 lb bag | E118: No
A119: Vegetables | B119: Beans, Green, Low-sodium, Canned (K) | C119: 100307 | D119: 6/#10 can | E119: Yes
A120: Vegetables | B120: Carrots, Sliced, Low-sodium, Canned | C120: 100309 | D120: 6/#10 can | E120: Yes
A121: Vegetables | B121: Corn, Whole Kernel, No Salt Added, Canned (K) | C121: 100313 | D121: 6/#10 can | E121: Yes
A122: Vegetables | B122: Peas, Green, Low-sodium, Canned | C122: 100315 | D122: 6/#10 can | E122: Yes
A123: Vegetables | B123: Sweet Potatoes, Light Syrup, No Salt Added, Canned | C123: 100317 | D123: 6/#10 can | E123: Yes
A124: Vegetables | B124: Tomato Paste, No Salt Added, Canned | C124: 100327 | D124: 6/#10 can | E124: Yes
A125: Vegetables | B125: Tomatoes, Diced, No Salt Added, Canned | C125: 100329 | D125: 6/#10 can | E125: Yes
A126: Vegetables | B126: Salsa, Low-sodium, Canned | C126: 100330 | D126: 6/#10 can | E126: Yes
A127: Vegetables | B127: Tomato Sauce, Low-sodium, Canned | C127: 100334 | D127: 6/#10 can | E127: Yes
A128: Vegetables | B128: Spaghetti Sauce, Low-sodium, Canned | C128: 100336 | D128: 6/#10 can | E128: Yes
A129: Vegetables | B129: Corn, Whole Kernel, No Salt Added, Frozen | C129: 100348 | D129: 30 lb case | E129: Yes
A130: Vegetables | B130: Peas, Green, No Salt Added, Frozen | C130: 100350 | D130: 30 lb case | E130: Yes
A131: Vegetables | B131: Beans, Green, No Salt Added, Frozen | C131: 100351 | D131: 30 lb case | E131: Yes
A132: Vegetables | B132: Carrots, Sliced, No Salt Added, Frozen | C132: 100352 | D132: 30 lb case | E132: Yes
A133: Vegetables | B133: Potatoes, Wedges, Low-sodium, Frozen (IQF) | C133: 100355 | D133: 6/5 lb bag | E133: No
A134: Vegetables | B134: Potatoes, Wedges, Fat Free, Low-sodium, Frozen (IQF) | C134: 100356 | D134: 6/5 lb bag | E134: Yes
A135: Vegetables | B135: Potatoes, Oven Fries, Low-sodium, Frozen | C135: 100357 | D135: 6/5 lb bag | E135: No
A136: Vegetables | B136: Spaghetti Sauce, Low-sodium, Pouch | C136: 110177 | D136: 6/106 oz pouch | E136: Yes
A137: Vegetables | B137: Salsa, Low-sodium, Pouch | C137: 110186 | D137: 6/106 oz pouch | E137: Yes
A138: Vegetables | B138: Tomato Sauce, Low-sodium, Pouch | C138: 110187 | D138: 6/106 oz pouch | E138: Yes
A139: Vegetables | B139: Spinach, Chopped, No Salt Added, Frozen (IQF) | C139: 110425 | D139: 20 lb case | E139: Yes
A140: Vegetables | B140: Broccoli Florets, No Salt Added, Frozen | C140: 110473 | D140: 30 lb case | E140: Yes
A141: Vegetables | B141: Carrots, Diced, No Salt Added, Frozen | C141: 110480 | D141: 30 lb case | E141: Yes
A142: Vegetables | B142: Sweet Potatoes, Cubes, No Salt Added, Frozen | C142: 110562 | D142: 6/5 lb bag | E142: Yes
A143: Vegetables | B143: Sweet Potatoes, Crinkle Cut Fries, Low-Sodium, Frozen | C143: 110721 | D143: 6/5 lb bag | E143: Yes
A144: Vegetables | B144: Pepper/Onion Strips, No Salt Added, Frozen | C144: 110724 | D144: 30 lb case | E144: Yes
A145: Vegetables | B145: Peas, Green, No Salt Added, Frozen | C145: 110763 | D145: 12/2.5 lb bag | E145: Yes
A146: Vegetables | B146: Potatoes, Diced, No Salt Added, Frozen | C146: 110844 | D146: 6/5 lb bag | E146: Yes
A147: Vegetables | B147: Carrots, Diced, No Salt Added, Frozen | C147: 111052 | D147: 12/2 lb bag | E147: Yes
A148: Vegetables | B148: Corn, Whole Kernel, No Salt Added, Frozen | C148: 111053 | D148: 12/2.5 lb bag | E148: Yes
A149: Vegetables | B149: Beans, Green, No Salt Added, Frozen | C149: 111054 | D149: 12/2 lb bag | E149: Yes
A150: Vegetables | B150: Mixed Vegetables, No Salt Added, Frozen | C150: 111230 | D150: 6/5 lb bag | E150: Yes
A151: Yogurt | B151: Yogurt, High-Protein, Vanilla, Chilled (K) | C151: 111750 | D151: 6/32 oz tub | E151: Yes
A152: Yogurt | B152: Yogurt, High-Protein, Blueberry, Chilled (K) | C152: 110400 | D152: 24/4 oz cup | E152: Yes
A153: Yogurt | B153: Yogurt, High-Protein, Strawberry, Chilled (K) | C153: 110401 | D153: 24/4 oz cup | E153: Yes
A154: Yogurt | B154: Yogurt, High-Protein, Vanilla, Chilled (K) | C154: 110402 | D154: 24/4 oz cup | E154: Yes

Sheet USDAFoods Product Information
A1: Food Category: | C1: Material Code:
A3: Product Description:
A4: Vendor Name
A5: Brand Name
A6: GTIN
A7: PRODUCT INFORMATION
A8: Serving Size
A9: Grams per Serving
A10: Servings per Case
A11: CN Crediting
A12: NUTRIENTS
A13: Calories (kcal)
A14: Total Fat (g)
A15: Saturated Fat (g)
A16: Trans Fat (g)
A17: Cholesterol (mg)
A18: Sodium (mg)
A19: Total Carbohydrate (g)
A20: Dietary Fiber (g)
A21: Total Sugar (g)
A22: Added Sugar (g)
A23: Protein (g)
A24: Vitamin D (mcg)
A25: Calcium (mg)
A26: Iron (mg)
A27: Potassium (mg)
A28: ALLERGENS
A29: Egg Allergen
A30: Fish Allergen
A31: Milk Allergen
A32: Peanut Allergen
A33: Sesame Allergen
A34: Shellfish Allergen
A35: Soy Allergen
A36: Tree Nut Allergen
A37: Wheat Allergen
A38: CERTIFICATIONS
A39: Kosher
A40: Halal
A41: INGREDIENTS
A43: LAST UPDATED

Sheet NAI (hidden)
A1: USDA Foods Material Code | B1: USDA Foods Products Description | C1: Food Category | D1: gtin | E1: Brand Name | F1: Vendor Name | G1: Information Provider | H1: long_description | I1: short_description | J1: functional_name | K1: Trade Channels | L1: Serving Size | M1: Serving Unit of Measure | N1: Nutrient Quantity Basis Type Code | O1: Nutrient Quantity Basis Value | P1: Nutrient Quantity Basis Unit of Measure | Q1: Serving Description | R1: preparationStateCode | S1: CN Crediting | T1: CN Product Identification | U1: CN Qualifier Code | V1: CN Qualified | W1: CN Credited | X1: CN Label Statement | Y1: CN Label Document | Z1: CN Expiration Date | AA1: Product Formulation Statement | AB1: PFS Creditable Ingredient Type Code | AC1: PFS Total Creditable Ingredient Amount | AD1: PFS Total Portion Weight | AE1: PFS Document | AF1: Calcium, Ca (mg) per Serving | AG1: Total Carbohydrate (g) per Serving | AH1: Cholesterol (mg) per Serving | AI1: Calories (kcal) per Serving | AJ1: Saturated Fat (g) per Serving | AK1: Trans Fat (g) per Serving | AL1: Dietary Fiber (g) per Serving | AM1: Iron, Fe (mg) per Serving | AN1: Potassium, K (mg) per Serving | AO1: Protein (g) per Serving | AP1: Sodium (mg) per Serving | AQ1: Sugars (g) per Serving | AR1: Added Sugars (g) per Serving | AS1: Total Fat (g) per Serving | AT1: Vitamin D (mcg) per Serving | AU1: Nutrient Format Type Code Reference Code | AV1: Servings Per Case | AW1: Hierarchical Placement | AX1: Relevant Allergen Data Flag | AY1: Eggs | AZ1: Fish | BA1: Milk | BB1: Peanuts | BC1: Sesame | BD1: Shellfish | BE1: Soybeans | BF1: Tree Nuts | BG1: Wheat | BH1: All Allergens | BI1: Kosher | BJ1: Halal | BK1: downloaded | BL1: last_updated | BM1: ingredients_english | BN1: Nutrients per serving calculated from by measure reported amounts
A2: 100002 | B2: Cheese, Cheddar, White, Shredded, Chilled | C2: Cheese | D2: 10036514230418 | E2: Great Lakes Cheese | F2: Great Lakes Cheese Co., Inc. | G2: Great Lakes Cheese, Inc. | H2: A natural, milled curd cheese that is smooth textured with an appealing stronger cheddar flavor. | I2: MILD CHED W SHR 6/5 LB (USDA) | J2: MILD CHED C FNCY SHR 5 LB | L2: 28 | M2: GRM | N2: BY_SERVING | O2: 28 | P2: GRM | Q2: 1/4 cup (1 ounce) | R2: PREPARED | AF2: 193 | AG2: 1 | AH2: 25 | AI2: 110 | AJ2: 5 | AK2: 0 | AL2: 0 | AM2: 0 | AN2: 20 | AO2: 6 | AP2: 180 | AQ2: 0 | AR2: 0 | AS2: 9 | AT2: 0.2 | AU2: US_FDA_NFP_2020_STANDARD | AV2: =80*6 -> 480 | AW2: CASE | AY2: FREE_FROM | AZ2: FREE_FROM | BA2: CONTAINS | BB2: FREE_FROM | BC2: FREE_FROM | BD2: FREE_FROM | BE2: FREE_FROM | BF2: FREE_FROM | BG2: FREE_FROM | BH2: AC, AE, AF, AM, AN, AP, AS, AY, UW | BK2: 2023-07-05T13:24:45 | BL2: 2023-06-09T11:12:00 | BM2: Pasteurized Milk, Cheese Culture, Salt, Enzymes. Potato Starch, Powdered Cellulose Added to Prevent Caking. | BN2: FALSE
A3: 100002 | B3: Cheese, Cheddar, White, Shredded, Chilled | C3: Cheese | D3: 00088748270046 | E3: Masters Gallery Select | F3: Masters Gallery Foods | G3: MASTERS GALLERY FOODS | H3: 5lb. Masters Gallery Select Mild White Shredded Cheddar Cheese | I3: 5# MGS Mild W Cheddar Shredded | J3: Cheese_Perishable | K3: CHILD_NUTRITION_FOOD_PROGRAMS | L3: 28 | M3: GRM | N3: BY_SERVING | O3: 28 | P3: GRM | Q3: 1/4 cup (1 ounce) | R3: READY_TO_EAT | AF3: 200 | AG3: 1 | AH3: 30 | AI3: 110 | AJ3: 5 | AK3: 0 | AL3: 0 | AM3: 0 | AN3: 20 | AO3: 6 | AP3: 190 | AQ3: 0 | AR3: 0 | AS3: 9 | AT3: 0.2 | AV3: 480 | AW3: BASE_UNIT_OR_EACH | AX3: TRUE | BA3: CONTAINS | BH3: AM | BK3: 2022-09-19T05:34:29 | BL3: 2022-09-13T09:14:05 | BM3: Cheddar Cheese (Cultured Pasteurized Milk, Salt, Enzymes, Color Added [If Colored], Anticake (Potato Starch, Powdered Cellulose) | BN3: FALSE
A4: 100003 | B4: Cheese, Cheddar, Yellow, Shredded, Chilled | C4: Cheese | D4: 00647743000579 | E4: Cedar Valley | F4: Cedar Valley Cheese | G4: Cedar Valley Cheese, Inc. | H4: Mild Wisconsin yellow shredded cheese. | I4: 6/5# Yellow Cheddar Feather USDA | J4: 6/5# Yellow Cheddar Feather USDA | L4: 30 | M4: GRM | N4: BY_SERVING | Q4: 1.06 ounce | R4: READY_TO_EAT | AF4: 213 | AG4: 1 | AH4: 30 | AI4: 120 | AJ4: 6 | AK4: 0 | AL4: 0 | AM4: 0 | AN4: 22.8 | AO4: 7 | AP4: 200 | AQ4: 0 | AR4: 0 | AS4: 10 | AT4: 0.18 | AV4: =75.6*6 -> 453.6 | AW4: CASE | AX4: TRUE | BA4: CONTAINS | BH4: ML | BK4: 2025-08-01 09:35:39 | BL4: 2025-07-18 14:07:00 | BM4: Cheddar Cheese (Pasteurized Milk, Cheese Cultures, Salt, Enzymes, Calcium Chloride, Annatto [Vegetable Color]), Corn Starch, Dextrose, Enzyme (To Prevent Caking), Natamycin (Preservative) | BN4: FALSE
A5: 100003 | B5: Cheese, Cheddar, Yellow, Shredded, Chilled | C5: Cheese | D5: 00070801002787 | E5: DFA | F5: Dairy Farmers of America Inc. | G5: Dairy Farmers of America Inc. | H5: ENRICCO Y CHED SHRD 5 LB USDA | I5: ENRICCO Y CHED SHRD 5 LB USDA | J5: ENRICCO Y CHED SHRD 5 LB USDA | K5: CHILD_NUTRITION_FOOD_PROGRAMS | L5: 100 | M5: GRM | N5: BY_MEASURE | O5: 100 | P5: GRM | Q5: 3.5 ounce | R5: PREPARED | AF5: 793 | AG5: 5 | AH5: 96 | AI5: 400 | AJ5: 18 | AK5: 1 | AL5: 2 | AM5: 0 | AN5: 0 | AO5: 22 | AP5: 634 | AQ5: 0 | AR5: 0 | AS5: 32 | AT5: 0 | AV5: 80 | AW5: BASE_UNIT_OR_EACH | AY5: FREE_FROM | AZ5: FREE_FROM | BA5: CONTAINS | BB5: FREE_FROM | BC5: FREE_FROM | BD5: FREE_FROM | BE5: FREE_FROM | BF5: FREE_FROM | BG5: FREE_FROM | BH5: AC, AN, UW, AF, AE, AM, AY, AP, AS | BK5: 2025-01-08 08:30:06 | BL5: 2024-12-18 12:19:18 | BM5: Cheddar Cheese (Cultured Pasteurized Milk, Salt, Enzymes, and Annatto (Color)), Potato and Corn Starches (Anti-Caking Agents) and Natamycin (a Natural Mold Inhibitor). | BN5: TRUE
A6: 100003 | B6: Cheese, Cheddar, Yellow, Shredded, Chilled | C6: Cheese | D6: 10036514230401 | E6: Great Lakes Cheese | F6: Great Lakes Cheese Co., Inc. | G6: Great Lakes Cheese, Inc. | H6: A natural, milled curd cheese that is smooth textured with an appealing stronger cheddar flavor. | I6: MILD CHED C SHR 6/5 LB (USDA) | J6: MILD CHED C FNCY SHR 5 LB | L6: 28 | M6: GRM | N6: BY_SERVING | O6: 28 | P6: GRM | Q6: 1/4 cup (1 ounce) | R6: PREPARED | AF6: 193 | AG6: 1 | AH6: 25 | AI6: 110 | AJ6: 5 | AK6: 0 | AL6: 0 | AM6: 0 | AN6: 20 | AO6: 6 | AP6: 180 | AQ6: 0 | AR6: 0 | AS6: 9 | AT6: 0.2 | AU6: US_FDA_NFP_2020_STANDARD_SIDE_BY_SIDE | AV6: =80*6 -> 480 | AW6: CASE | AY6: FREE_FROM | AZ6: FREE_FROM | BA6: CONTAINS | BB6: FREE_FROM | BC6: FREE_FROM | BD6: FREE_FROM | BE6: FREE_FROM | BF6: FREE_FROM | BG6: FREE_FROM | BH6: AC, AE, AF, AM, AN, AP, AS, AY, UW | BK6: 2023-07-05T13:47:02 | BL6: 2023-06-09T11:17:00 | BM6: Pasteurized Milk, Cheese Culture, Salt, Enzymes and Annatto (Vegetable Color). Potato Starch, Powdered Cellulose Added to Prevent Caking. | BN6: FALSE
A7: 100003 | B7: Cheese, Cheddar, Yellow, Shredded, Chilled | C7: Cheese | D7: 00088748270039 | E7: Masters Gallery Select | F7: Masters Gallery Foods | G7: MASTERS GALLERY FOODS | H7: 5lb Masters Gallery Select Shredded Mild Cheddar | I7: 5# MGS Mild Cheddar Shredded | J7: Cheese_Perishable | K7: CHILD_NUTRITION_FOOD_PROGRAMS | L7: 28 | M7: GRM | N7: BY_SERVING | O7: 28 | P7: GRM | Q7: 1/4 cup (1 ounce) | R7: READY_TO_EAT | AF7: 200 | AG7: 1 | AH7: 30 | AI7: 110 | AJ7: 5 | AK7: 0 | AL7: 0 | AM7: 0 | AN7: 20 | AO7: 6 | AP7: 190 | AQ7: 0 | AR7: 0 | AS7: 9 | AT7: 0.2 | AV7: 480 | AW7: BASE_UNIT_OR_EACH | AX7: TRUE | BA7: CONTAINS | BH7: AM | BK7: 2022-09-19T05:18:50 | BL7: 2022-09-13T09:16:54 | BM7: Cheddar Cheese (Cultured Pasteurized Milk, Salt, Enzymes, Color Added [If Colored], Anticake (Potato Starch, Powdered Cellulose) | BN7: FALSE
A8: 100003 | B8: Cheese, Cheddar, Yellow, Shredded, Chilled | C8: Cheese | D8: 10664857144514 | E8: Cheese Crafters | F8: Winona Foods, Inc. | G8: Winona Foods | H8: 6/5 LB Feather Shred Mild Cheddar Cheese | I8: Feather Shred Mild Cheddar | J8: Shredded Mild Cheddar Cheese | L8: 28 | M8: GRM | N8: BY_SERVING | O8: 1 | P8: ONZ | Q8: 1/4 cup (1 ounce) | R8: READY_TO_EAT | AF8: 200 | AG8: 0 | AH8: 30 | AI8: 110 | AJ8: 6 | AK8: 0 | AL8: 0 | AM8: 0 | AN8: 25 | AO8: 7 | AP8: 170 | AQ8: 0 | AR8: 0 | AS8: 9 | AT8: 0 | AV8: =80*6 -> 480 | AW8: CASE | AY8: FREE_FROM | AZ8: FREE_FROM | BA8: CONTAINS | BB8: FREE_FROM | BC8: FREE_FROM | BD8: FREE_FROM | BE8: FREE_FROM | BF8: FREE_FROM | BG8: FREE_FROM | BH8: AM, AS, AE, AN, AP, UW, UN, AF, AC, AY | BK8: 2025-02-03 09:14:02 | BL8: 2025-01-29 08:17:00 | BM8: Pasteurized Milk, Cheese Culture, Salt, Enzymes, Color Added, Potato Starch and Powdered Cellulose Added to Prevent Caking, Natamycin (A Natural Mold Inhibitor). | BN8: FALSE
A9: 100012 | B9: Cheese, Cheddar, Yellow, Reduced Fat, Shredded, Chilled | C9: Cheese | D9: 10036514130893 | E9: Great Lakes Cheese | F9: Great Lakes Cheese Co., Inc. | G9: Great Lakes Cheese, Inc. | H9: A natural, milled curd cheese that is smooth textured with an appealing stronger cheddar flavor. | I9: MILD C 2% RF SHR 6/5 LB (USDA) | J9: MILD CHED C FNCY SHR 5 LB | L9: 28 | M9: GRM | N9: BY_SERVING | O9: 28 | P9: GRM | Q9: 1/4 cup (1 ounce) | R9: PREPARED | AF9: 207 | AG9: 1 | AH9: 20 | AI9: 80 | AJ9: 3.5 | AK9: 0 | AL9: 0 | AM9: 0 | AN9: 15 | AO9: 7 | AP9: 170 | AQ9: 0 | AR9: 0 | AS9: 6 | AT9: 0.1 | AU9: US_FDA_NFP_2020_STANDARD_SIDE_BY_SIDE | AV9: =80*6 -> 480 | AW9: CASE | AY9: FREE_FROM | AZ9: FREE_FROM | BA9: CONTAINS | BB9: FREE_FROM | BC9: FREE_FROM | BD9: FREE_FROM | BE9: FREE_FROM | BF9: FREE_FROM | BG9: FREE_FROM | BH9: AC, AE, AF, AM, AN, AP, AS, AY, UW | BK9: 2023-07-05T13:51:59 | BL9: 2023-06-09T11:22:00 | BM9: Pasteurized Part-Skim Milk, Cheese Culture, Salt, Enzymes, Annatto (Vegetable Color), Vitamin A Palmitate. Potato Starch, Powdered Cellulose Added to Prevent Caking. | BN9: FALSE
A10: 100012 | B10: Cheese, Cheddar, Yellow, Reduced Fat, Shredded, Chilled | C10: Cheese | D10: 00088748270015 | E10: Masters Gallery Select | F10: Masters Gallery Foods | G10: MASTERS GALLERY FOODS | H10: Masters Gallery Select 1/3 Reduced Fat Colored Shredded Cheddar Cheese, 5 Pound | I10: MGS 5# Rduced Fat Shred Chdr Cheese | J10: Cheese | K10: CHILD_NUTRITION_FOOD_PROGRAMS | L10: 28 | M10: GRM | N10: BY_SERVING | O10: 28 | P10: GRM | Q10: 1/4 cup (1 ounce) | R10: READY_TO_EAT | AF10: 200 | AG10: 1 | AH10: 20 | AI10: 90 | AJ10: 3.5 | AK10: 0 | AL10: 0 | AM10: 0 | AN10: 20 | AO10: 8 | AP10: 180 | AQ10: 0 | AR10: 0 | AS10: 6 | AT10: 0.1 | AU10: NFT | AV10: =80*6 -> 480 | AW10: BASE_UNIT_OR_EACH | AX10: TRUE | BA10: CONTAINS | BH10: AM | BK10: 2024-08-01 08:29:06 | BL10: 2024-07-29 09:25:59 | BM10: Reduced Fat Cheddar Cheese (Cultured Pasteurized Reduced Fat Milk, Salt, Enzymes, Color Added, [if colored], Vitamin A Palmitate), Anticake (Potato Starch, Powdered Cellulose) | BN10: FALSE
A11: 100017 | B11: Cheese, American, Yellow, Pasteurized, Loaves, Chilled | C11: Cheese | D11: 10071078002736 | E11: Bongards® | F11: Bongards Creameries | G11: Bongards Creameries | H11: Yellow Reduced Sodium American Cheese Loaves have a mild, buttery American flavor with a creamy texture. Each loaf is 5 lbs. with 6 per case. Perfect for slicing to use in burgers, sandwiches, and wrap. | I11: Prcs Amrcn 30% RdcdSdm YlwLoaf 6/5# | J11: Process Cheese | K11: CHILD_NUTRITION_FOOD_PROGRAMS | L11: 28.35 | M11: GRM | N11: BY_SERVING | Q11: 1 ounce | R11: PREPARED | S11: 1 ounce processed cheese credits as 1 ounce equivalent meat/meat alternate | AE11: http://files.syncpdi.com/files/Zh5By7D7S4GQWHU9JrWN4Q | AF11: 167 | AG11: 2 | AH11: 25 | AI11: 100 | AJ11: 5 | AK11: 0 | AL11: 0 | AM11: 0 | AN11: 194 | AO11: 5 | AP11: 230 | AQ11: 2 | AR11: 0 | AS11: 9 | AT11: 0 | AV11: 480 | AW11: CASE | AX11: TRUE | AY11: FREE_FROM | AZ11: FREE_FROM | BA11: CONTAINS | BB11: FREE_FROM | BC11: FREE_FROM | BD11: FREE_FROM | BE11: FREE_FROM | BF11: FREE_FROM | BG11: FREE_FROM | BH11: AC, AE, AF, AM, AN, AP, AY, UM, UW, AS | BK11: 2025-09-02 08:43:50 | BL11: 2025-08-28 13:16:59 | BM11: Cultured Milk, Water, Cream, Dairy Product Solids*, Salt, Sodium Citrate, Potassium Citrate, Annatto and Paprika (Color), Enzymes *Ingredient not in regular Pasteurized Process American Cheese | BN11: FALSE
A12: 100018 | B12: Cheese, American, Yellow, Pasteurized, Sliced, Chilled | C12: Cheese | D12: 10071078011394 | E12: Bongards® | F12: Bongards Creameries | G12: Bongards Creameries | H12: Yellow Reduced Sodium American Cheese Slices have a mild, buttery American flavor. There are 160 horizontal slices in each 5 lb. pack with 6 packs per case. Perfect for use in burgers, sandwiches, and wraps. | I12: Ylw Rdce Sdm Prcs Amrcan Slice 6/5# | J12: Process Cheese | K12: CHILD_NUTRITION_FOOD_PROGRAMS | L12: 28 | M12: GRM | N12: BY_SERVING | Q12: 2 slices (1 ounce) | R12: PREPARED | AF12: 160 | AG12: 2 | AH12: 25 | AI12: 100 | AJ12: 5 | AK12: 0 | AL12: 0 | AM12: 0 | AN12: 160 | AO12: 5 | AP12: 260 | AQ12: 1 | AR12: 0 | AS12: 9 | AT12: 0 | AV12: 480 | AW12: CASE | AX12: TRUE | AY12: FREE_FROM | AZ12: FREE_FROM | BA12: CONTAINS | BB12: FREE_FROM | BC12: FREE_FROM | BD12: FREE_FROM | BE12: CONTAINS | BF12: FREE_FROM | BG12: FREE_FROM | BH12: AC, AE, AF, AM, AN, AP, AY, UM, UW, AS | BK12: 2025-09-02 08:43:50 | BL12: 2025-08-28 13:16:59 | BM12: Cultured Milk, Water, Cream, Dairy Product Solids*, Sodium Citrate, Salt, Potassium Citrate, Annatto and Paprika (Color), Enzymes, Sorbic Acid (Preservative), Soy Lecithin (Anti-Sticking Agent) *Ingredient Not in Regular Pasteurized Process American Cheese | BN12: FALSE
A13: 100021 | B13: Cheese, Mozzarella, Low Moisture Part Skim, Shredded, Frozen | C13: Cheese | D13: 90075805885223 | E13: USDA | F13: Saputo Cheese USA, Inc. | G13: Saputo Cheese USA, Inc. | H13: A soft cheese with a mild dairy flavor and a white to light cream color. | I13: USDA LMPS MOZZ STSHD FRZ 5 LB | J13: Mozzarella Cheese Shred | L13: 28 | M13: GRM | N13: BY_SERVING | O13: 28 | P13: GRM | Q13: 1/4 cup (1 ounce) | R13: READY_TO_EAT | AF13: 190 | AG13: 2 | AH13: 15 | AI13: 80 | AJ13: 3 | AK13: 0 | AL13: 1 | AM13: 0 | AN13: 0 | AO13: 7 | AP13: 160 | AQ13: 0 | AR13: 0 | AS13: 5 | AT13: 0 | AU13: US_FDA_NFP_2020_STANDARD | AV13: 480 | AW13: CASE | AY13: FREE_FROM | AZ13: FREE_FROM | BA13: CONTAINS | BB13: FREE_FROM | BC13: FREE_FROM | BD13: FREE_FROM | BE13: FREE_FROM | BF13: FREE_FROM | BG13: FREE_FROM | BH13: AM, AF, AC, UN, AY, UW, AE, AU, AS, AN, AP, UM, BM | BK13: 2025-11-03 08:54:44 | BL13: 2025-09-12 13:27:00 | BM13: Low Moisture Part Skim Mozzarella Cheese (Pasteurized Part Skim Milk, Cheese Cultures, Salt, Enzymes) Powdered Cellulose (to Prevent Caking), Natamycin (a Natural Mold Inhibitor) | BN13: FALSE
A14: 100022 | B14: Cheese, Mozzarella, Low Moisture Part Skim, Loaves, Frozen | C14: Cheese | D14: 00070801000165 | E14: DFA | F14: Dairy Farmers of America Inc. | G14: Dairy Farmers of America Inc. | H14: JACOBO PS MOZZ 6 LB AVG | I14: JACOBO PS MOZZ 6 LB AVG | J14: JACOBO PS MOZZ 6 LB AVG | K14: CHILD_NUTRITION_FOOD_PROGRAMS | L14: 28 | M14: GRM | N14: BY_MEASURE | O14: 28 | P14: GRM | Q14: 1 ounce | R14: PREPARED | AF14: 195 | AG14: 2 | AH14: 16 | AI14: 83 | AJ14: 3 | AK14: 0 | AL14: 0 | AM14: 0 | AN14: 0 | AO14: 7 | AP14: 168 | AQ14: 1 | AR14: 0 | AS14: 6 | AT14: 0 | AV14: 768 | AW14: BASE_UNIT_OR_EACH | AY14: FREE_FROM | AZ14: FREE_FROM | BA14: CONTAINS | BB14: FREE_FROM | BD14: FREE_FROM | BE14: FREE_FROM | BF14: FREE_FROM | BG14: FREE_FROM | BH14: AC, AY, AP, AE, AM, AF, AN, UW | BK14: 2022-09-19T05:21:40 | BL14: 2022-05-06T15:17:20 | BM14: Cultured Pasteurized Part-Skim Milk, Salt and Enzymes | BN14: TRUE
A15: 100022 | B15: Cheese, Mozzarella, Low Moisture Part Skim, Loaves, Frozen | C15: Cheese | D15: 90075805885216 | E15: USDA | F15: Saputo Cheese USA, Inc. | G15: Saputo Cheese USA, Inc. | H15: A soft cheese with a mild dairy flavor and a white to light cream color. | I15: USDA LMPS MOZZ LOF FRZ 6 LB | J15: Mozzarella Loaf | L15: 28 | M15: GRM | N15: BY_SERVING | O15: 28 | P15: GRM | Q15: 1 ounce | R15: READY_TO_EAT | AF15: 200 | AG15: 1 | AH15: 20 | AI15: 80 | AJ15: 3 | AK15: 0 | AL15: 0 | AM15: 0 | AN15: 0 | AO15: 7 | AP15: 170 | AQ15: 0 | AR15: 0 | AS15: 5 | AT15: 0 | AU15: US_FDA_NFP_2020_STANDARD | AV15: 768 | AW15: CASE | AY15: FREE_FROM | AZ15: FREE_FROM | BA15: CONTAINS | BB15: FREE_FROM | BC15: FREE_FROM | BD15: FREE_FROM | BE15: FREE_FROM | BF15: FREE_FROM | BG15: FREE_FROM | BH15: AM, AC, AF, UN, AY, UW, AE, AU, AS, AN, AP, UM, BM | BK15: 2025-11-03 08:54:44 | BL15: 2025-09-12 13:27:00 | BM15: Low Moisture Part Skim Mozzarella Cheese (Pasteurized Part Skim Milk, Cheese Cultures, Salt, Enzymes) | BN15: FALSE
A16: 100036 | B16: Cheese, Blended American, Yellow, Reduced Fat, Sliced, Chilled | C16: Cheese | D16: 10041299169792 | E16: Dinner Bell | F16: AMPI | G16: AMPI | H16: 6/5 lb. Pullman 160 Slice Colored Blended Reduced Sodium/Fat | I16: C Blended 160 Slice Red Sod/Fat | J16: Cheese | L16: 28 | M16: GRM | N16: BY_SERVING | O16: 28 | P16: GRM | Q16: 2 slices (1 ounce) | R16: PREPARED | T16: 0 | U16: MEAT_OR_MEAT_ALTERNATIVE | V16: 28.0 GRM | X16: REDUCED FAT CHEDDAR CHEESE (MILK, CHEESE CULTURES, SALT, ENZYMES), CHEDDAR CHEESE (MILK, CHEESE CULTURES, SALT, ENZYMES), WATER, WHEY PERMEATE, COLOR ADDED, SODIUM CITRATE, POTASSIUM CITRATE, GUAR AND XANTHAN GUMS, SORBIC ACID, SALT, LACTIC ACID, SUNFLOWER LECITHIN (NON-STICKING AGENT) | AF16: 181 | AG16: 2 | AH16: 15 | AI16: 80 | AJ16: 3.5 | AK16: 0 | AL16: 0 | AM16: 0 | AN16: 92 | AO16: 6 | AP16: 290 | AQ16: 1 | AS16: 5 | AT16: 0 | AV16: 480 | AW16: CASE | AY16: FREE_FROM | AZ16: FREE_FROM | BA16: CONTAINS | BB16: FREE_FROM | BD16: FREE_FROM | BE16: FREE_FROM | BF16: FREE_FROM | BG16: FREE_FROM | BH16: AE, AF, AM, UM, AP, AY, AN, UW, AC | BK16: 2022-09-19T05:37:33 | BL16: 2022-09-07T15:08:10 | BM16: Reduced Fat Cheddar Cheese (Milk, Cheese Cultures, Salt, Enzymes), Cheddar Cheese (Milk, Cheese Cultures, Salt, Enzymes), Water, Whey Permeate, Color Added, Sodium Citrate, Potassium Citrate, Guar and Xanthan Gums, Sorbic Acid, Salt, Lactic Acid, Sunflower Lecithin (Non-Sticking Agent) | BN16: FALSE
A17: 100036 | B17: Cheese, Blended American, Yellow, Reduced Fat, Sliced, Chilled | C17: Cheese | D17: 10071078011424 | E17: Bongards® | F17: Bongards Creameries | G17: Bongards Creameries | H17: Yellow Reduced Fat & Reduced Sodium American Cheese Slices have a mild, buttery American flavor. There are 160 horizontal slices in each 5 lb. pack and 6 packs per case. Perfect for use in burgers, sandwiches, and wraps. | I17: Ylw RdcSdm RdcFt Prcs Amrcn Sl 6/5# | J17: Process Cheese | K17: CHILD_NUTRITION_FOOD_PROGRAMS | L17: 28 | M17: GRM | N17: BY_SERVING | Q17: 2 slices (1 ounce) | R17: PREPARED | AF17: 141 | AG17: 4 | AH17: 15 | AI17: 70 | AJ17: 2.5 | AK17: 0 | AL17: 0 | AM17: 0 | AN17: 120 | AO17: 5 | AP17: 290 | AQ17: 2 | AR17: 0 | AS17: 4.5 | AT17: 0 | AV17: 480 | AW17: CASE | AX17: TRUE | AY17: FREE_FROM | AZ17: FREE_FROM | BA17: CONTAINS | BB17: FREE_FROM | BC17: FREE_FROM | BD17: FREE_FROM | BE17: CONTAINS | BF17: FREE_FROM | BG17: FREE_FROM | BH17: AC, AE, AF, AM, AN, AP, AY, UM, UW, AS | BK17: 2025-09-02 08:43:50 | BL17: 2025-08-28 13:16:59 | BM17: Cultured Skim Milk and Milk, Water, Nonfat Dry Milk*, Maltodextrin*, Modified Food Starch*, Sodium Citrate, Potassium Citrate, Salt, Annatto and Paprika (Color), Enzymes, Vitamin A Palmitate, Sorbic Acid (Preservative), Soy Lecithin (Anti-Sticking Agent) *Ingredient Not in Regular Pasteurized Process American Cheese | BN17: FALSE
A18: 100036 | B18: Cheese, Blended American, Yellow, Reduced Fat, Sliced, Chilled | C18: Cheese | D18: 10071078101422 | E18: Bongards® | F18: Bongards Creameries | G18: Bongards Creameries | H18: Yellow Reduced Fat & Reduced Sodium American Cheese Slices have a mild, buttery American flavor. There are 160 horizontal slices in each 5 lb. pack and 6 packs per case. Perfect for use in burgers, sandwiches, and wraps. | I18: Ylw RdcSdm RdcFt Prcs Amrcn Sl 6/5# | J18: Process Cheese | K18: CHILD_NUTRITION_FOOD_PROGRAMS | L18: 28 | M18: GRM | N18: BY_SERVING | Q18: 2 slices (1 ounce) | R18: PREPARED | S18: 1 ounce processed cheese credits as 1 ounce equivalent meat/meat alternate | AE18: http://files.syncpdi.com/files/KUoyVFrFQCW2-t5W92ZUPA | AF18: 141 | AG18: 4 | AH18: 15 | AI18: 70 | AJ18: 2.5 | AK18: 0 | AL18: 0 | AM18: 0 | AN18: 120 | AO18: 5 | AP18: 290 | AQ18: 2 | AR18: 0 | AS18: 4.5 | AT18: 0 | AV18: 480 | AW18: CASE | AX18: TRUE | AY18: FREE_FROM | AZ18: FREE_FROM | BA18: CONTAINS | BB18: FREE_FROM | BC18: FREE_FROM | BD18: FREE_FROM | BE18: FREE_FROM | BF18: FREE_FROM | BG18: FREE_FROM | BH18: AC, AE, AF, AM, AN, AP, AY, UM, UW, AS | BK18: 2023-02-01T10:10:28 | BL18: 2023-01-26T17:22:48 | BM18: Cultured Skim Milk and Milk, Water, Nonfat Dry Milk*, Maltodextrin*, Modified Food Starch*, Sodium Citrate, Potassium Citrate, Salt, Annatto and Paprika (Color), Enzymes, Sorbic Acid (Preservative), Sunflower Lecithin (Anti-Sticking Agent) *Ingredient Not in Regular Pasteurized Process American Cheese | BN18: FALSE
A19: 100037 | B19: Cheese, Blended American, White, Reduced Fat, Sliced, Chilled | C19: Cheese | D19: 10041299169891 | E19: Dinner Bell | F19: AMPI | G19: AMPI | H19: 6/5 lb. Pullman 160 Slice White Blended Reduced Sodium/Fat | I19: W Blended 160 Slice Red Sod/Fat | J19: Cheese | L19: 28 | M19: GRM | N19: BY_SERVING | O19: 28 | P19: GRM | Q19: 2 slices (1 ounce) | R19: PREPARED | T19: 0 | U19: MEAT_OR_MEAT_ALTERNATIVE | V19: 28.0 GRM | X19: REDUCED FAT CHEDDAR CHEESE (MILK, CHEESE CULTURES, SALT, ENZYMES), CHEDDAR CHEESE (MILK, CHEESE CULTURES, SALT, ENZYMES), WATER, WHEY PERMEATE, SODIUM CITRATE, POTASSIUM CITRATE, GUAR AND XANTHAN GUMS, SORBIC ACID, SALT, LACTIC ACID, SUNFLOWER LECITHIN (NON-STICKING AGENT) | AF19: 181 | AG19: 2 | AH19: 15 | AI19: 80 | AJ19: 3.5 | AK19: 0 | AL19: 0 | AM19: 0 | AN19: 92 | AO19: 6 | AP19: 290 | AQ19: 1 | AS19: 5 | AT19: 0 | AV19: 480 | AW19: CASE | AY19: FREE_FROM | AZ19: FREE_FROM | BA19: CONTAINS | BB19: FREE_FROM | BD19: FREE_FROM | BE19: FREE_FROM | BF19: FREE_FROM | BG19: FREE_FROM | BH19: AE, AF, AM, UM, AP, AY, AN, UW, AC | BK19: 2022-09-19T05:31:41 | BL19: 2022-09-07T15:08:10 | BM19: Reduced Fat Cheddar Cheese (Milk, Cheese Cultures, Salt, Enzymes), Cheddar Cheese (Milk, Cheese Cultures, Salt, Enzymes), Water, Whey Permeate, Sodium Citrate, Potassium Citrate, Guar and Xanthan Gums, Sorbic Acid, Salt, Lactic Acid, Sunflower Lecithin (Non-Sticking Agent) | BN19: FALSE
A20: 100037 | B20: Cheese, Blended American, White, Reduced Fat, Sliced, Chilled | C20: Cheese | D20: 10071078011431 | E20: Bongards® | F20: Bongards Creameries | G20: Bongards Creameries | H20: White Reduced Fat & Reduced Sodium American Cheese Slices have a mild, buttery American flavor. There are 160 horizontal slices in each 5 lb. pack and 6 packs per case. Perfect for use in burgers, sandwiches, and wraps. | I20: Wht RdcdSdm RdcdFt PrcsAmrcnSlc6/5# | J20: Process Cheese | K20: CHILD_NUTRITION_FOOD_PROGRAMS | L20: 28 | M20: GRM | N20: BY_SERVING | Q20: 2 slices (1 ounce) | R20: PREPARED | AF20: 141 | AG20: 4 | AH20: 15 | AI20: 70 | AJ20: 2.5 | AK20: 0 | AL20: 0 | AM20: 0 | AN20: 120 | AO20: 5 | AP20: 290 | AQ20: 2 | AR20: 0 | AS20: 4.5 | AT20: 0 | AV20: 480 | AW20: CASE | AX20: TRUE | AY20: FREE_FROM | AZ20: FREE_FROM | BA20: CONTAINS | BB20: FREE_FROM | BC20: FREE_FROM | BD20: FREE_FROM | BE20: CONTAINS | BF20: FREE_FROM | BG20: FREE_FROM | BH20: AC, AE, AF, AM, AN, AP, AY, UM, UW, AS | BK20: 2025-09-02 08:43:50 | BL20: 2025-08-28 13:16:59 | BM20: Cultured Skim Milk and Milk, Water, Nonfat Dry Milk*, Maltodextrin*, Modified Food Starch*, Sodium Citrate, Potassium Citrate, Salt, Enzymes, Vitamin A Palmitate, Sorbic Acid (Preservative), Soy Lecithin (Anti-Sticking Agent)*Ingredient Not in Regular Pasteurized Process American Cheese | BN20: FALSE
A21: 100037 | B21: Cheese, Blended American, White, Reduced Fat, Sliced, Chilled | C21: Cheese | D21: 10071078001432 | E21: Bongards® | F21: Bongards Creameries | G21: Bongards Creameries | H21: White Reduced Fat & Reduced Sodium American Cheese Slices have a mild, buttery American flavor. There are 160 horizontal slices in each 5 lb. pack and 6 packs per case. Perfect for use in burgers, sandwiches, and wraps. | I21: Wht RdcdSdm RdcdFt PrcsAmrcnSlc6/5# | J21: Process Cheese | K21: CHILD_NUTRITION_FOOD_PROGRAMS | L21: 28 | M21: GRM | N21: BY_SERVING | Q21: 2 slices (1 ounce) | R21: PREPARED | AE21: http://files.syncpdi.com/files/56suPihvRPy7zfTHpmhOIw | AF21: 141 | AG21: 4 | AH21: 15 | AI21: 70 | AJ21: 2.5 | AK21: 0 | AL21: 0 | AM21: 0 | AN21: 120 | AO21: 5 | AP21: 290 | AQ21: 2 | AR21: 0 | AS21: 4.5 | AT21: 0 | AV21: 480 | AW21: CASE | AX21: TRUE | AY21: FREE_FROM | AZ21: FREE_FROM | BA21: CONTAINS | BB21: FREE_FROM | BC21: FREE_FROM | BD21: FREE_FROM | BE21: FREE_FROM | BF21: FREE_FROM | BG21: FREE_FROM | BH21: AC, AE, AF, AM, AN, AP, AY, UM, UW, AS | BK21: 2023-02-01T09:15:22 | BL21: 2023-01-26T17:22:48 | BM21: Cultured Skim Milk and Milk, Water, Nonfat Dry Milk*, Maltodextrin*, Modified Food Starch*, Sodium Citrate, Potassium Citrate, Salt, Enzymes, Sorbic Acid (Preservative), Sunflower Lecithin (Anti-Sticking Agent) *Ingredient Not in Regular Pasteurized Process American Cheese | BN21: FALSE
A22: 100046 | B22: Eggs, Liquid Whole, Frozen | C22: Egg products | D22: 10794063513535 | E22: Deb-El | F22: Deb El Food Products, LLC | G22: Deb El Food Products, LLC | H22: Frozen Whole Eggs with Citric Acid 6/5 lb. Cartons | I22: Frozen Whole Eggs with Citric Acid | J22: Frozen Whole Eggs with Citric Acid | L22: 47 | M22: GRM | N22: BY_SERVING | O22: 47 | P22: GRM | Q22: 3 Tablespoon | R22: UNPREPARED | AF22: 29 | AG22: 0 | AH22: 175 | AI22: 70 | AJ22: 1.5 | AK22: 0 | AL22: 0 | AM22: 0.81 | AN22: 61.95 | AO22: 5.8 | AP22: 65 | AQ22: 0 | AS22: 7.5 | AT22: 1.22 | AV22: =48*6 -> 288 | AW22: CASE | AY22: CONTAINS | AZ22: FREE_FROM | BA22: FREE_FROM | BB22: FREE_FROM | BC22: FREE_FROM | BD22: FREE_FROM | BE22: FREE_FROM | BF22: FREE_FROM | BG22: FREE_FROM | BH22: AC, AE, AF, AM, AN, AP, AS, AY, UW | BK22: 2024-06-03 08:45:45 | BL22: 2024-03-14 13:07:00 | BM22: Whole Eggs, Citric Acid, 0.15 Percent Water as a Carrier, Added as a Preservative | BN22: FALSE
A23: 100046 | B23: Eggs, Liquid Whole, Frozen | C23: Egg products | D23: 00664194000019 | E23: Sonstegard Foods | F23: Sonstegard Foods Company | G23: Sonstegard Foods Company | H23: Sonstegard Foods Frozen Goodies Pasteurized Whole Egg with Citric Acid 5 lb | I23: Frozen Goodies Whole Egg 5 lb | J23: Eggs | K23: CHILD_NUTRITION_FOOD_PROGRAMS | L23: 50 | M23: GRM | N23: BY_SERVING | O23: 50 | P23: GRM | Q23: 3 Tablespoon | R23: THAW | AF23: 0 | AG23: 1 | AH23: 215 | AI23: 70 | AJ23: 1.5 | AL23: 0 | AM23: 0 | AO23: 6 | AP23: 65 | AQ23: 0 | AS23: 4.5 | AV23: 272 | AW23: BASE_UNIT_OR_EACH | AX23: TRUE | AY23: DERIVED_FROM | BH23: AE | BK23: 2022-09-19T05:44:23 | BL23: 2022-09-13T15:01:45 | BM23: Whole Egg, Citric Acid, Water | BN23: FALSE
A24: 100117 | B24: Chicken, Fajita Seasoned Strips, Cooked, Frozen | C24: Poultry | D24: 10715001001174 | E24: Koch Foods - USDA | F24: Koch Foods Inc | G24: Koch Foods Inc | H24: USDA Fully Cooked Dark Meat Chicken Fajita Strips, smoke flavor added (random) IF packed 6/5 pound sealed and printed bags. | I24: Dark Meat Chicken Fajita Strips | J24: Strips | K24: FOOD_SERVICE | L24: 84 | M24: GRM | N24: BY_MEASURE | O24: 84 | P24: GRM | Q24: 3 ounce | R24: UNPREPARED | S24: A 2.75 ounce serving of fully cooked chicken fajita strips credits as 2 ounce equivalent meat/meat alternate | AE24: https://dam.catalog.1worldsync.com/im/dwn/GCP-5930909166469120 | AF24: 20 | AG24: 1.32 | AH24: 70.62 | AI24: 120 | AJ24: 1.87 | AK24: 0 | AL24: 0.22 | AM24: 1.04 | AN24: 312 | AO24: 16 | AP24: 420 | AQ24: 0 | AS24: 5.93 | AT24: 0 | AV24: =27*6 -> 162 | AW24: CASE | AX24: TRUE | BK24: 2025-06-02 08:13:46 | BL24: 2025-05-08 13:02:58 | BM24: Dark Meat Chicken, Water, Contains 2% or Less of Salt, Spices, Potassium Phosphates, Onion Powder, Garlic Powder, Dextrose, Chili Powder (Spices, Salt, Garlic), Modified Food Starch, Grill Flavor (Maltodextrin, Flavor [from Sunflower Oil], Modified Food Starch, Corn Syrup Solids, Tricalcium Phosphate), Lemon Powder (Corn Syrup Solids, Lemon Juice Solids, Natural flavors), Lime Juice Powder (Corn Syrup Solids, Lime Juice Solids, Natural Flavors), Vinegar Powder (Maltodextrin, White Distilled Vinegar, Modified Food Starch), Sugar, Brown Sugar, Spice Extractives, Natural Smoke Flavor | BN24: TRUE
A25: 100119 | B25: Turkey, Taco Filling, Cooked, Frozen | C25: Poultry | D25: 10642205035103 | E25: Cargill Unbranded | F25: Cargill Incorporated/Honeysuckle White | G25: Cargill Incorporated/Honeysuckle White | H25: Fully Cooked Turkey Taco Filling | I25: USDA TKY TACO KTTLE FZ 6-5LB | J25: Turkey Bulk Poultry | K25: CHILD_NUTRITION_FOOD_PROGRAMS | L25: 56 | M25: GRM | N25: BY_SERVING | O25: 2 | P25: ONZ | Q25: 2 ounce | R25: PREPARED | S25: A 1.90 ounce serving of fully cooked turkey taco filling credits as 1 ounce equivalent meat/meat alternate | AA25: 1.90 ounces of fully cooked turkey taco filling contains 1.00-ounce equivalent meat/meat alternate. | AB25: MEAT_OR_MEAT_ALTERNATIVE | AC25: 1.00 ONZ | AD25: 30 LBR | AE25: https://images.salsify.com/image/upload/s--0GLhf3cw--/h1b9db8pnejpe6vlvigu | AG25: 3 | AH25: 25 | AI25: 80 | AJ25: 1 | AK25: 0 | AL25: 1 | AO25: 8 | AP25: 160 | AQ25: 1 | AS25: 4 | AU25: NFT | AV25: 240 | AW25: CASE | AX25: TRUE | AY25: FREE_FROM | AZ25: FREE_FROM | BA25: FREE_FROM | BB25: FREE_FROM | BC25: FREE_FROM | BD25: FREE_FROM | BE25: CONTAINS | BF25: FREE_FROM | BG25: FREE_FROM | BH25: AC, AE, AF, AM, AN, AP, AS, AY, UW | BK25: 2025-04-01 08:31:52 | BL25: 2025-03-24 13:50:02 | BM25: Ground Turkey, Water, Tomato Paste, Textured Soy Flour, and 2% or less of: Yellow Corn Flour, Maltodextrin, Spices, Paprika, Sugar, Salt, Dehydrated Garlic, Modified Corn Starch, Natural Flavors, Citric Acid, Yeast Extract, Dehydrated Onion, Caramel Color. Contains: Soy. | BN25: FALSE
A26: 100119 | B26: Turkey, Taco Filling, Cooked, Frozen | C26: Poultry | D26: 10715001001198 | E26: JTM Food Group | F26: JTM Food Group | G26: J. T. M. Provisions Co., Inc. | H26: USDA Turkey Taco | I26: USDA Turkey Taco | J26: USDA Turkey Taco | L26: 97.524 | M26: GRM | N26: BY_SERVING | O26: 97.524 | P26: GRM | Q26: 3.44 ounce | R26: PREPARED | S26: Use vendor CN Label or Product Formulation Statement to confirm crediting information. | AG26: 5.26 | AH26: 41.44 | AI26: 167.48 | AJ26: 2.75 | AK26: 0.3 | AL26: 1.63 | AM26: 1.26 | AO26: 15.76 | AP26: 270.08 | AQ26: 2.05 | AS26: 9.25 | AU26: US_USDA_NFP_STANDARD | AV26: 139 | AW26: CASE | AY26: FREE_FROM | AZ26: FREE_FROM | BA26: FREE_FROM | BB26: FREE_FROM | BC26: FREE_FROM | BD26: FREE_FROM | BE26: CONTAINS | BF26: FREE_FROM | BG26: FREE_FROM | BH26: AC, AE, AF, AM, AN, AP, AS, AY, UW | BK26: 2025-02-03 09:14:02 | BL26: 2025-01-31 09:05:00 | BM26: Ground Turkey, Water, Tomato Paste, Textured Vegetable Protein (Soy Protein Concentrate, Caramel Color), Contains Less Than 2% of Textured Vegetable Protein (Soy Flour, Caramel Color), Seasoning (Potassium Chloride, Flavor [Contains Maltodextrin]), Dry Beef Stock, Dehydrated Onion, Chili Pepper, Salt, Dehydrated Garlic, Caramel Color, Vinegar, Spices, Paprika Extract | BN26: FALSE
A27: 100121 | B27: Turkey, Deli Breast, Frozen | C27: Poultry | D27: 90642205529233 | E27: Cargill Unbranded | F27: Cargill Incorporated/Honeysuckle White | G27: Cargill Incorporated/Honeysuckle White | H27: Fully Cooked Oven Roasted Turkey Breast School Lunch, Diameter 4.9 inches | I27: FZ OR Tky Brst USDA | J27: Turkey Bulk Poultry | K27: CHILD_NUTRITION_FOOD_PROGRAMS | L27: 56 | M27: GRM | N27: BY_SERVING | O27: 2 | P27: ONZ | Q27: 2 ounce | R27: PREPARED | S27: A 1.59 ounce serving of turkey deli breast credits as 1 ounce equivalent meat/meat alternate | AA27: 1.59 ounces of turkey deli breast contains 1.00-ounce equivalent meat/meat alternate. | AB27: MEAT_OR_MEAT_ALTERNATIVE | AC27: 1.00 ONZ | AD27: 40 LBR | AE27: https://images.salsify.com/image/upload/s--Md6A8u4x--/nienyj8oga1eq0kk9wbi | AF27: 0 | AG27: 1 | AH27: 30 | AI27: 60 | AJ27: 0 | AK27: 0 | AL27: 0 | AO27: 12 | AP27: 330 | AQ27: 0 | AS27: 1 | AU27: NFT | AV27: 320 | AW27: CASE | AX27: TRUE | AY27: FREE_FROM | AZ27: FREE_FROM | BA27: FREE_FROM | BB27: FREE_FROM | BC27: FREE_FROM | BD27: FREE_FROM | BE27: FREE_FROM | BF27: FREE_FROM | BG27: FREE_FROM | BH27: AC, AE, AF, AM, AN, AP, AS, AY, UW | BK27: 2025-04-01 08:31:52 | BL27: 2025-03-24 13:25:01 | BM27: Turkey Breast, Water, Modified Food Starch, Sugar, Salt, Sodium Phosphate. | BN27: FALSE
A28: 100121 | B28: Turkey, Deli Breast, Frozen | C28: Poultry | D28: 10715001001211 | E28: Unbranded | F28: Tyson Foods Inc. | G28: Tyson Foods Inc. | H28: Fully Cooked, Deli Style Turkey Breast, 40 Lbs. | I28: DELI FC DELI STYL TKY BST 4 CNT 10l | J28: 010-TURKEY | K28: CHILD_NUTRITION_FOOD_PROGRAMS | L28: 56 | M28: GRM | N28: BY_SERVING | O28: 56 | P28: GRM | Q28: 2 ounce | R28: UNPREPARED | S28: Use vendor CN Label or Product Formulation Statement to confirm crediting information. | AF28: 0 | AG28: 1 | AH28: 30 | AI28: 70 | AJ28: 0 | AK28: 0 | AL28: 0 | AM28: 0.4 | AN28: 120 | AO28: 12 | AP28: 320 | AQ28: 1 | AR28: 1 | AS28: 1.5 | AT28: 0 | AU28: US_FDA_NFP_2020_STANDARD | AV28: Varied | AW28: CASE | AX28: TRUE | AY28: NOT_INTENTIONALLY_NOR_INHERENTLY_INCLUDED | AZ28: NOT_INTENTIONALLY_NOR_INHERENTLY_INCLUDED | BA28: NOT_INTENTIONALLY_NOR_INHERENTLY_INCLUDED | BB28: NOT_INTENTIONALLY_NOR_INHERENTLY_INCLUDED | BC28: NOT_INTENTIONALLY_NOR_INHERENTLY_INCLUDED | BD28: NOT_INTENTIONALLY_NOR_INHERENTLY_INCLUDED | BE28: NOT_INTENTIONALLY_NOR_INHERENTLY_INCLUDED | BF28: NOT_INTENTIONALLY_NOR_INHERENTLY_INCLUDED | BG28: NOT_INTENTIONALLY_NOR_INHERENTLY_INCLUDED | BH28: AC, AE, AF, AM, AN, AP, AS, AY, UW | BK28: 2024-06-03 08:45:45 | BL28: 2024-05-24 08:32:05 | BM28: Turkey Breast, Water, Contains 2% or Less: Salt, Dextrose, Potassium Lactate, Modified Corn Starch, Sodium Phosphates, Sodium Diacetate | BN28: FALSE
A29: 100122 | B29: Turkey, Deli Breast, Smoked, Frozen | C29: Poultry | D29: 90642205556871 | E29: Cargill Unbranded | F29: Cargill Incorporated/Honeysuckle White | G29: Cargill Incorporated/Honeysuckle White | H29: Fully Cooked Smoked Turkey Breast School Lunch, Diameter 5.5 inches | I29: FZ Sm Tky Brst USDA | J29: Turkey Bulk Poultry | K29: CHILD_NUTRITION_FOOD_PROGRAMS | L29: 56 | M29: GRM | N29: BY_SERVING | O29: 56 | P29: GRM | Q29: 2 ounce | R29: PREPARED | S29: Use vendor CN Label or Product Formulation Statement to confirm crediting information. | AF29: 0 | AG29: 1 | AH29: 30 | AI29: 60 | AJ29: 0 | AK29: 0 | AL29: 0 | AO29: 12 | AP29: 330 | AQ29: 0 | AS29: 0.5 | AU29: NFT | AV29: 320 | AW29: CASE | AX29: TRUE | AY29: FREE_FROM | AZ29: FREE_FROM | BA29: FREE_FROM | BB29: FREE_FROM | BC29: FREE_FROM | BD29: FREE_FROM | BE29: FREE_FROM | BF29: FREE_FROM | BG29: FREE_FROM | BH29: AC, AE, AF, AM, AN, AP, AS, AY, UW | BK29: 2024-11-01 08:56:02 | BL29: 2024-10-17 14:11:17 | BM29: Turkey Breast, Water, Contains Less Than 2% Salt, Potassium Chloride, Sugar, Sodium Phosphate, Modified Food Starch, Sodium Erythorbate, Sodium Nitrite | BN29: FALSE
A30: 100125 | B30: Turkey, Roast, Raw, Frozen | C30: Poultry | D30: 90642205528144 | E30: Cargill | F30: Cargill Incorporated/Honeysuckle White | G30: Cargill Incorporated/Honeysuckle White | H30: School Lunch Ready to Cook Turkey Combo Roast | I30: Fz RTC Combo Rst 4p USDA | J30: Turkey Bulk Poultry | K30: CHILD_NUTRITION_FOOD_PROGRAMS | L30: 112 | M30: GRM | N30: BY_SERVING | O30: 112 | P30: GRM | Q30: 4 ounce | R30: UNPREPARED | AG30: 0 | AH30: 70 | AI30: 130 | AJ30: 3.5 | AK30: 0 | AL30: 0 | AO30: 24 | AP30: 560 | AQ30: 0 | AR30: 0 | AS30: 3.5 | AU30: NFT | AV30: 160 | AW30: CASE | AX30: TRUE | AY30: FREE_FROM | AZ30: FREE_FROM | BA30: FREE_FROM | BB30: FREE_FROM | BC30: FREE_FROM | BD30: FREE_FROM | BE30: FREE_FROM | BF30: FREE_FROM | BG30: FREE_FROM | BH30: AC, AE, AF, AM, AN, AP, AS, AY, UW | BK30: 2023-02-01T10:02:46 | BL30: 2023-02-14T09:03:20 | BM30: Turkey, Contains Up To 7% Of A Solution Of Water, Salt And Sodium Phosphate | BN30: FALSE
A31: 100125 | B31: Turkey, Roast, Raw, Frozen | C31: Poultry | D31: 90800020246487 | E31: USDA - FNS | F31: VPGC | G31: VPGC | H31: Frozen Ready-To-Cook Turkey Roasts | I31: 4/8-12 6.5% Roast FZ | K31: CHILD_NUTRITION_FOOD_PROGRAMS | L31: 112 | M31: GRM | N31: BY_SERVING | Q31: 4 ounce | R31: BAKE | AF31: 0 | AG31: 0 | AH31: 65 | AI31: 160 | AJ31: 2 | AL31: 0 | AM31: 0.72 | AO31: 20 | AP31: 600 | AQ31: 0 | AR31: 0 | AS31: 8 | AU31: US_FDA_NFP_PRE_2020_STANDARD | AV31: 160 | AW31: CASE | AY31: FREE_FROM | AZ31: FREE_FROM | BA31: FREE_FROM | BB31: FREE_FROM | BC31: FREE_FROM | BD31: FREE_FROM | BE31: FREE_FROM | BF31: FREE_FROM | BG31: FREE_FROM | BH31: AS, AM, AE, AC, AN, AP, UW, AY, AF | BK31: 2024-06-03 08:45:45 | BL31: 2024-05-28 08:19:57 | BM31: Frozen Ready-To-Cook Turkey Roasts. Contains up to 6.5% of a Solution of Water, Salt and Sodium Phosphate. | BN31: FALSE
A32: 100126 | B32: Turkey, Deli Ham, Smoked, Frozen | C32: Poultry | D32: 00713480101265 | E32: Hof Hause | F32: John Hofmeister & Son, Inc | G32: John Hofmeister & Son, Inc | H32: 4 x10 lbr vacuum-sealed packges fully cooked smoked turkey ham | I32: HOF HAUS Smoked Turkey Ham | J32: Ham | K32: CHILD_NUTRITION_FOOD_PROGRAMS | L32: 57 | M32: GRM | N32: BY_SERVING | O32: 57 | P32: GRM | Q32: 2 ounce | R32: PREPARED | AA32: 57 gram | AB32: MEAT_OR_MEAT_ALTERNATIVE | AC32: 57 GRM | AD32: 57 GRM | AF32: 0 | AG32: 2 | AH32: 20 | AI32: 60 | AJ32: 0 | AK32: 0 | AL32: 0 | AM32: 0 | AN32: 0 | AO32: 9 | AP32: 330 | AQ32: 2 | AR32: 0 | AS32: 1.5 | AT32: 0 | AV32: 320 | AW32: CASE | AY32: FREE_FROM | AZ32: FREE_FROM | BA32: FREE_FROM | BB32: FREE_FROM | BC32: FREE_FROM | BD32: FREE_FROM | BE32: FREE_FROM | BF32: FREE_FROM | BG32: FREE_FROM | BH32: AP, UW, AM, UN, AF, AE, AN, AY | BK32: 2024-06-03 08:45:45 | BL32: 2023-08-24 01:28:31 | BM32: Cured Turkey Thigh Meat, Water, Dextrose, Potassium Chloride, Salt, Modified Tapioca Starch, Sodium Phosphate, Sodium Lactate, Sodium Acetate, Hickory Smoke Flavor, Sodium Diacetate, Sodium Erythorbate, Sodium Nitrite. | BN32: FALSE
A33: 100127 | B33: Beef, Coarse Ground, Cooked, Canned | C33: Beef | D33: 00000790901617 | E33: Lakeside | F33: Lakeside Foods Inc. | G33: Lakeside Foods Inc. | H33: 24/24 OZ USDA CANNED BEEF | I33: CANNED BEEF | J33: CANNED BEEF | K33: CHILD_NUTRITION_FOOD_PROGRAMS | L33: 56 | M33: GRM | N33: BY_SERVING | Q33: 2 ounce | R33: UNPREPARED | AF33: 0 | AG33: 0 | AH33: 35 | AI33: 120 | AJ33: 4 | AK33: 0 | AL33: 0 | AM33: 0.72 | AN33: 0 | AO33: 10 | AP33: 150 | AQ33: 0 | AR33: 0 | AS33: 8 | AT33: 0 | AV33: =12*24 -> 288 | AW33: BASE_UNIT_OR_EACH | AX33: TRUE | AY33: FREE_FROM | AZ33: FREE_FROM | BA33: FREE_FROM | BB33: FREE_FROM | BC33: FREE_FROM | BD33: FREE_FROM | BE33: FREE_FROM | BF33: FREE_FROM | BG33: FREE_FROM | BH33: AS, UW, AC, AE, AF, AY, AM, AN, AP | BK33: 2023-08-01T13:17:25 | BL33: 2023-07-27T10:53:37 | BM33: Beef, Salt | BN33: FALSE
A34: 100134 | B34: Beef, Crumbles w/SPP, Cooked, Frozen | C34: Beef | D34: 10020534159187 | E34: Burke Signature Unbranded | F34: Burke Marketing Corporation | G34: Burke Marketing Corporation | H34: Beef Patty Crumbles; 100 ± 10 nuggets per ounce; 8/5 lbs. Order Code: 115918. Label Code: 115918. Invoice Name: 8/5 CK BF PATTY CRMBLE. | I34: Beef, Topping | J34: Fully Cooked Meats & Pizza Toppings | L34: 56 | M34: GRM | N34: BY_SERVING | O34: 56 | P34: GRM | Q34: 2 ounce | R34: PREPARED | S34: Use vendor CN Label or Product Formulation Statement to confirm crediting information. | AF34: 23.59 | AG34: 1.79 | AH34: 29.6 | AI34: 111.97 | AJ34: 2.77 | AK34: 0.38 | AL34: 0.93 | AM34: 1.95 | AN34: 443.79 | AO34: 10.83 | AP34: 177.01 | AQ34: 0.47 | AR34: 0.4 | AS34: 6.16 | AT34: 0.05 | AV34: 324 | AW34: CASE | AY34: FREE_FROM | AZ34: FREE_FROM | BA34: FREE_FROM | BB34: FREE_FROM | BC34: FREE_FROM | BD34: FREE_FROM | BE34: CONTAINS | BF34: FREE_FROM | BG34: FREE_FROM | BH34: AM, AE, NM, AC, AF, AP, AS, AY, AN, UW, UN | BK34: 2025-11-03 08:54:44 | BL34: 2025-10-03 09:07:00 | BM34: Ground Beef (No More Than 20% Fat), Water, Textured Vegetable Protein (Soy Protein Concentrate, Caramel Color), Potassium Chloride, Sugar, Natural Flavorings, Salt, Sodium Phosphates, Spice. Contains: Soy. | BN34: FALSE
A35: 100134 | B35: Beef, Crumbles w/SPP, Cooked, Frozen | C35: Beef | D35: 00087427425838 | E35: Don Lee Farms | F35: Goodman Food Products Inc. | G35: Goodman Food Products | H35: Fully Cooked Beef Crumbles #100134 | I35: Fully Cooked Beef Crumbles #100134 | J35: Beef Crumbles | K35: CHILD_NUTRITION_FOOD_PROGRAMS | L35: 56.7 | M35: GRM | N35: BY_SERVING | O35: 56.7 | P35: GRM | Q35: 2 ounce | R35: HEAT_AND_SERVE | S35: Each 2 ounce fully cooked beef patty crumble provides 1.75 oz equivalent meat/meat alternate | Y35: https://dam.catalog.1worldsync.com/im/dwn/GCP-4951524413276160 | AF35: 17 | AG35: 1.2 | AH35: 28 | AI35: 109 | AJ35: 2.8 | AK35: 0 | AL35: 0.8 | AM35: 1.2 | AO35: 10.5 | AP35: 193 | AQ35: 0.1 | AS35: 6.9 | AV35: 320 | AW35: CASE | AX35: TRUE | BE35: CONTAINS | BH35: AY | BK35: 2023-06-01T09:07:27 | BL35: 2022-12-29T10:30:08 | BM35: Ground Beef (Not More Than 25% Fat), Water, Soy Protein Concentrate, (Caramel Color), Seasoning (Salt, Sodium & Potassium Phosphate, Autolyzed Yeast, Potassium Chloride, Caramel Color, Natural Flavors). Contains: Soy. | BN35: FALSE
A36: 100139 | B36: Pork, Coarse Ground, Cooked, Canned | C36: Pork | D36: 00000790902614 | E36: Lakeside Foods | F36: Lakeside Foods Inc. | G36: Lakeside Foods Inc. | H36: USDA CANNED PORK | I36: CANNED PORK | J36: CANNED PORK | K36: CHILD_NUTRITION_FOOD_PROGRAMS | L36: 56 | M36: GRM | N36: BY_SERVING | O36: 56 | P36: GRM | Q36: 2 ounce | R36: UNPREPARED | AF36: 0 | AG36: 0 | AH36: 35 | AI36: 120 | AJ36: 3 | AK36: 0 | AL36: 0 | AM36: 0.36 | AN36: 0 | AO36: 9 | AP36: 150 | AQ36: 0 | AR36: 0 | AS36: 8 | AT36: 0 | AU36: NFT | AV36: =12*24 -> 288 | AW36: BASE_UNIT_OR_EACH | AX36: TRUE | AY36: FREE_FROM | AZ36: FREE_FROM | BA36: FREE_FROM | BB36: FREE_FROM | BC36: FREE_FROM | BD36: FREE_FROM | BE36: FREE_FROM | BF36: FREE_FROM | BG36: FREE_FROM | BH36: AS, UW, AC, AE, AF, AY, AM, AN, AP | BK36: 2024-06-03 08:45:45 | BL36: 2024-05-06 14:27:38 | BM36: Pork, Salt | BN36: FALSE
A37: 100158 | B37: Beef, Fine Ground, 100%, 85/15, Raw, Frozen | C37: Beef | D37: 10028749492747 | E37: USDA | F37: Cargill Incorporated/ Beef | G37: Cargill Incorporated/ Beef | H37: Ground Beef, 85/15 Fine Grind, 10 lb. Chubs | I37: Grnd Bf 85/15 10 LB | J37: Beef Ground Bulk | K37: CHILD_NUTRITION_FOOD_PROGRAMS | L37: 100 | M37: GRM | N37: BY_SERVING | O37: 100 | P37: GRM | Q37: 3.5 ounce | R37: UNPREPARED | S37: A 1.34 ounce serving of 85/15 raw ground beef credits as 1 ounce equivalent meat/meat alternate | AA37: 1.34-ounce portion of 85/15 raw ground beef | AB37: MEAT_OR_MEAT_ALTERNATIVE | AC37: 28.3495 GRM | AD37: 40 LBR | AE37: https://images.salsify.com/image/upload/s--02wbPbvW--/ejayaoqqyijz8jmy9mio | AF37: 20 | AG37: 0 | AH37: 70 | AI37: 220 | AJ37: 6 | AK37: 2 | AL37: 0 | AM37: 1.8 | AO37: 19 | AP37: 65 | AQ37: 0 | AS37: 15 | AU37: NFT | AV37: 181 | AW37: CASE | AX37: TRUE | AY37: FREE_FROM | AZ37: FREE_FROM | BA37: FREE_FROM | BB37: FREE_FROM | BC37: FREE_FROM | BD37: FREE_FROM | BE37: FREE_FROM | BF37: FREE_FROM | BG37: FREE_FROM | BH37: AC, AE, AF, AM, AN, AP, AS, AY, BM, UW | BK37: 2025-05-05 08:25:11 | BL37: 2025-04-07 11:51:03 | BM37: Beef | BN37: FALSE
A38: 100158 | B38: Beef, Fine Ground, 100%, 85/15, Raw, Frozen | C38: Beef | D38: 00079183001586 | E38: Cherry Meat Packers | F38: Cherry Meat Packers, Inc. | G38: cherry meat packers, inc. | I38: Beef, Fine Ground, 100%, 85/15, Fzn | J38: Beef - Unprepared/Unprocessed | K38: CHILD_NUTRITION_FOOD_PROGRAMS | L38: 100 | M38: GRM | N38: BY_MEASURE | O38: 100 | P38: GRM | Q38: 3.5 ounce | R38: UNPREPARED | AF38: 0 | AG38: 0 | AH38: 67 | AI38: 210 | AJ38: 6 | AK38: 0 | AL38: 0 | AM38: 2 | AO38: 18 | AP38: 70 | AQ38: 0 | AS38: 15 | AU38: NFT_AGGREGATE | AV38: 181 | AW38: CASE | AY38: NOT_INTENTIONALLY_NOR_INHERENTLY_INCLUDED | AZ38: NOT_INTENTIONALLY_NOR_INHERENTLY_INCLUDED | BA38: NOT_INTENTIONALLY_NOR_INHERENTLY_INCLUDED | BB38: NOT_INTENTIONALLY_NOR_INHERENTLY_INCLUDED | BC38: NOT_INTENTIONALLY_NOR_INHERENTLY_INCLUDED | BD38: NOT_INTENTIONALLY_NOR_INHERENTLY_INCLUDED | BE38: NOT_INTENTIONALLY_NOR_INHERENTLY_INCLUDED | BF38: NOT_INTENTIONALLY_NOR_INHERENTLY_INCLUDED | BG38: NOT_INTENTIONALLY_NOR_INHERENTLY_INCLUDED | BH38: AE, AF, AM, AP, AS, UN, AY, AN, UW | BK38: 2023-09-01T09:37:09 | BL38: 2023-05-05T10:11:43 | BM38: Beef | BN38: FALSE
A39: 100158 | B39: Beef, Fine Ground, 100%, 85/15, Raw, Frozen | C39: Beef | D39: 00195893151035 | E39: Criss Cross Express of Illinois, LLC | F39: Jancorp, LLC dba Criss Cross Express of IL, LLC | G39: Jancorp, LLC dba Criss Cross Express of IL, LLC | H39: Beef, Fine Ground, 100%, 85/15, Raw, Frozen | I39: Beef, Fine Ground | J39: Beef - Unprepared/Unprocessed | K39: CHILD_NUTRITION_FOOD_PROGRAMS | L39: 112 | M39: GRM | N39: BY_SERVING | O39: 112 | P39: GRM | Q39: 3.95 ounce | R39: UNPREPARED | AG39: 0 | AH39: 70 | AI39: 240 | AJ39: 7 | AK39: 0 | AL39: 0 | AM39: 1 | AN39: 0 | AO39: 22 | AP39: 65 | AQ39: 0 | AR39: 0 | AS39: 17 | AT39: 0 | AU39: AB | AV39: 160 | AW39: CASE | AY39: FREE_FROM | AZ39: FREE_FROM | BA39: FREE_FROM | BB39: FREE_FROM | BC39: FREE_FROM | BD39: FREE_FROM | BE39: FREE_FROM | BF39: FREE_FROM | BG39: FREE_FROM | BH39: AE, AM, AP, AS, AY, AN, UW, AC, AF, UM, BM | BK39: 2025-02-03 09:14:02 | BL39: 2025-01-29 12:35:54 | BM39: Beef - 100% | BN39: FALSE
A40: 100158 | B40: Beef, Fine Ground, 100%, 85/15, Raw, Frozen | C40: Beef | D40: 00195893447824 | E40: Criss Cross Express of Illinois, LLC | F40: Mainstay Distributing, LLC Criss Cross Express of Illinois, LLC | G40: Mainstay Distributing, LLC | I40: Beef, Fine Ground | J40: Beef - Unprepared/Unprocessed | K40: CHILD_NUTRITION_FOOD_PROGRAMS | L40: 112 | M40: GRM | N40: BY_SERVING | O40: 112 | P40: GRM | Q40: 3.95 ounce | R40: UNPREPARED | AF40: 0 | AG40: 0 | AH40: 70 | AI40: 240 | AJ40: 7 | AK40: 0 | AL40: 0 | AM40: 1 | AN40: 0 | AO40: 22 | AP40: 65 | AQ40: 0 | AR40: 0 | AS40: 17 | AT40: 0 | AU40: AB | AV40: 160 | AW40: CASE | AY40: FREE_FROM | AZ40: FREE_FROM | BA40: FREE_FROM | BB40: FREE_FROM | BC40: FREE_FROM | BD40: FREE_FROM | BE40: FREE_FROM | BF40: FREE_FROM | BG40: FREE_FROM | BH40: AE, AM, AP, AS, AY, AN, UW, AC, AF, UM, BM | BK40: 2025-04-01 08:31:52 | BL40: 2025-03-05 08:56:33 | BM40: Beef - 100% | BN40: FALSE
A41: 100163 | B41: Beef, Patties, Lean, Raw, 2.0 MMA, Frozen | C41: Beef | D41: 00079183001630 | E41: Cherry Meat Packers | F41: Cherry Meat Packers, Inc. | G41: cherry meat packers, inc. | I41: Beef Patties Lean | J41: Beef - Unprepared/Unprocessed | K41: CHILD_NUTRITION_FOOD_PROGRAMS | L41: 88 | M41: GRM | N41: BY_MEASURE | O41: 88 | P41: GRM | Q41: 1 patty | R41: UNPREPARED | AF41: 0 | AG41: 2 | AH41: 40 | AI41: 100 | AJ41: 1.5 | AK41: 0 | AL41: 0 | AM41: 2 | AO41: 15 | AP41: 170 | AQ41: 0 | AS41: 3.5 | AU41: NFT | AV41: 205 | AW41: CASE | AY41: NOT_INTENTIONALLY_NOR_INHERENTLY_INCLUDED | AZ41: NOT_INTENTIONALLY_NOR_INHERENTLY_INCLUDED | BA41: NOT_INTENTIONALLY_NOR_INHERENTLY_INCLUDED | BB41: NOT_INTENTIONALLY_NOR_INHERENTLY_INCLUDED | BC41: NOT_INTENTIONALLY_NOR_INHERENTLY_INCLUDED | BD41: NOT_INTENTIONALLY_NOR_INHERENTLY_INCLUDED | BE41: NOT_INTENTIONALLY_NOR_INHERENTLY_INCLUDED | BF41: NOT_INTENTIONALLY_NOR_INHERENTLY_INCLUDED | BG41: NOT_INTENTIONALLY_NOR_INHERENTLY_INCLUDED | BH41: AE, AF, AM, AP, AS, UN, AY, AN, UW | BK41: 2023-09-01T09:29:24 | BL41: 2023-05-05T10:53:02 | BM41: Beef, Water, Oat Bran, Salt, Dehydrated Potatoes, Onion Powder, Mustard, Garlic Powder, Spice | BN41: FALSE
A42: 100187 | B42: Ham, 97% Fat Free, Water-Added, Cooked, Sliced, Frozen | C42: Pork | D42: 00713480101876 | E42: Hof Hause | F42: John Hofmeister & Son, Inc | G42: John Hofmeister & Son, Inc | H42: 8 x 5 lbr packages fully-cooked thinly sliced ham | I42: HOF HAUS 97% Fat Free Sliced Ham | J42: Ham | K42: CHILD_NUTRITION_FOOD_PROGRAMS | L42: 57 | M42: GRM | N42: BY_SERVING | O42: 57 | P42: GRM | Q42: 2 ounce | R42: PREPARED | S42: Use vendor CN Label or Product Formulation Statement to confirm crediting information. | AA42: 57 gram | AB42: MEAT_OR_MEAT_ALTERNATIVE | AC42: 57.0 GRM | AD42: 57.0 GRM | AF42: 4 | AG42: 1 | AH42: 25 | AI42: 50 | AJ42: 0 | AK42: 0 | AL42: 0 | AM42: 0.2 | AN42: 503 | AO42: 9 | AP42: 350 | AQ42: 1 | AR42: 0 | AS42: 1 | AT42: 0 | AV42: 320 | AW42: CASE | AY42: FREE_FROM | AZ42: FREE_FROM | BA42: FREE_FROM | BB42: FREE_FROM | BC42: FREE_FROM | BD42: FREE_FROM | BE42: FREE_FROM | BF42: FREE_FROM | BG42: FREE_FROM | BH42: AP, UW, AM, UN, AF, AE, AN, AY, AS | BK42: 2023-09-01T09:33:44 | BL42: 2023-08-24T01:33:22 | BM42: Cured Ham, Water, Dextrose, Salt, Potassium Chloride, Sodium Phosphate, Modified Tapioca Starch, Sodium Lactate, Sodium Acetate, Sodium Diacetate, Sodium Erythorbate, Sodium Nitrite | BN42: FALSE
A43: 100195 | B43: Tuna, Chunk Light, Canned (K) | C43: Fish | D43: 00086600115801 | E43: Bumble Bee | F43: Bumble Bee Seafoods | G43: BUMBLE BEE SEAFOODS | H43: Bumble Bee Chunk Light Tuna in Water 66.5oz Can EA | I43: BB Tuna ChnkLghtWtr 66.5oz can | J43: CANNED SEAFOOD | K43: CHILD_NUTRITION_FOOD_PROGRAMS | L43: 85 | M43: GRM | N43: BY_SERVING | O43: 85 | P43: GRM | Q43: 1/3 cup drained | R43: READY_TO_EAT | AA43: Seafood, canned, Tuna Chunk style, Water packed, includes USDA Foods | AB43: MEAT_OR_MEAT_ALTERNATIVE | AC43: 0.75 ONZ | AD43: 66.5 ONZ | AF43: 10 | AG43: 1 | AH43: 40 | AI43: 80 | AJ43: 0.5 | AK43: 0 | AL43: 0 | AM43: 0.8 | AN43: 130 | AO43: 16 | AP43: 380 | AQ43: 0 | AR43: 0 | AS43: 1 | AT43: 1 | AV43: =16*6 -> 96 | AW43: BASE_UNIT_OR_EACH | AX43: TRUE | AZ43: CONTAINS | BH43: ABD | BI43: Orthodox Union Pareve | BK43: 2023-02-01T10:24:04 | BL43: 2023-03-29T17:28:02 | BM43: Light Tuna, Water, Vegetable Broth, Sea Salt | BN43: FALSE
A44: 100206 | B44: Apple Slices, Unsweetened, Canned | C44: Fruit | D44: 00042396702007 | E44: Mothers Maid | F44: Burnette Foods, Inc. | G44: Burnette Foods, Inc. | H44: MOTHERS MAID SLICED APPLES 6/10 | I44: MMAID 6/10 SLICED APPLES | J44: APPLESAUCE | L44: 140 | M44: GRM | N44: BY_SERVING | O44: 140 | P44: GRM | Q44: 1/2 cup | R44: UNPREPARED | AF44: 0 | AG44: 14 | AH44: 0 | AI44: 60 | AJ44: 0 | AK44: 0 | AL44: 2 | AM44: 0 | AO44: 0 | AP44: 15 | AQ44: 12 | AS44: 0 | AT44: 0 | AV44: 132 | AW44: BASE_UNIT_OR_EACH | AX44: TRUE | BH44: X99 | BK44: 2025-11-03 08:54:44 | BL44: 2025-10-15 07:06:21 | BM44: Sliced Apples, Water | BN44: FALSE
A45: 100206 | B45: Apple Slices, Unsweetened, Canned | C45: Fruit | D45: 00070283091002 | E45: Cherry Central Cooperative | F45: Cherry Central | G45: CHERRY CENTRAL | H45: Canned Sliced Apples - Water Pack | I45: Canned Sliced Apples - Water Pack | J45: Canned Sliced Apples - Water Pack | K45: CHILD_NUTRITION_FOOD_PROGRAMS | L45: 135 | M45: GRM | N45: BY_MEASURE | O45: 100 | P45: GRM | Q45: 3/4 cup | R45: READY_TO_EAT | AF45: 9.45 | AG45: 22.95 | AH45: 0 | AI45: 81 | AJ45: 0 | AK45: 0 | AL45: 2.7 | AM45: 0 | AN45: 162 | AO45: 0 | AP45: 0 | AQ45: 17.55 | AR45: 0 | AS45: 0 | AT45: 0 | AV45: =22*6 -> 132 | AW45: BASE_UNIT_OR_EACH | AX45: TRUE | AY45: FREE_FROM | AZ45: FREE_FROM | BA45: FREE_FROM | BB45: FREE_FROM | BD45: FREE_FROM | BE45: FREE_FROM | BF45: FREE_FROM | BG45: FREE_FROM | BH45: AM, AE, AF, AC, UN, AN, UW, AP, AY, AU | BI45: Orthodox Union | BK45: 2024-12-02 08:27:14 | BL45: 2024-11-18 12:38:46 | BM45: Apples, Water, Erythorbic Acid | BN45: TRUE
A46: 100206 | B46: Apple Slices, Unsweetened, Canned | C46: Fruit | D46: 00070283091019 | E46: Cherry Central Cooperative | F46: Cherry Central | G46: CHERRY CENTRAL | H46: Apple Slices WP | I46: Apple Slices WP | J46: Apple Slices WP | K46: CHILD_NUTRITION_FOOD_PROGRAMS | L46: 135 | M46: GRM | N46: BY_MEASURE | O46: 135 | P46: GRM | Q46: 3/4 cup | R46: UNSPECIFIED | AF46: 7 | AG46: 13 | AH46: 0 | AI46: 60 | AJ46: 0 | AK46: 0 | AL46: 2 | AM46: 0 | AN46: 120 | AO46: 0 | AP46: 0 | AQ46: 13 | AR46: 0 | AS46: 0 | AT46: 0 | AV46: =22*6 -> 132 | AW46: BASE_UNIT_OR_EACH | AY46: NOT_INTENTIONALLY_NOR_INHERENTLY_INCLUDED | AZ46: NOT_INTENTIONALLY_NOR_INHERENTLY_INCLUDED | BA46: NOT_INTENTIONALLY_NOR_INHERENTLY_INCLUDED | BB46: NOT_INTENTIONALLY_NOR_INHERENTLY_INCLUDED | BC46: NOT_INTENTIONALLY_NOR_INHERENTLY_INCLUDED | BD46: NOT_INTENTIONALLY_NOR_INHERENTLY_INCLUDED | BE46: NOT_INTENTIONALLY_NOR_INHERENTLY_INCLUDED | BF46: NOT_INTENTIONALLY_NOR_INHERENTLY_INCLUDED | BG46: NOT_INTENTIONALLY_NOR_INHERENTLY_INCLUDED | BH46: UW, AC, AE, AF, AM, AP, AN, AY, AS | BK46: 2025-04-01 08:31:52 | BL46: 2025-03-27 11:44:40 | BM46: Apples, Water, Ascorbic Acid, Citric Acid | BN46: TRUE
A47: 100206 | B47: Apple Slices, Unsweetened, Canned | C47: Fruit | D47: 00024000249764 | E47: Del Monte | F47: Del Monte | G47: DEL MONTE | H47: Del Monte® Sliced Apples in Water, 104 oz. Can | I47: DM SLICE APPLES WATER 104 OZ. | J47: APPLES | L47: 123 | M47: GRM | N47: BY_SERVING | O47: 123 | P47: GRM | Q47: 1/2 cup | R47: READY_TO_EAT | AF47: 3 | AG47: 13 | AH47: 0 | AI47: 50 | AJ47: 0 | AK47: 0 | AL47: 1 | AM47: 0 | AN47: 87 | AO47: 0 | AP47: 5 | AQ47: 11 | AR47: 0 | AS47: 0 | AT47: 0 | AU47: US_FDA_NFP_2020_STANDARD | AV47: 144 | AW47: BASE_UNIT_OR_EACH | AY47: FREE_FROM | AZ47: FREE_FROM | BA47: FREE_FROM | BB47: FREE_FROM | BC47: NOT_INTENTIONALLY_NOR_INHERENTLY_INCLUDED | BD47: NOT_INTENTIONALLY_NOR_INHERENTLY_INCLUDED | BE47: FREE_FROM | BF47: FREE_FROM | BG47: FREE_FROM | BH47: AC, AE, AF, AM, AN, AP, AS, AU, AY, BM, UM, UN, UW | BI47: Triangle K | BK47: 2024-11-01 08:56:02 | BL47: 2024-10-21 15:06:55 | BM47: Apples, Water | BN47: FALSE
A48: 100206 | B48: Apple Slices, Unsweetened, Canned | C48: Fruit | D48: 00043600002456 | E48: White House | F48: National Fruit Product | G48: NATIONAL FRUIT PRODUCT CO INC. | H48: 6/10 6.5 Sliced Apples in Water | I48: 6/10 6.5 Sliced Apples in Water | J48: 6/10 6.5 Sliced Apples in Water | L48: 125 | M48: GRM | N48: BY_SERVING | O48: 125 | P48: GRM | Q48: 1/2 cup | R48: READY_TO_EAT | AF48: 0 | AG48: 14 | AH48: 0 | AI48: 60 | AJ48: 0 | AK48: 0 | AL48: 2 | AM48: 0 | AN48: 80 | AO48: 0 | AP48: 0 | AQ48: 12 | AR48: 0 | AS48: 0 | AT48: 0 | AV48: =22*6 -> 132 | AW48: BASE_UNIT_OR_EACH | AX48: TRUE | AY48: FREE_FROM | AZ48: FREE_FROM | BA48: FREE_FROM | BB48: FREE_FROM | BC48: FREE_FROM | BD48: FREE_FROM | BE48: FREE_FROM | BF48: FREE_FROM | BG48: FREE_FROM | BH48: AE, AF, AP, AN, AS, AY, UW, AM, UN | BK48: 2025-07-07 08:22:08 | BL48: 2025-06-09 14:53:59 | BM48: Apples, Water | BN48: FALSE
A49: 100212 | B49: Mixed Fruit (Peaches, Pears, Grapes), Extra Light Syrup, Canned | C49: Fruit | D49: 00024000509653 | E49: Del Monte | F49: Del Monte | G49: DEL MONTE | H49: Del Monte® Mixed Fruit in Extra Light Syrup, 105 oz. Can | I49: DM MIXED FRUIT ELS 105OZ | J49: FRUIT, MIXED | L49: 126 | M49: GRM | N49: BY_SERVING | O49: 126 | P49: GRM | Q49: 1/2 cup | R49: READY_TO_EAT | AF49: 7 | AG49: 15 | AH49: 0 | AI49: 60 | AJ49: 0 | AK49: 0 | AL49: 1 | AM49: 0 | AN49: 113 | AO49: 0 | AP49: 5 | AQ49: 13 | AR49: 4 | AS49: 0 | AT49: 0 | AU49: US_FDA_NFP_2020_STANDARD | AV49: 144 | AW49: BASE_UNIT_OR_EACH | AY49: FREE_FROM | AZ49: FREE_FROM | BA49: FREE_FROM | BB49: FREE_FROM | BC49: FREE_FROM | BD49: NOT_INTENTIONALLY_NOR_INHERENTLY_INCLUDED | BE49: FREE_FROM | BF49: FREE_FROM | BG49: FREE_FROM | BH49: AC, AE, AF, AM, AN, AP, AS, AU, AY, BM, UM, UN, UW | BI49: Triangle K | BK49: 2025-11-03 08:54:44 | BL49: 2025-10-16 14:45:26 | BM49: Peaches, Water, Pears, Grapes, Sugar, Citric Acid | BN49: FALSE
A50: 100212 | B50: Mixed Fruit (Peaches, Pears, Grapes), Extra Light Syrup, Canned | C50: Fruit | D50: 00073934152893 | E50: Mission Pride | F50: Pacific Coast Producers | G50: Pacific Coast Producers | I50: Mission P Fruit Mix XLS | J50: Mission Pride Fruit Mix Extra Light | K50: CHILD_NUTRITION_FOOD_PROGRAMS | L50: 124 | M50: GRM | N50: BY_MEASURE | O50: 100 | P50: GRM | Q50: 1/2 cup | R50: READY_TO_EAT | AF50: 5 | AG50: 16.33 | AH50: 0 | AI50: 66 | AJ50: 0.01 | AK50: 0 | AL50: 1.7 | AM50: 0.22 | AN50: 125 | AO50: 0.51 | AP50: 2 | AQ50: 13.65 | AR50: 4.6 | AS50: 0.21 | AT50: 0 | AV50: =24*6 -> 144 | AW50: BASE_UNIT_OR_EACH | AX50: TRUE | AY50: FREE_FROM | AZ50: FREE_FROM | BA50: FREE_FROM | BB50: FREE_FROM | BC50: FREE_FROM | BD50: FREE_FROM | BE50: FREE_FROM | BF50: FREE_FROM | BG50: FREE_FROM | BH50: AE, AF, AM, AP, UN, AY, AN, UW, AS | BK50: 2022-09-19T05:24:52 | BL50: 2023-08-18T18:29:12 | BM50: Diced Peaches, Diced Pears, Water, Grapes, Sugar | BN50: TRUE
A51: 100216 | B51: Apricots, Diced, Extra Light Syrup, Canned | C51: Fruit | D51: 00024000246022 | E51: Del Monte | F51: Del Monte | G51: DEL MONTE | H51: Unpeeled Apricots in Extra Light Syrup | I51: DM DICE APRICOSTS IN XLS 6/105OZ. | J51: APRICOTS | L51: 124 | M51: GRM | N51: BY_SERVING | O51: 124 | P51: GRM | Q51: 1/2 cup | R51: READY_TO_EAT | AF51: 10 | AG51: 14 | AH51: 0 | AI51: 60 | AJ51: 0 | AK51: 0 | AL51: 1 | AM51: 0.3 | AN51: 119 | AO51: 1 | AP51: 10 | AQ51: 12 | AR51: 4 | AS51: 0 | AT51: 0 | AU51: US_FDA_NFP_2020_STANDARD | AV51: 144 | AW51: BASE_UNIT_OR_EACH | AY51: FREE_FROM | AZ51: FREE_FROM | BA51: FREE_FROM | BB51: FREE_FROM | BC51: FREE_FROM | BD51: NOT_INTENTIONALLY_NOR_INHERENTLY_INCLUDED | BE51: FREE_FROM | BF51: FREE_FROM | BG51: FREE_FROM | BH51: AC, AE, AF, AM, AN, AP, AS, AU, AY, BM, UM, UN, UW | BI51: Triangle K | BK51: 2023-09-01T08:55:48 | BL51: 2023-08-15T16:58:21 | BM51: Apricots, Water, Sugar | BN51: FALSE
A52: 100216 | B52: Apricots, Diced, Extra Light Syrup, Canned | C52: Fruit | D52: 00073934150752 | E52: Mission Pride | F52: Pacific Coast Producers | G52: Pacific Coast Producers | I52: Mission P Diced Apricots XLS | J52: Mission Pride Diced Apricots Extra | K52: CHILD_NUTRITION_FOOD_PROGRAMS | L52: 124 | M52: GRM | N52: BY_SERVING | O52: 124 | P52: GRM | Q52: 1/2 cup | R52: READY_TO_EAT | AF52: 7 | AG52: 15 | AH52: 0 | AI52: 60 | AJ52: 0 | AK52: 0 | AL52: 1 | AM52: 0 | AN52: 152 | AO52: 1 | AP52: 0 | AQ52: 13 | AR52: 6 | AS52: 0 | AT52: 0 | AV52: =24*6 -> 144 | AW52: BASE_UNIT_OR_EACH | AX52: TRUE | AY52: FREE_FROM | AZ52: FREE_FROM | BA52: FREE_FROM | BB52: FREE_FROM | BC52: FREE_FROM | BD52: FREE_FROM | BE52: FREE_FROM | BF52: FREE_FROM | BG52: FREE_FROM | BH52: AE, AF, AM, AP, UN, AY, AN, UW, AS | BK52: 2022-09-19T05:21:36 | BL52: 2023-08-18T18:30:18 | BM52: Apricots, Water, Sugar | BN52: FALSE
A53: 100219 | B53: Peaches, Sliced, Extra Light Syrup, Canned | C53: Fruit | D53: 00024000509660 | E53: Del Monte | F53: Del Monte | G53: DEL MONTE | H53: Del Monte® Sliced Peaches In Extra Light Syrup, Canned Fruit, 105 oz. Can | I53: DM SLICE PEACHES ELS 105OZ | J53: PEACHES | L53: 124 | M53: GRM | N53: BY_SERVING | O53: 124 | P53: GRM | Q53: 1/2 cup | R53: READY_TO_EAT | AF53: 6 | AG53: 15 | AH53: 0 | AI53: 60 | AJ53: 0 | AK53: 0 | AL53: 1 | AM53: 0.2 | AN53: 105 | AO53: 0 | AP53: 5 | AQ53: 12 | AR53: 5 | AS53: 0 | AT53: 0 | AU53: US_FDA_NFP_2020_STANDARD | AV53: 144 | AW53: BASE_UNIT_OR_EACH | AY53: FREE_FROM | AZ53: FREE_FROM | BA53: FREE_FROM | BB53: FREE_FROM | BC53: FREE_FROM | BD53: NOT_INTENTIONALLY_NOR_INHERENTLY_INCLUDED | BE53: FREE_FROM | BF53: FREE_FROM | BG53: FREE_FROM | BH53: AC, AE, AF, AM, AN, AP, AS, AU, AY, BM, UM, UN, UW | BI53: Triangle K | BK53: 2024-11-01 08:56:02 | BL53: 2024-10-21 15:06:55 | BM53: Peaches, Water, Sugar | BN53: FALSE
A54: 100219 | B54: Peaches, Sliced, Extra Light Syrup, Canned | C54: Fruit | D54: 00073934151278 | E54: Mission Pride | F54: Pacific Coast Producers | G54: Pacific Coast Producers | H54: Sliced Peaches in XLS 6-10 | I54: Mission P Sliced Peaches in XLS | J54: Mission Pride Sliced Peaches in XLS | K54: CHILD_NUTRITION_FOOD_PROGRAMS | L54: 124 | M54: GRM | N54: BY_SERVING | O54: 124 | P54: GRM | Q54: 1/2 cup | R54: READY_TO_EAT | AF54: 1 | AG54: 16 | AH54: 0 | AI54: 60 | AJ54: 0 | AK54: 0 | AL54: 1 | AM54: 0 | AN54: 81 | AO54: 1 | AP54: 0 | AQ54: 15 | AR54: 7 | AS54: 0 | AT54: 0 | AV54: =24*6 -> 144 | AW54: BASE_UNIT_OR_EACH | AX54: TRUE | AY54: FREE_FROM | AZ54: FREE_FROM | BA54: FREE_FROM | BB54: FREE_FROM | BC54: FREE_FROM | BD54: FREE_FROM | BE54: FREE_FROM | BF54: FREE_FROM | BG54: FREE_FROM | BH54: AC, AE, AF, AM, AP, AS, AY, AN, UW | BK54: 2023-08-01T13:23:22 | BL54: 2023-08-18T18:31:57 | BM54: Peaches, Water, Sugar | BN54: FALSE
A55: 100220 | B55: Peaches, Diced, Extra Light Syrup, Canned | C55: Fruit | D55: 00024000509691 | E55: Del Monte | F55: Del Monte | G55: DEL MONTE | H55: Del Monte® Diced Peaches in Extra Light Syrup, 105 oz. Can | I55: DM DICED PEACHES XLS 105OZ | J55: PEACHES, YELLOW CLING | L55: 126 | M55: GRM | N55: BY_SERVING | O55: 126 | P55: GRM | Q55: 1/2 cup | R55: READY_TO_EAT | AF55: 6 | AG55: 14 | AH55: 0 | AI55: 60 | AJ55: 0 | AK55: 0 | AL55: 1 | AM55: 0.2 | AN55: 113 | AO55: 0 | AP55: 5 | AQ55: 13 | AR55: 5 | AS55: 0 | AT55: 0 | AU55: US_FDA_NFP_2020_STANDARD | AV55: 144 | AW55: BASE_UNIT_OR_EACH | AY55: FREE_FROM | AZ55: FREE_FROM | BA55: FREE_FROM | BB55: FREE_FROM | BC55: FREE_FROM | BD55: NOT_INTENTIONALLY_NOR_INHERENTLY_INCLUDED | BE55: FREE_FROM | BF55: FREE_FROM | BG55: FREE_FROM | BH55: AC, AE, AF, AM, AN, AP, AS, AU, AY, BM, UM, UN, UW | BI55: Triangle K | BK55: 2024-11-01 08:56:02 | BL55: 2024-10-17 18:17:21 | BM55: Peaches, Water, Sugar | BN55: FALSE
A56: 100220 | B56: Peaches, Diced, Extra Light Syrup, Canned | C56: Fruit | D56: 00073934151285 | E56: Mission Pride | F56: Pacific Coast Producers | G56: PACIFIC COAST PRODUCERS | I56: Mission P Diced Peaches XLS | J56: Mission Pride Diced Peaches Extra L | K56: CHILD_NUTRITION_FOOD_PROGRAMS | L56: 124 | M56: GRM | N56: BY_SERVING | O56: 124 | P56: GRM | Q56: 1/2 cup | R56: READY_TO_EAT | AF56: 1 | AG56: 16 | AH56: 0 | AI56: 60 | AJ56: 0 | AK56: 0 | AL56: 1 | AM56: 0 | AN56: 81 | AO56: 1 | AP56: 0 | AQ56: 15 | AR56: 7 | AS56: 0 | AT56: 0 | AV56: =24*6 -> 144 | AW56: BASE_UNIT_OR_EACH | AX56: TRUE | AY56: FREE_FROM | AZ56: FREE_FROM | BA56: FREE_FROM | BB56: FREE_FROM | BC56: FREE_FROM | BD56: FREE_FROM | BE56: FREE_FROM | BF56: FREE_FROM | BG56: FREE_FROM | BH56: AE, AF, AM, AP, UN, AY, AN, UW, AS | BK56: 2022-09-19T05:49:14 | BL56: 2023-08-18T18:34:20 | BM56: Peaches, Water, Sugar | BN56: FALSE
A57: 100224 | B57: Pears, Sliced, Extra Light Syrup, Canned | C57: Fruit | D57: 00024000509677 | E57: Del Monte | F57: Del Monte | G57: DEL MONTE | H57: Del Monte® Quality Lite Sliced Pears, 105 oz. Can | I57: DM SLICE PEARS EX LIGHT SYRUP 105OZ | J57: PEARS | L57: 124 | M57: GRM | N57: BY_SERVING | O57: 124 | P57: GRM | Q57: 1/2 cup | R57: READY_TO_EAT | AF57: 6 | AG57: 15 | AH57: 0 | AI57: 60 | AJ57: 0 | AK57: 0 | AL57: 2 | AM57: 0 | AN57: 60 | AO57: 0 | AP57: 5 | AQ57: 12 | AR57: 5 | AS57: 0 | AT57: 0 | AU57: US_FDA_NFP_2020_STANDARD | AV57: 144 | AW57: BASE_UNIT_OR_EACH | AY57: FREE_FROM | AZ57: FREE_FROM | BA57: FREE_FROM | BB57: FREE_FROM | BC57: FREE_FROM | BD57: NOT_INTENTIONALLY_NOR_INHERENTLY_INCLUDED | BE57: FREE_FROM | BF57: FREE_FROM | BG57: FREE_FROM | BH57: AC, AE, AF, AM, AN, AP, AS, AU, AY, BM, UM, UN, UW | BI57: Triangle K | BK57: 2024-11-01 08:56:02 | BL57: 2024-10-21 15:06:55 | BM57: Pears, Water, Sugar | BN57: FALSE
A58: 100224 | B58: Pears, Sliced, Extra Light Syrup, Canned | C58: Fruit | D58: 00073934158215 | E58: Mission Pride | F58: Pacific Coast Producers | G58: Pacific Coast Producers | I58: Mission P Sliced Pears XLS | J58: Mission Pride Sliced Pears Extra Li | K58: CHILD_NUTRITION_FOOD_PROGRAMS | L58: 124 | M58: GRM | N58: BY_SERVING | O58: 124 | P58: GRM | Q58: 1/2 cup | R58: READY_TO_EAT | AF58: 8 | AG58: 16 | AH58: 0 | AI58: 70 | AJ58: 0 | AK58: 0 | AL58: 2 | AM58: 0 | AN58: 76 | AO58: 0 | AP58: 0 | AQ58: 13 | AR58: 7 | AS58: 0 | AT58: 0 | AV58: =24*6 -> 144 | AW58: BASE_UNIT_OR_EACH | AX58: TRUE | AY58: FREE_FROM | AZ58: FREE_FROM | BA58: FREE_FROM | BB58: FREE_FROM | BC58: FREE_FROM | BD58: FREE_FROM | BE58: FREE_FROM | BF58: FREE_FROM | BG58: FREE_FROM | BH58: AE, AF, AM, AP, UN, AY, AN, UW, AS | BK58: 2022-09-19T05:38:04 | BL58: 2023-08-18T18:37:52 | BM58: Pears, Water, Sugar | BN58: FALSE
A59: 100224 | B59: Pears, Sliced, Extra Light Syrup, Canned | C59: Fruit | D59: 10041712914565 | E59: Oregon Trail | F59: Neil Jones Food Company | G59: The Neil Jones Food Company | H59: Oregon Trail Bartlett Sliced Pears in XL Syrup 6 pack 105oz non-BPA intent cans | I59: Bartlett Pear Sliced in XL Syrup | J59: Sliced Pears | K59: CHILD_NUTRITION_FOOD_PROGRAMS | L59: 128 | M59: GRM | N59: BY_SERVING | Q59: 1/2 cup | R59: READY_TO_EAT | AF59: 9 | AG59: 17 | AH59: 0 | AI59: 70 | AJ59: 0 | AK59: 0 | AL59: 3 | AM59: 0 | AN59: 99 | AO59: 0 | AP59: 0 | AQ59: 12 | AR59: 4 | AS59: 0 | AT59: 0 | AU59: US_FDA_NFP_2020_STANDARD | AV59: 126 | AW59: CASE | AX59: TRUE | AY59: FREE_FROM | AZ59: FREE_FROM | BA59: FREE_FROM | BB59: FREE_FROM | BC59: FREE_FROM | BD59: FREE_FROM | BE59: FREE_FROM | BF59: FREE_FROM | BG59: FREE_FROM | BH59: AM, AE, AF, AC, AP, AY, UW, AN, AS, UN, UM | BI59: Orthodox Union | BK59: 2025-08-01 09:35:39 | BL59: 2025-07-10 12:38:15 | BM59: Pears, Water, High Fructose Corn Syrup, and Corn Syrup | BN59: FALSE
A60: 100225 | B60: Pears, Diced, Extra Light Syrup, Canned (K) | C60: Fruit | D60: 00024000550518 | E60: Del Monte | F60: Del Monte | G60: DEL MONTE | H60: Del Monte® Lite Diced Pears in Extra Light Syrup, 105 oz. Can | I60: DM DICED PEARS LITE XLS 105OZ | J60: PEARS | L60: 124 | M60: GRM | N60: BY_SERVING | O60: 124 | P60: GRM | Q60: 1/2 cup | R60: READY_TO_EAT | AF60: 6 | AG60: 16 | AH60: 0 | AI60: 60 | AJ60: 0 | AK60: 0 | AL60: 2 | AM60: 0 | AN60: 65 | AO60: 0 | AP60: 5 | AQ60: 12 | AR60: 4 | AS60: 0 | AT60: 0 | AU60: US_FDA_NFP_2020_STANDARD | AV60: 144 | AW60: BASE_UNIT_OR_EACH | AY60: FREE_FROM | AZ60: FREE_FROM | BA60: FREE_FROM | BB60: FREE_FROM | BC60: FREE_FROM | BD60: NOT_INTENTIONALLY_NOR_INHERENTLY_INCLUDED | BE60: FREE_FROM | BF60: FREE_FROM | BG60: FREE_FROM | BH60: AC, AE, AF, AM, AN, AP, AS, AU, AY, BM, UM, UW | BI60: Triangle K | BK60: 2024-11-01 08:56:02 | BL60: 2024-10-21 15:06:55 | BM60: Pears, Water, Sugar, Citric Acid | BN60: FALSE
A61: 100225 | B61: Pears, Diced, Extra Light Syrup, Canned (K) | C61: Fruit | D61: 00073934156068 | E61: Mission Pride | F61: Pacific Coast Producers | G61: Pacific Coast Producers | I61: Mission P Diced Pears XLS | J61: Mission Pride Diced Pears Extra Lig | K61: CHILD_NUTRITION_FOOD_PROGRAMS | L61: 124 | M61: GRM | N61: BY_SERVING | O61: 124 | P61: GRM | Q61: 1/2 cup | R61: READY_TO_EAT | AF61: 8 | AG61: 16 | AH61: 0 | AI61: 70 | AJ61: 0 | AK61: 0 | AL61: 2 | AM61: 0 | AN61: 76 | AO61: 0 | AP61: 0 | AQ61: 13 | AR61: 7 | AS61: 0 | AT61: 0 | AV61: =24*6 -> 144 | AW61: BASE_UNIT_OR_EACH | AX61: TRUE | AY61: FREE_FROM | AZ61: FREE_FROM | BA61: FREE_FROM | BB61: FREE_FROM | BC61: FREE_FROM | BD61: FREE_FROM | BE61: FREE_FROM | BF61: FREE_FROM | BG61: FREE_FROM | BH61: AS, UW, AE, AF, AY, UN, AM, AN, AP | BI61: Orthodox Union | BK61: 2022-09-19T05:44:18 | BL61: 2023-08-18T18:39:57 | BM61: Pears, Water, Sugar | BN61: FALSE
A62: 100225 | B62: Pears, Diced, Extra Light Syrup, Canned (K) | C62: Fruit | D62: 10041712915562 | E62: Oregon Trail | F62: Neil Jones Food Company | G62: The Neil Jones Food Company | H62: Oregon Trail Bartlett Diced Pears in XL Syrup Cane 6 pack 105oz non-BPA intent cans | I62: Bartlett Pear Diced XL Syrup | J62: Diced Pears | K62: CHILD_NUTRITION_FOOD_PROGRAMS | L62: 128 | M62: GRM | N62: BY_SERVING | Q62: 1/2 cup | R62: READY_TO_EAT | AF62: 9 | AG62: 18 | AH62: 0 | AI62: 70 | AJ62: 0 | AK62: 0 | AL62: 3 | AM62: 0 | AN62: 106 | AO62: 0 | AP62: 0 | AQ62: 12 | AR62: 3 | AS62: 0 | AT62: 0 | AU62: US_FDA_NFP_2020_STANDARD | AV62: 126 | AW62: CASE | AX62: TRUE | AY62: FREE_FROM | AZ62: FREE_FROM | BA62: FREE_FROM | BB62: FREE_FROM | BC62: FREE_FROM | BD62: FREE_FROM | BE62: FREE_FROM | BF62: FREE_FROM | BG62: FREE_FROM | BH62: AM, AE, AF, AC, AP, AY, UW, AN, AS, UN, UM | BI62: Orthodox Union | BK62: 2025-08-01 09:35:39 | BL62: 2025-07-10 12:38:09 | BM62: Pears, Water, and High Fructose Corn Syrup, and Corn Syrup | BN62: FALSE
A63: 100226 | B63: Pears, Halves, Extra Light Syrup, Canned | C63: Fruit | D63: 00073934158222 | E63: Mission Pride | F63: Pacific Coast Producers | G63: Pacific Coast Producers | I63: Mission P Pear Halves XLS | J63: Mission Pride Pear Halves Extra Lig | K63: CHILD_NUTRITION_FOOD_PROGRAMS | L63: 124 | M63: GRM | N63: BY_SERVING | O63: 124 | P63: GRM | Q63: 1/2 cup | R63: READY_TO_EAT | AF63: 8 | AG63: 16 | AH63: 0 | AI63: 70 | AJ63: 0 | AK63: 0 | AL63: 2 | AM63: 0 | AN63: 76 | AO63: 0 | AP63: 0 | AQ63: 13 | AR63: 7 | AS63: 0 | AT63: 0 | AV63: =24*6 -> 144 | AW63: BASE_UNIT_OR_EACH | AX63: TRUE | AY63: FREE_FROM | AZ63: FREE_FROM | BA63: FREE_FROM | BB63: FREE_FROM | BC63: FREE_FROM | BD63: FREE_FROM | BE63: FREE_FROM | BF63: FREE_FROM | BG63: FREE_FROM | BH63: AE, AF, AM, AP, UN, AY, AN, UW, AS | BK63: 2022-09-19T05:44:28 | BL63: 2023-08-18T18:42:41 | BM63: Pears, Water, Sugar | BN63: FALSE
A64: 100226 | B64: Pears, Halves, Extra Light Syrup, Canned | C64: Fruit | D64: 10041712912561 | E64: Oregon Trail | F64: Neil Jones Food Company | G64: The Neil Jones Food Company | H64: Oregon Trail Bartlett Pear Halves in Extra Light Syrup 6 pack 105oz non-BPA intent cans | I64: Bartlett Pear Halves in XL Syrup | J64: Pear Halves | K64: CHILD_NUTRITION_FOOD_PROGRAMS | L64: 128 | M64: GRM | N64: BY_SERVING | Q64: 1/2 cup | R64: READY_TO_EAT | AF64: 9 | AG64: 17 | AH64: 0 | AI64: 70 | AJ64: 0 | AK64: 0 | AL64: 3 | AM64: 0 | AN64: 96 | AO64: 0 | AP64: 0 | AQ64: 12 | AR64: 4 | AS64: 0 | AT64: 0 | AU64: US_FDA_NFP_2020_STANDARD | AV64: 126 | AW64: CASE | AX64: TRUE | AY64: FREE_FROM | AZ64: FREE_FROM | BA64: FREE_FROM | BB64: FREE_FROM | BC64: FREE_FROM | BD64: FREE_FROM | BE64: FREE_FROM | BF64: FREE_FROM | BG64: FREE_FROM | BH64: AM, AE, AF, AC, AP, AY, UW, AN, AS, UN, UM | BI64: Orthodox Union | BK64: 2025-08-01 09:35:39 | BL64: 2025-07-10 12:38:09 | BM64: Pears, Water, High Fructose Corn Syrup, and Corn Syrup | BN64: FALSE
A65: 100238 | B65: Peaches, Sliced, Frozen | C65: Fruit | D65: 10817134025789 | E65: Southern Sliced Peaches | F65: Palmetto Processing Solutions | G65: Palmetto Processing Solutions | H65: Frozen Sliced Freestone Peaches | I65: Frozen Sliced Freestone Peaches | J65: Frozen Sliced Freestone Peaches | K65: CHILD_NUTRITION_FOOD_PROGRAMS | L65: 140 | M65: GRM | N65: BY_SERVING | O65: 140 | P65: GRM | Q65: 1 cup | R65: THAW | AF65: 0 | AG65: 19 | AH65: 0 | AI65: 80 | AJ65: 0 | AK65: 0 | AL65: 2 | AM65: 0 | AN65: 270 | AO65: 1 | AP65: 5 | AQ65: 14 | AR65: 9 | AS65: 0 | AT65: 0 | AV65: =12*12 -> 144 | AW65: CASE | AX65: TRUE | AY65: FREE_FROM | AZ65: FREE_FROM | BA65: FREE_FROM | BB65: FREE_FROM | BC65: FREE_FROM | BD65: FREE_FROM | BE65: FREE_FROM | BF65: FREE_FROM | BG65: FREE_FROM | BH65: AM, AP, AS, AY, AN, UW, AC, AE, AF, UM, BM | BK65: 2024-03-01T08:28:33 | BL65: 2024-02-29T08:58:27 | BM65: Peaches, Peach Puree, Sugar, Ascorbic Acid, Citric Acid | BN65: FALSE
A66: 100238 | B66: Peaches, Sliced, Frozen | C66: Fruit | D66: 10817134025772 | E66: Southern Sliced Peaches | F66: Palmetto Processing Solutions | G66: Palmetto Processing Solutions | H66: Frozen Sliced Freestone Peaches | I66: Frozen Sliced Freestone Peaches | J66: Frozen Sliced Freestone Peaches | K66: CHILD_NUTRITION_FOOD_PROGRAMS | L66: 140 | M66: GRM | N66: BY_SERVING | O66: 140 | P66: GRM | Q66: 1 cup | R66: THAW | AF66: 0 | AG66: 19 | AH66: 0 | AI66: 80 | AJ66: 0 | AK66: 0 | AL66: 2 | AM66: 0 | AN66: 270 | AO66: 1 | AP66: 5 | AQ66: 14 | AR66: 9 | AS66: 0 | AT66: 0 | AV66: =12*12 -> 144 | AW66: CASE | AX66: TRUE | AY66: FREE_FROM | AZ66: FREE_FROM | BA66: FREE_FROM | BB66: FREE_FROM | BC66: FREE_FROM | BD66: FREE_FROM | BE66: FREE_FROM | BF66: FREE_FROM | BG66: FREE_FROM | BH66: AM, AP, AS, AY, AN, UW, AC, AE, AF, UM, BM | BK66: 2024-03-01T10:17:03 | BL66: 2024-02-22T14:46:52 | BM66: Peaches, Peach Puree, Sugar, Ascorbic Acid, Citric Acid | BN66: FALSE
A67: 100239 | B67: Peaches, Sliced, Frozen | C67: Fruit | D67: 10817134024232 | E67: Southern Sliced Peaches | F67: Palmetto Processing Solutions | G67: Palmetto Processing Solutions | H67: Southern Sliced Peaches | I67: Frozen Sliced Freestone Peaches | J67: Frozen Sliced Freestone Peaches | K67: CHILD_NUTRITION_FOOD_PROGRAMS | L67: 125 | M67: GRM | N67: BY_MEASURE | O67: 125 | P67: GRM | Q67: 1/2 cup | R67: THAW | AF67: 4 | AG67: 21 | AH67: 0 | AI67: 84 | AJ67: 0 | AK67: 0 | AL67: 2 | AM67: 0 | AN67: 160 | AO67: 0 | AP67: 0 | AQ67: 16 | AR67: 8 | AS67: 0 | AT67: 0 | AV67: 72 | AW67: CASE | AX67: TRUE | AY67: FREE_FROM | AZ67: FREE_FROM | BA67: FREE_FROM | BB67: FREE_FROM | BC67: FREE_FROM | BD67: FREE_FROM | BE67: FREE_FROM | BF67: FREE_FROM | BG67: FREE_FROM | BH67: AM, AP, AS, AY, AN, UW, AC, AE, AF, UM, BM | BK67: 2025-01-08 08:30:06 | BL67: 2024-12-10 08:58:03 | BM67: Peaches, Peach Puree, Sugar, Ascorbic Acid, Citric Acid | BN67: TRUE
A68: 100241 | B68: Peaches, Diced, Cups, Frozen | C68: Fruit | D68: 00071202273066 | E68: Big Valley | F68: Dole Packaged Frozen Foods | G68: Dole Packaged Foods, LLC | H68: Big Valley 4.4 oz. Peach Diced Cups w DS 11.5+1 | I68: PEACH DICED 4.4 FRT CUPS 11.5+1 | J68: FOOD ITEM | L68: 125 | M68: GRM | N68: BY_SERVING | O68: 125 | P68: GRM | Q68: 4.4 ounce cup | R68: PREPARED | AF68: 0 | AG68: 21 | AH68: 0 | AI68: 90 | AJ68: 0 | AK68: 0 | AL68: 2 | AM68: 0 | AN68: 220 | AO68: 1 | AP68: 0 | AQ68: 19 | AR68: 10 | AS68: 0 | AT68: 0 | AU68: US_USDA_NFP_STANDARD | AV68: 96 | AW68: BASE_UNIT_OR_EACH | AY68: FREE_FROM | AZ68: FREE_FROM | BA68: FREE_FROM | BB68: FREE_FROM | BC68: FREE_FROM | BD68: FREE_FROM | BE68: FREE_FROM | BF68: FREE_FROM | BG68: FREE_FROM | BH68: AS, UW, AC, AE, AF, AY, AM, AN, AP | BK68: 2023-06-01T09:16:33 | BL68: 2023-05-03T11:12:22 | BM68: Peaches, Sugar, Ascorbic Acid (to Promote Color Retention), and Citric Acid | BN68: FALSE
A69: 100241 | B69: Peaches, Diced, Cups, Frozen | C69: Fruit | D69: 10817134020432 | E69: Tickled Peaches | F69: Palmetto Processing Solutions | G69: Palmetto Processing Solutions | H69: Freestone Dice | I69: Freestone DIce | J69: Freestone Dice | K69: CHILD_NUTRITION_FOOD_PROGRAMS | L69: 124.74 | M69: GRM | N69: BY_SERVING | O69: 124.74 | P69: GRM | Q69: 4.4 ounce cup | R69: THAW | AF69: 4 | AG69: 20 | AH69: 0 | AI69: 80 | AJ69: 0 | AK69: 0 | AL69: 2 | AM69: 0 | AN69: 160 | AO69: 1 | AP69: 15 | AQ69: 16 | AR69: 8 | AS69: 0 | AT69: 0 | AU69: NFT | AV69: 96 | AW69: CASE | AX69: TRUE | AY69: FREE_FROM | AZ69: FREE_FROM | BA69: FREE_FROM | BB69: FREE_FROM | BC69: FREE_FROM | BD69: FREE_FROM | BE69: FREE_FROM | BF69: FREE_FROM | BG69: FREE_FROM | BH69: AM, AP, AS, AY, AN, UW, AC, AE, AF, UM, BM | BK69: 2023-04-03T16:27:29 | BL69: 2023-03-22T07:57:37 | BM69: Peaches, Sugar, Ascorbic Acid, Citric Acid | BN69: FALSE
A70: 100241 | B70: Peaches, Diced, Cups, Frozen | C70: Fruit | D70: 00071262990026 | E70: Tabatchnick | F70: Tabatchnick Fine Foods | G70: Tabatchnick Fine Foods | H70: Tabatchnick Frozen Fruit Cup made from Diced Peaches | I70: Frozen Fruit Cup from Diced Peaches | J70: Fruit cup | K70: CHILD_NUTRITION_FOOD_PROGRAMS | L70: 125 | M70: GRM | N70: BY_SERVING | O70: 125 | P70: GRM | Q70: 4.4 ounce cup | R70: PREPARED | AF70: 0 | AG70: 12 | AH70: 0 | AI70: 50 | AJ70: 0 | AK70: 0 | AL70: 1 | AM70: 0 | AN70: 0 | AO70: 0 | AP70: 0 | AQ70: 11 | AR70: 6 | AS70: 0 | AT70: 0 | AU70: NFT | AV70: 96 | AW70: CASE | AX70: TRUE | AY70: FREE_FROM | AZ70: FREE_FROM | BA70: FREE_FROM | BB70: FREE_FROM | BC70: FREE_FROM | BD70: FREE_FROM | BE70: FREE_FROM | BF70: FREE_FROM | BG70: FREE_FROM | BH70: AM, AS, AP, AY, AN, UW, AC, AE, AF, UM, BM | BK70: 2025-07-07 08:22:08 | BL70: 2025-07-01 12:45:41 | BM70: Peaches, Water, Sugar, Citric Acid, Ascorbic Acid (Vitamin C) | BN70: FALSE
A71: 100241 | B71: Peaches, Diced, Cups, Frozen | C71: Fruit | D71: 10034742055377 | E71: Wawona Frozen Foods | F71: Wawona Frozen Foods | G71: Wawona Frozen Foods | H71: Wawona Frozen Foods Peach Fruit Single Cups 96/4.4oz | I71: Peach Fruit Single Cups 96/4.4oz | J71: Frozen Fruit | K71: CHILD_NUTRITION_FOOD_PROGRAMS | L71: 125 | M71: GRM | N71: BY_SERVING | Q71: 4.4 ounce cup | R71: THAW | AF71: 7 | AG71: 21 | AH71: 0 | AI71: 80 | AJ71: 0 | AK71: 0 | AL71: 2 | AM71: 0 | AN71: 216 | AO71: 1 | AP71: 0 | AQ71: 19 | AR71: 10 | AS71: 0 | AT71: 0 | AV71: 96 | AW71: CASE | AX71: TRUE | AY71: FREE_FROM | AZ71: FREE_FROM | BA71: FREE_FROM | BB71: FREE_FROM | BC71: FREE_FROM | BD71: FREE_FROM | BE71: FREE_FROM | BF71: FREE_FROM | BG71: FREE_FROM | BH71: AM, AP, AS, AY, AN, UW, AC, AE, AF, UM, BM | BK71: 2025-01-08 08:30:06 | BL71: 2024-12-09 15:51:37 | BM71: Peaches, Sugar, Ascorbic Acid and Citric Acid Added to Maintain Color | BN71: FALSE
A72: 100242 | B72: Blueberries, Wild, Unsweetened, Frozen | C72: Fruit | D72: 00079900001691 | E72: Wyman's | F72: Jasper Wyman & Son | G72: JASPER WYMAN & SON | H72: 3 Lb IQF Frozen Wild Blueberries. | I72: 3LB FZNWLD BBRY | J72: Frozen fruit | K72: CHILD_NUTRITION_FOOD_PROGRAMS | L72: 140 | M72: GRM | N72: BY_SERVING | O72: 140 | P72: GRM | Q72: 1 cup | R72: UNPREPARED | AF72: 25 | AG72: 19 | AH72: 0 | AI72: 80 | AJ72: 0 | AK72: 0 | AL72: 6 | AM72: 0.8 | AN72: 95 | AO72: 0 | AP72: 0 | AQ72: 10 | AR72: 0 | AS72: 0 | AT72: 0 | AV72: =10*8 -> 80 | AW72: BASE_UNIT_OR_EACH | AX72: TRUE | AY72: FREE_FROM | AZ72: FREE_FROM | BA72: FREE_FROM | BB72: FREE_FROM | BC72: FREE_FROM | BD72: FREE_FROM | BE72: FREE_FROM | BF72: FREE_FROM | BG72: FREE_FROM | BH72: AS, UW, AC, AE, AF, AY, AM, AN, AP | BI72: EarthKosher | BK72: 2025-06-02 08:13:46 | BL72: 2025-05-20 12:52:33 | BM72: Wild Blueberries | BN72: FALSE
A73: 100243 | B73: Blueberries, Wild, Unsweetened, Frozen | C73: Fruit | D73: 00198168171158 | E73: Passamaquoddy Wild Blueberry Co. | F73: Passamaquoddy Wild Blueberry Co. | G73: Passamaquoddy Wild Blueberry Company | H73: Blueberries, Wild, Unsweetened, Frozen | I73: Blueberries, Wild, Unsweetened, Fro | J73: Fruit - Prepared/Processed (Frozen) | K73: CHILD_NUTRITION_FOOD_PROGRAMS | L73: 70 | M73: GRM | N73: BY_SERVING | O73: 0.5 | P73: G21 | Q73: 1/2 cup | R73: READY_TO_EAT | AF73: 12 | AG73: 9 | AH73: 0 | AI73: 40 | AJ73: 0 | AK73: 0 | AL73: 3 | AM73: 1 | AN73: 47 | AO73: 0 | AP73: 0 | AQ73: 5 | AR73: 0 | AS73: 0 | AT73: 0 | AV73: 190 | AW73: CASE | AX73: FALSE | AY73: NOT_INTENTIONALLY_NOR_INHERENTLY_INCLUDED | AZ73: NOT_INTENTIONALLY_NOR_INHERENTLY_INCLUDED | BA73: NOT_INTENTIONALLY_NOR_INHERENTLY_INCLUDED | BB73: NOT_INTENTIONALLY_NOR_INHERENTLY_INCLUDED | BC73: NOT_INTENTIONALLY_NOR_INHERENTLY_INCLUDED | BD73: NOT_INTENTIONALLY_NOR_INHERENTLY_INCLUDED | BE73: NOT_INTENTIONALLY_NOR_INHERENTLY_INCLUDED | BF73: NOT_INTENTIONALLY_NOR_INHERENTLY_INCLUDED | BG73: NOT_INTENTIONALLY_NOR_INHERENTLY_INCLUDED | BH73: AE, AF, AM, AP, AS, UN, AY, AN, UW | BI73: Earth Kosher | BK73: 2024-01-02T10:52:07 | BL73: 2023-12-07T09:54:05 | BM73: Wild Blueberries | BN73: FALSE
A74: 100254 | B74: Strawberries, Sliced, Frozen | C74: Fruit | D74: 00086289258929 | E74: Anacapa Foods | F74: Inn Foods, Inc. | G74: Inn Foods, Inc. | H74: Fruit | I74: Sliced Strawberries | J74: Fruit | L74: 70 | M74: GRM | N74: BY_SERVING | O74: 70 | P74: GRM | Q74: 1/4 cup | R74: THAW | AF74: 10 | AG74: 11 | AH74: 0 | AI74: 45 | AJ74: 0 | AK74: 0 | AL74: 1 | AM74: 0.4 | AN74: 95 | AO74: 1 | AP74: 1.3 | AQ74: 9 | AR74: 6 | AS74: 0 | AT74: 0 | AV74: 194 | AW74: BASE_UNIT_OR_EACH | AX74: TRUE | AY74: FREE_FROM | AZ74: FREE_FROM | BA74: FREE_FROM | BB74: FREE_FROM | BC74: FREE_FROM | BD74: FREE_FROM | BE74: FREE_FROM | BF74: FREE_FROM | BG74: FREE_FROM | BH74: AM, AE, AF, AC, AN, AP, UW, AY, AS | BK74: 2025-01-08 08:30:06 | BL74: 2024-12-19 12:02:00 | BM74: Strawberries, Sugar | BN74: FALSE
A75: 100256 | B75: Strawberries, Diced, Cups, Frozen | C75: Fruit | D75: 10086289208655 | E75: Sure Fresh Produce, Inc. | F75: Inn Foods, Inc. | G75: Inn Foods, Inc. | H75: Fruit | I75: Strawberries | J75: Fruit | L75: 128 | M75: GRM | N75: BY_SERVING | O75: 128 | P75: GRM | Q75: 4.5 ounce cup | R75: THAW | AF75: 20 | AG75: 19 | AH75: 0 | AI75: 80 | AJ75: 0 | AK75: 0 | AL75: 2 | AM75: 0.4 | AN75: 180 | AO75: 1 | AP75: 0 | AQ75: 16 | AR75: 10 | AS75: 0 | AT75: 0 | AV75: 96 | AW75: BASE_UNIT_OR_EACH | AY75: FREE_FROM | AZ75: FREE_FROM | BA75: FREE_FROM | BB75: FREE_FROM | BC75: FREE_FROM | BD75: FREE_FROM | BE75: FREE_FROM | BF75: FREE_FROM | BG75: FREE_FROM | BH75: AM, AE, AF, AC, AN, AP, UW, AY, AS | BK75: 2025-06-02 08:13:46 | BL75: 2025-05-16 12:27:00 | BM75: Strawberries, Sugar | BN75: FALSE
A76: 100256 | B76: Strawberries, Diced, Cups, Frozen | C76: Fruit | D76: 10817134020456 | E76: Tickled Strawberries | F76: Palmetto Processing Solutions | G76: Palmetto Processing Solutions | H76: Strawberries Dice | I76: Strawberries Dice | J76: Strawberries Dice | K76: CHILD_NUTRITION_FOOD_PROGRAMS | L76: 128 | M76: GRM | N76: BY_SERVING | O76: 128 | P76: GRM | Q76: 4.5 ounce cup | R76: THAW | AF76: 19 | AG76: 19 | AH76: 0 | AI76: 80 | AJ76: 0 | AK76: 0 | AL76: 2 | AM76: 0 | AN76: 180 | AO76: 0 | AP76: 0 | AQ76: 16 | AR76: 10 | AS76: 0 | AT76: 0 | AU76: NFT | AV76: 96 | AW76: CASE | AX76: TRUE | AY76: FREE_FROM | AZ76: FREE_FROM | BA76: FREE_FROM | BB76: FREE_FROM | BC76: FREE_FROM | BD76: FREE_FROM | BE76: FREE_FROM | BF76: FREE_FROM | BG76: FREE_FROM | BH76: AM, AP, AS, AY, AN, UW, AC, AE, AF, UM, BM | BK76: 2023-04-03T16:08:47 | BL76: 2023-03-22T07:45:06 | BM76: Strawberries, Sugar | BN76: FALSE
A77: 100256 | B77: Strawberries, Diced, Cups, Frozen | C77: Fruit | D77: 10034742055995 | E77: Wawona Frozen Foods | F77: Wawona Frozen Foods | G77: Wawona Frozen Foods | H77: Wawona Frozen Foods Strawberry Fruit Singles 96/4.5oz | I77: Strawber Fruit Single Cups 96/4.5oz | J77: Frozen Fruit | K77: CHILD_NUTRITION_FOOD_PROGRAMS | L77: 128 | M77: GRM | N77: BY_SERVING | Q77: 4.5 ounce cup | R77: THAW | AF77: 19 | AG77: 19 | AH77: 0 | AI77: 80 | AJ77: 0 | AK77: 0 | AL77: 2 | AM77: 0 | AN77: 180 | AO77: 1 | AP77: 0 | AQ77: 16 | AR77: 10 | AS77: 0 | AT77: 0 | AV77: 96 | AW77: CASE | AX77: TRUE | AY77: FREE_FROM | AZ77: FREE_FROM | BA77: FREE_FROM | BB77: FREE_FROM | BC77: FREE_FROM | BD77: FREE_FROM | BE77: FREE_FROM | BF77: FREE_FROM | BG77: FREE_FROM | BH77: AM, AP, AS, AY, AN, UW, AC, AE, AF, UM, BM | BK77: 2022-09-19T05:47:23 | BL77: 2022-05-18T18:41:28 | BM77: Strawberries, Sugar | BN77: FALSE
A78: 100261 | B78: Apricots, Diced, Cups, Frozen | C78: Fruit | D78: 10071202303005 | E78: Big Valley | F78: Dole Packaged Frozen Foods | G78: Dole Packaged Foods, LLC | H78: FRT CUP APRICOT DCD 96/4.5OZSY | I78: FRT CUP APRICOT DCD 96/4.5OZSY | J78: Apricots | K78: CHILD_NUTRITION_FOOD_PROGRAMS | L78: 128 | M78: GRM | N78: BY_SERVING | O78: 128 | P78: GRM | Q78: 4.5 ounce cup | R78: PREPARED | AF78: 0 | AG78: 25 | AH78: 0 | AI78: 110 | AJ78: 0 | AK78: 0 | AL78: 2 | AM78: 0.4 | AN78: 280 | AO78: 1 | AP78: 0 | AQ78: 23 | AR78: 13 | AS78: 0 | AT78: 0 | AV78: 96 | AW78: CASE | AY78: FREE_FROM | AZ78: FREE_FROM | BA78: FREE_FROM | BB78: FREE_FROM | BC78: FREE_FROM | BD78: FREE_FROM | BE78: FREE_FROM | BF78: FREE_FROM | BG78: FREE_FROM | BH78: AS, UW, AC, AE, AF, AY, AM, AN, AP | BK78: 2024-05-01T09:10:35 | BL78: 2024-04-10T17:07:43 | BM78: Apricots, Sugar, Water, Ascorbic Acid (to Promote Color Retention), and Citric Acid. | BN78: FALSE
A79: 100277 | B79: Orange Juice, Unsweetened, Cartons, Frozen | C79: Fruit | D79: 00774840301015 | E79: SUNCUP | F79: Gregory Packaging | G79: Gregory Packaging, Inc. | H79: 4 ounce paper carton | I79: 100% Orange Juice 4 oz. carton | J79: 100% Orange Juice carton 4 oz. fzn | L79: 118 milliliters | M79: MLT | N79: BY_PACKAGE_OR_CONTAINER | O79: 4 | P79: ONZ | Q79: 4 ounce container | R79: READY_TO_DRINK | AF79: 0 | AG79: 14 | AH79: 0 | AI79: 60 | AJ79: 0 | AK79: 0 | AL79: 0 | AM79: 0 | AN79: 240 | AO79: 0 | AP79: 0 | AQ79: 12 | AR79: 0 | AS79: 0 | AT79: 0 | AV79: 70 | AW79: CASE | AX79: TRUE | BK79: 2023-06-01T09:04:03 | BL79: 2023-02-02T07:32:00 | BM79: 100% Orange Juice (Water Sufficient to Reconstitute Orange Juice Concentrate) | BN79: FALSE
A80: 100293 | B80: Raisins, Unsweetened, Individual Portion | C80: Fruit | D80: 00074917000156 | E80: Regent Raisins | F80: Chooljian and Sons Inc. | G80: Chooljian and Sons Inc. | H80: California Seedless Raisins | I80: California Seedless Raisins | J80: for consuming | K80: CHILD_NUTRITION_FOOD_PROGRAMS | L80: 37.7 | M80: GRM | N80: BY_SERVING | O80: 37.7 | P80: GRM | Q80: 1.33 ounce box | R80: UNPREPARED | AF80: 23 | AG80: 30 | AH80: 0 | AI80: 110 | AJ80: 0 | AK80: 0 | AL80: 2 | AM80: 1 | AN80: 280 | AO80: 1 | AP80: 10 | AQ80: 25 | AR80: 0 | AS80: 0 | AT80: 0 | AV80: 144 | AW80: BASE_UNIT_OR_EACH | AX80: TRUE | BK80: 2023-07-05T13:11:25 | BL80: 2023-06-05T11:17:01 | BM80: Raisins | BN80: FALSE
A81: 100293 | B81: Raisins, Unsweetened, Individual Portion | C81: Fruit | D81: 00076161001330 | E81: Lion Raisins | F81: Lion Raisins | G81: Lion Raisins | H81: Raisins Box - 144/1.33 OZ | I81: RAISINS | J81: Fruit - Prepared/Processed (Shelf S | K81: CHILD_NUTRITION_FOOD_PROGRAMS | L81: 37.7 | M81: GRM | N81: BY_SERVING | O81: 37.7 | P81: GRM | Q81: 1.33 ounce box | R81: READY_TO_EAT | AF81: 19 | AG81: 30 | AH81: 0 | AI81: 110 | AJ81: 0 | AK81: 0 | AL81: 1 | AM81: 1 | AN81: 280 | AO81: 1 | AP81: 0 | AQ81: 22 | AR81: 0 | AS81: 0 | AT81: 0 | AV81: 144 | AW81: BASE_UNIT_OR_EACH | AX81: TRUE | BH81: X99 | BK81: 2023-07-05T13:40:07 | BL81: 2023-06-23T11:33:46 | BM81: Raisins | BN81: FALSE
A82: 100293 | B82: Raisins, Unsweetened, Individual Portion | C82: Fruit | D82: 00866983000051 | E82: Sun Valley Raisins, Inc. | F82: Sun Valley Raisins, Inc. | G82: Sun Valley Raisins, Inc. | H82: 1.33oz Raisins | I82: 1.33oz Raisins | J82: Fruit - Prepared/Processed (Shelf S | K82: CHILD_NUTRITION_FOOD_PROGRAMS | L82: 38 | M82: GRM | N82: BY_MEASURE | O82: 100 | P82: GRM | Q82: 1.33 ounce box | R82: READY_TO_EAT | AF82: 19 | AG82: 30.02 | AH82: 0 | AI82: 114 | AJ82: 0 | AK82: 0 | AL82: 1.52 | AM82: 0.684 | AN82: 284.62 | AO82: 1.14 | AP82: 7.6 | AQ82: 22.42 | AR82: 0 | AS82: 0 | AT82: 0 | AV82: =1*(144) -> 144 | AW82: BASE_UNIT_OR_EACH | AX82: TRUE | BK82: 2024-03-01T09:47:20 | BL82: 2024-02-29T16:14:19 | BM82: Raisins | BN82: TRUE
A83: 100293 | B83: Raisins, Unsweetened, Individual Portion | C83: Fruit | D83: 00041143121221 | E83: Sun-Maid® | F83: Sun-Maid Growers | G83: Sun-Maid Growers | H83: Raisin 6-Pack - 6 individual cartons bundled together in cellophane overwrap; each carton contains 1.33 oz of California Sun-Dried Raisins. Cartons are not labeled for individual retail sale. | I83: SUNMAID RAISIN 6-PACK | J83: Raisins | K83: CHILD_NUTRITION_FOOD_PROGRAMS | L83: 38 | M83: GRM | N83: BY_SERVING | O83: 38 | P83: GRM | Q83: 1.33 ounce box | R83: READY_TO_EAT | AF83: 20 | AG83: 30 | AH83: 0 | AI83: 120 | AJ83: 0 | AK83: 0 | AL83: 2 | AM83: 0.7 | AN83: 280 | AO83: 1 | AP83: 10 | AQ83: 24 | AR83: 0 | AS83: 0 | AT83: 0 | AU83: US_FDA_NFP_2020_LINEAR_SMALL_PACKAGES | AV83: 144 | AW83: BASE_UNIT_OR_EACH | AX83: TRUE | AY83: NOT_INTENTIONALLY_NOR_INHERENTLY_INCLUDED | AZ83: FREE_FROM | BA83: NOT_INTENTIONALLY_NOR_INHERENTLY_INCLUDED | BB83: NOT_INTENTIONALLY_NOR_INHERENTLY_INCLUDED | BC83: NOT_INTENTIONALLY_NOR_INHERENTLY_INCLUDED | BD83: FREE_FROM | BE83: NOT_INTENTIONALLY_NOR_INHERENTLY_INCLUDED | BF83: NOT_INTENTIONALLY_NOR_INHERENTLY_INCLUDED | BG83: NOT_INTENTIONALLY_NOR_INHERENTLY_INCLUDED | BH83: AC, AE, AF, AM, AN, AP, AS, AU, AY, BM, NC, SS, UW, UM, X99 | BI83: OK Kosher Certification | BK83: 2025-11-03 08:54:44 | BL83: 2025-10-22 09:30:37 | BM83: California Seedless Raisins | BN83: FALSE
A84: 100293 | B84: Raisins, Unsweetened, Individual Portion | C84: Fruit | D84: 00716245000094 | E84: Victor | F84: Victor Packing, Inc. | G84: Victor Packing, Inc. | H84: Natural Raisins | I84: Natural Raisins | J84: Natural Raisins | K84: CHILD_NUTRITION_FOOD_PROGRAMS | L84: 37.7 | M84: GRM | N84: BY_SERVING | O84: 37.7 | P84: GRM | Q84: 1 package | R84: READY_TO_EAT | AF84: 20 | AG84: 32 | AH84: 0 | AI84: 110 | AJ84: 0 | AK84: 0 | AL84: 2 | AM84: 0.7 | AN84: 280 | AO84: 1 | AP84: 10 | AQ84: 26 | AR84: 0 | AS84: 0 | AT84: 0 | AV84: 144 | AW84: BASE_UNIT_OR_EACH | AX84: TRUE | BH84: AU | BK84: 2025-06-02 08:13:46 | BL84: 2025-05-20 13:11:05 | BM84: California Seedless Raisins | BN84: FALSE
A85: 100307 | B85: Beans, Green, Low-sodium, Canned (K) | C85: Vegetables | D85: 00042396255336 | E85: DESHLER | F85: Burnette Foods, Inc. | G85: Burnette Foods, Inc. | H85: MOTHERS MAID LOW SALT GREEN BEANS 6/10 | I85: 6/10 DESHLER LOW SALT GRN BEANS | J85: GREEN BEANS | L85: 120 | M85: GRM | N85: BY_SERVING | O85: 120 | P85: GRM | Q85: 1/2 cup | R85: UNPREPARED | AF85: 20 | AG85: 4 | AH85: 0 | AI85: 20 | AJ85: 0 | AK85: 0 | AL85: 1 | AM85: 0.5 | AO85: 1 | AP85: 140 | AQ85: 1 | AR85: 0 | AS85: 0 | AT85: 0 | AV85: =24*6 -> 144 | AW85: BASE_UNIT_OR_EACH | AX85: TRUE | BH85: X99 | BI85: Orthodox Union | BK85: 2025-11-03 08:54:44 | BL85: 2025-10-15 07:01:39 | BM85: Green Beans, Water, Salt | BN85: FALSE
A86: 100307 | B86: Beans, Green, Low-sodium, Canned (K) | C86: Vegetables | D86: 00024000577843 | E86: Del Monte | F86: Del Monte | G86: DEL MONTE | H86: Del Monte® Low Sodium Green Beans, 101 oz. Can | I86: DM LS CUT GRN BEANS 101OZ | J86: BEANS, GREEN | L86: 121 | M86: GRM | N86: BY_SERVING | O86: 121 | P86: GRM | Q86: 1/2 cup | R86: READY_TO_EAT | AF86: 30 | AG86: 3 | AH86: 0 | AI86: 20 | AJ86: 0 | AK86: 0 | AL86: 1 | AM86: 0.5 | AN86: 100 | AO86: 1 | AP86: 140 | AQ86: 1 | AR86: 0 | AS86: 0 | AT86: 0 | AU86: US_FDA_NFP_2020_STANDARD | AV86: =24*6 -> 144 | AW86: BASE_UNIT_OR_EACH | AY86: FREE_FROM | AZ86: FREE_FROM | BA86: FREE_FROM | BB86: FREE_FROM | BC86: FREE_FROM | BD86: NOT_INTENTIONALLY_NOR_INHERENTLY_INCLUDED | BE86: FREE_FROM | BF86: FREE_FROM | BG86: FREE_FROM | BH86: AC, AE, AF, AM, AN, AP, AS, AU, AY, BM, UM, UN, UW | BI86: Triangle K | BK86: 2025-06-02 08:13:46 | BL86: 2025-05-30 18:21:27 | BM86: Green Beans, Water, Salt | BN86: FALSE
A87: 100307 | B87: Beans, Green, Low-sodium, Canned (K) | C87: Vegetables | D87: 40028800130404 | E87: Farmer Girl | F87: Hanover Foods Corp | G87: Hanover Foods Corp | H87: Cut Green Beans | I87: USDA Cut Green Beans | J87: Cut Green Beans | K87: CHILD_NUTRITION_FOOD_PROGRAMS | L87: 130 | M87: GRM | N87: BY_SERVING | Q87: 1/2 cup | R87: HEAT_AND_SERVE | AF87: 30 | AG87: 5 | AH87: 0 | AI87: 25 | AJ87: 0 | AK87: 0 | AL87: 7 | AM87: 0.8 | AN87: 160 | AO87: 1 | AP87: 85 | AQ87: 2 | AR87: 0 | AS87: 0 | AT87: 0 | AV87: =22*6 -> 132 | AW87: CASE | AY87: NOT_INTENTIONALLY_NOR_INHERENTLY_INCLUDED | AZ87: NOT_INTENTIONALLY_NOR_INHERENTLY_INCLUDED | BA87: NOT_INTENTIONALLY_NOR_INHERENTLY_INCLUDED | BB87: NOT_INTENTIONALLY_NOR_INHERENTLY_INCLUDED | BC87: NOT_INTENTIONALLY_NOR_INHERENTLY_INCLUDED | BD87: NOT_INTENTIONALLY_NOR_INHERENTLY_INCLUDED | BE87: NOT_INTENTIONALLY_NOR_INHERENTLY_INCLUDED | BF87: NOT_INTENTIONALLY_NOR_INHERENTLY_INCLUDED | BG87: NOT_INTENTIONALLY_NOR_INHERENTLY_INCLUDED | BH87: AS, UW, AC, AE, AF, AY, AM, AN, AP, UM, BM, UN | BI87: Orthodox Union | BK87: 2023-06-01T09:12:17 | BL87: 2023-05-08T09:29:18 | BM87: Green Beans, Water, Salt | BN87: FALSE
A88: 100307 | B88: Beans, Green, Low-sodium, Canned (K) | C88: Vegetables | D88: 00033828013167 | E88: Lakeside Foods | F88: Lakeside Foods Inc. | G88: Lakeside Foods Inc. | H88: 6/10 LAKESIDE CUT GRN BNS | I88: CT GRN BN | J88: CUT GREEN BEANS | K88: CHILD_NUTRITION_FOOD_PROGRAMS | L88: 120 | M88: GRM | N88: BY_MEASURE | O88: 100 | P88: GRM | Q88: 1/2 cup | R88: READY_TO_EAT | AF88: 36 | AG88: 4.8 | AH88: 0 | AI88: 24 | AJ88: 0 | AK88: 0 | AL88: 2.4 | AM88: 0.48 | AN88: 120 | AO88: 1.2 | AP88: 168 | AQ88: 2.4 | AR88: 0 | AS88: 0 | AT88: 0 | AV88: =24*6 -> 144 | AW88: BASE_UNIT_OR_EACH | AX88: TRUE | AY88: FREE_FROM | AZ88: FREE_FROM | BA88: FREE_FROM | BB88: FREE_FROM | BC88: FREE_FROM | BD88: FREE_FROM | BE88: FREE_FROM | BF88: FREE_FROM | BG88: FREE_FROM | BH88: AS, UW, AC, AE, AF, AY, AM, AN, AP | BI88: Orthodox Union | BK88: 2025-09-02 08:43:50 | BL88: 2025-08-05 12:43:02 | BM88: Green Beans, Water, Salt | BN88: FALSE
A89: 100307 | B89: Beans, Green, Low-sodium, Canned (K) | C89: Vegetables | D89: 00070222072604 | E89: Hart | F89: Seneca Foods Corp | G89: Seneca Foods Corp | H89: Hart Low Sodium Mixed Sieve Cut Green Beans 101oz | I89: GRN BNS CUT MX SV LOW SOD | J89: Vegetable - Canned | K89: CHILD_NUTRITION_FOOD_PROGRAMS | L89: 120 | M89: GRM | N89: BY_SERVING | O89: 120 | P89: GRM | Q89: 1/2 cup | R89: UNPREPARED | AF89: 26 | AG89: 3 | AH89: 0 | AI89: 15 | AJ89: 0 | AK89: 0 | AL89: 1 | AM89: 1 | AN89: 63 | AO89: 1 | AP89: 120 | AQ89: 1 | AR89: 0 | AS89: 0 | AT89: 0 | AU89: US_FDA_NFP_2020_STANDARD | AV89: =24*6 -> 144 | AW89: BASE_UNIT_OR_EACH | AX89: TRUE | AY89: FREE_FROM | AZ89: FREE_FROM | BA89: FREE_FROM | BB89: FREE_FROM | BC89: FREE_FROM | BD89: FREE_FROM | BE89: FREE_FROM | BF89: FREE_FROM | BG89: FREE_FROM | BH89: AM, AP, AS, AY, AN, UW, AC, AE, AF | BI89: OU | BK89: 2025-11-03 08:54:44 | BL89: 2025-10-02 12:43:03 | BM89: Green Beans, Water, Salt | BN89: FALSE
A90: 100309 | B90: Carrots, Sliced, Low-sodium, Canned | C90: Vegetables | D90: 00033828042167 | E90: Lakeside Foods | F90: Lakeside Foods Inc. | G90: Lakeside Foods Inc. | H90: 10 LAKESIDE SLD CA | I90: LKSD SLI CRT | J90: 10 LAKESIDE SLICED CARROTS | K90: CHILD_NUTRITION_FOOD_PROGRAMS | L90: 120 | M90: GRM | N90: BY_MEASURE | O90: 100 | P90: GRM | Q90: 1/2 cup | R90: READY_TO_EAT | AF90: 30 | AG90: 6 | AH90: 0 | AI90: 30 | AJ90: 0 | AK90: 0 | AL90: 2 | AM90: 0.36 | AN90: 145 | AO90: 1 | AP90: 110 | AQ90: 4 | AR90: 0 | AS90: 0.12 | AT90: 0 | AU90: NFT | AV90: =25*6 -> 150 | AW90: BASE_UNIT_OR_EACH | AX90: TRUE | AY90: FREE_FROM | AZ90: FREE_FROM | BA90: FREE_FROM | BB90: FREE_FROM | BC90: FREE_FROM | BD90: FREE_FROM | BE90: FREE_FROM | BF90: FREE_FROM | BG90: FREE_FROM | BH90: AS, UW, AC, AE, AF, AY, AM, AN, AP | BI90: Orthodox Union | BK90: 2024-11-01 08:56:02 | BL90: 2024-10-03 13:56:28 | BM90: Carrots, Water, Salt, Calcium Chloride | BN90: TRUE
A91: 100309 | B91: Carrots, Sliced, Low-sodium, Canned | C91: Vegetables | D91: 00070222073731 | E91: Hart | F91: Seneca Foods Corp | G91: Seneca Foods Corp | H91: Hart Low Sodium Medium Sliced Carrots 105oz | I91: CARROTS SL MED LOW SODIUM | J91: Vegetable - Canned | K91: CHILD_NUTRITION_FOOD_PROGRAMS | L91: 120 | M91: GRM | N91: BY_SERVING | O91: 120 | P91: GRM | Q91: 1/2 cup | R91: UNPREPARED | AF91: 37 | AG91: 4 | AH91: 0 | AI91: 20 | AJ91: 0 | AK91: 0 | AL91: 1 | AM91: 0 | AN91: 127 | AO91: 0 | AP91: 120 | AQ91: 2 | AR91: 0 | AS91: 0 | AT91: 0 | AU91: US_FDA_NFP_2020_STANDARD | AV91: =25*6 -> 150 | AW91: BASE_UNIT_OR_EACH | AX91: TRUE | AY91: FREE_FROM | AZ91: FREE_FROM | BA91: FREE_FROM | BB91: FREE_FROM | BC91: FREE_FROM | BD91: FREE_FROM | BE91: FREE_FROM | BF91: FREE_FROM | BG91: FREE_FROM | BH91: AN, AF, AC, AE, UW, AY, AS, AP, AM | BI91: Orthodox Union (OU) | BK91: 2025-11-03 08:54:44 | BL91: 2025-10-02 12:43:03 | BM91: Carrots, Water, Salt, Calcium Chloride (Firming Agent) | BN91: FALSE
A92: 100313 | B92: Corn, Whole Kernel, No Salt Added, Canned (K) | C92: Vegetables | D92: 40050300600040 | E92: Sunwise | F92: Hanover Foods Corp | G92: Hanover Foods Corp | H92: Fresh and delicious. Great in salads, soups, salsa, or a side dish! | I92: USDA Golden Corn Whole Kernel | J92: Golden Corn Whole Kernel | K92: CHILD_NUTRITION_FOOD_PROGRAMS | L92: 130 | M92: GRM | N92: BY_SERVING | Q92: 1/2 cup | R92: HEAT_AND_SERVE | AF92: 0 | AG92: 14 | AH92: 0 | AI92: 70 | AJ92: 0 | AK92: 0 | AL92: 2 | AM92: 0.4 | AN92: 210 | AO92: 2 | AP92: 15 | AQ92: 5 | AR92: 0 | AS92: 1 | AT92: 0 | AV92: =23*6 -> 138 | AW92: CASE | AY92: NOT_INTENTIONALLY_NOR_INHERENTLY_INCLUDED | AZ92: NOT_INTENTIONALLY_NOR_INHERENTLY_INCLUDED | BA92: NOT_INTENTIONALLY_NOR_INHERENTLY_INCLUDED | BB92: NOT_INTENTIONALLY_NOR_INHERENTLY_INCLUDED | BC92: NOT_INTENTIONALLY_NOR_INHERENTLY_INCLUDED | BD92: NOT_INTENTIONALLY_NOR_INHERENTLY_INCLUDED | BE92: NOT_INTENTIONALLY_NOR_INHERENTLY_INCLUDED | BF92: NOT_INTENTIONALLY_NOR_INHERENTLY_INCLUDED | BG92: NOT_INTENTIONALLY_NOR_INHERENTLY_INCLUDED | BH92: AS, UW, AC, AE, AF, AY, AM, AN, AP | BI92: Orthodox Union | BK92: 2023-06-01T09:05:52 | BL92: 2023-05-08T09:30:28 | BM92: Corn, Water | BN92: FALSE
A93: 100313 | B93: Corn, Whole Kernel, No Salt Added, Canned (K) | C93: Vegetables | D93: 00070222073779 | E93: Hart | F93: Seneca Foods Corp | G93: Seneca Foods Corp | H93: Hart No Salt Whole Kernel Corn 106oz | I93: CORN WK N/S | J93: Vegetable - Canned | K93: CHILD_NUTRITION_FOOD_PROGRAMS | L93: 125 | M93: GRM | N93: BY_SERVING | O93: 125 | P93: GRM | Q93: 1/2 cup | R93: UNPREPARED | AF93: 13 | AG93: 9 | AH93: 0 | AI93: 60 | AJ93: 0 | AK93: 0 | AL93: 1 | AM93: 0 | AN93: 125 | AO93: 1 | AP93: 10 | AQ93: 2 | AR93: 0 | AS93: 0.5 | AT93: 0 | AU93: US_FDA_NFP_2020_STANDARD | AV93: 144 | AW93: BASE_UNIT_OR_EACH | AX93: TRUE | AY93: FREE_FROM | AZ93: FREE_FROM | BA93: FREE_FROM | BB93: FREE_FROM | BC93: FREE_FROM | BD93: FREE_FROM | BE93: FREE_FROM | BF93: FREE_FROM | BG93: FREE_FROM | BH93: AN, AF, AC, AE, UW, AY, AS, AP, AM | BI93: Orthodox Union | BK93: 2025-11-03 08:54:44 | BL93: 2025-10-02 12:43:03 | BM93: Corn, Water | BN93: FALSE
A94: 100315 | B94: Peas, Green, Low-sodium, Canned | C94: Vegetables | D94: 40028800146085 | E94: Farmer Girl | F94: Hanover Foods Corp | G94: Hanover Foods Corp | H94: Flavorful and rich. A good source of fiber. | I94: USDA Farmer Girl Sweet Peas | J94: Farmer Girl Sweet Peas | K94: CHILD_NUTRITION_FOOD_PROGRAMS | L94: 130 | M94: GRM | N94: BY_SERVING | Q94: 1/2 cup | R94: HEAT_AND_SERVE | AF94: 20 | AG94: 14 | AH94: 0 | AI94: 70 | AJ94: 0 | AK94: 0 | AL94: 5 | AM94: 1.2 | AN94: 190 | AO94: 4 | AP94: 140 | AQ94: 7 | AR94: 2 | AS94: 0 | AT94: 0 | AV94: 138 | AW94: CASE | AX94: TRUE | AY94: NOT_INTENTIONALLY_NOR_INHERENTLY_INCLUDED | AZ94: NOT_INTENTIONALLY_NOR_INHERENTLY_INCLUDED | BA94: NOT_INTENTIONALLY_NOR_INHERENTLY_INCLUDED | BB94: NOT_INTENTIONALLY_NOR_INHERENTLY_INCLUDED | BC94: NOT_INTENTIONALLY_NOR_INHERENTLY_INCLUDED | BD94: NOT_INTENTIONALLY_NOR_INHERENTLY_INCLUDED | BE94: NOT_INTENTIONALLY_NOR_INHERENTLY_INCLUDED | BF94: NOT_INTENTIONALLY_NOR_INHERENTLY_INCLUDED | BG94: NOT_INTENTIONALLY_NOR_INHERENTLY_INCLUDED | BH94: AS, UW, AC, AE, AF, AY, AM, AN, AP, UN, UM, BM | BI94: Union of Orthodox Jewish Congregations of America | BK94: 2025-11-03 08:54:44 | BL94: 2025-09-15 15:15:01 | BM94: Peas, Water, Sugar, Salt | BN94: FALSE
A95: 100315 | B95: Peas, Green, Low-sodium, Canned | C95: Vegetables | D95: 00033828006169 | E95: Lakeside Foods | F95: Lakeside Foods Inc. | G95: Lakeside Foods Inc. | H95: 6/10 LAKESIDE PEAS | I95: LKSIDE PEAS | J95: 10 LAKESIDE PEAS | K95: CHILD_NUTRITION_FOOD_PROGRAMS | L95: 125 | M95: 125 | N95: BY_MEASURE | O95: 100 | P95: GRM | Q95: 1/2 cup | R95: UNPREPARED | AF95: 31 | AG95: 15 | AH95: 0 | AI95: 88 | AJ95: 0 | AK95: 0 | AL95: 3.8 | AM95: 1.75 | AN95: 125 | AO95: 5 | AP95: 175 | AQ95: 7.5 | AR95: 2.5 | AS95: 0.62 | AT95: 0 | AU95: NFT | AV95: =24*6 -> 144 | AW95: BASE_UNIT_OR_EACH | AX95: TRUE | AY95: FREE_FROM | AZ95: FREE_FROM | BA95: FREE_FROM | BB95: FREE_FROM | BC95: FREE_FROM | BD95: FREE_FROM | BE95: FREE_FROM | BF95: FREE_FROM | BG95: FREE_FROM | BH95: AS, UW, AC, AE, AF, AY, AM, AN, AP | BI95: Orthodox Union | BK95: 2024-06-03 08:45:45 | BL95: 2024-05-06 14:14:11 | BM95: Green Peas, Water, Sugar, Salt | BN95: TRUE
A96: 100315 | B96: Peas, Green, Low-sodium, Canned | C96: Vegetables | D96: 00070222074271 | E96: Hart | F96: Seneca Foods Corp | G96: Seneca Foods Corp | H96: Hart Low Sodium Mixed Sieve Sweet Peas 106oz | I96: SWEET PEAS MX SV LOW SOD | J96: Vegetable - Canned | K96: CHILD_NUTRITION_FOOD_PROGRAMS | L96: 125 | M96: GRM | N96: BY_SERVING | O96: 125 | P96: GRM | Q96: 1/2 cup | R96: UNPREPARED | AF96: 17 | AG96: 11 | AH96: 0 | AI96: 60 | AJ96: 0 | AK96: 0 | AL96: 3 | AM96: 1 | AN96: 133 | AO96: 3 | AP96: 130 | AQ96: 5 | AR96: 2 | AS96: 0 | AT96: 0 | AU96: US_FDA_NFP_2020_STANDARD | AV96: =24*6 -> 144 | AW96: BASE_UNIT_OR_EACH | AX96: TRUE | AY96: FREE_FROM | AZ96: FREE_FROM | BA96: FREE_FROM | BB96: FREE_FROM | BC96: FREE_FROM | BD96: FREE_FROM | BE96: FREE_FROM | BF96: FREE_FROM | BG96: FREE_FROM | BH96: AN, AF, AC, AE, UW, AY, AS, AP, AM | BI96: Orthodox Union (OU) | BK96: 2025-07-07 08:22:08 | BL96: 2025-06-25 10:31:48 | BM96: Peas, Water, Sugar, Salt | BN96: FALSE
A97: 100317 | B97: Sweet Potatoes, Light Syrup, No Salt Added, Canned | C97: Vegetables | D97: 10023709820134 | E97: Dunbar | F97: Moody Dunbar Inc | G97: MOODY DUNBAR INC | H97: 6/10 Cut Swt Potato Dunbar | I97: 6/10 Cut Swt Potato "AL" Dunbar | J97: 6/10 Cut Swt Potato "AL" Dunbar | K97: CHILD_NUTRITION_FOOD_PROGRAMS, GROCERY | L97: 160 | M97: GRM | N97: BY_SERVING | O97: 160 | P97: GRM | Q97: 2/3 cup | R97: HEAT_AND_SERVE | AF97: 16 | AG97: 34 | AH97: 0 | AI97: 130 | AJ97: 0 | AK97: 0 | AL97: 4 | AM97: 0 | AN97: 366 | AO97: 0 | AP97: 5 | AQ97: 22 | AR97: 11 | AS97: 0 | AT97: 0 | AV97: 114 | AW97: CASE | AX97: TRUE | AY97: FREE_FROM | AZ97: FREE_FROM | BA97: FREE_FROM | BB97: FREE_FROM | BC97: FREE_FROM | BD97: FREE_FROM | BE97: FREE_FROM | BF97: FREE_FROM | BG97: FREE_FROM | BH97: AP, AN, AM, AE, UW, AF, AC, AS, AY, AU, BM | BI97: Star K | BK97: 2024-02-01T09:13:36 | BL97: 2024-01-19T15:19:27 | BM97: Sweet Potatoes, Water, Cane Sugar | BN97: FALSE
A98: 100327 | B98: Tomato Paste, No Salt Added, Canned | C98: Vegetables | D98: 00073934156167 | E98: Mission Pride | F98: Pacific Coast Producers | G98: Pacific Coast Producers | I98: Mission P Tomato Paste | J98: Mission Pride Tomato Paste, No Salt | K98: CHILD_NUTRITION_FOOD_PROGRAMS | L98: 33 | M98: GRM | N98: BY_MEASURE | O98: 33 | P98: GRM | Q98: 2 Tablespoon | R98: UNSPECIFIED | AF98: 0 | AG98: 6 | AH98: 0 | AI98: 30 | AJ98: 0 | AK98: 0 | AL98: 1 | AM98: 0 | AN98: 270 | AO98: 1 | AP98: 20 | AQ98: 4 | AR98: 0 | AS98: 0 | AT98: 0 | AV98: =95*6 -> 570 | AW98: BASE_UNIT_OR_EACH | AX98: TRUE | AY98: FREE_FROM | AZ98: FREE_FROM | BA98: FREE_FROM | BB98: FREE_FROM | BC98: FREE_FROM | BD98: FREE_FROM | BE98: FREE_FROM | BF98: FREE_FROM | BG98: FREE_FROM | BH98: AS, UW, AE, AF, AY, UN, AM, AN, AP | BK98: 2022-09-19T05:39:35 | BL98: 2023-08-18T18:45:08 | BM98: Tomato Pulp, Citric Acid | BN98: FALSE
A99: 100327 | B99: Tomato Paste, No Salt Added, Canned | C99: Vegetables | D99: 10041712470504 | E99: Villa d'Este | F99: Neil Jones Food Company | G99: The Neil Jones Food Company | H99: Villa d'Este Tomato Paste 6 pack 111oz non-BPA intent cans | I99: Tomato Paste | J99: Tomato Paste | K99: CHILD_NUTRITION_FOOD_PROGRAMS | L99: 30 | M99: GRM | N99: BY_SERVING | Q99: 2 Tablespoon | R99: READY_TO_EAT | AF99: 11 | AG99: 6 | AH99: 0 | AI99: 25 | AJ99: 0 | AK99: 0 | AL99: 1 | AM99: 1 | AN99: 304 | AO99: 1 | AP99: 20 | AQ99: 4 | AR99: 0 | AS99: 0 | AT99: 0 | AU99: US_FDA_NFP_2020_STANDARD | AV99: 630 | AW99: CASE | AX99: TRUE | AY99: FREE_FROM | AZ99: FREE_FROM | BA99: FREE_FROM | BB99: FREE_FROM | BC99: FREE_FROM | BD99: FREE_FROM | BE99: FREE_FROM | BF99: FREE_FROM | BG99: FREE_FROM | BH99: AM, AE, AF, AC, AP, AY, UW, AN, AS, UN, UM | BI99: Orthodox Union | BK99: 2025-08-01 09:35:39 | BL99: 2025-07-10 12:37:46 | BM99: Fresh Vine-Ripened Tomatoes | BN99: FALSE
A100: 100329 | B100: Tomatoes, Diced, No Salt Added, Canned | C100: Vegetables | D100: 00024000511007 | E100: Del Monte | F100: Del Monte | G100: DEL MONTE | H100: Peeled diced tomatoes with no added salt | I100: DM PLD DCD TOMATO NSA 102 OZ. | J100: TOMATO | L100: 126 | M100: GRM | N100: BY_SERVING | O100: 126 | P100: GRM | Q100: 1/2 cup | R100: READY_TO_EAT | AF100: 42 | AG100: 6 | AH100: 0 | AI100: 30 | AJ100: 0 | AK100: 0 | AL100: 1 | AM100: 1 | AN100: 261 | AO100: 0 | AP100: 15 | AQ100: 3 | AR100: 0 | AS100: 0 | AT100: 0 | AU100: US_FDA_NFP_2020_STANDARD | AV100: 144 | AW100: BASE_UNIT_OR_EACH | AY100: FREE_FROM | AZ100: FREE_FROM | BA100: FREE_FROM | BB100: FREE_FROM | BC100: FREE_FROM | BD100: NOT_INTENTIONALLY_NOR_INHERENTLY_INCLUDED | BE100: FREE_FROM | BF100: FREE_FROM | BG100: FREE_FROM | BH100: AC, AE, AF, AM, AN, AP, AS, AU, AY, BM, UM, UN, UW | BI100: Triangle K | BK100: 2023-09-01T08:55:18 | BL100: 2023-08-15T16:58:23 | BM100: Tomatoes, Tomato Juice, Citric Acid, Calcium Chloride | BN100: FALSE
A101: 100329 | B101: Tomatoes, Diced, No Salt Added, Canned | C101: Vegetables | D101: 00072940100812 | E101: Vine Ripe | F101: Red Gold, Inc. | G101: RED GOLD INC | H101: Vine Ripe No Salt Added Diced Tomatoes, 102oz Can | I101: Vine Ripe Diced Tomatoes NSA | J101: NSA Diced Tomatoes | K101: CHILD_NUTRITION_FOOD_PROGRAMS, FOOD_SERVICE, GROCERY | L101: 121 | M101: GRM | N101: BY_SERVING | O101: 121 | P101: GRM | Q101: 1/2 cup | R101: UNPREPARED | AA101: I certify the above information is true and correct and that 1/4 Cup, a 2.10oz serving of the above product contains 0.25 of red/orange vegetables by Sahand Faghihi, Director of Quality Assurance, Red Gold | AB101: FRUIT_VEGETABLE_OR_FRUIT_VEGETABLE_ALTERNATIVE | AC101: 14.17 GRM | AD101: 121.0 GRM | AF101: 0 | AG101: 5 | AH101: 0 | AI101: 25 | AJ101: 0 | AK101: 0 | AL101: 1 | AM101: 0 | AN101: 230 | AO101: 1 | AP101: 15 | AQ101: 3 | AR101: 0 | AS101: 0 | AT101: 0 | AU101: US_FDA_NFP_2020_STANDARD | AV101: =24*6 -> 144 | AW101: BASE_UNIT_OR_EACH | AX101: TRUE | AY101: FREE_FROM | AZ101: FREE_FROM | BA101: FREE_FROM | BB101: FREE_FROM | BC101: FREE_FROM | BD101: FREE_FROM | BE101: FREE_FROM | BF101: FREE_FROM | BG101: FREE_FROM | BH101: AC, AE, AF, AM, AN, AP, AS, AU, AY, BC, BM, NL, NM, SI, SN, UM, UW | BI101: Orthodox Union | BK101: 2025-09-02 08:43:50 | BL101: 2025-08-12 12:59:48 | BM101: Tomatoes, Tomato Juice, Less Than 2% of: Calcium Chloride, Citric Acid | BN101: FALSE
A102: 100329 | B102: Tomatoes, Diced, No Salt Added, Canned | C102: Vegetables | D102: 10041712174518 | E102: Villa d'Este | F102: Neil Jones Food Company | G102: The Neil Jones Food Company | H102: Villa d'Este Diced Tomatoes in Juice 3/4" 6 pack 102oz non-BPA intent cans | I102: Diced Tomatoes in Juice 3/4" | J102: Diced Tomatoes in Juice | K102: CHILD_NUTRITION_FOOD_PROGRAMS | L102: 130 | M102: GRM | N102: BY_SERVING | Q102: 1/2 cup | R102: READY_TO_EAT | AF102: 27 | AG102: 5 | AH102: 0 | AI102: 25 | AJ102: 0 | AK102: 0 | AL102: 1 | AM102: 0 | AN102: 302 | AO102: 1 | AP102: 10 | AQ102: 3 | AR102: 0 | AS102: 0 | AT102: 0 | AU102: US_FDA_NFP_2020_STANDARD | AV102: 132 | AW102: CASE | AX102: TRUE | AY102: FREE_FROM | AZ102: FREE_FROM | BA102: FREE_FROM | BB102: FREE_FROM | BC102: FREE_FROM | BD102: FREE_FROM | BE102: FREE_FROM | BF102: FREE_FROM | BG102: FREE_FROM | BH102: AM, AE, AF, AC, AP, AY, UW, AN, AS, UN, UM | BI102: Orthodox Union | BJ102: The Islamic Food and Nutrition Council of America | BK102: 2025-08-01 09:35:39 | BL102: 2025-07-10 12:37:46 | BM102: Fresh Vine-Ripened Tomatoes, Tomato Juice, Calcium Chloride, Citric Acid | BN102: FALSE
A103: 100330 | B103: Salsa, Low-sodium, Canned | C103: Vegetables | D103: 00024000578116 | E103: Del Monte | F103: Del Monte | G103: DEL MONTE | H103: TOMATO PUREE ,TOMATOES, ONIONS, GREEN BELL PEPPERS, JALAPENO PEPPERS. | I103: DM LS SALSA 6/106 OZ. | J103: SALSA | L103: 32 | M103: GRM | N103: BY_SERVING | O103: 32 | P103: GRM | Q103: 2 Tablespoon | R103: READY_TO_EAT | AF103: 8 | AG103: 2 | AH103: 0 | AI103: 10 | AJ103: 0 | AK103: 0 | AL103: 1 | AM103: 0.2 | AN103: 94 | AO103: 0 | AP103: 30 | AQ103: 1 | AR103: 0 | AS103: 0 | AT103: 0 | AU103: US_FDA_NFP_2020_STANDARD | AV103: 564 | AW103: BASE_UNIT_OR_EACH | AY103: FREE_FROM | AZ103: FREE_FROM | BA103: FREE_FROM | BB103: FREE_FROM | BC103: FREE_FROM | BD103: NOT_INTENTIONALLY_NOR_INHERENTLY_INCLUDED | BE103: FREE_FROM | BF103: FREE_FROM | BG103: FREE_FROM | BH103: AC, AE, AF, AM, AN, AP, AS, AU, AY, BM, UM, UN, UW | BI103: Triangle K | BK103: 2022-09-19T05:22:42 | BL103: 2023-08-15T16:58:23 | BM103: Tomato Puree (Water, Tomato Paste), Tomatoes, Onions, Green Bell Peppers, Contains Less Than 2% of the Following: Jalapeno Peppers (Jalapeno Peppers, Distilled Vinegar, Salt, Calcium Chloride), Distilled Vinegar, Modified Food Starch (Corn), Citric Acid, Garlic Powder, Xanthan Gum, Natural Flavor, Salt, Spice | BN103: FALSE
A104: 100330 | B104: Salsa, Low-sodium, Canned | C104: Vegetables | D104: 00072940100539 | E104: Vine Ripe | F104: Red Gold, Inc. | G104: RED GOLD INC | H104: Vine Ripe Mild Salsa, 106oz Can | I104: Vine Ripe Mild Salsa | J104: Mild Salsa | K104: CHILD_NUTRITION_FOOD_PROGRAMS, FOOD_SERVICE, GROCERY | L104: 31 | M104: GRM | N104: BY_SERVING | O104: 31 | P104: GRM | Q104: 2 Tablespoon | R104: UNPREPARED | S104: ½ cup salsa credits as ½ cup red/orange vegetable | AE104: https://redgold.widen.net/content/aum9zufn0f/jpeg/Red%20Gold%20K12%20Summary%20Product%20Formulation%20Statement.jpeg?position=c&color=ffffffff&quality=90&retina=true | AF104: 0 | AG104: 3 | AH104: 0 | AI104: 15 | AJ104: 0 | AK104: 0 | AL104: 0 | AM104: 0 | AN104: 90 | AO104: 1 | AP104: 35 | AQ104: 1 | AR104: 0 | AS104: 0 | AT104: 0 | AU104: US_FDA_NFP_2020_STANDARD | AV104: =97*6 -> 582 | AW104: BASE_UNIT_OR_EACH | AX104: TRUE | AY104: FREE_FROM | AZ104: FREE_FROM | BA104: FREE_FROM | BB104: FREE_FROM | BC104: FREE_FROM | BD104: FREE_FROM | BE104: FREE_FROM | BF104: FREE_FROM | BG104: FREE_FROM | BH104: AC, AE, AF, AM, AN, AP, AS, AY, UW | BI104: Orthodox Union | BK104: 2025-09-02 08:43:50 | BL104: 2025-08-12 12:59:48 | BM104: Tomato Puree (Water, Tomato Paste), Diced Tomatoes, Dried Onion, Jalapeno Peppers, Distilled Vinegar, Green Bell Peppers, Modified Food Starch, Salt, Spice, Dried Garlic, Natural Flavor | BN104: FALSE
A105: 100330 | B105: Salsa, Low-sodium, Canned | C105: Vegetables | D105: 10041712772745 | E105: Villa d'Este | F105: Neil Jones Food Company | G105: The Neil Jones Food Company | H105: Villa d'Este Low Sodium Medium Salsa 6 pack 106oz non-BPA intent cans | I105: Low Sodium Medium Salsa | J105: Salsa | K105: CHILD_NUTRITION_FOOD_PROGRAMS | L105: 123 | M105: GRM | N105: BY_SERVING | Q105: 1/2 cup | R105: READY_TO_EAT | AF105: 17 | AG105: 7 | AH105: 0 | AI105: 35 | AJ105: 0 | AK105: 0 | AL105: 2 | AM105: 1 | AN105: 399 | AO105: 2 | AP105: 65 | AQ105: 5 | AR105: 0 | AS105: 0 | AT105: 0 | AU105: US_FDA_NFP_2020_STANDARD | AV105: 144 | AW105: CASE | AX105: TRUE | AY105: FREE_FROM | AZ105: FREE_FROM | BA105: FREE_FROM | BB105: FREE_FROM | BC105: FREE_FROM | BD105: FREE_FROM | BE105: FREE_FROM | BF105: FREE_FROM | BG105: FREE_FROM | BH105: AM, AE, AF, AC, AP, AY, UW, AN, AS, UN, UM | BI105: Orthodox Union | BJ105: The Islamic Food and Nutrition Council of America | BK105: 2025-08-01 09:35:39 | BL105: 2025-07-10 12:38:01 | BM105: Fresh Vine-Ripened Tomatoes, Jalapeno Peppers, Distilled Vinegar, Corn Syrup, Dehydrated Onion, Salt, Natural Flavor, Spices, Garlic Powder, Bell Peppers, Modified Food Starch, and Xanthan Gum | BN105: FALSE
A106: 100334 | B106: Tomato Sauce, Low-sodium, Canned | C106: Vegetables | D106: 00024000578093 | E106: Del Monte | F106: Del Monte | G106: DEL MONTE | H106: Low Sodium Tomato Sauce | I106: DM LS TOMATO SAUCE 106 OZ. | J106: TOMATO SAUCE | L106: 61 | M106: GRM | N106: BY_SERVING | O106: 61 | P106: GRM | Q106: 1/4 cup | R106: READY_TO_EAT | AF106: 8 | AG106: 5 | AH106: 0 | AI106: 25 | AJ106: 0 | AK106: 0 | AL106: 1 | AM106: 0.3 | AN106: 171 | AO106: 1 | AP106: 70 | AQ106: 3 | AR106: 1 | AS106: 0 | AT106: 0 | AU106: US_FDA_NFP_2020_STANDARD | AV106: 294 | AW106: BASE_UNIT_OR_EACH | AY106: FREE_FROM | AZ106: FREE_FROM | BA106: FREE_FROM | BB106: FREE_FROM | BC106: FREE_FROM | BD106: NOT_INTENTIONALLY_NOR_INHERENTLY_INCLUDED | BE106: FREE_FROM | BF106: FREE_FROM | BG106: FREE_FROM | BH106: AC, AE, AF, AM, AN, AP, AS, AU, AY, BM, UM, UN, UW | BI106: Triangle K | BK106: 2023-09-01T09:32:13 | BL106: 2023-08-15T16:58:23 | BM106: Tomato Puree (Water, Tomato Paste), Water, High Fructose Corn Syrup, Salt, Spice, Citric Acid | BN106: FALSE
A107: 100334 | B107: Tomato Sauce, Low-sodium, Canned | C107: Vegetables | D107: 00072940100522 | E107: Vine Ripe | F107: Red Gold, Inc. | G107: RED GOLD INC | H107: Vine Ripe Low Sodium Tomato Sauce, 106oz Can | I107: Vine Ripe Low Sodium Tomato Sauce | J107: Low Sodium Tomato Sauce | K107: CHILD_NUTRITION_FOOD_PROGRAMS, FOOD_SERVICE, GROCERY | L107: 122 | M107: GRM | N107: BY_SERVING | O107: 122 | P107: GRM | Q107: 1/2 cup | R107: UNPREPARED | S107: ½ cup tomato sauce credits as ½ cup red/orange vegetable | AA107: I certify the above information is true and correct and that 1/4 Cup, a 1.2oz serving of the above product contains 0.25 of red/orange vegetables by Sahand Faghihi, Director of Quality Assurance, Red Gold | AB107: FRUIT_VEGETABLE_OR_FRUIT_VEGETABLE_ALTERNATIVE | AC107: 31.75 GRM | AD107: 122.0 GRM | AE107: https://redgold.widen.net/content/aum9zufn0f/jpeg/Red%20Gold%20K12%20Summary%20Product%20Formulation%20Statement.jpeg?position=c&color=ffffffff&quality=90&retina=true | AF107: 15 | AG107: 9 | AH107: 0 | AI107: 45 | AJ107: 0 | AK107: 0 | AL107: 2 | AM107: 1 | AN107: 290 | AO107: 2 | AP107: 75 | AQ107: 7 | AR107: 3 | AS107: 0 | AT107: 0 | AU107: US_FDA_NFP_2020_STANDARD | AV107: 144 | AW107: BASE_UNIT_OR_EACH | AX107: TRUE | AY107: FREE_FROM | AZ107: FREE_FROM | BA107: FREE_FROM | BB107: FREE_FROM | BC107: FREE_FROM | BD107: FREE_FROM | BE107: FREE_FROM | BF107: FREE_FROM | BG107: FREE_FROM | BH107: AC, AE, AF, AN, AP, AS, AY, UM, UW, AM | BI107: Orthodox Union | BK107: 2025-11-03 08:54:44 | BL107: 2025-10-13 14:04:48 | BM107: Tomato Puree (Water, Tomato Paste), Water, High Fructose Corn Syrup, Less Than 2% Of: Citric Acid, Salt, Onion Powder, Garlic Powder, Dehydrated Bell Peppers, Natural Flavors. | BN107: FALSE
A108: 100334 | B108: Tomato Sauce, Low-sodium, Canned | C108: Vegetables | D108: 10041712770543 | E108: Villa d'Este | F108: Neil Jones Food Company | G108: The Neil Jones Food Company | H108: Villa d'Este Low Sodium Tomato Sauce 6 pack 106oz non-BPA intent cans | I108: Low Sodium Tomato Sauce | J108: Tomato Sauce | K108: CHILD_NUTRITION_FOOD_PROGRAMS | L108: 123 | M108: GRM | N108: BY_SERVING | O108: 100 | P108: GRM | Q108: 1/2 cup | R108: READY_TO_EAT | AF108: 20 | AG108: 9 | AH108: 0 | AI108: 40 | AJ108: 0 | AK108: 0 | AL108: 2 | AM108: 1 | AN108: 494 | AO108: 2 | AP108: 75 | AQ108: 6 | AR108: 0 | AS108: 0 | AT108: 0 | AU108: US_FDA_NFP_2020_STANDARD | AV108: 144 | AW108: CASE | AX108: TRUE | AY108: FREE_FROM | AZ108: FREE_FROM | BA108: FREE_FROM | BB108: FREE_FROM | BC108: FREE_FROM | BD108: FREE_FROM | BE108: FREE_FROM | BF108: FREE_FROM | BG108: FREE_FROM | BH108: AM, AE, AF, AC, AP, AY, UW, AN, AS, UN, UM | BI108: Orthodox Union | BJ108: The Islamic Food and Nutrition Council of America | BK108: 2025-08-01 09:35:39 | BL108: 2025-07-10 12:38:01 | BM108: Fresh Vine-Ripened Tomatoes, Salt, Onions Powder, Garlic Powder, Natural Flavors, Spices. | BN108: FALSE
A109: 100336 | B109: Spaghetti Sauce, Low-sodium, Canned | C109: Vegetables | D109: 00024000578123 | E109: Del Monte | F109: Del Monte | G109: DEL MONTE | H109: Low sodium spaghetti sauce with herbs and spices | I109: DM LS TR SPAGHETTI SC 106OZ. | J109: SPAGHETTI SAUCE | L109: 125 | M109: GRM | N109: BY_SERVING | O109: 125 | P109: GRM | Q109: 1/2 cup | R109: READY_TO_EAT | AF109: 20 | AG109: 12 | AH109: 0 | AI109: 50 | AJ109: 0 | AK109: 0 | AL109: 2 | AM109: 1 | AN109: 344 | AO109: 1 | AP109: 140 | AQ109: 7 | AR109: 3 | AS109: 0 | AT109: 0 | AU109: US_FDA_NFP_2020_STANDARD | AV109: 144 | AW109: BASE_UNIT_OR_EACH | AY109: FREE_FROM | AZ109: FREE_FROM | BA109: FREE_FROM | BB109: FREE_FROM | BC109: FREE_FROM | BD109: NOT_INTENTIONALLY_NOR_INHERENTLY_INCLUDED | BE109: FREE_FROM | BF109: FREE_FROM | BG109: FREE_FROM | BH109: AC, AE, AF, AM, AN, AP, AS, AU, AY, BM, UM, UN, UW | BI109: Triangle K | BK109: 2023-09-01T09:25:25 | BL109: 2023-08-15T16:58:23 | BM109: Tomato Puree (Water, Tomato Paste), Water, High Fructose Corn Syrup, Modified Food Starch (Corn), Dehydrated Onions, Onion Powder, Citric Acid, Spices, Salt, Garlic | BN109: FALSE
A110: 100336 | B110: Spaghetti Sauce, Low-sodium, Canned | C110: Vegetables | D110: 00041188847094 | E110: Bella Vista | F110: Furmano Foods | G110: FURMANO FOODS INC. | H110: Bella Vista; 1/#10 Spaghetti Sauce - LS | I110: 10 Spag Sauc - ls | J110: Tomato Sauce - Spaghetti | K110: CHILD_NUTRITION_FOOD_PROGRAMS | L110: 125 | M110: GRM | N110: BY_MEASURE | O110: 100 | P110: GRM | Q110: 1/2 cup | R110: UNPREPARED | AF110: 16 | AG110: 9.95 | AH110: 0 | AI110: 45 | AJ110: 0.1 | AK110: 0 | AL110: 1.3 | AM110: 0.99 | AN110: 0 | AO110: 1.4 | AP110: 86 | AQ110: 7.77 | AR110: 3.9 | AS110: 0.59 | AT110: 0 | AV110: 144 | AW110: BASE_UNIT_OR_EACH | AX110: TRUE | AY110: FREE_FROM | AZ110: FREE_FROM | BA110: FREE_FROM | BB110: FREE_FROM | BC110: FREE_FROM | BD110: FREE_FROM | BE110: FREE_FROM | BF110: FREE_FROM | BG110: FREE_FROM | BH110: AA, AC, AD, AE, AF, AH, AI, AL, AM, AN, AP, AS, AU, AW, AY, BA, BB, BC, BE, BF, BI, BM, BN, BO, BP, BQ, BR, BS, CA, CL, CM, CN, CO, CT, DA, DP, EG, EP, EV, FA, FH, FT, GB, GE, GK, GL, GO, GS, HB, HC, HD, HE, HH, HN, HP, HX, HY, MH, ML, NC, NE, NK, NL, NM, NP, NR, NW, ON, PM, PN, PO, PP, PS, SA, SB, SC, SH, SM, SO, SP, SR, SS, ST, SW, SX, TA, TD, TR, UM, UN, UW | BI110: Kashruth Division of the Orthodox Union | BK110: 2025-05-05 08:25:11 | BL110: 2025-04-11 13:25:58 | BM110: Tomato Concentrate (Water, Tomato Paste), Corn Syrup, Soybean Oil, Salt, Dextrose, Garlic, Onion, Spices, Citric Acid (Naturally Derived), Natural Flavorings | BN110: TRUE
A111: 100336 | B111: Spaghetti Sauce, Low-sodium, Canned | C111: Vegetables | D111: 00072940100157 | E111: Vine Ripe | F111: Red Gold, Inc. | G111: RED GOLD INC | H111: Vine Ripe Spaghetti Sauce, 106oz Can | I111: Vine Ripe Spaghetti Sauce | J111: Spaghetti Sauce | K111: CHILD_NUTRITION_FOOD_PROGRAMS, FOOD_SERVICE, GROCERY | L111: 126 | M111: GRM | N111: BY_SERVING | O111: 126 | P111: GRM | Q111: 1/2 cup | R111: UNPREPARED | S111: ½ cup spaghetti sauce credits as ½ cup red/orange vegetable | AA111: I certify the above information is true and correct and that 1/4 Cup, a 4.44oz serving of the above product contains 0.25 of red/orange vegetables by Sahand Faghihi, Director of Quality Assurance, Red Gold | AB111: FRUIT_VEGETABLE_OR_FRUIT_VEGETABLE_ALTERNATIVE | AC111: 31.75 GRM | AD111: 470.64 ONZ | AE111: https://redgold.widen.net/content/aum9zufn0f/jpeg/Red%20Gold%20K12%20Summary%20Product%20Formulation%20Statement.jpeg?position=c&color=ffffffff&quality=90&retina=true | AF111: 16 | AG111: 9 | AH111: 0 | AI111: 45 | AJ111: 0 | AK111: 0 | AL111: 2 | AM111: 1 | AN111: 302 | AO111: 2 | AP111: 140 | AQ111: 6 | AR111: 2 | AS111: 0 | AT111: 0 | AU111: US_FDA_NFP_2020_STANDARD | AV111: =24*6 -> 144 | AW111: BASE_UNIT_OR_EACH | AX111: TRUE | AY111: FREE_FROM | AZ111: FREE_FROM | BA111: FREE_FROM | BB111: FREE_FROM | BC111: FREE_FROM | BD111: FREE_FROM | BE111: FREE_FROM | BF111: FREE_FROM | BG111: FREE_FROM | BH111: AC, AE, AF, AM, AN, AP, AS, AY, UW, UM | BI111: Orthodox Union | BK111: 2025-09-02 08:43:50 | BL111: 2025-08-12 12:59:47 | BM111: Tomato Puree (Water, Tomato Paste), Water, High Fructose Corn Syrup, Contains Less Than 2% Of: Modified Food Starch, Salt, Soybean Oil, Dried Onion, Spices, Dried Garlic, and Citric Acid. | BN111: FALSE
A112: 100336 | B112: Spaghetti Sauce, Low-sodium, Canned | C112: Vegetables | D112: 10041712771540 | E112: Villa d'Este | F112: Neil Jones Food Company | G112: The Neil Jones Food Company | H112: Villa d'Este Low Sodium Spaghetti Sauce 6 pack 106oz non-BPA intent cans | I112: Low Sodium Spaghetti Sauce | J112: Spaghetti Sauce | K112: CHILD_NUTRITION_FOOD_PROGRAMS | L112: 125 | M112: GRM | N112: BY_SERVING | Q112: 1/2 cup | R112: READY_TO_EAT | AF112: 19 | AG112: 8 | AH112: 0 | AI112: 35 | AJ112: 0 | AK112: 0 | AL112: 2 | AM112: 1 | AN112: 425 | AO112: 2 | AP112: 65 | AQ112: 5 | AR112: 0 | AS112: 0 | AT112: 0 | AU112: US_FDA_NFP_2020_STANDARD | AV112: 144 | AW112: CASE | AX112: TRUE | AY112: FREE_FROM | AZ112: FREE_FROM | BA112: FREE_FROM | BB112: FREE_FROM | BC112: FREE_FROM | BD112: FREE_FROM | BE112: FREE_FROM | BF112: FREE_FROM | BG112: FREE_FROM | BH112: AM, AE, AF, AC, AP, AY, UW, AN, AS, UN, UM | BI112: Orthodox Union | BJ112: The Islamic Food and Nutrition Council of America | BK112: 2025-08-01 09:35:39 | BL112: 2025-07-10 12:38:19 | BM112: Fresh Vine-Ripened Tomatoes, Salt, Spices, Onion Powder, Garlic Powder, Soybean Oil, Citric Acid | BN112: FALSE
A113: 100348 | B113: Corn, Whole Kernel, No Salt Added, Frozen | C113: Vegetables | D113: 40028800296698 | E113: Hanover | F113: Hanover Foods Corp | G113: Hanover Foods Corp | H113: Sweet Corn | I113: USDA Sweet Corn | J113: Sweet Corn | K113: CHILD_NUTRITION_FOOD_PROGRAMS | L113: 85 | M113: GRM | N113: BY_SERVING | Q113: 1/2 cup | R113: STEAM | AF113: 0 | AG113: 18 | AH113: 0 | AI113: 70 | AJ113: 0 | AK113: 0 | AL113: 2 | AM113: 0.4 | AN113: 180 | AO113: 3 | AP113: 0 | AQ113: 2 | AR113: 0 | AS113: 0.5 | AT113: 0 | AV113: 160 | AW113: CASE | AX113: TRUE | AY113: FREE_FROM | AZ113: FREE_FROM | BA113: FREE_FROM | BB113: FREE_FROM | BC113: FREE_FROM | BD113: FREE_FROM | BE113: FREE_FROM | BF113: FREE_FROM | BG113: FREE_FROM | BH113: AS, UW, AC, AE, AF, AY, AM, AN, AP, UN, UM, BM | BK113: 2023-06-01T09:12:53 | BL113: 2023-05-24T10:59:05 | BM113: Sweet Yellow Corn | BN113: FALSE
A114: 100348 | B114: Corn, Whole Kernel, No Salt Added, Frozen | C114: Vegetables | D114: 00086289101287 | E114: PNW/Quincy | F114: Inn Foods, Inc. | G114: Inn Foods, Inc. | H114: Vegetable | I114: Cut Corn | J114: Vegetable | L114: 90 | M114: GRM | N114: BY_SERVING | O114: 90 | P114: GRM | Q114: 2/3 cup | R114: HEAT_AND_SERVE | AF114: 2 | AG114: 21 | AH114: 0 | AI114: 100 | AJ114: 0 | AK114: 0 | AL114: 2 | AM114: 0 | AN114: 190 | AO114: 2 | AP114: 0 | AQ114: 2 | AR114: 0 | AS114: 0.5 | AT114: 0 | AV114: 151 | AW114: BASE_UNIT_OR_EACH | AX114: TRUE | AY114: FREE_FROM | AZ114: FREE_FROM | BA114: FREE_FROM | BB114: FREE_FROM | BC114: FREE_FROM | BD114: FREE_FROM | BE114: FREE_FROM | BF114: FREE_FROM | BG114: FREE_FROM | BH114: AM, AE, AF, AC, AN, AP, UW, AY, AS | BK114: 2025-06-02 08:13:46 | BL114: 2025-05-15 13:07:00 | BM114: Corn | BN114: FALSE
A115: 100348 | B115: Corn, Whole Kernel, No Salt Added, Frozen | C115: Vegetables | D115: 00086289132878 | E115: Lakeside Foods/Smith Frozen Foods | F115: Inn Foods, Inc. | G115: Inn Foods, Inc. | H115: Vegetable | I115: Cut Corn | J115: Vegetable | L115: 85 | M115: GRM | N115: BY_SERVING | O115: 85 | P115: GRM | Q115: 2/3 cup | R115: HEAT_AND_SERVE | AF115: 0 | AG115: 16 | AH115: 0 | AI115: 70 | AJ115: 0 | AK115: 0 | AL115: 2 | AM115: 0 | AN115: 229 | AO115: 0 | AP115: 2.55 | AQ115: 7.65 | AR115: 0 | AS115: 0.5 | AT115: 0 | AV115: 160 | AW115: BASE_UNIT_OR_EACH | AX115: TRUE | AY115: FREE_FROM | AZ115: FREE_FROM | BA115: FREE_FROM | BB115: FREE_FROM | BC115: FREE_FROM | BD115: FREE_FROM | BE115: FREE_FROM | BF115: FREE_FROM | BG115: FREE_FROM | BH115: AM, AE, AF, UN, AN, AP, UW, AY, AS | BK115: 2025-06-02 08:13:46 | BL115: 2025-05-15 12:12:00 | BM115: Corn | BN115: FALSE
A116: 100348 | B116: Corn, Whole Kernel, No Salt Added, Frozen | C116: Vegetables | D116: 00086289112870 | E116: Nortera | F116: Inn Foods, Inc. | G116: Inn Foods, Inc. | H116: Vegetable | I116: Cut Corn | J116: Vegetable | L116: 90 | M116: GRM | N116: BY_SERVING | O116: 90 | P116: GRM | Q116: 2/3 cup | R116: HEAT_AND_SERVE | AF116: 2 | AG116: 22 | AH116: 0 | AI116: 110 | AJ116: 0 | AK116: 0 | AL116: 2 | AM116: 0 | AN116: 216 | AO116: 3 | AP116: 0 | AQ116: 5 | AR116: 0 | AS116: 0.5 | AT116: 0 | AV116: 151 | AW116: BASE_UNIT_OR_EACH | AX116: TRUE | AY116: FREE_FROM | AZ116: FREE_FROM | BA116: FREE_FROM | BB116: FREE_FROM | BC116: FREE_FROM | BD116: FREE_FROM | BE116: FREE_FROM | BF116: FREE_FROM | BG116: FREE_FROM | BH116: AM, AE, AF, UN, UW, AN, AP, AY, AS | BK116: 2025-06-02 08:13:46 | BL116: 2025-05-15 12:57:00 | BM116: Corn | BN116: FALSE
A117: 100348 | B117: Corn, Whole Kernel, No Salt Added, Frozen | C117: Vegetables | D117: 00086289122879 | E117: Twin City Foods | F117: Inn Foods, Inc. | G117: Inn Foods, Inc. | H117: Vegetable | I117: Cut Corn | J117: Vegetable | L117: 90 | M117: GRM | N117: BY_SERVING | O117: 90 | P117: GRM | Q117: 2/3 cup | R117: HEAT_AND_SERVE | AF117: 0 | AG117: 22 | AH117: 0 | AI117: 110 | AJ117: 0 | AK117: 0 | AL117: 2 | AM117: 0 | AN117: 216 | AO117: 3 | AP117: 0 | AQ117: 5 | AR117: 0 | AS117: 0.5 | AT117: 0 | AV117: 151 | AW117: BASE_UNIT_OR_EACH | AX117: TRUE | AY117: FREE_FROM | AZ117: FREE_FROM | BA117: FREE_FROM | BB117: FREE_FROM | BC117: FREE_FROM | BD117: FREE_FROM | BE117: FREE_FROM | BF117: FREE_FROM | BG117: FREE_FROM | BH117: AE, AM, AF, UN, AN, AP, AY, AS, UW | BK117: 2025-09-02 08:43:50 | BL117: 2025-08-20 15:22:00 | BM117: Corn | BN117: FALSE
A118: 100348 | B118: Corn, Whole Kernel, No Salt Added, Frozen | C118: Vegetables | D118: 10037100451934 | E118: Libby's | F118: Seneca Foods Corp | G118: Seneca Foods Corp | H118: Libby's Frozen Supersweet Cut Corn | I118: FZ CRN SSWT CUT | J118: Vegetable - Frozen | K118: CHILD_NUTRITION_FOOD_PROGRAMS | L118: 93 | M118: GRM | N118: BY_SERVING | O118: 93 | P118: GRM | Q118: 2/3 cup | R118: UNPREPARED | AF118: 0 | AG118: 15 | AH118: 0 | AI118: 80 | AJ118: 0 | AK118: 0 | AL118: 3 | AM118: 0.4 | AN118: 220 | AO118: 3 | AP118: 0 | AQ118: 6 | AR118: 0 | AS118: 1 | AT118: 0 | AU118: US_FDA_NFP_2020_STANDARD | AV118: 146 | AW118: CASE | AX118: TRUE | AY118: FREE_FROM | AZ118: FREE_FROM | BA118: FREE_FROM | BB118: FREE_FROM | BC118: FREE_FROM | BD118: FREE_FROM | BE118: FREE_FROM | BF118: FREE_FROM | BG118: FREE_FROM | BH118: AN, AF, AC, AE, UW, AY, AS, AP, AM | BI118: Orthodox Union | BK118: 2024-02-01T09:15:09 | BL118: 2024-01-17T13:24:35 | BM118: Supersweet Corn | BN118: FALSE
A119: 100350 | B119: Peas, Green, No Salt Added, Frozen | C119: Vegetables | D119: 40028800296711 | E119: Hanover | F119: Hanover Foods Corp | G119: Hanover Foods Corp | H119: USDA Sweet Peas 30# | I119: Sweet Peas | J119: Sweet Peas | K119: CHILD_NUTRITION_FOOD_PROGRAMS | L119: 85 | M119: GRM | N119: BY_SERVING | O119: 85 | P119: GRM | Q119: 2/3 cup | R119: STEAM | AF119: 20 | AG119: 12 | AH119: 0 | AI119: 70 | AJ119: 0 | AK119: 0 | AL119: 4 | AM119: 1.3 | AN119: 130 | AO119: 4 | AP119: 90 | AQ119: 4 | AR119: 0 | AS119: 0 | AT119: 0 | AV119: 160 | AW119: CASE | AX119: TRUE | AY119: NOT_INTENTIONALLY_NOR_INHERENTLY_INCLUDED | AZ119: NOT_INTENTIONALLY_NOR_INHERENTLY_INCLUDED | BA119: NOT_INTENTIONALLY_NOR_INHERENTLY_INCLUDED | BB119: NOT_INTENTIONALLY_NOR_INHERENTLY_INCLUDED | BC119: NOT_INTENTIONALLY_NOR_INHERENTLY_INCLUDED | BD119: NOT_INTENTIONALLY_NOR_INHERENTLY_INCLUDED | BE119: NOT_INTENTIONALLY_NOR_INHERENTLY_INCLUDED | BF119: NOT_INTENTIONALLY_NOR_INHERENTLY_INCLUDED | BG119: NOT_INTENTIONALLY_NOR_INHERENTLY_INCLUDED | BH119: AS, UW, AC, AE, AF, AY, AM, AN, AP, UN, UM, BM | BI119: Orthodox Union | BK119: 2023-06-01T09:08:36 | BL119: 2023-05-31T11:49:08 | BM119: Sweet Green Peas | BN119: FALSE
A120: 100350 | B120: Peas, Green, No Salt Added, Frozen | C120: Vegetables | D120: 00086289108729 | E120: Lamb Weston | F120: Inn Foods, Inc. | G120: Inn Foods, Inc. | H120: Vegetable | I120: Green Peas | J120: Vegetable | L120: 67 | M120: GRM | N120: BY_SERVING | O120: 0.5 | P120: G21 | Q120: 1/2 cup | R120: HEAT_AND_SERVE | AF120: 15 | AG120: 9 | AH120: 0 | AI120: 50 | AJ120: 0 | AK120: 0 | AL120: 3 | AM120: 1 | AN120: 103 | AO120: 3 | AP120: 70 | AQ120: 3 | AR120: 0 | AS120: 0.2 | AT120: 0 | AV120: 203 | AW120: BASE_UNIT_OR_EACH | AX120: TRUE | AY120: FREE_FROM | AZ120: FREE_FROM | BA120: FREE_FROM | BB120: FREE_FROM | BC120: FREE_FROM | BD120: FREE_FROM | BE120: FREE_FROM | BF120: FREE_FROM | BG120: FREE_FROM | BH120: AM, AE, AF, AC, AN, AP, UW, AY, AS | BK120: 2025-01-08 08:30:06 | BL120: 2024-12-19 12:22:00 | BM120: Peas | BN120: FALSE
A121: 100350 | B121: Peas, Green, No Salt Added, Frozen | C121: Vegetables | D121: 00086289281729 | E121: Inn Foods, Inc. | F121: Inn Foods, Inc. | G121: Inn Foods, Inc. | H121: Vegetable | I121: Green Peas | J121: Vegetable | L121: 97 | M121: GRM | N121: BY_SERVING | O121: 97 | P121: GRM | Q121: 2/3 cup | R121: HEAT_AND_SERVE | AF121: 21 | AG121: 13 | AH121: 0 | AI121: 70 | AJ121: 0 | AK121: 0 | AL121: 4 | AM121: 1.48 | AN121: 150 | AO121: 5 | AP121: 10 | AQ121: 5 | AR121: 0 | AS121: 0 | AT121: 0 | AV121: 140 | AW121: BASE_UNIT_OR_EACH | AX121: TRUE | AY121: FREE_FROM | AZ121: FREE_FROM | BA121: FREE_FROM | BB121: FREE_FROM | BC121: FREE_FROM | BD121: FREE_FROM | BE121: FREE_FROM | BF121: FREE_FROM | BG121: FREE_FROM | BH121: AM, AE, AF, AC, AN, AP, UW, AY, AS | BK121: 2025-08-01 09:35:39 | BL121: 2025-07-08 10:32:00 | BM121: Peas | BN121: FALSE
A122: 100350 | B122: Peas, Green, No Salt Added, Frozen | C122: Vegetables | D122: 00086289128727 | E122: Twin City Foods | F122: Inn Foods, Inc. | G122: Inn Foods, Inc. | H122: Vegetable | I122: Green Peas | J122: Vegetable | L122: 87 | M122: GRM | N122: BY_SERVING | O122: 87 | P122: GRM | Q122: 2/3 cup | R122: HEAT_AND_SERVE | AF122: 19 | AG122: 12 | AH122: 0 | AI122: 70 | AJ122: 0 | AK122: 0 | AL122: 4 | AM122: 1 | AN122: 133 | AO122: 6 | AP122: 95 | AQ122: 4 | AR122: 0 | AS122: 0 | AT122: 0 | AV122: 156 | AW122: BASE_UNIT_OR_EACH | AX122: TRUE | AY122: FREE_FROM | AZ122: FREE_FROM | BA122: FREE_FROM | BB122: FREE_FROM | BC122: FREE_FROM | BD122: FREE_FROM | BE122: FREE_FROM | BF122: FREE_FROM | BG122: FREE_FROM | BH122: AM, AE, AF, UN, AN, AP, UW, AY, AS | BK122: 2025-06-02 08:13:46 | BL122: 2025-05-15 15:07:00 | BM122: Peas | BN122: FALSE
A123: 100350 | B123: Peas, Green, No Salt Added, Frozen | C123: Vegetables | D123: 00086289138726 | E123: PNW/Quincy | F123: Inn Foods, Inc. | G123: Inn Foods, Inc. | H123: Vegetable | I123: Green Peas | J123: Vegetable | L123: 89 | M123: GRM | N123: BY_SERVING | O123: 89 | P123: GRM | Q123: 2/3 cup | R123: HEAT_AND_SERVE | AF123: 22 | AG123: 13 | AH123: 0 | AI123: 70 | AJ123: 0 | AK123: 0 | AL123: 5 | AM123: 1 | AN123: 217 | AO123: 5 | AP123: 70 | AQ123: 3 | AR123: 0 | AS123: 0 | AT123: 0 | AV123: 156 | AW123: BASE_UNIT_OR_EACH | AX123: TRUE | AY123: FREE_FROM | AZ123: FREE_FROM | BA123: FREE_FROM | BB123: FREE_FROM | BC123: FREE_FROM | BD123: FREE_FROM | BE123: FREE_FROM | BF123: FREE_FROM | BG123: FREE_FROM | BH123: AM, AE, AF, UN, AN, AP, UW, AY, AS | BK123: 2025-06-02 08:13:46 | BL123: 2025-05-15 15:22:00 | BM123: Peas | BN123: FALSE
A124: 100350 | B124: Peas, Green, No Salt Added, Frozen | C124: Vegetables | D124: 00086289118728 | E124: Nortera | F124: Inn Foods, Inc. | G124: Inn Foods, Inc. | H124: Vegetable | I124: Green Peas | J124: Vegetable | L124: 87 | M124: GRM | N124: BY_SERVING | O124: 87 | P124: GRM | Q124: 2/3 cup | R124: HEAT_AND_SERVE | AF124: 19 | AG124: 12 | AH124: 0 | AI124: 70 | AJ124: 0 | AK124: 0 | AL124: 4 | AM124: 1 | AN124: 133 | AO124: 5 | AP124: 95 | AQ124: 4 | AR124: 0 | AS124: 0 | AT124: 0 | AV124: 156 | AW124: BASE_UNIT_OR_EACH | AX124: TRUE | AY124: FREE_FROM | AZ124: FREE_FROM | BA124: FREE_FROM | BB124: FREE_FROM | BC124: FREE_FROM | BD124: FREE_FROM | BE124: FREE_FROM | BF124: FREE_FROM | BG124: FREE_FROM | BH124: AM, AE, AF, UN, AN, AP, UW, AY, AS | BK124: 2025-06-02 08:13:46 | BL124: 2025-05-15 15:12:00 | BM124: Peas | BN124: FALSE
A125: 100350 | B125: Peas, Green, No Salt Added, Frozen | C125: Vegetables | D125: 10037100421630 | E125: Libby's | F125: Seneca Foods Corp | G125: Seneca Foods Corp | H125: Libby's Frozen Peas | I125: FZ PEAS | J125: Vegetable - Frozen | K125: CHILD_NUTRITION_FOOD_PROGRAMS | L125: 93 | M125: GRM | N125: BY_SERVING | O125: 93 | P125: GRM | Q125: 2/3 cup | R125: UNPREPARED | AF125: 20 | AG125: 13 | AH125: 0 | AI125: 80 | AJ125: 0 | AK125: 0 | AL125: 5 | AM125: 1.4 | AN125: 230 | AO125: 5 | AP125: 0 | AQ125: 5 | AR125: 0 | AS125: 0 | AT125: 0 | AU125: US_FDA_NFP_2020_STANDARD | AV125: 146 | AW125: CASE | AX125: TRUE | AY125: FREE_FROM | AZ125: FREE_FROM | BA125: FREE_FROM | BB125: FREE_FROM | BC125: FREE_FROM | BD125: FREE_FROM | BE125: FREE_FROM | BF125: FREE_FROM | BG125: FREE_FROM | BH125: AN, AF, AC, AE, UW, AY, AS, AP, AM | BI125: Orthodox Union (OU) | BK125: 2025-05-05 08:25:11 | BL125: 2025-04-09 16:33:51 | BM125: Peas | BN125: FALSE
A126: 100351 | B126: Beans, Green, No Salt Added, Frozen | C126: Vegetables | D126: 40028800296681 | E126: Hanover | F126: Hanover Foods Corp | G126: Hanover Foods Corp | H126: USDA Cut Green Beans 30# | I126: Cut Green Beans | J126: Cut Green Beans | K126: CHILD_NUTRITION_FOOD_PROGRAMS | L126: 85 | M126: GRM | N126: BY_SERVING | O126: 85 | P126: GRM | Q126: 3/4 cup | R126: STEAM | AF126: 40 | AG126: 6 | AH126: 0 | AI126: 35 | AJ126: 0 | AK126: 0 | AL126: 2 | AM126: 0.7 | AN126: 160 | AO126: 2 | AP126: 0 | AQ126: 2 | AR126: 0 | AS126: 0 | AT126: 0 | AV126: 160 | AW126: CASE | AX126: TRUE | AY126: NOT_INTENTIONALLY_NOR_INHERENTLY_INCLUDED | AZ126: NOT_INTENTIONALLY_NOR_INHERENTLY_INCLUDED | BA126: NOT_INTENTIONALLY_NOR_INHERENTLY_INCLUDED | BB126: NOT_INTENTIONALLY_NOR_INHERENTLY_INCLUDED | BC126: NOT_INTENTIONALLY_NOR_INHERENTLY_INCLUDED | BD126: NOT_INTENTIONALLY_NOR_INHERENTLY_INCLUDED | BE126: NOT_INTENTIONALLY_NOR_INHERENTLY_INCLUDED | BF126: NOT_INTENTIONALLY_NOR_INHERENTLY_INCLUDED | BG126: NOT_INTENTIONALLY_NOR_INHERENTLY_INCLUDED | BH126: AS, UW, AC, AE, AF, AY, AM, AN, AP, UN, UM, BM | BI126: Orthodox Union | BK126: 2023-06-01T09:17:39 | BL126: 2023-05-08T09:31:58 | BM126: Green Beans | BN126: FALSE
A127: 100351 | B127: Beans, Green, No Salt Added, Frozen | C127: Vegetables | D127: 00086289108743 | E127: OPC/Arbre | F127: Inn Foods Inc. | G127: Inn Foods, Inc. | H127: Vegetable | I127: Cut Green Beans | J127: Vegetable | L127: 81 | M127: GRM | N127: BY_SERVING | O127: 81 | P127: GRM | Q127: 2/3 cup | R127: HEAT_AND_SERVE | AF127: 37 | AG127: 6 | AH127: 0 | AI127: 30 | AJ127: 0 | AK127: 0 | AL127: 2 | AM127: 0 | AN127: 151 | AO127: 1 | AP127: 0 | AQ127: 1 | AR127: 0 | AS127: 0 | AT127: 0 | AV127: 212 | AW127: BASE_UNIT_OR_EACH | AX127: TRUE | AY127: FREE_FROM | AZ127: FREE_FROM | BA127: FREE_FROM | BB127: FREE_FROM | BC127: FREE_FROM | BD127: FREE_FROM | BE127: FREE_FROM | BF127: FREE_FROM | BG127: FREE_FROM | BH127: AM, AE, AF, AC, AN, AP, UW, AY, AS | BK127: 2025-05-05 08:25:11 | BL127: 2025-04-28 12:52:00 | BM127: Green Beans | BN127: FALSE
A128: 100351 | B128: Beans, Green, No Salt Added, Frozen | C128: Vegetables | D128: 00086289118742 | E128: PNW/Norpac | F128: Inn Foods, Inc. | G128: Inn Foods, Inc. | H128: Vegetable | I128: Cut Green Beans | J128: Vegetable | L128: 81 | M128: GRM | N128: BY_SERVING | O128: 81 | P128: GRM | Q128: 2/3 cup | R128: HEAT_AND_SERVE | AF128: 37 | AG128: 6 | AH128: 0 | AI128: 30 | AJ128: 0 | AK128: 0 | AL128: 2 | AM128: 1 | AN128: 151 | AO128: 1 | AP128: 0 | AQ128: 1 | AR128: 0 | AS128: 0 | AT128: 0 | AV128: 212 | AW128: BASE_UNIT_OR_EACH | AX128: TRUE | AY128: FREE_FROM | AZ128: FREE_FROM | BA128: FREE_FROM | BB128: FREE_FROM | BC128: FREE_FROM | BD128: FREE_FROM | BE128: FREE_FROM | BF128: FREE_FROM | BG128: FREE_FROM | BH128: AM, AE, AF, UN, AN, AP, UW, AY, AS | BK128: 2025-05-05 08:25:11 | BL128: 2025-04-18 13:42:00 | BM128: Green Beans | BN128: FALSE
A129: 100351 | B129: Beans, Green, No Salt Added, Frozen | C129: Vegetables | D129: 00086289138740 | E129: Nortera | F129: Inn Foods, Inc. | G129: Inn Foods, Inc. | H129: Vegetable | I129: Cut Green Beans | J129: Vegetable | L129: 85 | M129: GRM | N129: BY_SERVING | O129: 85 | P129: GRM | Q129: 2/3 cup | R129: HEAT_AND_SERVE | AF129: 0 | AG129: 6 | AH129: 0 | AI129: 30 | AJ129: 0 | AK129: 0 | AL129: 2 | AM129: 0.7 | AN129: 70 | AO129: 1 | AP129: 0 | AQ129: 2 | AR129: 0 | AS129: 0 | AT129: 0 | AV129: 212 | AW129: BASE_UNIT_OR_EACH | AX129: TRUE | AY129: FREE_FROM | AZ129: FREE_FROM | BA129: FREE_FROM | BB129: FREE_FROM | BC129: FREE_FROM | BD129: FREE_FROM | BE129: FREE_FROM | BF129: FREE_FROM | BG129: FREE_FROM | BH129: AM, AE, AP, AN, AF, UN, UW, AY, AS | BK129: 2025-06-02 08:13:46 | BL129: 2025-05-15 09:27:00 | BM129: Green Beans | BN129: FALSE
A130: 100351 | B130: Beans, Green, No Salt Added, Frozen | C130: Vegetables | D130: 00086289128741 | E130: Twin City Foods | F130: Inn Foods, Inc. | G130: Inn Foods, Inc. | H130: Vegetable | I130: Cut Green Beans | J130: Vegetable | L130: 85 | M130: GRM | N130: BY_SERVING | O130: 85 | P130: GRM | Q130: 2/3 cup | R130: HEAT_AND_SERVE | AF130: 30 | AG130: 6 | AH130: 0 | AI130: 30 | AJ130: 0 | AK130: 0 | AL130: 2 | AM130: 0.7 | AN130: 70 | AO130: 1 | AP130: 0 | AQ130: 2 | AR130: 0 | AS130: 0 | AT130: 0 | AV130: 160 | AW130: BASE_UNIT_OR_EACH | AX130: TRUE | AY130: FREE_FROM | AZ130: FREE_FROM | BA130: FREE_FROM | BB130: FREE_FROM | BC130: FREE_FROM | BD130: FREE_FROM | BE130: FREE_FROM | BF130: FREE_FROM | BG130: FREE_FROM | BH130: AM, AE, AF, UN, AN, AP, UW, AY, AS | BK130: 2025-08-01 09:35:39 | BL130: 2025-07-25 10:17:00 | BM130: Green Beans | BN130: FALSE
A131: 100351 | B131: Beans, Green, No Salt Added, Frozen | C131: Vegetables | D131: 10033828316005 | E131: Lakeside Foods | F131: Lakeside Foods Inc. | G131: Lakeside Foods Inc. | H131: 1/30#F LAKESIDE CUT GRN BNS | I131: CUT GRN BN | J131: CUT GREEN BEAN | K131: CHILD_NUTRITION_FOOD_PROGRAMS | L131: 81 | M131: GRM | N131: BY_MEASURE | O131: 81 | P131: GRM | Q131: 2/3 cup | R131: HEAT_AND_SERVE | AF131: 30 | AG131: 6 | AH131: 0 | AI131: 30 | AJ131: 0 | AK131: 0 | AL131: 2 | AM131: 0.5 | AN131: 90 | AO131: 1 | AP131: 0 | AQ131: 1 | AR131: 0 | AS131: 0 | AT131: 0 | AU131: NFT | AV131: 168 | AW131: CASE | AX131: TRUE | AY131: FREE_FROM | AZ131: FREE_FROM | BA131: FREE_FROM | BB131: FREE_FROM | BC131: FREE_FROM | BD131: FREE_FROM | BE131: FREE_FROM | BF131: FREE_FROM | BG131: FREE_FROM | BH131: AS, UW, AC, AE, AF, AY, AM, AN, AP | BK131: 2025-02-03 09:14:02 | BL131: 2025-01-30 07:14:42 | BM131: Green Beans | BN131: TRUE
A132: 100351 | B132: Beans, Green, No Salt Added, Frozen | C132: Vegetables | D132: 10037100343130 | E132: Libby's | F132: Seneca Foods Corp | G132: Seneca Foods Corp | H132: Libby's Frozen Cut Green Beans | I132: FZ BEANS GREEN CUT | J132: Vegetable - Frozen | K132: CHILD_NUTRITION_FOOD_PROGRAMS | L132: 89 | M132: GRM | N132: BY_SERVING | O132: 89 | P132: GRM | Q132: 3/4 cup | R132: UNPREPARED | AF132: 40 | AG132: 7 | AH132: 0 | AI132: 35 | AJ132: 0 | AK132: 0 | AL132: 2 | AM132: 0.8 | AN132: 170 | AO132: 2 | AP132: 0 | AQ132: 2 | AR132: 0 | AS132: 0 | AT132: 0 | AU132: US_FDA_NFP_2020_STANDARD | AV132: 153 | AW132: CASE | AX132: TRUE | AY132: FREE_FROM | AZ132: FREE_FROM | BA132: FREE_FROM | BB132: FREE_FROM | BC132: FREE_FROM | BD132: FREE_FROM | BE132: FREE_FROM | BF132: FREE_FROM | BG132: FREE_FROM | BH132: AN, AF, AC, AE, UW, AY, AS, AP, AM | BI132: Orthodox Union (OU) | BK132: 2025-05-05 08:25:11 | BL132: 2025-04-09 16:36:27 | BM132: Green Beans | BN132: FALSE
A133: 100352 | B133: Carrots, Sliced, No Salt Added, Frozen | C133: Vegetables | D133: 00086289281743 | E133: PNW/Quincy | F133: Inn Foods, Inc. | G133: Inn Foods, Inc. | H133: Vegetable | I133: Sliced Carrots | J133: Vegetable | L133: 60 | M133: GRM | N133: BY_SERVING | O133: 60 | P133: GRM | Q133: 1/2 cup | R133: HEAT_AND_SERVE | AF133: 30 | AG133: 6 | AH133: 0 | AI133: 30 | AJ133: 0 | AK133: 0 | AL133: 3 | AM133: 0 | AN133: 160 | AO133: 1 | AP133: 40 | AQ133: 4 | AR133: 0 | AS133: 0 | AT133: 21 | AV133: 226 | AW133: BASE_UNIT_OR_EACH | AX133: TRUE | AY133: FREE_FROM | AZ133: FREE_FROM | BA133: FREE_FROM | BB133: FREE_FROM | BC133: FREE_FROM | BD133: FREE_FROM | BE133: FREE_FROM | BF133: FREE_FROM | BG133: FREE_FROM | BH133: AM, AE, AF, AC, AN, AP, UW, AY, AS | BK133: 2025-01-08 08:30:06 | BL133: 2024-12-19 12:27:00 | BM133: Carrots | BN133: FALSE
A134: 100352 | B134: Carrots, Sliced, No Salt Added, Frozen | C134: Vegetables | D134: 00086289251746 | E134: OPC/Arbre | F134: Inn Foods, Inc. | G134: Inn Foods, Inc. | H134: Vegetable | I134: Sliced Carrots | J134: Vegetable | L134: 60 | M134: GRM | N134: BY_SERVING | O134: 60 | P134: GRM | Q134: 1/2 cup | R134: HEAT_AND_SERVE | AF134: 20 | AG134: 5 | AH134: 0 | AI134: 20 | AJ134: 0 | AK134: 0 | AL134: 2 | AM134: 0.3 | AN134: 140 | AO134: 0 | AP134: 40 | AQ134: 3 | AR134: 0 | AS134: 0 | AT134: 0 | AV134: 226 | AW134: BASE_UNIT_OR_EACH | AX134: TRUE | AY134: FREE_FROM | AZ134: FREE_FROM | BA134: FREE_FROM | BB134: FREE_FROM | BC134: FREE_FROM | BD134: FREE_FROM | BE134: FREE_FROM | BF134: FREE_FROM | BG134: FREE_FROM | BH134: AE, AM, AF, UN, AN, AP, UW, AY, AS | BK134: 2025-02-03 09:14:02 | BL134: 2025-01-13 15:32:00 | BM134: Carrots | BN134: FALSE
A135: 100352 | B135: Carrots, Sliced, No Salt Added, Frozen | C135: Vegetables | D135: 00086289271744 | E135: New Carrot Farms/Bolthouse Farms | F135: Inn Foods, Inc. | G135: Inn Foods, Inc. | H135: Vegetable | I135: Sliced Carrots | J135: Vegetable | L135: 60 | M135: GRM | N135: BY_SERVING | O135: 60 | P135: GRM | Q135: 1/2 cup | R135: HEAT_AND_SERVE | AF135: 20 | AG135: 5 | AH135: 0 | AI135: 20 | AJ135: 0 | AK135: 0 | AL135: 2 | AM135: 0.3 | AN135: 140 | AO135: 0 | AP135: 40 | AQ135: 3 | AR135: 0 | AS135: 0 | AT135: 0 | AV135: 226 | AW135: BASE_UNIT_OR_EACH | AX135: TRUE | AY135: FREE_FROM | AZ135: FREE_FROM | BA135: FREE_FROM | BB135: FREE_FROM | BC135: FREE_FROM | BD135: FREE_FROM | BE135: FREE_FROM | BF135: FREE_FROM | BG135: FREE_FROM | BH135: AM, AF, AE, UN, AN, AP, UW, AY, AS | BK135: 2025-03-03 08:37:38 | BL135: 2025-02-26 10:32:00 | BM135: Carrots | BN135: FALSE
A136: 100352 | B136: Carrots, Sliced, No Salt Added, Frozen | C136: Vegetables | D136: 00086289261745 | E136: Nortera | F136: Inn Foods, Inc. | G136: Inn Foods, Inc. | H136: Vegetable | I136: Sliced Carrots | J136: Vegetable | L136: 60 | M136: GRM | N136: BY_SERVING | O136: 60 | P136: GRM | Q136: 1/2 cup | R136: HEAT_AND_SERVE | AF136: 20 | AG136: 5 | AH136: 0 | AI136: 20 | AJ136: 0 | AK136: 0 | AL136: 2 | AM136: 0.3 | AO136: 0 | AP136: 40 | AQ136: 3 | AR136: 0 | AS136: 0 | AT136: 0 | AV136: 226 | AW136: BASE_UNIT_OR_EACH | AX136: TRUE | AY136: FREE_FROM | AZ136: FREE_FROM | BA136: FREE_FROM | BB136: FREE_FROM | BC136: FREE_FROM | BD136: FREE_FROM | BE136: FREE_FROM | BF136: FREE_FROM | BG136: FREE_FROM | BH136: AM, AE, AF, UN, AN, AP, UW, AY, AS | BK136: 2025-02-03 09:14:02 | BL136: 2025-01-13 15:32:00 | BM136: Carrots | BN136: FALSE
A137: 100352 | B137: Carrots, Sliced, No Salt Added, Frozen | C137: Vegetables | D137: 10037100513144 | E137: Libby's | F137: Seneca Foods Corp | G137: Seneca Foods Corp | H137: Libby's Frozen Smooth Sliced Carrots | I137: FZ CARROTS SMTH SLCD | J137: Vegetable - Frozen | K137: CHILD_NUTRITION_FOOD_PROGRAMS | L137: 86 | M137: GRM | N137: BY_SERVING | O137: 86 | P137: GRM | Q137: 3/4 cup | R137: UNPREPARED | AF137: 30 | AG137: 7 | AH137: 0 | AI137: 30 | AJ137: 0 | AK137: 0 | AL137: 3 | AM137: 0.4 | AN137: 200 | AO137: 0 | AP137: 60 | AQ137: 4 | AR137: 0 | AS137: 0 | AT137: 0 | AU137: US_FDA_NFP_2020_STANDARD | AV137: 239 | AW137: CASE | AX137: TRUE | AY137: FREE_FROM | AZ137: FREE_FROM | BA137: FREE_FROM | BB137: FREE_FROM | BC137: FREE_FROM | BD137: FREE_FROM | BE137: FREE_FROM | BF137: FREE_FROM | BG137: FREE_FROM | BH137: AN, AF, AC, AE, UW, AY, AS, AP, AM | BI137: Orthodox Union | BK137: 2025-05-05 08:25:11 | BL137: 2025-04-09 16:34:58 | BM137: Carrots | BN137: FALSE
A138: 100356 | B138: Potatoes, Wedges, Fat Free, Low-sodium, Frozen (IQF) | C138: Vegetables | D138: 00086289201628 | E138: Dickinson Frozen Foods | F138: Inn Foods | G138: Inn Foods, Inc. | H138: Vegetable | I138: Fat Free Potato Wedges | J138: Vegetable | L138: 100 | M138: GRM | N138: BY_SERVING | O138: 100 | P138: GRM | Q138: 7/8 cup | R138: HEAT_AND_SERVE | AF138: 15 | AG138: 21 | AH138: 0 | AI138: 90 | AJ138: 0 | AK138: 0 | AL138: 2 | AM138: 1 | AN138: 530 | AO138: 2 | AP138: 10 | AQ138: 1 | AR138: 0 | AS138: 0 | AT138: 0 | AV138: =26*6 -> 156 | AW138: CASE | AX138: TRUE | AY138: FREE_FROM | AZ138: FREE_FROM | BA138: FREE_FROM | BB138: FREE_FROM | BC138: FREE_FROM | BD138: FREE_FROM | BE138: FREE_FROM | BF138: FREE_FROM | BG138: FREE_FROM | BH138: AM, AE, AF, AC, AN, AP, UW, AY, AS | BK138: 2025-08-01 09:35:39 | BL138: 2025-07-25 11:12:00 | BM138: Potatoes | BN138: FALSE
A139: 100359 | B139: Beans, Black, Low-sodium, Canned | C139: Legumes | D139: 00042396251918 | E139: Mothers Maid | F139: Burnette Foods, Inc. | G139: Burnette Foods, Inc. | H139: MOTHERS MAID LOW SALT BLACK BEANS 6/10 | I139: 6/10 MMAID LS BLACK BEANS | J139: BLACK BEANS | L139: 130 | M139: GRM | N139: BY_SERVING | O139: 130 | P139: GRM | Q139: 1/2 cup | R139: UNPREPARED | AF139: 38 | AG139: 18 | AH139: 0 | AI139: 100 | AJ139: 0 | AK139: 0 | AL139: 6 | AM139: 2.39 | AO139: 7 | AP139: 140 | AQ139: 2 | AS139: 0 | AT139: 0 | AV139: =24*6 -> 144 | AW139: BASE_UNIT_OR_EACH | AX139: TRUE | BH139: X99 | BK139: 2025-11-03 08:54:44 | BL139: 2025-10-16 06:22:51 | BM139: Black Beans, Water, Salt | BN139: FALSE
A140: 100359 | B140: Beans, Black, Low-sodium, Canned | C140: Legumes | D140: 00042396251932 | E140: Mothers Maid | F140: Burnette Foods, Inc. | G140: Burnette Foods, Inc. | H140: MOTHERS MAID LOW SALT BLACK BEANS WITH FERRO 6/10 | I140: 6/10 MM LS BLACK BEANS w/FERRO | J140: BLACK BEANS | L140: 130 | M140: GRM | N140: BY_SERVING | O140: 130 | P140: GRM | Q140: 1/2 cup | R140: UNPREPARED | AF140: 38 | AG140: 18 | AH140: 0 | AI140: 100 | AJ140: 0 | AK140: 0 | AL140: 6 | AM140: 2.39 | AO140: 7 | AP140: 140 | AQ140: 2 | AS140: 0 | AT140: 0 | AV140: =24*6 -> 144 | AW140: BASE_UNIT_OR_EACH | AX140: TRUE | BH140: X99 | BK140: 2025-11-03 08:54:44 | BL140: 2025-10-15 07:08:28 | BM140: Black Beans, Water, Salt | BN140: FALSE
A141: 100359 | B141: Beans, Black, Low-sodium, Canned | C141: Legumes | D141: 00041188047456 | E141: Furmanos | F141: Furmano Foods | G141: FURMANO FOODS INC. | H141: Furmanos; 1/#10 Black Beans - Brine | I141: 10 Blk Bns - Brine | J141: Beans - Black | K141: CHILD_NUTRITION_FOOD_PROGRAMS | L141: 130 | M141: GRM | N141: BY_MEASURE | O141: 100 | P141: GRM | Q141: 1/2 cup | R141: UNPREPARED | AF141: 45 | AG141: 21.55 | AH141: 0 | AI141: 118 | AJ141: 0.13 | AK141: 0 | AL141: 5.4 | AM141: 1.74 | AN141: 1 | AO141: 7.46 | AP141: 130 | AQ141: 0.73 | AR141: 0 | AS141: 0.49 | AT141: 0 | AV141: 144 | AW141: BASE_UNIT_OR_EACH | AX141: TRUE | AY141: FREE_FROM | AZ141: FREE_FROM | BA141: FREE_FROM | BB141: FREE_FROM | BC141: FREE_FROM | BD141: FREE_FROM | BE141: FREE_FROM | BF141: FREE_FROM | BG141: FREE_FROM | BH141: AA, AC, AD, AE, AF, AH, AI, AL, AM, AN, AP, AS, AU, AW, AY, BA, BB, BC, BE, BF, BI, BM, BN, BO, BP, BQ, BR, BS, CA, CL, CM, CN, CO, CT, DA, DP, EG, EP, EV, FA, FH, FT, GB, GE, GK, GL, GO, GS, HB, HC, HD, HE, HH, HN, HP, HX, HY, MH, ML, NC, NE, NK, NL, NM, NP, NR, NW, ON, PM, PN, PO, PP, PS, SA, SB, SC, SH, SM, SO, SP, SR, SS, ST, SW, SX, TA, TD, TR, UM, UN, UW | BI141: Kashruth Division of the Orthodox Union | BK141: 2025-05-05 08:25:11 | BL141: 2025-04-11 13:24:47 | BM141: Black Beans, Water, Salt, Calcium Chloride | BN141: TRUE
A142: 100359 | B142: Beans, Black, Low-sodium, Canned | C142: Legumes | D142: 00071109999434 | E142: Michigan Made | F142: Honee Bear Canning | G142: Packers Canning Co dba Honee Bear Canning | H142: Black Turtle Beans in Brine | I142: Black Turtle Beans in Brine | J142: Black Turtle Beans | L142: 130 | M142: GRM | N142: BY_SERVING | Q142: 1/2 cup | R142: HEAT_AND_SERVE | AF142: 50 | AG142: 19 | AH142: 0 | AI142: 110 | AJ142: 0 | AK142: 0 | AL142: 7 | AM142: 2 | AN142: 480 | AO142: 2 | AP142: 140 | AQ142: 2 | AR142: 0 | AS142: 1 | AT142: 0 | AV142: =24*6 -> 144 | AW142: BASE_UNIT_OR_EACH | AX142: TRUE | AY142: FREE_FROM | AZ142: FREE_FROM | BA142: FREE_FROM | BB142: FREE_FROM | BC142: FREE_FROM | BD142: FREE_FROM | BE142: FREE_FROM | BF142: FREE_FROM | BG142: FREE_FROM | BH142: AS, AM, AP, UN, AE, AF, AN, UW, AY | BK142: 2023-10-02T10:05:25 | BL142: 2023-09-18T19:37:00 | BM142: Black Turtle Beans, Water, Salt, Ferrous Gluconate | BN142: FALSE
A143: 100360 | B143: Beans, Garbanzo, Low-sodium, Canned (K) | C143: Legumes | D143: 00041188847179 | E143: Bella Vista | F143: Furmano Foods | G143: FURMANO FOODS INC. | H143: Bella Vista; 1/#10 Chick Peas - Fancy (Garbanzo) | I143: 10 Chk Peas - Fcy (Garb) | J143: Beans - Chick Peas | K143: CHILD_NUTRITION_FOOD_PROGRAMS | L143: 130 | M143: GRM | N143: BY_MEASURE | O143: 100 | P143: GRM | Q143: 1/2 cup | R143: UNPREPARED | AF143: 29 | AG143: 17.29 | AH143: 0 | AI143: 102 | AJ143: 0 | AK143: 0 | AL143: 5.1 | AM143: 1.73 | AN143: 0 | AO143: 5.76 | AP143: 118 | AQ143: 3.2 | AR143: 0 | AS143: 1.6 | AT143: 0 | AV143: 144 | AW143: BASE_UNIT_OR_EACH | AX143: TRUE | AY143: FREE_FROM | AZ143: FREE_FROM | BA143: FREE_FROM | BB143: FREE_FROM | BC143: FREE_FROM | BD143: FREE_FROM | BE143: FREE_FROM | BF143: FREE_FROM | BG143: FREE_FROM | BH143: AA, AC, AD, AE, AF, AH, AI, AL, AM, AN, AP, AS, AU, AW, AY, BA, BB, BC, BE, BF, BI, BM, BN, BO, BP, BQ, BR, BS, CA, CL, CM, CN, CO, CT, DA, DP, EG, EP, EV, FA, FH, FT, GB, GE, GK, GL, GO, GS, HB, HC, HD, HE, HH, HN, HP, HX, HY, MH, ML, NC, NE, NK, NL, NM, NP, NR, NW, ON, PM, PN, PO, PP, PS, SA, SB, SC, SH, SM, SO, SP, SR, SS, ST, SW, SX, TA, TD, TR, UM, UN, UW | BI143: Kashruth Division of the Orthodox Union | BK143: 2025-05-05 08:25:11 | BL143: 2025-04-11 13:26:00 | BM143: Chick Peas, Water, Salt, Disodium EDTA (To Preserve Color) | BN143: TRUE
A144: 100360 | B144: Beans, Garbanzo, Low-sodium, Canned (K) | C144: Legumes | D144: 00071109999830 | E144: Michigan Made | F144: Honee Bear Canning | G144: Packers Canning Co dba Honee Bear Canning | H144: Garbanzo Beans in Brine Low Sodium | I144: Garbanzo Beans in Brine Low Sodium | J144: Garbanzo Beans in Brine Low Sodium | L144: 130 | M144: GRM | N144: BY_SERVING | Q144: 1/2 cup | R144: HEAT_AND_SERVE | AF144: 20 | AG144: 18 | AH144: 0 | AI144: 110 | AJ144: 0 | AK144: 0 | AL144: 6 | AM144: 1.1 | AN144: 310 | AO144: 6 | AP144: 140 | AQ144: 2 | AR144: 0 | AS144: 1 | AT144: 0 | AV144: =24*6 -> 144 | AW144: BASE_UNIT_OR_EACH | AX144: TRUE | AY144: FREE_FROM | AZ144: FREE_FROM | BA144: FREE_FROM | BB144: FREE_FROM | BC144: FREE_FROM | BD144: FREE_FROM | BE144: FREE_FROM | BF144: FREE_FROM | BG144: FREE_FROM | BH144: AS, AM, AP, UN, AE, AF, AN, UW, AY | BI144: Orthodox Union | BK144: 2023-10-02T09:09:30 | BL144: 2023-09-18T19:37:00 | BM144: Garbanzo Beans, Water, Calcium Chloride, Salt and Calcium Disodium EDTA | BN144: FALSE
A145: 100362 | B145: Beans, Refried, Low-sodium, Canned | C145: Legumes | D145: 00070222073823 | E145: Hart | F145: Seneca Foods Corp | G145: Seneca Foods Corp | H145: Hart Low Sodium Seasoned Refried Beans | I145: REFRD BNS SEASND | J145: Vegetable - Canned | K145: CHILD_NUTRITION_FOOD_PROGRAMS | L145: 130 | M145: GRM | N145: BY_SERVING | O145: 130 | P145: GRM | Q145: 1/2 cup | R145: UNPREPARED | AF145: 50 | AG145: 24 | AH145: 0 | AI145: 140 | AJ145: 0 | AK145: 0 | AL145: 6 | AM145: 2 | AN145: 540 | AO145: 8 | AP145: 140 | AQ145: 1 | AR145: 0 | AS145: 1.5 | AT145: 0 | AU145: US_FDA_NFP_2020_STANDARD | AV145: =24*6 -> 144 | AW145: BASE_UNIT_OR_EACH | AX145: TRUE | AY145: FREE_FROM | AZ145: FREE_FROM | BA145: FREE_FROM | BB145: FREE_FROM | BC145: FREE_FROM | BD145: FREE_FROM | BE145: FREE_FROM | BF145: FREE_FROM | BG145: FREE_FROM | BH145: AN, AF, AC, AE, UW, AY, AS, AP, AM | BI145: Orthodox Union (OU) | BK145: 2025-11-03 08:54:44 | BL145: 2025-10-02 12:43:03 | BM145: Cooked Beans, Water, Less Than 2% of the Following: Tomato Paste, Jalapeno Pepper (Jalapeno Peppers, Water, Salt, Citric Acid, Calcium Chloride), Jalapeno Pepper Puree (Jalapeno Peppers, Salt, Acetic Acid, Water, Calcium Chloride), Chili Powder (Chili Pepper, Spices, Salt, Garlic Powder), Onion Powder, Garlic Powder, Canola Oil, Salt, Vinegar. | BN145: FALSE
A146: 100364 | B146: Beans, Vegetarian, Low-sodium, Canned | C146: Legumes | D146: 00041188847100 | E146: Bella Vista | F146: Furmano Foods | G146: FURMANO FOODS INC. | H146: Bella Vista; 1/#10 Vegetarian Beans - Fancy | I146: 10 Vegetarian Bns - Fcy | J146: Beans - Vegetarian | K146: CHILD_NUTRITION_FOOD_PROGRAMS | L146: 130 | M146: GRM | N146: BY_MEASURE | O146: 100 | P146: GRM | Q146: 1/2 cup | R146: UNPREPARED | AF146: 27 | AG146: 16.55 | AH146: 0 | AI146: 76 | AJ146: 0.03 | AK146: 0 | AL146: 3.6 | AM146: 0.86 | AN146: 0 | AO146: 2.87 | AP146: 88 | AQ146: 7.67 | AR146: 7.2 | AS146: 0.22 | AT146: 0 | AV146: 144 | AW146: BASE_UNIT_OR_EACH | AX146: TRUE | AY146: FREE_FROM | AZ146: FREE_FROM | BA146: FREE_FROM | BB146: FREE_FROM | BC146: FREE_FROM | BD146: FREE_FROM | BE146: FREE_FROM | BF146: FREE_FROM | BG146: FREE_FROM | BH146: AA, AC, AD, AE, AF, AH, AI, AL, AM, AN, AP, AS, AU, AW, AY, BA, BB, BC, BE, BF, BI, BM, BN, BO, BP, BQ, BR, BS, CA, CL, CM, CN, CO, CT, DA, DP, EG, EP, EV, FA, FH, FT, GB, GE, GK, GL, GO, GS, HB, HC, HD, HE, HH, HN, HP, HX, HY, MH, ML, NC, NE, NK, NL, NM, NP, NR, NW, ON, PM, PN, PO, PP, PS, SA, SB, SC, SH, SM, SO, SP, SR, SS, ST, SW, SX, TA, TD, TR, UM, UN, UW | BI146: Kashruth Division of the Orthodox Union | BK146: 2025-07-07 08:22:08 | BL146: 2025-06-06 06:27:51 | BM146: White Beans, Water, Sugar, Salt, Tomato Paste, Oleoresin Paprika, Garlic Powder, Natural Flavorings | BN146: TRUE
A147: 100364 | B147: Beans, Vegetarian, Low-sodium, Canned | C147: Legumes | D147: 40028800146566 | E147: Farmer Girl | F147: Hanover Foods Corp | G147: Hanover Foods Corp | H147: Farmer Girl Vegetarian Beans 6/10 Case | I147: Vegetarian Beans | J147: Vegetarian Beans | K147: CHILD_NUTRITION_FOOD_PROGRAMS | L147: 130 | M147: GRM | N147: BY_SERVING | O147: 2000 | P147: E14 | Q147: 1/2 cup | R147: HEAT_AND_SERVE | AF147: 60 | AG147: 27 | AH147: 0 | AI147: 140 | AJ147: 0 | AK147: 0 | AL147: 7 | AM147: 2 | AN147: 450 | AO147: 8 | AP147: 125 | AQ147: 5 | AR147: 4 | AS147: 0.5 | AT147: 0 | AV147: 144 | AW147: CASE | AY147: FREE_FROM | AZ147: FREE_FROM | BA147: FREE_FROM | BB147: FREE_FROM | BC147: FREE_FROM | BD147: FREE_FROM | BE147: FREE_FROM | BF147: FREE_FROM | BG147: FREE_FROM | BH147: AS, UW, AC, AE, AF, AY, AM, AN, AP, UN, UM, BM | BK147: 2024-06-03 08:45:45 | BL147: 2024-05-09 14:02:44 | BM147: Prepared Navy Beans, Water, Sugar, Corn Syrup, Tomato Paste, Salt, Paprika, Onion Powder, Mustard Flour, Natural Flavors. | BN147: FALSE
A148: 100364 | B148: Beans, Vegetarian, Low-sodium, Canned | C148: Legumes | D148: 00071109999236 | E148: Michigan Made | F148: Honee Bear Canning | G148: Honee Bear Canning | H148: Vegetarian Beans | I148: Vegetarian Beans | J148: Vegetarian Beans | L148: 130 | M148: GRM | N148: BY_SERVING | Q148: 1/2 cup | R148: HEAT_AND_SERVE | AF148: 50 | AG148: 20 | AH148: 0 | AI148: 130 | AJ148: 0 | AK148: 0 | AL148: 4 | AM148: 2.4 | AN148: 426 | AO148: 6 | AP148: 140 | AQ148: 5 | AR148: 3 | AS148: 0 | AT148: 0 | AV148: =24*6 -> 144 | AW148: BASE_UNIT_OR_EACH | AX148: TRUE | AY148: FREE_FROM | AZ148: FREE_FROM | BA148: FREE_FROM | BB148: FREE_FROM | BC148: FREE_FROM | BD148: FREE_FROM | BE148: FREE_FROM | BF148: FREE_FROM | BG148: FREE_FROM | BH148: AM, AP, UN, AE, AF, AN, UW, AY, AS | BK148: 2023-10-02T10:00:29 | BL148: 2023-09-18T19:37:00 | BM148: Navy Beans, Water, Sugar, Tomato Paste, Vinegar, Salt, Onion Powder and Garlic Powder | BN148: FALSE
A149: 100365 | B149: Beans, Pinto, Low-sodium, Canned | C149: Legumes | D149: 00042396251116 | E149: Mothers Maid | F149: Burnette Foods, Inc. | G149: Burnette Foods, Inc. | H149: MOTHERS MAID LOW SALT PINTO BEANS 6/10 | I149: 6/10 MOTHER'S MAID LOW SALT PI | J149: PINTO BEANS | L149: 130 | M149: GRM | N149: BY_SERVING | O149: 130 | P149: GRM | Q149: 1/2 cup | R149: UNPREPARED | AF149: 67 | AG149: 17 | AH149: 0 | AI149: 100 | AJ149: 0 | AK149: 0 | AL149: 9 | AM149: 1.32 | AO149: 5 | AP149: 140 | AQ149: 0 | AS149: 0.5 | AT149: 0 | AV149: =24*6 -> 144 | AW149: BASE_UNIT_OR_EACH | AX149: TRUE | BH149: X99 | BI149: Orthodox Union | BK149: 2025-11-03 08:54:44 | BL149: 2025-10-15 07:03:45 | BM149: Pinto Beans, Water, Salt, Calcium Chloride | BN149: FALSE
A150: 100365 | B150: Beans, Pinto, Low-sodium, Canned | C150: Legumes | D150: 00041188047241 | E150: Furmanos | F150: Furmano Foods | G150: FURMANO FOODS INC. | H150: Furmanos; 1/#10 Pinto Beans | I150: 10 Pinto Bns | J150: Beans - Pinto | K150: CHILD_NUTRITION_FOOD_PROGRAMS | L150: 130 | M150: GRM | N150: BY_MEASURE | O150: 100 | P150: GRM | Q150: 1/2 cup | R150: UNPREPARED | AF150: 39 | AG150: 20.19 | AH150: 0 | AI150: 112 | AJ150: 0.08 | AK150: 0 | AL150: 5 | AM150: 1.64 | AN150: 0 | AO150: 6.92 | AP150: 131 | AQ150: 0.68 | AR150: 0 | AS150: 0.4 | AT150: 0 | AV150: 144 | AW150: BASE_UNIT_OR_EACH | AX150: TRUE | AY150: FREE_FROM | AZ150: FREE_FROM | BA150: FREE_FROM | BB150: FREE_FROM | BC150: FREE_FROM | BD150: FREE_FROM | BE150: FREE_FROM | BF150: FREE_FROM | BG150: FREE_FROM | BH150: AA, AC, AD, AE, AF, AH, AI, AL, AM, AN, AP, AS, AU, AW, AY, BA, BB, BC, BE, BF, BI, BM, BN, BO, BP, BQ, BR, BS, CA, CL, CM, CN, CO, CT, DA, DP, EG, EP, EV, FA, FH, FT, GB, GE, GK, GL, GO, GS, HB, HC, HD, HE, HH, HN, HP, HX, HY, MH, ML, NC, NE, NK, NL, NM, NP, NR, NW, ON, PM, PN, PO, PP, PS, SA, SB, SC, SH, SM, SO, SP, SR, SS, ST, SW, SX, TA, TD, TR, UM, UN, UW | BI150: Kashruth Division of the Orthodox Union | BK150: 2025-05-05 08:25:11 | BL150: 2025-04-11 13:24:45 | BM150: Pinto Beans, Water, Salt, Calcium Chloride, Calcium Disodium EDTA (To Preserve Color) | BN150: TRUE
A151: 100365 | B151: Beans, Pinto, Low-sodium, Canned | C151: Legumes | D151: 40028800130459 | E151: Farmer Girl | F151: Hanover Foods Corp | G151: Hanover Foods Corp | H151: USDA Low Sodium Pinto Beans 6/10 Case | I151: Low Sodium Pinto Beans | J151: Low Sodium Pinto Beans | K151: CHILD_NUTRITION_FOOD_PROGRAMS | L151: 130 | M151: GRM | N151: BY_SERVING | O151: 2000 | P151: E14 | Q151: 1/2 cup | R151: HEAT_AND_SERVE | AF151: 40 | AG151: 21 | AH151: 0 | AI151: 110 | AJ151: 0 | AK151: 0 | AL151: 5 | AM151: 1.7 | AN151: 460 | AO151: 7 | AP151: 120 | AQ151: 1 | AR151: 0 | AS151: 0 | AT151: 0 | AU151: US_FDA_NFP_2020_STANDARD | AV151: 144 | AW151: CASE | AY151: FREE_FROM | AZ151: FREE_FROM | BA151: FREE_FROM | BB151: FREE_FROM | BC151: FREE_FROM | BD151: FREE_FROM | BE151: FREE_FROM | BF151: FREE_FROM | BG151: FREE_FROM | BH151: AS, UW, AC, AE, AF, AY, AM, AN, AP, UM, BM | BI151: Orthodox Union | BK151: 2024-06-03 08:45:45 | BL151: 2024-05-23 11:46:56 | BM151: Prepared Pinto Beans, Water, Salt, Calcium Chloride (Firming Agent), Calcium Disodium EDTA (Added to Promote Color Retention) | BN151: FALSE
A152: 100365 | B152: Beans, Pinto, Low-sodium, Canned | C152: Legumes | D152: 40028800146702 | E152: Farmer Girl | F152: Hanover Foods Corp | G152: Hanover Foods Corp | H152: Superb appearance makes them a favorite dishes and in soups | I152: Low Sodium Pinto Beans | J152: USDA Farmer Girl Low Sodium Pinto B | K152: CHILD_NUTRITION_FOOD_PROGRAMS | L152: 130 | M152: GRM | N152: BY_SERVING | Q152: 1/2 cup | R152: READY_TO_EAT | AF152: 40 | AG152: 21 | AH152: 0 | AI152: 110 | AJ152: 0 | AK152: 0 | AL152: 5 | AM152: 1.7 | AN152: 460 | AO152: 7 | AP152: 120 | AQ152: 1 | AR152: 0 | AS152: 0 | AT152: 0 | AV152: =24*6 -> 144 | AW152: CASE | AY152: FREE_FROM | AZ152: FREE_FROM | BA152: FREE_FROM | BB152: FREE_FROM | BC152: FREE_FROM | BD152: FREE_FROM | BE152: FREE_FROM | BF152: FREE_FROM | BG152: FREE_FROM | BH152: AS, UW, AC, AE, AF, AY, AM, AN, AP, UN, UM, BM | BK152: 2023-04-03T16:30:52 | BL152: 2023-02-13T11:16:25 | BM152: Prepared Pinto Beans, Water, Salt, Calcium Chloride (Firming Agent), Calcium Disodium EDTA (Promote Color Retention) | BN152: FALSE
A153: 100365 | B153: Beans, Pinto, Low-sodium, Canned | C153: Legumes | D153: 10041443111929 | E153: Margaret Holmes | F153: McCall Farms, Inc. | G153: McCall Farms Inc | H153: Margaret Holmes Pinto Beans, 6/111oz | I153: Pinto Beans | J153: Pinto Beans | L153: 130 | M153: GRM | N153: BY_SERVING | O153: 130 | P153: GRM | Q153: 1/2 cup | R153: PREPARED | AF153: 60 | AG153: 18 | AH153: 0 | AI153: 100 | AJ153: 0 | AK153: 0 | AL153: 6 | AM153: 1.5 | AN153: 310 | AO153: 6 | AP153: 140 | AQ153: 0 | AR153: 0 | AS153: 0 | AT153: 0 | AV153: =24*6 -> 144 | AW153: CASE | AY153: FREE_FROM | AZ153: FREE_FROM | BA153: FREE_FROM | BB153: FREE_FROM | BC153: FREE_FROM | BD153: FREE_FROM | BE153: FREE_FROM | BF153: FREE_FROM | BG153: FREE_FROM | BH153: AS, UW, AC, AE, AF, AY, AM, AN, AP | BK153: 2025-11-03 08:54:44 | BL153: 2025-09-17 14:17:40 | BM153: Prepared Pinto Beans, Water, Salt, Calcium Chloride (As a Firming Agent) and Calcium Disodium EDTA (To Promote Color Retention) | BN153: FALSE
A154: 100365 | B154: Beans, Pinto, Low-sodium, Canned | C154: Legumes | D154: 00071109999137 | E154: Michigan Made | F154: Packers Canning Co dba Honee Bear Canning | G154: Packers Canning Co dba Honee Bear Canning | H154: Pinto Beans in Brine | I154: Pinto Beans in Brine | J154: Pinto Beans in Brine | L154: 130 | M154: GRM | N154: BY_SERVING | Q154: 1/2 cup | R154: HEAT_AND_SERVE | AF154: 50 | AG154: 19 | AH154: 0 | AI154: 80 | AJ154: 0 | AK154: 0 | AL154: 7 | AM154: 1 | AN154: 310 | AO154: 8 | AP154: 140 | AQ154: 2 | AR154: 0 | AS154: 0 | AT154: 0 | AV154: =24*6 -> 144 | AW154: BASE_UNIT_OR_EACH | AX154: TRUE | AY154: FREE_FROM | AZ154: FREE_FROM | BA154: FREE_FROM | BB154: FREE_FROM | BC154: FREE_FROM | BD154: FREE_FROM | BE154: FREE_FROM | BF154: FREE_FROM | BG154: FREE_FROM | BH154: AM, AP, UN, AE, AN, AF, UW, AY, AS | BK154: 2023-10-02T09:38:19 | BL154: 2023-09-18T19:37:00 | BM154: Pinto Beans, Water, Calcium Chloride, Salt, Calcium Disodium EDTA | BN154: FALSE
A155: 100366 | B155: Beans, Small Red, Low-sodium, Canned | C155: Legumes | D155: 00071109999632 | E155: Michigan Made | F155: Packers Canning Co dba Honee Bear Canning | G155: Packers Canning Co dba Honee Bear Canning | H155: Small Red Beans in Brine Low Sodium | I155: Small Red Beans in Brine Low Sodium | J155: Small Red Beans in Brine Low Sodium | L155: 130 | M155: GRM | N155: BY_SERVING | Q155: 1/2 cup | R155: HEAT_AND_SERVE | AF155: 50 | AG155: 20 | AH155: 0 | AI155: 110 | AJ155: 0 | AK155: 0 | AL155: 9 | AM155: 1 | AN155: 400 | AO155: 6 | AP155: 140 | AQ155: 2 | AR155: 0 | AS155: 0.5 | AT155: 0 | AV155: =24*6 -> 144 | AW155: BASE_UNIT_OR_EACH | AX155: TRUE | AY155: FREE_FROM | AZ155: FREE_FROM | BA155: FREE_FROM | BB155: FREE_FROM | BC155: FREE_FROM | BD155: FREE_FROM | BE155: FREE_FROM | BF155: FREE_FROM | BG155: FREE_FROM | BH155: AM, AP, UN, AE, AN, AF, UW, AY, AS | BK155: 2023-10-02T09:04:37 | BL155: 2023-09-18T19:37:00 | BM155: Small Red Beans , Water, Calcium Chloride, Salt, Calcium Disodium EDTA | BN155: FALSE
A156: 100368 | B156: Beans, Black-eyed Pea, Low-sodium, Canned | C156: Legumes | D156: 00042396252113 | E156: Mothers Maid | F156: Burnette Foods, Inc. | G156: Burnette Foods, Inc. | H156: MOTHERS MAID 6/10 LOW SODIUM BLACK EYED PEAS | I156: M/M 6/10 LS BLACK EYED PEAS | J156: BEANS | L156: 130 | M156: GRM | N156: BY_SERVING | O156: 130 | P156: GRM | Q156: 1/2 cup | R156: UNPREPARED | AF156: 43 | AG156: 18 | AH156: 0 | AI156: 100 | AJ156: 0 | AK156: 0 | AL156: 3 | AM156: 1.85 | AO156: 6 | AP156: 140 | AQ156: 0 | AS156: 0.5 | AT156: 0 | AV156: =24*6 -> 144 | AW156: BASE_UNIT_OR_EACH | AX156: TRUE | BH156: X99 | BK156: 2025-11-03 08:54:44 | BL156: 2025-10-15 06:33:06 | BM156: Blackeye Peas, Water, Salt, Calcium Chloride, Disodium EDTA | BN156: FALSE
A157: 100368 | B157: Beans, Black-eyed Pea, Low-sodium, Canned | C157: Legumes | D157: 10041443117822 | E157: Margaret Holmes | F157: McCall Farms, Inc. | G157: McCall Farms Inc | H157: 6/#10 Margaret Holmes Low Sodium Blackeye Peas | I157: Blackeye Peas | J157: 6/#10 Margaret Holmes Low Sodium Bl | K157: CHILD_NUTRITION_FOOD_PROGRAMS | L157: 130 | M157: GRM | N157: BY_SERVING | Q157: 1/2 cup | R157: PREPARED | AF157: 32 | AG157: 14 | AH157: 0 | AI157: 90 | AJ157: 0 | AK157: 0 | AL157: 4 | AM157: 2 | AO157: 5 | AP157: 140 | AQ157: 2 | AS157: 0 | AU157: NFT | AV157: 144 | AW157: CASE | AY157: FREE_FROM | AZ157: FREE_FROM | BA157: FREE_FROM | BB157: FREE_FROM | BC157: FREE_FROM | BD157: FREE_FROM | BE157: FREE_FROM | BF157: FREE_FROM | BG157: FREE_FROM | BH157: AS, UW, AC, AE, AF, AY, AM, AN, AP | BK157: 2022-09-19T05:50:36 | BL157: 2022-05-09T09:44:44 | BM157: Prepared Black Eye Peas, Water, Salt, Calcium Chloride (as a Firming Agent), Disodium EDTA (to Promote Color Retention) | BN157: FALSE
A158: 100369 | B158: Beans, Pink, Low-sodium, Canned | C158: Legumes | D158: 00071109999038 | E158: Michigan Made | F158: Honee Bear Canning | G158: Packers Canning Co dba Honee Bear Canning | H158: Pink Beans | I158: Pink Beans | J158: Pink Beans in Brine Low Sodium | L158: 130 | M158: GRM | N158: BY_SERVING | Q158: 1/2 cup | R158: HEAT_AND_SERVE | AF158: 50 | AG158: 16 | AH158: 0 | AI158: 80 | AJ158: 0 | AK158: 0 | AL158: 7 | AM158: 1 | AN158: 350 | AO158: 5 | AP158: 140 | AQ158: 1 | AR158: 0 | AS158: 0 | AT158: 0 | AV158: =24*6 -> 144 | AW158: CASE | AX158: TRUE | AY158: FREE_FROM | AZ158: FREE_FROM | BA158: FREE_FROM | BB158: FREE_FROM | BC158: FREE_FROM | BD158: FREE_FROM | BE158: FREE_FROM | BF158: FREE_FROM | BG158: FREE_FROM | BH158: AS, AM, AP, UN, AE, AF, AN, UW, AY | BK158: 2023-10-02T08:49:58 | BL158: 2023-09-18T19:37:00 | BM158: Pink Beans, Water, Calcium Chloride, Salt, Calcium Disodium EDTA | BN158: FALSE
A159: 100370 | B159: Beans, Kidney, Dark Red, Low-sodium, Canned | C159: Legumes | D159: 00042396251321 | E159: Mothers Maid | F159: Burnette Foods, Inc. | G159: Burnette Foods, Inc. | H159: MOTHERS MAID LOW SALT LIGHT RED KIDNEY BEANS 6/10 | I159: 6/10 M MAID LS LT RED KIDNEY B | J159: LIGHT RED KIDNEY BEANS | L159: 130 | M159: GRM | N159: BY_SERVING | O159: 130 | P159: GRM | Q159: 1/2 cup | R159: UNPREPARED | AF159: 52 | AG159: 20 | AH159: 0 | AI159: 100 | AJ159: 0 | AK159: 0 | AL159: 6 | AM159: 1.76 | AO159: 8 | AP159: 140 | AQ159: 0 | AS159: 0.5 | AT159: 0 | AV159: =24*6 -> 144 | AW159: BASE_UNIT_OR_EACH | AX159: TRUE | AY159: FREE_FROM | AZ159: FREE_FROM | BA159: FREE_FROM | BB159: FREE_FROM | BD159: FREE_FROM | BE159: FREE_FROM | BF159: FREE_FROM | BG159: FREE_FROM | BH159: X99, AE, AN, AP, AM, AF, AC, UW, AY | BK159: 2023-05-02T10:55:29 | BL159: 2023-04-06T13:34:31 | BM159: Kidney Beans, Water, Salt, Calcium Chloride | BN159: FALSE
A160: 100370 | B160: Beans, Kidney, Dark Red, Low-sodium, Canned | C160: Legumes | D160: 40028800130435 | E160: Farmer Girl | F160: Hanover Foods Corp | G160: Hanover Foods Corp | H160: Superb appearance makes them a favorite at the salad bar and in soups | I160: Low Sodium Red Kidneys | J160: USDA Farmer Girl Low Sodium Dk Red | K160: CHILD_NUTRITION_FOOD_PROGRAMS | L160: 130 | M160: GRM | N160: BY_SERVING | Q160: 1/2 cup | R160: READY_TO_EAT | AF160: 30 | AG160: 21 | AH160: 0 | AI160: 120 | AJ160: 0 | AK160: 0 | AL160: 5 | AM160: 2.3 | AN160: 480 | AO160: 8 | AP160: 110 | AQ160: 1 | AR160: 0 | AS160: 0 | AT160: 0 | AV160: 144 | AW160: CASE | AY160: FREE_FROM | AZ160: FREE_FROM | BA160: FREE_FROM | BB160: FREE_FROM | BC160: FREE_FROM | BD160: FREE_FROM | BE160: FREE_FROM | BF160: FREE_FROM | BG160: FREE_FROM | BH160: AS, UW, AC, AE, AF, AY, AM, AN, AP, UN, UM, BM | BI160: Orthodox Union | BK160: 2023-06-01T09:04:23 | BL160: 2023-05-08T09:33:13 | BM160: Prepared Kidney Beans, Water, Salt and Calcium Chloride (Firming Agent), Disodium EDTA (Added as a Preservative) | BN160: FALSE
A161: 100370 | B161: Beans, Kidney, Dark Red, Low-sodium, Canned | C161: Legumes | D161: 10041443113022 | E161: Margaret Holmes | F161: McCall Farms Inc | G161: McCall Farms Inc | H161: Margaret Holmes Dark Red Kidney Beans, 6/111oz. | I161: Dark Red Kidney Beans | J161: Dark Red Kidney Beans | L161: 130 | M161: GRM | N161: BY_SERVING | O161: 130 | P161: GRM | Q161: 1/2 cup | R161: PREPARED | AF161: 60 | AG161: 19 | AH161: 0 | AI161: 100 | AJ161: 0 | AK161: 0 | AL161: 6 | AM161: 1.5 | AN161: 310 | AO161: 6 | AP161: 140 | AQ161: 0 | AR161: 0 | AS161: 0 | AT161: 0 | AV161: =24*6 -> 144 | AW161: CASE | AY161: FREE_FROM | AZ161: FREE_FROM | BA161: FREE_FROM | BB161: FREE_FROM | BC161: FREE_FROM | BD161: FREE_FROM | BE161: FREE_FROM | BF161: FREE_FROM | BG161: FREE_FROM | BH161: AM, AE, AF, AC, UN, AN, AP, UW, AY, AS | BK161: 2025-11-03 08:54:44 | BL161: 2025-10-27 15:13:53 | BM161: Prepared Dark Red Kidney Beans, Water, Salt, Calcium Chloride (As a Firming Agent), Disodium EDTA (To Promote Color Retention) | BN161: FALSE
A162: 100370 | B162: Beans, Kidney, Dark Red, Low-sodium, Canned | C162: Legumes | D162: 00071109999731 | E162: Michigan Made | F162: Packers Canning Co dba Honee Bear Canning | G162: Packers Canning Co dba Honee Bear Canning | H162: Kidney Beans in Brine | I162: Red Kidney Beans in Brine | J162: Kidney Beans in Brine | L162: 130 | M162: GRM | N162: BY_SERVING | Q162: 1/2 cup | R162: HEAT_AND_SERVE | AF162: 50 | AG162: 14 | AH162: 0 | AI162: 75 | AJ162: 0 | AK162: 0 | AL162: 5 | AM162: 1 | AN162: 360 | AO162: 8 | AP162: 140 | AQ162: 1 | AR162: 0 | AS162: 0 | AT162: 0 | AV162: =24*6 -> 144 | AW162: BASE_UNIT_OR_EACH | AX162: TRUE | AY162: FREE_FROM | AZ162: FREE_FROM | BA162: FREE_FROM | BB162: FREE_FROM | BC162: FREE_FROM | BD162: FREE_FROM | BE162: FREE_FROM | BF162: FREE_FROM | BG162: FREE_FROM | BH162: AM, AP, UN, AE, AN, AF, UW, AY, AS | BK162: 2023-10-02T08:54:26 | BL162: 2023-09-18T19:37:00 | BM162: Red Kidney Beans, Water, Calcium Chloride, Salt, and Calcium Disodium EDTA | BN162: FALSE
A163: 100371 | B163: Beans, Baby Lima, Low-sodium, Canned | C163: Legumes | D163: 10034700512140 | E163: Allens | F163: McCall Farms, Inc. | G163: McCall Farms Inc | H163: Bean, Lima Green Small Canned | I163: Bean, Lima Grn Small Cnd | J163: Canned Vegetable | K163: CHILD_NUTRITION_FOOD_PROGRAMS | L163: 130 | M163: GRM | N163: BY_SERVING | O163: 128 | P163: GRM | Q163: 1/2 cup | R163: PREPARED | AF163: 40 | AG163: 20 | AH163: 0 | AI163: 110 | AJ163: 0 | AK163: 0 | AL163: 5 | AM163: 2 | AN163: 270 | AO163: 9 | AP163: 140 | AQ163: 1 | AR163: 0 | AS163: 0 | AT163: 0 | AV163: 144 | AW163: CASE | AY163: FREE_FROM | AZ163: FREE_FROM | BA163: FREE_FROM | BB163: FREE_FROM | BC163: FREE_FROM | BD163: FREE_FROM | BE163: FREE_FROM | BF163: FREE_FROM | BG163: FREE_FROM | BH163: AS, AU, UN, AC, AE, AF, AM, AN, AP, AY, UW | BI163: Star K | BK163: 2025-08-01 09:35:39 | BL163: 2025-07-10 15:14:12 | BM163: Prepared Lima Beans, Water, Salt, Calcium Chloride Added To Help Maintain Firmness, Calcium Disodium Edta Added To Help Promote Color Retention | BN163: FALSE
A164: 100373 | B164: Beans, Great Northern, Low-sodium, Canned | C164: Legumes | D164: 00042396251710 | E164: Mothers Maid | F164: Burnette Foods, Inc. | G164: Burnette Foods, Inc. | H164: MOTHERS MAID LOW SODIUM GREAT NORTHERN BEANS 6/10 | I164: 6/10 MMAID LS GREAT NORTHERN | J164: GREAT NORTHERN BEANS | L164: 125 | M164: GRM | N164: BY_SERVING | O164: 125 | P164: GRM | Q164: 1/2 cup | R164: UNPREPARED | AF164: 90 | AG164: 12 | AH164: 0 | AI164: 130 | AJ164: 1.5 | AK164: 0 | AL164: 6 | AM164: 1.85 | AO164: 7 | AP164: 140 | AQ164: 2 | AS164: 7 | AT164: 0 | AV164: =24*6 -> 144 | AW164: BASE_UNIT_OR_EACH | AX164: TRUE | BH164: X99 | BK164: 2025-11-03 08:54:44 | BL164: 2025-10-15 07:09:44 | BM164: Great Northern Beans, Water, Salt | BN164: FALSE
A165: 100373 | B165: Beans, Great Northern, Low-sodium, Canned | C165: Legumes | D165: 00071109999533 | E165: Michigan Made | F165: Honee Bear Canning | G165: Honee Bear Canning | H165: Great Northern Beans in Brine Low Sodium | I165: Great Northern Beans Low Sodium | J165: Great Northern Beans Low Sodium | L165: 130 | M165: GRM | N165: BY_SERVING | Q165: 1/2 cup | R165: HEAT_AND_SERVE | AF165: 53 | AG165: 24 | AH165: 0 | AI165: 110 | AJ165: 0 | AK165: 0 | AL165: 7 | AM165: 1.6 | AN165: 350 | AO165: 6 | AP165: 140 | AQ165: 2 | AR165: 0 | AS165: 0 | AT165: 0 | AV165: =24*6 -> 144 | AW165: BASE_UNIT_OR_EACH | AX165: TRUE | AY165: FREE_FROM | AZ165: FREE_FROM | BA165: FREE_FROM | BB165: FREE_FROM | BC165: FREE_FROM | BD165: FREE_FROM | BE165: FREE_FROM | BF165: FREE_FROM | BG165: FREE_FROM | BH165: AS, AM, AP, UN, AE, AF, AN, UW, AY | BK165: 2023-03-01T10:55:34 | BL165: 2023-02-23T15:47:00 | BM165: Great Northern Beans, Water, Calcium Chloride, Salt and Calcium Disodium EDTA | BN165: FALSE
A166: 100373 | B166: Beans, Great Northern, Low-sodium, Canned | C166: Legumes | D166: 00041443113629 | E166: Margaret Holmes | F166: McCall Farms, Inc. | G166: McCall Farms Inc | H166: Great Northern Beans | I166: Great Northern Beans | J166: Great Northern Beans | K166: CHILD_NUTRITION_FOOD_PROGRAMS | L166: 130 | M166: GRM | N166: BY_MEASURE | O166: 130 | P166: GRM | Q166: 1/2 cup | R166: PREPARED | AF166: 64 | AG166: 15 | AH166: 0 | AI166: 80 | AJ166: 0 | AK166: 0 | AL166: 5 | AM166: 2 | AN166: 280 | AO166: 6 | AP166: 140 | AQ166: 0 | AR166: 0 | AS166: 0 | AT166: 0 | AV166: =24*6 -> 144 | AW166: BASE_UNIT_OR_EACH | AY166: FREE_FROM | AZ166: FREE_FROM | BA166: FREE_FROM | BB166: FREE_FROM | BC166: FREE_FROM | BD166: FREE_FROM | BE166: FREE_FROM | BF166: FREE_FROM | BG166: FREE_FROM | BH166: AS, UW, AC, AE, AF, AY, AM, AN, AP | BK166: 2025-04-01 08:31:52 | BL166: 2025-03-13 13:35:20 | BM166: Prepared Great Northern Beans, Water, Salt, and Calcium Chloride (As a Firming Agent) and Disodium EDTA (to Promote Color Retention) | BN166: TRUE
A167: 100382 | B167: Beans, Pinto, Dry | C167: Legumes | D167: 00077300150025 | E167: China Doll | F167: China Doll Rice and Beans Inc. | G167: China Doll Rice and Beans Inc | H167: China Doll Pinto Beans 2 lb | I167: China Doll Pinto Beans 2 lb | J167: China Doll Pinto Beans 2 lb | K167: CHILD_NUTRITION_FOOD_PROGRAMS | L167: 100 | M167: GRM | N167: BY_MEASURE | O167: 100 | P167: GRM | Q167: 2/3 cup | R167: BOIL | AF167: 113 | AG167: 62.6 | AH167: 0 | AI167: 347 | AJ167: 0.23 | AK167: 0 | AL167: 15.5 | AM167: 5.07 | AN167: 1390 | AO167: 21.4 | AP167: 12 | AQ167: 2.11 | AR167: 0 | AS167: 1.23 | AT167: 0 | AV167: =9*12 -> 108 | AW167: BASE_UNIT_OR_EACH | AY167: NOT_INTENTIONALLY_NOR_INHERENTLY_INCLUDED | AZ167: NOT_INTENTIONALLY_NOR_INHERENTLY_INCLUDED | BA167: NOT_INTENTIONALLY_NOR_INHERENTLY_INCLUDED | BB167: NOT_INTENTIONALLY_NOR_INHERENTLY_INCLUDED | BC167: NOT_INTENTIONALLY_NOR_INHERENTLY_INCLUDED | BD167: NOT_INTENTIONALLY_NOR_INHERENTLY_INCLUDED | BE167: NOT_INTENTIONALLY_NOR_INHERENTLY_INCLUDED | BF167: NOT_INTENTIONALLY_NOR_INHERENTLY_INCLUDED | BG167: NOT_INTENTIONALLY_NOR_INHERENTLY_INCLUDED | BH167: AM, AE, AF, UN, AN, AP, UW, AY, AS | BK167: 2025-04-01 08:31:52 | BL167: 2025-03-27 08:18:06 | BM167: Dried Pinto Beans | BN167: FALSE
A168: 100382 | B168: Beans, Pinto, Dry | C168: Legumes | D168: 00753213757727 | E168: Pappy's Pantry | F168: Twenty First Century Bean | G168: Twenty First Century Bean | H168: Pappy's Pantry Pinto Beans 2lb bag | I168: Pappy's Pantry Pinto Beans 2lb bag | J168: Dry edible beans | K168: CHILD_NUTRITION_FOOD_PROGRAMS | L168: 100 | M168: GRM | N168: BY_MEASURE | O168: 100 | P168: GRM | Q168: 1/2 cup dry | R168: PREPARED | AF168: 35 | AG168: 62.43 | AH168: <1 | AI168: 225 | AJ168: 0.3 | AK168: <0.1 | AL168: 32.8 | AM168: 5.31 | AN168: 1470 | AO168: 19.3 | AP168: 13 | AQ168: 1.14 | AR168: <0.1 | AS168: 1.72 | AT168: <0.1 | AV168: 96 | AW168: BASE_UNIT_OR_EACH | AX168: TRUE | AY168: FREE_FROM | AZ168: FREE_FROM | BA168: FREE_FROM | BB168: FREE_FROM | BC168: FREE_FROM | BD168: FREE_FROM | BE168: NOT_INTENTIONALLY_NOR_INHERENTLY_INCLUDED | BF168: FREE_FROM | BG168: NOT_INTENTIONALLY_NOR_INHERENTLY_INCLUDED | BH168: AM, AP, AS, AY, AN, UW, AC, AE, AF, UM, BM | BK168: 2022-12-01T18:01:10 | BL168: 2022-11-16T09:14:58 | BM168: Pinto Beans | BN168: TRUE
A169: 100396 | B169: Peanut Butter, Smooth | C169: Nuts and seeds | D169: 00088252010756 | E169: Algood | F169: Algood Food Company | G169: Algood Food Company | H169: Creamy Peanut Butter | I169: Creamy Peanut Butter | J169: Fruit/Nuts/Seeds Mixes - Prepared/P | K169: CHILD_NUTRITION_FOOD_PROGRAMS | L169: 32 | M169: GRM | N169: BY_SERVING | O169: 32 | P169: GRM | Q169: 2 Tablespoon | R169: READY_TO_EAT | AF169: 19 | AG169: 8 | AH169: 0 | AI169: 180 | AJ169: 2.5 | AK169: 0 | AL169: 2 | AM169: 0.5 | AN169: 184 | AO169: 7 | AP169: 125 | AQ169: 3 | AR169: 2 | AS169: 15 | AT169: 0 | AV169: =71*6 -> 426 | AW169: BASE_UNIT_OR_EACH | AX169: TRUE | BB169: CONTAINS | BH169: AP | BK169: 2023-02-01T09:34:05 | BL169: 2023-01-25T06:53:58 | BM169: Peanuts, Sugar, Contains 2% or Less of: Fully Hydrogenated Vegetable Oils (Cottonseed, Soybean, Rapeseed), Salt, Molasses, Monoglycerides, Peanut Oil, Honey, Dextrose | BN169: FALSE
A170: 100400 | B170: Flour, All Purpose, Enriched, Bleached | C170: Grains | D170: 00076929002050 | E170: Stafford County Flour Mills | F170: Stafford County Flour Mills | G170: STAFFORD COUNTY FLOUR MILLS | H170: Stafford County Flour Mills All-Purpose Flour, Bleached, 5 lb. bag | I170: SCFM AP 5 lb | J170: SCFM AP 5 | K170: CHILD_NUTRITION_FOOD_PROGRAMS | L170: 30 | M170: GRM | N170: BY_SERVING | O170: 30 | P170: GRM | Q170: 1/4 cup | R170: UNPREPARED | AF170: 7 | AG170: 23 | AH170: 0 | AI170: 110 | AJ170: 0 | AK170: 0 | AL170: 1 | AM170: 1 | AN170: 50 | AO170: 3 | AP170: 0 | AQ170: 1 | AR170: 0 | AS170: 0 | AT170: 0 | AU170: US_FDA_NFP_2020_STANDARD_SIDE_BY_SIDE | AV170: =75*8 -> 600 | AW170: BASE_UNIT_OR_EACH | AY170: FREE_FROM | AZ170: FREE_FROM | BA170: FREE_FROM | BB170: FREE_FROM | BC170: FREE_FROM | BD170: FREE_FROM | BE170: FREE_FROM | BF170: FREE_FROM | BG170: CONTAINS | BH170: AP, AN, AM, AE, AY, UW, AF, UN, AS | BI170: Orthodox Union | BK170: 2024-04-01T09:28:51 | BL170: 2024-03-01T09:49:27 | BM170: Wheat Flour, Niacin, Reduced Iron,Thiamin Mononitrate, Doh-Tone (Enzyme For Improved Baking), Riboflavin, Folic Acid. | BN170: FALSE
A171: 100425 | B171: Pasta, Spaghetti, Enriched | C171: Grains | D171: 10070753280391 | E171: COLUMBIA | F171: A Zerega's Sons, Inc. | G171: A. Zerega's Sons, Inc. | H171: COLUMBIA SPAGHETTI - 10" - 2/10 | I171: COL SPAGHETTI | J171: PASTA | L171: 56 | M171: GRM | N171: BY_SERVING | O171: 56 | P171: GRM | Q171: 2 ounce | R171: UNPREPARED | AF171: 0 | AG171: 41 | AH171: 0 | AI171: 200 | AJ171: 0 | AK171: 0 | AL171: 1 | AM171: 10 | AO171: 7 | AP171: 0 | AQ171: 2 | AS171: 1 | AT171: 0 | AV171: 160 | AW171: CASE | AY171: MAY_CONTAIN | AZ171: FREE_FROM | BA171: FREE_FROM | BB171: FREE_FROM | BC171: FREE_FROM | BD171: FREE_FROM | BE171: FREE_FROM | BF171: FREE_FROM | BG171: CONTAINS | BH171: AM, AE, AF, AC, AN, AP, AY, UW, AS | BK171: 2024-06-03 08:45:45 | BL171: 2024-05-28 10:12:00 | BM171: Durum Flour (Wheat), Niacin, Iron (Ferrous Sulfate), Thiamin Mononitrate, Riboflavin and Folic Acid | BN171: FALSE
A172: 100425 | B172: Pasta, Spaghetti, Enriched | C172: Grains | D172: 00047325905269 | E172: Ravarino | F172: Bay Valley Foods | G172: Bay Valley Foods | H172: RAVARINO 10 LB SPAGHETTI | I172: SPAGHETTI | J172: DRY PASTA | K172: CHILD_NUTRITION_FOOD_PROGRAMS | L172: 56 | M172: GRM | N172: BY_SERVING | O172: 56 | P172: GRM | Q172: 2 ounce dry | R172: UNPREPARED | AF172: 0 | AG172: 41 | AH172: 0 | AI172: 210 | AJ172: 0 | AK172: 0 | AL172: 2 | AM172: 10 | AN172: 0 | AO172: 7 | AP172: 0 | AQ172: 2 | AR172: 0 | AS172: 1 | AT172: 0 | AU172: US_FDA_NFP_2020_STANDARD | AV172: 160 | AW172: BASE_UNIT_OR_EACH | AY172: FREE_FROM | AZ172: FREE_FROM | BA172: FREE_FROM | BB172: FREE_FROM | BC172: FREE_FROM | BD172: FREE_FROM | BE172: FREE_FROM | BF172: FREE_FROM | BG172: CONTAINS | BH172: AS, UW, AC, AE, AF, AY, AM, AN, AP | BI172: Orthodox Union (OU) | BK172: 2023-12-01T08:27:55 | BL172: 2023-05-03T13:10:08 | BM172: Durum Semolina, Niacin, Ferrous Sulfate (Iron), Thiamine Mononitrate, Riboflavin, Folic Acid. | BN172: FALSE
A173: 100425 | B173: Pasta, Spaghetti, Enriched | C173: Grains | D173: 00047325000315 | E173: Golden Grain | F173: Winland Foods, Inc. | G173: Winland Foods, Inc. | H173: Golden Grain 16 Oz Spaghetti Rigate Pasta | I173: Spaghetti Rigate Pasta | J173: Dry Pasta | L173: 56 | M173: GRM | N173: BY_SERVING | O173: 56 | P173: GRM | Q173: 2 ounce | R173: UNPREPARED | AF173: 0 | AG173: 42 | AH173: 0 | AI173: 200 | AJ173: 0 | AK173: 0 | AL173: 2 | AM173: 2 | AN173: 120 | AO173: 7 | AP173: 0 | AQ173: 2 | AR173: 0 | AS173: 1 | AT173: 0 | AU173: US_FDA_NFP_2020_STANDARD | AV173: =8*20 -> 160 | AW173: BASE_UNIT_OR_EACH | AX173: TRUE | AY173: CONTAINS | AZ173: FREE_FROM | BA173: FREE_FROM | BB173: FREE_FROM | BC173: FREE_FROM | BD173: CONTAINS | BE173: FREE_FROM | BF173: FREE_FROM | BG173: FREE_FROM | BH173: AM, AP, AS, AY, AN, UW, AC, AE, AF, BM, UM, UN, AU | BK173: 2025-11-03 08:54:44 | BL173: 2025-10-30 12:34:57 | BM173: Semolina, Niacin, Ferrous Sulfate (Iron), Thiamin Mononitrate, Riboflavin, Folic Acid | BN173: FALSE
A174: 100425 | B174: Pasta, Spaghetti, Enriched | C174: Grains | D174: 10015100000413 | E174: Creamette | F174: Winland Foods, Inc. | G174: Winland Foods, Inc. | H174: Creamette 16 Oz Spaghetti Rigate Pasta-Case Of 20 | I174: Spaghetti Rigate Pasta | J174: Dry Pasta | L174: 56 | M174: GRM | N174: BY_SERVING | O174: 56 | P174: GRM | Q174: 2 ounce | R174: UNPREPARED | AF174: 0 | AG174: 42 | AH174: 0 | AI174: 200 | AJ174: 0 | AK174: 0 | AL174: 2 | AM174: 2 | AN174: 120 | AO174: 7 | AP174: 0 | AQ174: 2 | AR174: 0 | AS174: 1 | AT174: 0 | AU174: US_FDA_NFP_2020_STANDARD | AV174: =8*20 -> 160 | AW174: CASE | AX174: TRUE | AY174: CONTAINS | AZ174: FREE_FROM | BA174: FREE_FROM | BB174: FREE_FROM | BC174: FREE_FROM | BD174: CONTAINS | BE174: FREE_FROM | BF174: FREE_FROM | BG174: FREE_FROM | BH174: AM, AP, AS, AY, AN, UW, AC, AE, AF, BM, UM, UN, AU | BK174: 2025-11-03 08:54:44 | BL174: 2025-10-30 12:16:24 | BM174: Semolina, Durum Flour, Niacin, Ferrous Sulfate (Iron), Thiamin Mononitrate, Riboflavin, Folic Acid. | BN174: FALSE
A175: 100425 | B175: Pasta, Spaghetti, Enriched | C175: Grains | D175: 00029200001167 | E175: Mueller's | F175: Winland Foods, Inc. | G175: Winland Foods, Inc. | H175: Mueller's 16 Oz Spaghetti Rigate Pasta | I175: Spaghetti Rigate Pasta | J175: Dry Pasta | L175: 56 | M175: GRM | N175: BY_SERVING | O175: 56 | P175: GRM | Q175: 2 ounce | R175: UNPREPARED | AF175: 0 | AG175: 42 | AH175: 0 | AI175: 200 | AJ175: 0 | AK175: 0 | AL175: 2 | AM175: 2 | AN175: 120 | AO175: 7 | AP175: 0 | AQ175: 2 | AR175: 0 | AS175: 1 | AT175: 0 | AU175: US_FDA_NFP_2020_STANDARD | AV175: =8*20 -> 160 | AW175: BASE_UNIT_OR_EACH | AX175: TRUE | AY175: CONTAINS | AZ175: FREE_FROM | BA175: FREE_FROM | BB175: FREE_FROM | BC175: FREE_FROM | BD175: CONTAINS | BE175: FREE_FROM | BF175: FREE_FROM | BG175: FREE_FROM | BH175: AM, AP, AS, AY, AN, UW, AC, AE, AF, BM, UM, UN, AU | BK175: 2025-11-03 08:54:44 | BL175: 2025-10-30 12:13:47 | BM175: Semolina, Niacin, Ferrous Sulfate (Iron), Thiamin Mononitrate, Riboflavin, Folic Acid. | BN175: FALSE
A176: 100425 | B176: Pasta, Spaghetti, Enriched | C176: Grains | D176: 00041129995914 | E176: Prince | F176: Winland Foods, Inc. | G176: Winland Foods, Inc. | H176: Prince 16 Oz Rigate Spaghetti Pasta | I176: Rigate Spaghetti Pasta | J176: Dry Pasta | L176: 56 | M176: GRM | N176: BY_SERVING | O176: 56 | P176: GRM | Q176: 2 ounce | R176: UNPREPARED | AF176: 0 | AG176: 42 | AH176: 0 | AI176: 200 | AJ176: 0 | AK176: 0 | AL176: 2 | AM176: 2 | AN176: 120 | AO176: 7 | AP176: 0 | AQ176: 2 | AR176: 0 | AS176: 1 | AT176: 0 | AU176: US_FDA_NFP_2020_STANDARD | AV176: =8*20 -> 160 | AW176: BASE_UNIT_OR_EACH | AX176: TRUE | AY176: CONTAINS | AZ176: FREE_FROM | BA176: FREE_FROM | BB176: FREE_FROM | BC176: FREE_FROM | BD176: CONTAINS | BE176: FREE_FROM | BF176: FREE_FROM | BG176: FREE_FROM | BH176: AM, AP, AS, AY, AN, UW, AC, AE, AF, BM, UM, UN, AU | BK176: 2025-11-03 08:54:44 | BL176: 2025-10-30 12:13:30 | BM176: Semolina, Durum Flour, Niacin, Ferrous Sulfate (Iron), Thiamin Mononitrate, Riboflavin, Folic Acid. | BN176: FALSE
A177: 100425 | B177: Pasta, Spaghetti, Enriched | C177: Grains | D177: 00033400055752 | E177: San Giorgio | F177: Winland Foods, Inc. | G177: Winland Foods, Inc. | H177: San Giorgio 16 Oz Rigate Spaghetti Pasta | I177: Rigate Spaghetti Pasta | J177: Dry Pasta | L177: 56 | M177: GRM | N177: BY_SERVING | O177: 56 | P177: GRM | Q177: 2 ounce | R177: UNPREPARED | AF177: 0 | AG177: 42 | AH177: 0 | AI177: 200 | AJ177: 0 | AK177: 0 | AL177: 2 | AM177: 2 | AN177: 120 | AO177: 7 | AP177: 0 | AQ177: 2 | AR177: 0 | AS177: 1 | AT177: 0 | AU177: US_FDA_NFP_2020_STANDARD | AV177: =8*20 -> 160 | AW177: BASE_UNIT_OR_EACH | AX177: TRUE | AY177: CONTAINS | AZ177: FREE_FROM | BA177: FREE_FROM | BB177: FREE_FROM | BC177: FREE_FROM | BD177: CONTAINS | BE177: FREE_FROM | BF177: FREE_FROM | BG177: FREE_FROM | BH177: AM, AP, AS, AY, AN, UW, AC, AE, AF, BM, UM, UN, AU | BK177: 2025-11-03 08:54:44 | BL177: 2025-10-30 10:40:13 | BM177: Semolina, Durum Flour, Niacin, Ferrous Sulfate (Iron), Thiamin Mononitrate, Riboflavin, Folic Acid. | BN177: FALSE
A178: 100465 | B178: Oats, Rolled, Quick Cooking | C178: Grains | D178: 00695356670344 | E178: Northern Gold Foods | F178: American Cereal | G178: American Cereal | H178: Northern Gold Quick Oats, 42oz | I178: 42oz NG Quick Oats | J178: Food | K178: CHILD_NUTRITION_FOOD_PROGRAMS | L178: 40 | M178: GRM | N178: BY_SERVING | O178: 40 | P178: GRM | Q178: 1/2 cup dry | R178: UNPREPARED | AF178: 18 | AG178: 27 | AH178: 0 | AI178: 150 | AJ178: 0 | AK178: 0 | AL178: 4 | AM178: 1.4 | AN178: 127 | AO178: 5 | AP178: 0 | AQ178: 1 | AR178: 0 | AS178: 2.5 | AT178: 0 | AU178: NFT | AV178: 360 | AW178: CASE | AX178: TRUE | BK178: 2022-10-31T09:33:20 | BL178: 2022-10-07T11:52:30 | BM178: Whole Grain Rolled Oats | BN178: FALSE
A179: 100465 | B179: Oats, Rolled, Quick Cooking | C179: Grains | D179: 00791669620226 | E179: Ralston Foods | F179: Bay Valley Foods | G179: Bay Valley Foods | H179: RALSTON FOODS 42 OZ QUICK OATS | I179: OATS QUICK | J179: OATMEAL | K179: CHILD_NUTRITION_FOOD_PROGRAMS | L179: 40 | M179: GRM | N179: BY_SERVING | O179: 40 | P179: GRM | Q179: 1/2 cup dry | R179: UNPREPARED | AF179: 0 | AG179: 27 | AH179: 0 | AI179: 150 | AJ179: 0.5 | AK179: 0 | AL179: 4 | AM179: 1.6 | AN179: 150 | AO179: 5 | AP179: 0 | AQ179: 0 | AR179: 0 | AS179: 2.5 | AT179: 0 | AU179: US_FDA_NFP_2020_STANDARD | AV179: =30*12 -> 360 | AW179: BASE_UNIT_OR_EACH | AY179: FREE_FROM | AZ179: FREE_FROM | BA179: FREE_FROM | BB179: FREE_FROM | BC179: FREE_FROM | BD179: FREE_FROM | BE179: FREE_FROM | BF179: FREE_FROM | BG179: FREE_FROM | BH179: AS, UW, AC, AE, AF, AY, AM, AN, AP, UM, UN | BI179: Orthodox Union (OU) | BK179: 2025-07-07 08:22:08 | BL179: 2025-07-07 05:05:09 | BM179: Whole Grain Rolled Oats | BN179: FALSE
A180: 100494 | B180: Rice, Long Grain, Parboiled | C180: Grains | D180: 00035200265492 | E180: Riceland | F180: Riceland Foods | G180: Riceland Foods | H180: 25 lb Delta Star Parboiled Rice. Rough rice that has gone through a steam-pressure process before milling. | I180: 25 LB POLYWEAVE LONG GRAIN PB DELTA | J180: Delta Star 25lb PB POLYWEAVE | K180: CHILD_NUTRITION_FOOD_PROGRAMS | L180: 47 | M180: GRM | N180: BY_SERVING | O180: 47 | P180: GRM | Q180: 1/4 cup | R180: UNPREPARED | AF180: 50 | AG180: 37 | AH180: 0 | AI180: 170 | AJ180: 0 | AK180: 0 | AL180: 0 | AM180: 1.4 | AN180: 70 | AO180: 4 | AP180: 0 | AQ180: 0 | AR180: 0 | AS180: 0 | AT180: 0 | AV180: 250 | AW180: CASE | AY180: FREE_FROM | AZ180: FREE_FROM | BA180: FREE_FROM | BB180: FREE_FROM | BC180: FREE_FROM | BD180: FREE_FROM | BE180: FREE_FROM | BF180: FREE_FROM | BG180: FREE_FROM | BH180: AS, AU, AW, BM, NM, AC, AE, AF, AM, AN, AP, AY, UM, UW | BK180: 2025-11-03 08:54:44 | BL180: 2025-09-30 13:45:58 | BM180: Long Grain Parboiled Rice, Iron Phosphate, Niacin, Thiamine Mononitrate, and Folic Acid. | BN180: FALSE
A181: 100500 | B181: Rice, Brown, Long Grain, Parboiled | C181: Grains | D181: 10035200265673 | E181: Chefway | F181: Riceland Foods | G181: Riceland Foods | H181: 24/2 Chefway Parboiled Long Grain Brown Rice | I181: RICE BRN US#1 LONG PARBOILED PKG-24 | J181: Grains/Cereal - Not Ready to Eat - | K181: CHILD_NUTRITION_FOOD_PROGRAMS | L181: 44 | M181: GRM | N181: BY_SERVING | O181: 44 | P181: GRM | Q181: 1/4 cup | R181: DRY | AF181: 0 | AG181: 32 | AH181: 0 | AI181: 150 | AJ181: 0 | AK181: 0 | AL181: 1 | AM181: 0.5 | AN181: 110 | AO181: 3 | AP181: 0 | AQ181: 0 | AR181: 0 | AS181: 1 | AT181: 0 | AU181: NFT | AV181: 192 | AW181: CASE | AX181: TRUE | AY181: FREE_FROM | AZ181: FREE_FROM | BA181: FREE_FROM | BC181: FREE_FROM | BD181: FREE_FROM | BG181: FREE_FROM | BH181: AS, AU, AW, BM, NM, AC, AE, AF, AM | BK181: 2025-06-02 08:13:46 | BL181: 2025-05-13 14:41:05 | BM181: Parboiled Long Grain Brown Rice | BN181: FALSE
A182: 101031 | B182: Rice, Brown, Long Grain, Parboiled | C182: Grains | D182: 00035200265683 | E182: Chefway | F182: Riceland Foods | G182: Riceland Foods | H182: 25 LB Polyweave 4% PBBRN:CHEFWAY Parboil Brown | I182: 25 LB BAG Chefway PBBRN | J182: Grains/Cereal - Not Ready to Eat - | K182: CHILD_NUTRITION_FOOD_PROGRAMS | L182: 44 | M182: GRM | N182: BY_SERVING | O182: 44 | P182: GRM | Q182: 1/4 cup | R182: DRY | AF182: 0 | AG182: 32 | AH182: 0 | AI182: 150 | AJ182: 0 | AK182: 0 | AL182: 1 | AM182: 0.5 | AN182: 110 | AO182: 3 | AP182: 0 | AQ182: 0 | AR182: 0 | AS182: 1 | AT182: 0 | AU182: NFT | AV182: 275 | AW182: CASE | AX182: TRUE | AY182: FREE_FROM | AZ182: FREE_FROM | BA182: FREE_FROM | BB182: FREE_FROM | BC182: FREE_FROM | BD182: FREE_FROM | BE182: FREE_FROM | BF182: FREE_FROM | BG182: FREE_FROM | BH182: AS, AU, AW, BM, NM, AC, AE, AF, AM, AN, AP, AY, UM, UW | BK182: 2025-06-02 08:13:46 | BL182: 2025-05-13 14:39:32 | BM182: Parboiled Long Grain Brown Rice | BN182: FALSE
A183: 110177 | B183: Spaghetti Sauce, Low-sodium, Pouch | C183: Vegetables | D183: 10715001101775 | E183: Tomatek | F183: Neil Jones Food Company | G183: The Neil Jones Food Company | H183: TomaTek Low Sodium Spaghetti Sauce Meatless 6 pack 106oz Pouches | I183: Low Sodium Spaghetti Sauce | J183: Spaghetti Sauce | K183: CHILD_NUTRITION_FOOD_PROGRAMS | L183: 124 | M183: GRM | N183: BY_SERVING | Q183: 1/2 cup | R183: READY_TO_EAT | AF183: 19 | AG183: 8 | AH183: 0 | AI183: 35 | AJ183: 0 | AK183: 0 | AL183: 2 | AM183: 1 | AN183: 422 | AO183: 2 | AP183: 65 | AQ183: 5 | AR183: 0 | AS183: 0 | AT183: 0 | AU183: US_FDA_NFP_2020_STANDARD | AV183: 144 | AW183: CASE | AX183: TRUE | AY183: FREE_FROM | AZ183: FREE_FROM | BA183: FREE_FROM | BB183: FREE_FROM | BC183: FREE_FROM | BD183: FREE_FROM | BE183: FREE_FROM | BF183: FREE_FROM | BG183: FREE_FROM | BH183: AM, AE, AF, AC, AP, AY, UW, AN, AS, UN, UM | BI183: Orthodox Union | BJ183: The Islamic Food and Nutrition Council of America | BK183: 2025-08-01 09:35:39 | BL183: 2025-07-10 12:38:13 | BM183: Tomato Puree (Water, Tomato Paste), Salt, Onion Powder, Garlic Powder, Spices, Soybean Oil, Citric Acid | BN183: FALSE
A184: 110186 | B184: Salsa, Low-sodium, Pouch | C184: Vegetables | D184: 10715001101867 | E184: Tomatek | F184: Neil Jones Food Company | G184: The Neil Jones Food Company | H184: TomaTek Tomato Salsa Mild Low Sodium 6 pack 106oz Pouches | I184: Low Sodium Tomato Salsa Mild | J184: Salsa | K184: CHILD_NUTRITION_FOOD_PROGRAMS | L184: 125 | M184: GRM | N184: BY_SERVING | Q184: 1/2 cup | R184: READY_TO_EAT | AF184: 18 | AG184: 8 | AH184: 0 | AI184: 35 | AJ184: 0 | AK184: 0 | AL184: 2 | AM184: 1 | AN184: 416 | AO184: 2 | AP184: 70 | AQ184: 5 | AR184: 0 | AS184: 0 | AT184: 0 | AU184: US_FDA_NFP_2020_STANDARD | AV184: 144 | AW184: CASE | AX184: TRUE | AY184: FREE_FROM | AZ184: FREE_FROM | BA184: FREE_FROM | BB184: FREE_FROM | BC184: FREE_FROM | BD184: FREE_FROM | BE184: FREE_FROM | BF184: FREE_FROM | BG184: FREE_FROM | BH184: AM, AE, AF, AC, AP, AY, UW, AN, AS, UN, UM | BI184: Orthodox Union | BJ184: The Islamic Food and Nutrition Council of America | BK184: 2025-08-01 09:35:39 | BL184: 2025-07-10 12:37:47 | BM184: Tomato Puree (Water, Tomato Paste), Tomatoes, Jalapeno Peppers, Vinegar, Corn Syrup, Dehydrated Onion, Salt, Natural Flavors, Spices, Garlic Powder, Green Bell Peppers, Modified Food Starch, Xanthan Gum | BN184: FALSE
A185: 110187 | B185: Tomato Sauce, Low-sodium, Pouch | C185: Vegetables | D185: 10715001101874 | E185: Tomatek | F185: Neil Jones Food Company | G185: The Neil Jones Food Company | H185: USDA Low Sodium Tomato Sauce 6 pack 106oz Pouches | I185: Low Sodium Tomato Sauce | J185: Tomato Sauce | K185: CHILD_NUTRITION_FOOD_PROGRAMS | L185: 120 | M185: GRM | N185: BY_SERVING | Q185: 1/2 cup | R185: READY_TO_EAT | AF185: 19 | AG185: 9 | AH185: 0 | AI185: 40 | AJ185: 0 | AK185: 0 | AL185: 2 | AM185: 1 | AN185: 482 | AO185: 2 | AP185: 100 | AQ185: 6 | AR185: 0 | AS185: 0 | AT185: 0 | AU185: US_FDA_NFP_2020_STANDARD | AV185: 150 | AW185: CASE | AX185: TRUE | AY185: FREE_FROM | AZ185: FREE_FROM | BA185: FREE_FROM | BB185: FREE_FROM | BC185: FREE_FROM | BD185: FREE_FROM | BE185: FREE_FROM | BF185: FREE_FROM | BG185: FREE_FROM | BH185: AM, AE, AF, AC, AP, AY, UW, AN, AS, UN, UM | BI185: Orthodox Union | BJ185: The Islamic Food and Nutrition Council of America | BK185: 2025-08-01 09:35:39 | BL185: 2025-07-10 12:38:00 | BM185: Tomato Puree (Water, Tomato Paste), Salt, Onion Powder, Garlic Powder, Natural Flavors, Spices, Citric Acid | BN185: FALSE
A186: 110208 | B186: Flour, White Whole Wheat/Enriched 60/40 Blend | C186: Grains | D186: 00076929012257 | E186: SCFM | F186: Stafford County Flour Mills | G186: STAFFORD COUNTY FLOUR MILLS | H186: 60% White Whole Wheat, 40% AP Flour | I186: 60/40 WWW/AP BLend | J186: 60/40 Blend | L186: 30 | M186: GRM | N186: BY_MEASURE | O186: 30 | P186: GRM | Q186: 1/4 cup | R186: UNPREPARED | AF186: 10 | AG186: 23 | AH186: 0 | AI186: 100 | AJ186: 0 | AK186: 0 | AL186: 4 | AM186: 1 | AN186: 84 | AO186: 3 | AP186: 0 | AQ186: 1 | AR186: 0 | AS186: 0.5 | AT186: 0 | AV186: 375 | AW186: BASE_UNIT_OR_EACH | AX186: TRUE | BG186: CONTAINS | BH186: UW | BI186: Orthodox Union | BK186: 2024-05-01T10:15:53 | BL186: 2024-04-03T09:09:40 | BM186: White Whole Wheat Flour, Enriched Bleached Wheat Flour (Wheat Flour, Niacin, Reduced Iron, Thiamine Mononitrate, Riboflavin, Folic Acid), Enzyme For Improved Baking. | BN186: FALSE
A187: 110211 | B187: Flour, White Whole Wheat/Enriched 60/40 Blend | C187: Grains | D187: 00076929012059 | E187: Stafford County Flour Mills | F187: Stafford County Flour Mills | G187: STAFFORD COUNTY FLOUR MILLS | H187: Stafford County Flour Mills 60% White Whole Wheat - 40% All-Purpose Blend, 5 lb. bag | I187: SCFM 60/40 5 | J187: SCFM 60/40 5 | K187: CHILD_NUTRITION_FOOD_PROGRAMS | L187: 30 | M187: GRM | N187: BY_SERVING | O187: 30 | P187: GRM | Q187: 1/4 cup | R187: UNPREPARED | AF187: 10 | AG187: 23 | AH187: 0 | AI187: 100 | AJ187: 0 | AK187: 0 | AL187: 4 | AM187: 1 | AN187: 84 | AO187: 3 | AP187: 0 | AQ187: 1 | AR187: 0 | AS187: 0.5 | AT187: 0 | AU187: US_FDA_NFP_2020_STANDARD_SIDE_BY_SIDE | AV187: =75*8 -> 600 | AW187: BASE_UNIT_OR_EACH | AY187: FREE_FROM | AZ187: FREE_FROM | BA187: FREE_FROM | BB187: FREE_FROM | BC187: FREE_FROM | BD187: FREE_FROM | BE187: FREE_FROM | BF187: FREE_FROM | BG187: CONTAINS | BH187: AP, AN, AM, AE, AY, UW, AF, AC, AS | BI187: Orthodox Union | BK187: 2024-04-01T08:41:33 | BL187: 2024-03-01T09:50:37 | BM187: White Whole Wheat Flour, Enriched Bleached Wheat Flour (Wheat Flour, Niacin, Reduced Iron, Thiamine Mononitrate, Riboflavin, Folic Acid), Enzyme For Improved Baking. | BN187: FALSE
A188: 110261 | B188: Beef, Fine Ground, 100%, 85/15, LFTB OPT, Raw, Frozen | C188: Beef | D188: 00195893656684 | E188: Criss Cross Express of Illinois, LLC | F188: Jancorp, LLC dba Criss Cross Express of IL, LLC | G188: Jancorp, LLC dba Criss Cross Express of IL, LLC | I188: Beef, Fine Ground | J188: Beef - Unprepared/Unprocessed | K188: CHILD_NUTRITION_FOOD_PROGRAMS | L188: 112 | M188: GRM | N188: BY_SERVING | O188: 112 | P188: GRM | Q188: 3.95 ounce | R188: UNPREPARED | AF188: 0 | AG188: 0 | AH188: 70 | AI188: 240 | AJ188: 7 | AK188: 0 | AL188: 0 | AM188: 1 | AN188: 0 | AO188: 22 | AP188: 65 | AQ188: 0 | AR188: 0 | AS188: 17 | AT188: 0 | AU188: AB | AV188: 160 | AW188: CASE | AY188: FREE_FROM | AZ188: FREE_FROM | BA188: FREE_FROM | BB188: FREE_FROM | BC188: FREE_FROM | BD188: FREE_FROM | BE188: FREE_FROM | BF188: FREE_FROM | BG188: FREE_FROM | BH188: AE, AM, AP, AS, AY, AN, UW, AC, AF, UM, BM | BK188: 2025-02-03 09:14:02 | BL188: 2025-01-29 12:37:12 | BM188: Beef - 100% | BN188: FALSE
A189: 110261 | B189: Beef, Fine Ground, 100%, 85/15, LFTB OPT, Raw, Frozen | C189: Beef | D189: 00195893253012 | E189: Criss Cross Express of Illinois, LLC | F189: Mainstay Distributing, LLC Criss Cross Express of Illinois, LLC | G189: Mainstay Distributing, LLC | H189: Beef, Fine Ground, 100%, 85/15, LFTB OPT, Raw, Frozen | I189: Beef, Fine Ground | J189: Beef - Unprepared/Unprocessed | K189: CHILD_NUTRITION_FOOD_PROGRAMS | L189: 112 | M189: GRM | N189: BY_SERVING | O189: 112 | P189: GRM | Q189: 3.95 ounce | R189: UNPREPARED | AF189: 0 | AG189: 0 | AH189: 70 | AI189: 240 | AJ189: 7 | AK189: 0 | AL189: 0 | AM189: 1 | AN189: 0 | AO189: 22 | AP189: 65 | AQ189: 0 | AR189: 0 | AS189: 17 | AT189: 0 | AU189: AB | AV189: 160 | AW189: CASE | AX189: FALSE | AY189: FREE_FROM | AZ189: FREE_FROM | BA189: FREE_FROM | BB189: FREE_FROM | BC189: FREE_FROM | BD189: FREE_FROM | BE189: FREE_FROM | BF189: FREE_FROM | BG189: FREE_FROM | BH189: AE, AM, AP, AS, AY, AN, UW, AC, AF, UM, BM | BK189: 2025-04-01 08:31:52 | BL189: 2025-03-05 08:55:08 | BM189: Beef - 100% | BN189: FALSE
A190: 110322 | B190: Beef, Patties w/SPP, Cooked, 2.0 MMA, Frozen | C190: Beef | D190: 00087427425869 | E190: Don Lee Farms | F190: Goodman Food Products Inc. | G190: Goodman Food Products | H190: Fully Cooked Home-Style Beef Patty w/SPP | I190: Fully Cooked Home-Style Beef Patty | J190: Beef Patties | K190: CHILD_NUTRITION_FOOD_PROGRAMS | L190: 62 | M190: GRM | N190: BY_SERVING | O190: 62 | P190: GRM | Q190: 2.2 ounce patty | R190: BAKE | S190: Each 2.2 ounce fully cooked home-style beef patty provides 2 ounce equivalent meat/meat alternate | Y190: https://dam.catalog.1worldsync.com/im/dwn/GCP-6453002265165824 | AF190: 17 | AG190: 1 | AH190: 30 | AI190: 120 | AJ190: 3 | AK190: 0 | AL190: 1 | AM190: 1 | AN190: 598 | AO190: 11 | AP190: 210 | AQ190: 0 | AS190: 8 | AV190: 291 | AW190: CASE | AX190: TRUE | BE190: CONTAINS | BH190: AY | BK190: 2023-06-01T09:03:07 | BL190: 2023-01-12T16:24:30 | BM190: Ground Beef (Not More Than 20% Fat), Water, Soy Protein Concentrate, (Caramel Color), Seasoning (Salt, Sodium & Potassium Phosphates, Autolyzed Yeast, Potassium Chloride, Caramel Color, Natural Flavors). Contains: Soy. | BN190: FALSE
A191: 110322 | B191: Beef, Patties w/SPP, Cooked, 2.0 MMA, Frozen | C191: Beef | D191: 10810869031926 | E191: Mistica Ranch | F191: Mistica Foods LLC | G191: Mistica Foods, LLC | H191: Beef Patty SPP Home style CKD 40lb | I191: Beef Patty SPP Home style CKD 40lb | J191: Beef Patty SPP Home Style CKD | L191: 62 | M191: GRM | N191: BY_MEASURE | O191: 100 | P191: GRM | Q191: 1 patty (2.2 ounce) | R191: HEAT_AND_SERVE | S191: Each 2.2 ounce fully cooked home-style beef patty provides 2 ounce equivalent meat/meat alternate | Y191: https://assets.edgenet.com/4bf7192d-38d3-4eea-8b55-10d8262e2ec1 | AF191: 19 | AG191: 1.86 | AH191: 31 | AI191: 118 | AJ191: 2.79 | AK191: 0.31 | AL191: 1.2 | AM191: 1.3 | AN191: 236 | AO191: 11.16 | AP191: 205 | AQ191: 0.62 | AR191: 0 | AS191: 6.82 | AT191: 1 | AV191: 73 | AW191: CASE | AX191: TRUE | BE191: CONTAINS | BH191: AY | BK191: 2024-12-02 08:27:14 | BL191: 2024-11-14 16:07:00 | BM191: Ground Beef (Not More Than 15% Fat), Water, Textured Soy Protein (Soy Flour, Caramel Color), Contains Less Than 2 % Of Onion, Modified Food Starch, Salt, Sugar, Xanthan Gum, Calcium Chloride, Garlic Powder, Spice. | BN191: TRUE
A192: 110346 | B192: Beef, Patties, 100%, 90/10, Raw, 2.0 MMA, Frozen | C192: Beef | D192: 00079183103464 | E192: Cherry Meat Packers | F192: Cherry Meat Packers, Inc. | G192: cherry meat packers, inc. | I192: Beef Patties, 100% 90/10 | J192: Beef - Unprepared/Unprocessed | K192: CHILD_NUTRITION_FOOD_PROGRAMS | L192: 80 | M192: GRM | N192: BY_MEASURE | O192: 80 | P192: GRM | Q192: 1 patty (3 ounce) | R192: UNPREPARED | AF192: 0 | AG192: 0 | AH192: 50 | AI192: 130 | AJ192: 3 | AK192: 0 | AL192: 0 | AM192: 2 | AO192: 15 | AP192: 50 | AQ192: 0 | AS192: 8 | AU192: NFT | AV192: 225 | AW192: CASE | AY192: NOT_INTENTIONALLY_NOR_INHERENTLY_INCLUDED | AZ192: NOT_INTENTIONALLY_NOR_INHERENTLY_INCLUDED | BA192: NOT_INTENTIONALLY_NOR_INHERENTLY_INCLUDED | BB192: NOT_INTENTIONALLY_NOR_INHERENTLY_INCLUDED | BC192: NOT_INTENTIONALLY_NOR_INHERENTLY_INCLUDED | BD192: NOT_INTENTIONALLY_NOR_INHERENTLY_INCLUDED | BE192: NOT_INTENTIONALLY_NOR_INHERENTLY_INCLUDED | BF192: NOT_INTENTIONALLY_NOR_INHERENTLY_INCLUDED | BG192: NOT_INTENTIONALLY_NOR_INHERENTLY_INCLUDED | BH192: AE, AF, AM, AP, AS, UN, AY, AN, UW | BK192: 2023-09-01T09:15:44 | BL192: 2023-05-05T11:02:59 | BM192: Beef | BN192: FALSE
A193: 110349 | B193: Beef, Patties, 100%, 85/15, Raw, 2.0 MMA, Frozen | C193: Beef | D193: 00079183103495 | E193: Cherry Meat Packers | F193: Cherry Meat Packers, Inc. | G193: cherry meat packers, inc. | I193: Beef Patties, 100% 85/15 Frozen | J193: Beef - Unprepared/Unprocessed | K193: CHILD_NUTRITION_FOOD_PROGRAMS | L193: 80 | M193: GRM | N193: BY_SERVING | Q193: 1 patty (3 ounce) | R193: UNPREPARED | AF193: 0 | AG193: 3 | AH193: 45 | AI193: 180 | AJ193: 5 | AK193: 0 | AL193: 0 | AM193: 2 | AO193: 12 | AP193: 45 | AQ193: 0 | AS193: 12 | AU193: NFT | AV193: 225 | AW193: CASE | AY193: NOT_INTENTIONALLY_NOR_INHERENTLY_INCLUDED | AZ193: NOT_INTENTIONALLY_NOR_INHERENTLY_INCLUDED | BA193: NOT_INTENTIONALLY_NOR_INHERENTLY_INCLUDED | BB193: NOT_INTENTIONALLY_NOR_INHERENTLY_INCLUDED | BC193: NOT_INTENTIONALLY_NOR_INHERENTLY_INCLUDED | BD193: NOT_INTENTIONALLY_NOR_INHERENTLY_INCLUDED | BE193: NOT_INTENTIONALLY_NOR_INHERENTLY_INCLUDED | BF193: NOT_INTENTIONALLY_NOR_INHERENTLY_INCLUDED | BG193: NOT_INTENTIONALLY_NOR_INHERENTLY_INCLUDED | BH193: AE, AF, AM, AP, AS, UN, AY, AN, UW | BK193: 2023-09-01T09:35:02 | BL193: 2023-05-05T11:09:46 | BM193: Beef | BN193: FALSE
A194: 110349 | B194: Beef, Patties, 100%, 85/15, Raw, 2.0 MMA, Frozen | C194: Beef | D194: 90052846160083 | E194: Palo Duro Brand | F194: Palo Duro Meat | G194: Palo Duro Meat | H194: BEEF, PATTIES, 85/15, FROZEN | I194: BEEF, PATTIES, 85/15, FROZEN | J194: BEEF | K194: CHILD_NUTRITION_FOOD_PROGRAMS | L194: 80 | M194: GRM | N194: BY_CHILD_NUTRITION_SERVING | O194: 2 | P194: ONZ | Q194: 1 patty | R194: UNSPECIFIED | AG194: 0 | AH194: 54 | AI194: 172 | AJ194: 5 | AK194: 1 | AL194: 0 | AO194: 15 | AP194: 53 | AQ194: 0 | AS194: 12 | AV194: 229 | AW194: CASE | AX194: TRUE | BH194: X99 | BK194: 2022-09-19T05:22:15 | BL194: 2022-05-06T16:47:41 | BM194: Beef | BN194: FALSE
A195: 110361 | B195: Applesauce, Unsweetened, Cups, Shelf-Stable | C195: Fruit | D195: 00042396615321 | E195: Food Service | F195: Burnette Foods, Inc. | G195: Burnette Foods, Inc. | H195: FOOD SERVICE 96/4.5 UNSWEETENED APPLESAUCE | I195: FD SVC 96/4.5 UNSW APPLESA | J195: APPLESAUCE | L195: 126 | M195: GRM | N195: BY_SERVING | O195: 126 | P195: GRM | Q195: 1/2 cup | R195: UNPREPARED | AF195: 5 | AG195: 14 | AH195: 0 | AI195: 50 | AJ195: 0 | AK195: 0 | AL195: 1 | AM195: 0 | AO195: 0 | AP195: 0 | AQ195: 12 | AR195: 0 | AS195: 0 | AT195: 0 | AV195: 96 | AW195: BASE_UNIT_OR_EACH | AX195: TRUE | BH195: X99 | BK195: 2025-11-03 08:54:44 | BL195: 2025-10-16 06:22:49 | BM195: Apples, Water, Ascorbic Acid (To Maintain Color) | BN195: FALSE
A196: 110361 | B196: Applesauce, Unsweetened, Cups, Shelf-Stable | C196: Fruit | D196: 00041760091167 | E196: Cherry Central Cooperative | F196: Cherry Central | G196: CHERRY CENTRAL | H196: Unsweetened Apple Sauce Cups 96/4.5 | I196: Unsweetened Apple Sauce Cups | J196: Apple Sauce | K196: CHILD_NUTRITION_FOOD_PROGRAMS | L196: 128 | M196: GRM | N196: BY_SERVING | O196: 128 | P196: GRM | Q196: 4.5 oz cup | R196: READY_TO_EAT | AF196: 5 | AG196: 14 | AH196: 0 | AI196: 50 | AJ196: 0 | AK196: 0 | AL196: 1 | AM196: 0 | AN196: 95 | AO196: 0 | AP196: 0 | AQ196: 12 | AR196: 0 | AS196: 0 | AT196: 0 | AV196: 96 | AW196: BASE_UNIT_OR_EACH | AX196: TRUE | AY196: FREE_FROM | AZ196: FREE_FROM | BA196: FREE_FROM | BB196: FREE_FROM | BC196: FREE_FROM | BD196: FREE_FROM | BE196: FREE_FROM | BF196: FREE_FROM | BG196: FREE_FROM | BH196: AM, AP, AS, AY, AN, UW, AC, AE, AF, UM, BM | BI196: Orthodox Union | BK196: 2025-04-01 08:31:52 | BL196: 2025-03-26 11:19:37 | BM196: Apples, Water, Ascorbic Acid (To Maintain Color) | BN196: FALSE
A197: 110361 | B197: Applesauce, Unsweetened, Cups, Shelf-Stable | C197: Fruit | D197: 10604774202119 | E197: Peterson Farms | F197: Peterson Farms Fresh, Inc. | G197: Peterson Farms, Inc. | H197: Unsweetened Original Applesauce | I197: Unsweetened Original Applesauce | J197: Unsweetened Original Applesauce | L197: 128 | M197: GRM | N197: BY_PACKAGE_OR_CONTAINER | O197: 4.5 | P197: ONZ | Q197: 4.5 ounce cup | R197: READY_TO_EAT | AF197: 5 | AG197: 14 | AH197: 0 | AI197: 50 | AJ197: 0 | AK197: 0 | AL197: 1 | AM197: 0 | AN197: 95 | AO197: 0 | AP197: 0 | AQ197: 12 | AR197: 0 | AS197: 0 | AT197: 0 | AU197: US_FDA_NFP_2020_STANDARD | AV197: 96 | AW197: CASE | AX197: TRUE | AY197: FREE_FROM | AZ197: FREE_FROM | BA197: FREE_FROM | BB197: FREE_FROM | BC197: FREE_FROM | BD197: FREE_FROM | BE197: FREE_FROM | BF197: FREE_FROM | BG197: FREE_FROM | BH197: AM, AE, AY, UW, AP, AN, AF, UN, AS | BK197: 2023-11-01T08:45:47 | BL197: 2023-10-16T13:52:00 | BM197: Apples, Water, Ascorbic Acid (Vitamin C) | BN197: FALSE
A198: 110393 | B198: Pancakes, Whole Grain or Whole Grain-Rich, Frozen | C198: Grains | D198: 10786294720165 | E198: Echo Lake Foods | F198: Echo Lake Foods | G198: Echo Lake Foods | H198: Whole Wheat Pancakes | I198: Whole Wheat Pancakes | J198: Whole Wheat Pancakes | L198: 68 | M198: GRM | N198: BY_SERVING | O198: 68 | P198: GRM | Q198: 2.4 ounce (2 each) | R198: PREPARED | AF198: 63 | AG198: 26 | AH198: 5 | AI198: 130 | AJ198: 0 | AK198: 0 | AL198: 3 | AM198: 1 | AN198: 111 | AO198: 4 | AP198: 250 | AQ198: 6 | AR198: 6 | AS198: 2 | AT198: 0 | AV198: 72 | AW198: CASE | AX198: TRUE | AY198: CONTAINS | BA198: CONTAINS | BG198: CONTAINS | BH198: AE, AM, UW | BK198: 2023-06-01T09:09:26 | BL198: 2023-05-15T14:43:49 | BM198: Whole Wheat Flour, Water, Buttermilk, Sugar, Dextrose, Soybean Oil, Baking Powder, Whole Eggs, Salt | BN198: FALSE
A199: 110394 | B199: Tortillas, Whole Grain or Whole Grain-Rich, 8 inch, Frozen | C199: Grains | D199: 10729630400284 | E199: Catallia | F199: Catallia Mexican Foods | G199: Catallia Mexican Foods LLC | H199: 8″ Pressed 100% Whole Wheat Tortilla | I199: 8″ Pressed 100% Whole Wheat Tortill | J199: Tortilla | L199: 44 | M199: GRM | N199: BY_SERVING | O199: 44 | P199: GRM | Q199: 1 tortilla | R199: READY_TO_EAT | AF199: 38 | AG199: 18 | AH199: 0 | AI199: 110 | AJ199: 1.5 | AK199: 0 | AL199: 3 | AM199: 1 | AN199: 152 | AO199: 3 | AP199: 160 | AQ199: 1 | AR199: 1 | AS199: 3 | AT199: 0 | AV199: =24*12 -> 288 | AW199: CASE | AX199: TRUE | BG199: CONTAINS | BH199: UW | BK199: 2025-06-02 08:13:46 | BL199: 2025-05-27 13:42:00 | BM199: Whole Wheat Flour, Water, Vegetable Shortening (Soybean Oil, Fully Hydrogenated Soybean Oil), Contains 2% or less of the Following: Sugar, Salt, Baking Powder (Sodium Bicarbonate, Corn Starch, Sodium Aluminum Sulfate, Calcium Sulfate, Monocalcium Phosphate), Vital Wheat Gluten, Monoglycerides, Potassium Sorbate, Calcium Propionate and/or Sodium Propionate (Preservative), Fumaric Acid, Dough Conditioner (Sodium Metabisulfite, Corn Starch, Microcrystalline Cellulose, Dicalcium Phosphate). | BN199: FALSE
A200: 110396 | B200: Cheese, Mozzarella, Low Moisture Part Skim, String, Chilled | C200: Cheese | D200: 00046100007006 | E200: Sargento | F200: Sargento Foods Inc. | G200: SARGENTO FOODS INC. | H200: 1 oz Sargento Low Moisture Part-Skim Mozzarella String Cheese IW (USDA) | I200: 1 OZ SRG STR CH IW (USDA) | J200: Cheese Sticks | K200: CHILD_NUTRITION_FOOD_PROGRAMS | L200: 28 | M200: GRM | N200: BY_SERVING | O200: 28 | P200: GRM | Q200: 1 piece | R200: READY_TO_EAT | AF200: 210 | AG200: 1 | AH200: 15 | AI200: 90 | AJ200: 3 | AK200: 0 | AL200: 0 | AM200: 0.1 | AN200: 50 | AO200: 7 | AP200: 190 | AQ200: 0 | AR200: 0 | AS200: 6 | AT200: 0.1 | AV200: 360 | AW200: BASE_UNIT_OR_EACH | AX200: TRUE | AY200: FREE_FROM | AZ200: FREE_FROM | BA200: CONTAINS | BB200: FREE_FROM | BC200: FREE_FROM | BD200: FREE_FROM | BE200: FREE_FROM | BF200: FREE_FROM | BG200: FREE_FROM | BH200: AC, AE, AF, AM, AN, AP, AY, UM, UW, AS | BK200: 2025-11-03 08:54:44 | BL200: 2025-10-23 10:15:11 | BM200: Pasteurized Part-Skim Milk, Cheese Culture, Salt, Enzymes. Contains: Milk | BN200: FALSE
... 111 more rows

Sheet Material List (hidden)
D1: Material Code | E1: USDA Foods Description | F1: Category | G1: Product Description | H1: Pack Size | I1: USDA Preferred Serving Size for GS1 GDSN | J1: CN Crediting | L1: Category | N1: Material Code / Description
D2: 100127 | E2: Beef, Coarse Ground, Cooked, Canned | F2: Beef | G2: This item is coarse ground beef cooked in its own juices and canned. This product is delivered in cases containing twenty-four 24-ounce cans. | H2: 24/24 oz can | I2: 2.00 oz (1 oz equivalent meat) | J2: 1 ounce of heated canned beef credits as 1 ounce equivalent meat/meat alternate | L2: Beef | N2: 100002 Cheese, Cheddar, White, Shredded, Chilled
D3: 100134 | E3: Beef, Crumbles w/SPP, Cooked, Frozen | F3: Beef | G3: This item is fully cooked ground beef with soy protein product (SPP) that is in approximately 1/4 inch crumbles with a light seasoning profile. This product is delivered frozen in cases with four 10-pound packages. | H3: 4/10 lb bag | I3: 1.00 oz equivalent meat/meat alternate* | J3: Approximately 1.15 ounces of fully cooked beef crumbles credits as 1 ounce equivalent meat/meat alternate. Use vendor CN Label or Product Formulation Statement to confirm crediting information. | L3: Cheese | N3: 100003 Cheese, Cheddar, Yellow, Shredded, Chilled
D4: 100158 | E4: Beef, Fine Ground, 100%, 85/15, Raw, Frozen | F4: Beef | G4: This item is 85/15 fine ground beef. This product is shipped in 40 pound cases containing four 10-pound vacuum-sealed packages. | H4: 40 lb case | I4: 1.34 oz (1 oz equivalent meat) | J4: One 1.34-ounce portion of 85/15 raw ground beef credits as 1 ounce equivalent meat/meat alternate | L4: Egg products | N4: 100012 Cheese, Cheddar, Yellow, Reduced Fat, Shredded, Chilled
D5: 110261 | E5: Beef, Fine Ground, 100%, 85/15, LFTB OPT, Raw, Frozen | F5: Beef | G5: This item is 85/15 fine ground beef that may contain lean finely textured beef. This product is delivered frozen in a 40 pound case containing four 10-pound vacuum-sealed packages. | H5: 40 lb case | I5: 1.34 oz (1 oz equivalent meat) | J5: One 1.34-ounce portion of 85/15 raw ground beef credits as 1 ounce equivalent meat/meat alternate | L5: Fish | N5: 100017 Cheese, American, Yellow, Pasteurized, Loaves, Chilled
D6: 110349 | E6: Beef, Patties, 100%, 85/15, Raw, 2.0 MMA, Frozen | F6: Beef | G6: This item is beef patties made with 85/15 ground beef and no additional ingredients. This product is individually quick frozen and delivered in a 40-pound case. | H6: 40 lb case | I6: One 2.80 oz patty (2 oz equivalent meat/meat alternate) | J6: One 2.8-ounce uncooked beef patty credits as 2 ounce equivalents meat/meat alternate | L6: Fruit | N6: 100018 Cheese, American, Yellow, Pasteurized, Sliced, Chilled
D7: 110346 | E7: Beef, Patties, 100%, 90/10, Raw, 2.0 MMA, Frozen | F7: Beef | G7: This item is a beef patty made with 90/10 ground beef and no additional ingredients. This product is individually quick frozen and delivered in a 40-pound case. | H7: 40 lb case | I7: One 2.80 oz patty (2 oz equivalent meat/meat alternate) | J7: One 2.8-ounce uncooked beef patty credits as 2 ounce equivalents meat/meat alternate | L7: Grains | N7: 100019 Cheese, American, White, Pasteurized, Sliced, Chilled
D8: 100163 | E8: Beef, Patties, Lean, Raw, 2.0 MMA, Frozen | F8: Beef | G8: This item is a beef patty made with lean beef that contains no more than 5% fat. This product is individually quick frozen and delivered in a 40 pound case. | H8: 40 lb case | I8: One 3.10 oz patty (2 oz equivalent meat/meat alternate)* | J8: One 3.1-ounce uncooked lean beef patty credits as 2 ounce equivalents meat/meat alternate. Use vendor CN Label or Product Formulation Statement to confirm crediting information. | L8: Legumes | N8: 100021 Cheese, Mozzarella, Low Moisture Part Skim, Shredded, Frozen
D9: 110348 | E9: Beef, Patties w/SPP, 85/15, Raw, 2.0 MMA, Frozen | F9: Beef | G9: This item is a beef patty made with 85/15 ground beef and soy protein product. This product is individually quick frozen and delivered in a 40-pound case. | H9: 40 lb case | I9: One 2.80 oz patty (2 oz equivalent meat/meat alternate)* | J9: One 2.8-ounce uncooked beef patty with SPP credits as 2 ounce equivalents meat/meat alternate. Use vendor CN Label or Product Formulation Statement to confirm crediting information. | L9: Nuts and seeds | N9: 100022 Cheese, Mozzarella, Low Moisture Part Skim, Loaves, Frozen
D10: 110322 | E10: Beef, Patties w/SPP, Cooked, 2.0 MMA, Frozen | F10: Beef | G10: This item is a fully cooked beef patty with soy protein product added. It is delivered frozen in a 40-pound case containing 5-pound, 8-pound, or 10-pound interior packages. | H10: 40 lb case | I10: One 2.20 oz patty (2 oz equivalent meat/meat alternate)* | J10: One 2.2-ounce fully cooked beef patty with SPP credits as 2 ounce equivalents meat/meat alternate. Use vendor CN Label or Product Formulation Statement to confirm crediting information. | L10: Oil | N10: 100034 Cheese, Mozzarella, Lite, Shredded, Frozen
D11: 110711 | E11: Beef, Patties, Cooked, 2.0 MMA, Frozen | F11: Beef | G11: This item is a fully cooked beef patty that contains no binders or extenders. This item is delivered frozen in a 40-pound case containing 2-pound, 5-pound, 8-pound, or 10-pound interior packages. | H11: 40 lb case | I11: One 2.20 oz patty (2 oz equivalent meat/meat alternate)* | J11: One 2.2-ounce fully cooked beef patty credits as 2 ounce equivalents meat/meat alternate. Use vendor CN Label or Product Formulation Statement to confirm crediting information. | L11: Pork | N11: 100036 Cheese, Blended American, Yellow, Reduced Fat, Sliced, Chilled
D12: 100019 | E12: Cheese, American, White, Pasteurized, Sliced, Chilled | F12: Cheese | G12: This item is a pasteurized, processed white American cheese. This product is delivered refrigerated with six 5‐pound loaves per case and 160 1/2‐ounce slices per loaf. | H12: 6/5 lb package | I12: 1.00 oz (1 oz equivalent meat alternate) | J12: 1 ounce processed cheese credits as 1 ounce equivalent meat/meat alternate | L12: Poultry | N12: 100037 Cheese, Blended American, White, Reduced Fat, Sliced, Chilled
D13: 100017 | E13: Cheese, American, Yellow, Pasteurized, Loaves, Chilled | F13: Cheese | G13: This item is a pasteurized, processed yellow American cheese. This product is delivered refrigerated with six 5‐pound loaves per case. | H13: 6/5 lb package | I13: 1.00 oz (1 oz equivalent meat alternate) | J13: 1 ounce processed cheese credits as 1 ounce equivalent meat/meat alternate | L13: Vegetables | N13: 100046 Eggs, Liquid Whole, Frozen
D14: 100018 | E14: Cheese, American, Yellow, Pasteurized, Sliced, Chilled | F14: Cheese | G14: This item is a pasteurized, processed yellow American cheese. This product is delivered refrigerated with six 5‐pound loaves per case and 160 1/2‐ounce slices per loaf. | H14: 6/5 lb package | I14: 1.00 oz (1 oz equivalent meat alternate) | J14: 1 ounce processed cheese credits as 1 ounce equivalent meat/meat alternate | L14: Yogurt | N14: 100101 Chicken, Diced, Cooked, Frozen
D15: 100037 | E15: Cheese, Blended American, White, Reduced Fat, Sliced, Chilled | F15: Cheese | G15: This item is a pasteurized, processed white blended American cheese with a reduced fat profile. This product is delivered refrigerated with six 5‐pound loaves per case and 160 1/2‐ounce slices per loaf. | H15: 6/5 lb package | I15: 1.00 oz (1 oz equivalent meat alternate) | J15: 1 ounce processed cheese credits as 1 ounce equivalent meat/meat alternate | N15: 100117 Chicken, Fajita Seasoned Strips, Cooked, Frozen
D16: 100036 | E16: Cheese, Blended American, Yellow, Reduced Fat, Sliced, Chilled | F16: Cheese | G16: This item is a pasteurized, processed yellow blended American cheese with a reduced fat profile. This product is delivered refrigerated with six 5‐pound loaves per case and 160 1/2‐ounce slices per loaf. | H16: 6/5 lb package | I16: 1.00 oz (1 oz equivalent meat alternate) | J16: 1 ounce processed cheese credits as 1 ounce equivalent meat/meat alternate | N16: 100119 Turkey, Taco Filling, Cooked, Frozen
D17: 100002 | E17: Cheese, Cheddar, White, Shredded, Chilled | F17: Cheese | G17: This item is U.S. Grade A or higher white cheddar cheese. This product is shredded and is shipped refrigerated in cases containing six 5‐pound bags. | H17: 6/5 lb bag | I17: 1.00 oz (1 oz equivalent meat alternate) | J17: 1 ounce cheddar cheese credits as 1 ounce equivalent meat/meat alternate | N17: 100121 Turkey, Deli Breast, Frozen
D18: 100012 | E18: Cheese, Cheddar, Yellow, Reduced Fat, Shredded, Chilled | F18: Cheese | G18: This item is U.S. Grade A or higher yellow cheddar cheese with a reduced fat profile. This product is shredded and is shipped refrigerated in cases containing six 5‐pound bags. | H18: 6/5 lb bag | I18: 1.00 oz (1 oz equivalent meat alternate) | J18: 1 ounce cheese credits as 1 ounce equivalent meat/meat alternate | N18: 100122 Turkey, Deli Breast, Smoked, Frozen
D19: 100003 | E19: Cheese, Cheddar, Yellow, Shredded, Chilled | F19: Cheese | G19: This item is U.S. Grade A or higher yellow cheddar cheese. This product is shredded and is shipped refrigerated in cases containing six 5‐pound bags. | H19: 6/5 lb bag | I19: 1.00 oz (1 oz equivalent meat alternate) | J19: 1 ounce cheddar cheese credits as 1 ounce equivalent meat/meat alternate | N19: 100125 Turkey, Roast, Raw, Frozen
D20: 111110 | E20: Cheese, Cheddar, Yellow, Sliced, Chilled | F20: Cheese | G20: This item is U.S. Grade A or higher yellow cheddar cheese slices. Each slice weighs 0.75 oz. This product is delivered refrigerated in a 12‐pound case. | H20: 12 lb case | I20: 1.00 oz (1 oz equivalent meat alternate) | J20: A 0.75 ounce slice of cheese credits as 3/4 ounce equivalent meat/meat alternate | N20: 100126 Turkey, Deli Ham, Smoked, Frozen
D21: 100034 | E21: Cheese, Mozzarella, Lite, Shredded, Frozen | F21: Cheese | G21: This item is a lite shredded mozzarella cheese. It is delivered frozen in a 30 pound case. | H21: 30 lb case | I21: 1.00 oz (1 oz equivalent meat alternate) | J21: 1 ounce lite mozzarella cheese credits as 1 ounce equivalent meat/meat alternate | N21: 100127 Beef, Coarse Ground, Cooked, Canned
D22: 100022 | E22: Cheese, Mozzarella, Low Moisture Part Skim, Loaves, Frozen | F22: Cheese | G22: This item is a low moisture part skim mozzarella cheese. This product is delivered frozen and contains eight 6‐pound loaves per case. | H22: 8/6 lb package | I22: 1.00 oz (1 oz equivalent meat alternate) | J22: 1 ounce mozzarella cheese credits as 1 ounce equivalent meat/meat alternate | N22: 100134 Beef, Crumbles w/SPP, Cooked, Frozen
D23: 100021 | E23: Cheese, Mozzarella, Low Moisture Part Skim, Shredded, Frozen | F23: Cheese | G23: This item is low moisture part skim shredded mozzarella cheese. This product is delivered frozen in a 30 pound case. | H23: 30 lb case | I23: 1.00 oz (1 oz equivalent meat alternate) | J23: 1 ounce shredded mozzarella cheese credits as 1 ounce equivalent meat/meat alternate | N23: 100139 Pork, Coarse Ground, Cooked, Canned
D24: 110396 | E24: Cheese, Mozzarella, Low Moisture Part Skim, String, Chilled | F24: Cheese | G24: This item is low moisture part skim mozzarella string cheese. This product is delivered refrigerated and contains 360 individually wrapped 1‐ounce portions. | H24: 360/1 oz package | I24: 1.00 oz (1 oz equivalent meat alternate) | J24: 1 ounce string cheese credits as 1 ounce equivalent meat/meat alternate | N24: 100158 Beef, Fine Ground, 100%, 85/15, Raw, Frozen
D25: 111220 | E25: Cheese, Pepper Jack, Shredded, Chilled | F25: Cheese | G25: This item is U.S. Grade A or better Monterey Jack cheese with peppers. This product is shredded and is shipped refrigerated in cases containing four 5‐pound bags. | H25: 4/5 lb bag | I25: 1.00 oz (1 oz equivalent meat alternate) | J25: 1 ounce pepper jack cheese credits as 1 ounce equivalent meat/meat alternate | N25: 100163 Beef, Patties, Lean, Raw, 2.0 MMA, Frozen
D26: 100046 | E26: Eggs, Liquid Whole, Frozen | F26: Egg products | G26: This item is Grade A, AA, or Nest-Run frozen, homogenized whole eggs with a color stabilizer. The liquid eggs are frozen and packaged in a pitcher-pour 5-pound carton with six cartons per case. | H26: 6/5 lb carton | I26: 50 grams (1 large egg) | J26: 1.5 Tablespoons of liquid whole eggs credits as 1 ounce equivalent meat/meat alternate | N26: 100173 Pork, Leg Roast, Raw, Frozen
D27: 110845 | E27: Eggs, Liquid Whole, Frozen | F27: Egg products | G27: This item is Grade A, AA, or Nest-Run frozen, homogenized whole eggs with a color stabilizer. The liquid eggs are frozen and packaged in a pitcher-pour 2-pound carton with twelve cartons per case. | H27: 12/2 lb carton | I27: 50 grams (1 large egg) | J27: 1.5 Tablespoons of liquid whole eggs credits as 1 ounce equivalent meat/meat alternate | N27: 100184 Ham, 97% Fat Free, Water-Added, Cooked, Frozen
D28: 111751 | E28: Eggs, Patties, Cooked, 1.0 MMA, Round, Frozen | F28: Egg products | G28: This item is Grade A, AA, or Nest-Run frozen, fullycooked, scrambled, round patty made from pasteurized whole eggs with a color stabilizer. Egg patties are 3.25—3.5 inches in diameter and are frozen in a 25 pound plastic-lined cardboard case. | H28: 25 lb case | I28: One 1.25 oz patty (1.00 oz equivalent meat alternate)* | J28: 1 egg patty (1.25 ounces) yields 1 ounce equivalent meat/meat alternate. Use vendor CN Label or Product Formulation Statement to confirm crediting information. | N28: 100187 Ham, 97% Fat Free, Water-Added, Cooked, Sliced, Frozen
D29: 110851 | E29: Alaska Pollock, Whole Grain-Rich Breaded Sticks, Frozen | F29: Fish | G29: This item is uncooked, oven-ready, single frozen Alaska Pollock fish sticks made from deep skinned fillet, with a whole grain-rich breading. This product is delivered frozen in cases containing four 10-pound packages or eight 5-pound packages. | H29: 8/5 lb or 4/10 lb bag | I29: 4.00 oz (2 oz equivalent meat)* | J29: 2 ounces of Alaska Pollock fish sticks credit as 1 ounce equivalent meat/meat alternate and 1/2 ounce equivalent grain. Use vendor CN Label or Product Formulation Statement to confirm crediting information. | N29: 100188 Ham, 97% Fat Free, Water-Added, Cooked, Diced, Frozen
D30: 100201 | E30: Catfish, Whole Grain-Rich Breaded Fillet Strips, Frozen | F30: Fish | G30: This item is uncooked, oven-ready catfish filet strips with a whole grain-rich cornmeal breading. This product is delivered frozen in cases containing four 10- pound packages. | H30: 8/5 lb or 4/10 lb bag | I30: 1.00 oz equivalent meat* | J30: Approximately 2 ounces of breaded catfish strips credit as 1 ounce equivalent meat/meat alternate. Use vendor CN Label or Product Formulation Statement to confirm crediting information. | N30: 100201 Catfish, Whole Grain-Rich Breaded Fillet Strips, Frozen
D31: 111790 | E31: Apple Juice, 100%, Unsweetened, Cups, Frozen | F31: Fruit | G31: This item is U.S. Grade A apple juice. It is delivered frozen in cases with 96 individual portion 4-ounce cups. | H31: 96/4 oz cup | I31: 4 fl oz | J31: One 4-ounce serving of apple juice credits as ½ cup fruit. | N31: 100206 Apple Slices, Unsweetened, Canned
D32: 100206 | E32: Apple Slices, Unsweetened, Canned | F32: Fruit | G32: This item is U.S. Grade A canned apple slices packed in water. This product is available in cases containing six #10 cans. | H32: 6/#10 can | I32: 1/2 cup, drained | J32: ½ cup sliced apples credits as ½ cup fruit | N32: 100212 Mixed Fruit (Peaches, Pears, Grapes), Extra Light Syrup, Canned
D33: 100258 | E33: Apple Slices, Unsweetened, Frozen (IQF) | F33: Fruit | G33: This item is U.S. Grade A frozen apple slices that are unsweetened. This product is delivered frozen in 30‐pound cases. | H33: 30 lb case | I33: 1/2 cup, thawed | J33: ½ cup thawed apples credits as ½ cup fruit | N33: 100216 Apricots, Diced, Extra Light Syrup, Canned
D34: 110541 | E34: Applesauce, Unsweetened, Canned (K) | F34: Fruit | G34: This item is U.S. Grade A unsweetened canned applesauce. This product is available in cases containing six #10 cans. | H34: 6/#10 can | I34: 1/2 cup | J34: ½ cup applesauce credits as ½ cup fruit | N34: 100219 Peaches, Sliced, Extra Light Syrup, Canned
D35: 110361 | E35: Applesauce, Unsweetened, Cups, Shelf-Stable | F35: Fruit | G35: This item is U.S. Grade A unsweetened applesauce. This product is available in cases containing 96 4.5‐ ounce individual portion plastic cups. | H35: 96/4.5 oz cup | I35: 1/2 cup (4.5 oz by weight) | J35: ½ cup applesauce credits as ½ cup fruit | N35: 100220 Peaches, Diced, Extra Light Syrup, Canned
D36: 100261 | E36: Apricots, Diced, Cups, Frozen | F36: Fruit | G36: This item is U.S. Grade B (Grade A for defects) diced apricots packed in a light syrup. This product is delivered frozen in cases containing 96 4.5‐ounce cups. | H36: 96/4.5 oz cup | I36: 1/2 cup (4.5 oz by weight) | J36: One 4.5‐ounce cup of apricots credits as ½ cup fruit | N36: 100224 Pears, Sliced, Extra Light Syrup, Canned
D37: 100216 | E37: Apricots, Diced, Extra Light Syrup, Canned | F37: Fruit | G37: This item is U.S. Grade B canned diced apricots packed in extra light syrup or fruit juice. This product is available in cases containing six #10 cans. | H37: 6/#10 can | I37: 1/2 cup, drained | J37: ½ cup diced apricots credits as ½ cup fruit | N37: 100225 Pears, Diced, Extra Light Syrup, Canned (K)
D38: 100243 | E38: Blueberries, Wild, Unsweetened, Frozen | F38: Fruit | G38: This item is U.S. Grade B or better frozen blueberries in the native (wild) variety that are unsweetened. Product is delivered frozen in a 30‐ pound case. | H38: 30 lb case | I38: 1/2 cup, thawed | J38: ½ cup thawed blueberries credits as ½ cup fruit | N38: 100226 Pears, Halves, Extra Light Syrup, Canned
D39: 100242 | E39: Blueberries, Wild, Unsweetened, Frozen | F39: Fruit | G39: This item is U.S. Grade B or better frozen blueberries in the native (wild) variety that are unsweetened. Product is delivered frozen in eight 3‐pound packages. | H39: 8/3 lb bag | I39: 1/2 cup, thawed | J39: ½ cup thawed blueberries credits as ½ cup fruit | N39: 100238 Peaches, Sliced, Frozen
D40: 110624 | E40: Blueberries, Unsweetened, Frozen | F40: Fruit | G40: This item is U.S. Grade B or better frozen blueberries. This product is the highbush variety and is unsweetened. The item is delivered frozen in a 30‐ pound case. | H40: 30 lb case | I40: 1/2 cup, thawed | J40: ½ cup of blueberries credits as ½ cup of fruit | N40: 100239 Peaches, Sliced, Frozen
D41: 110623 | E41: Blueberries, Unsweetened, Frozen | F41: Fruit | G41: This item is U.S. Grade B or better frozen blueberries. This product is the highbush variety and is unsweetened. The item is delivered frozen in cases with twelve 2.5‐pound packages. | H41: 12/2.5 lb bag | I41: 1/2 cup, thawed | J41: ½ cup of blueberries credits as ½ cup of fruit | N41: 100241 Peaches, Diced, Cups, Frozen
D42: 100299 | E42: Cherries, Tart, Dried | F42: Fruit | G42: This item is U.S. Grade B or better whole, tart red dried cherries with added sweeteners and oil. This product is available in cases containing four 4‐pound bags. | H42: 4/4 lb bag | I42: 1/4 cup | J42: ¼ cup dried cherries credits as ½ cup fruit in NSLP and CACFP. ½ cup cherries credits as ½ cup fruit in SFSP and the Afterschool Snack program. | N42: 100242 Blueberries, Wild, Unsweetened, Frozen
D43: 110872 | E43: Cherries, Sweet, Pitted, Unsweetened, Frozen (IQF) | F43: Fruit | G43: This item is U.S. Grade B or better sweet cherries that are pitted and have no added sweetener. This product is available in cases containing twelve 2.5‐pound bags. | H43: 12/2.5 lb bag | I43: 1/2 cup, thawed | J43: ½ cup cherries credits as ½ cup fruit | N43: 100243 Blueberries, Wild, Unsweetened, Frozen
D44: 111643 | E44: Cherries, Tart, Dried, Individual Portion | F44: Fruit | G44: This item is U.S. Grade B or better whole, tart red dried cherries with added sweeteners and oil. This product is available in cases containing 250 individual portion bags. | H44: 250/1.36 oz bag | I44: 1/4 cup (1.36 oz by weight) | J44: One 1.36 ounce bag of dried cherries credits as ½ cup fruit in NSLP and CACFP. Two 1.36 ounce bags of dried cherries credit as ½ cup fruit in SFSP and the Afterschool Snack program. | N44: 100254 Strawberries, Sliced, Frozen
D45: 110723 | E45: Cranberries, Dried, Individual Portion | F45: Fruit | G45: This item is U.S. Grade B or better dried, sliced cranberries that may contain added sweeteners and a light oil coating to prevent clumping. This item is available in case containing 300 individual portion packages. | H45: 300/1.16 oz bag | I45: 1/4 cup (1.16 oz by weight) | J45: One 1.16 ounce bag of dried cranberries credits as ½ cup fruit in NSLP and CACFP. Two 1.16 ounce bags of dried cranberries credit as ½ cup fruit in SFSP and the Afterschool Snack program. | N45: 100256 Strawberries, Diced, Cups, Frozen
D46: 110859 | E46: Mixed Berries (Blueberries, Strawberries), Cups, Frozen | F46: Fruit | G46: This item is a mixed berry cup that contains U.S. Grade A diced strawberries and U.S. Grade B or better blueberries. This product is packed in extra light syrup and delivered frozen in cases containing 96 4‐ounce cups. | H46: 96/4 oz cup | I46: 1/2 cup (4 oz by weight) | J46: ½ cup of mixed berries credits as ½ cup of fruit | N46: 100258 Apple Slices, Unsweetened, Frozen (IQF)
D47: 110161 | E47: Mixed Fruit (Apples, Cherries, Cranberries, Raisins), Dried | F47: Fruit | G47: This item is U.S. Grade B or better dried fruit mix that contains a combination of the following four ingredients: dried apples, diced; dried cherries; dried cranberries; raisins. This product is available in cases containing five 5‐pound bags. | H47: 5/5 lb bag | I47: 1/4 cup | J47: ¼ cup dried fruit mix credits as ½ cup fruit in NSLP and CACFP. ½ cup dried fruit mix credits as ½ cup fruit in SFSP and the Afterschool Snack program. | N47: 100261 Apricots, Diced, Cups, Frozen
D48: 100212 | E48: Mixed Fruit (Peaches, Pears, Grapes), Extra Light Syrup, Canned | F48: Fruit | G48: This item consists of U.S. Grade B diced peaches, diced pears, and whole seedless grapes in the following proportions: 40‐60% peaches, 20‐45% pears, and 15‐25% grapes. The fruit is packed in extra light syrup or fruit juice. This product is available in cases with six #10 cans. | H48: 6/#10 can | I48: 1/2 cup, drained | J48: ½ cup mixed fruit credits as ½ cup fruit | N48: 100293 Raisins, Unsweetened, Individual Portion
D49: 100220 | E49: Peaches, Diced, Extra Light Syrup, Canned | F49: Fruit | G49: This item is U.S. Grade B canned diced peaches packed in extra light syrup or fruit juice. This product is available in cases containing six #10 cans. | H49: 6/#10 can | I49: 1/2 cup, drained | J49: ½ cup diced peaches credits as ½ cup fruit | N49: 100299 Cherries, Tart, Dried
D50: 100241 | E50: Peaches, Diced, Cups, Frozen | F50: Fruit | G50: This item is U.S. Grade B (Grade A for defects) diced peaches. This item is packed in an extra light syrup and is delivered frozen in cases containing 96 4.4‐ounce cups. | H50: 96/4.4 oz cup | I50: 4.4 oz by weight | J50: One 4.4‐ounce cup of peaches credits as ½ cup fruit | N50: 100307 Beans, Green, Low-sodium, Canned (K)
D51: 100239 | E51: Peaches, Sliced, Frozen | F51: Fruit | G51: This item is U.S. Grade A frozen sliced peaches. The peaches are packed in syrup or puree and delivered frozen in a 20‐pound case. | H51: 20 lb case | I51: 1/2 cup, thawed | J51: ½ cup peaches credits as ½ cup fruit | N51: 100309 Carrots, Sliced, Low-sodium, Canned
D52: 100238 | E52: Peaches, Sliced, Frozen | F52: Fruit | G52: This item is U.S. Grade A frozen sliced peaches. The peaches packed in a syrup or puree and is delivered frozen in a case containing twelve 2‐pound bags. | H52: 12/2 lb bag | I52: 1/2 cup, thawed | J52: ½ cup of peaches credits as ½ cup fruit | N52: 100313 Corn, Whole Kernel, No Salt Added, Canned (K)
D53: 100219 | E53: Peaches, Sliced, Extra Light Syrup, Canned | F53: Fruit | G53: This item is U.S. Grade B canned sliced peaches packed in extra light syrup or fruit juice. This product is available in cases containing six #10 cans. | H53: 6/#10 can | I53: 1/2 cup, drained | J53: ½ cup sliced peaches credit as ½ cup fruit | N53: 100315 Peas, Green, Low-sodium, Canned
D54: 100225 | E54: Pears, Diced, Extra Light Syrup, Canned (K) | F54: Fruit | G54: This item is U.S. Grade B (Grade A for defects) canned diced pears made from Bartlett variety pears. This item is packed in extra light syrup or Juice and is available in cases containing six #10 cans. | H54: 6/#10 can | I54: 1/2 cup, drained | J54: ½ cup diced pears credits as ½ cup fruit | N54: 100317 Sweet Potatoes, Light Syrup, No Salt Added, Canned
D55: 100226 | E55: Pears, Halves, Extra Light Syrup, Canned | F55: Fruit | G55: This item is U.S. Grade B canned pear halves packed in extra light syrup or juice. This product is available in cases containing six #10 cans. | H55: 6/#10 can | I55: 1/2 cup, drained | J55: ½ cup pears credits as ½ cup fruit | N55: 100327 Tomato Paste, No Salt Added, Canned
D56: 100224 | E56: Pears, Sliced, Extra Light Syrup, Canned | F56: Fruit | G56: This item is U.S. Grade B canned sliced pears packed in extra light syrup or juice. This product is available in cases containing six #10 cans. | H56: 6/#10 can | I56: 1/2 cup, drained | J56: ½ cup sliced pears credits as ½ cup fruit | N56: 100329 Tomatoes, Diced, No Salt Added, Canned
D57: 100293 | E57: Raisins, Unsweetened, Individual Portion | F57: Fruit | G57: This item is U.S. Grade B or better seedless raisins with no added sweetener. This item is available in cases containing 144 1.33‐ounce packages. | H57: 144/1.33 oz unit | I57: 1.33 oz by weight | J57: One 1.33 ounce box of raisins credits as ½ cup fruit in NSLP and CACFP. Two 1.33 ounce boxes of raisins credit as ½ cup fruit in SFSP and the Afterschool Snack program. | N57: 100330 Salsa, Low-sodium, Canned
D58: 100256 | E58: Strawberries, Diced, Cups, Frozen | F58: Fruit | G58: This item is U.S. Grade A diced strawberries packed in an extra light syrup. This product is delivered frozen in cases containing 96 4.5‐ounce cups. | H58: 96/4.5 oz cup | I58: 4.5 oz by weight | J58: One 4.5‐ounce cup of strawberries credits as ½ cup fruit | N58: 100334 Tomato Sauce, Low-sodium, Canned
D59: 100254 | E59: Strawberries, Sliced, Frozen | F59: Fruit | G59: This item is U.S. Grade A sliced strawberries packed in an extra light syrup. This product is delivered frozen in 30‐pound pail. | H59: 30 lb pail | I59: 1/2 cup, thawed | J59: ½ cup of strawberries credits as ½ cup fruit | N59: 100336 Spaghetti Sauce, Low-sodium, Canned
D60: 110860 | E60: Strawberries, Sliced, Unsweetened, Frozen (IQF) | F60: Fruit | G60: This item is U.S. Grade A sliced strawberries that are unsweetened and individually quick frozen (IQF). The slice size is approximately 3/8 to 1/2 inch. This product is delivered frozen in a case containing six 5‐ pound packages. | H60: 6/5 lb bag | I60: 1/2 cup, thawed | J60: ½ cup of strawberries credits as ½ cup fruit | N60: 100348 Corn, Whole Kernel, No Salt Added, Frozen
D61: 110846 | E61: Strawberries, Whole, Unsweetened, Frozen (IQF) | F61: Fruit | G61: This item is U.S. Grade A whole strawberries. They are medium size, unsweetened and individually quick frozen (IQF) so the packages can be poured out in small quantities and resealed. This product is delivered frozen in cases containing six 5‐pound packages. | H61: 6/5 lb bag | I61: 1/2 cup, thawed | J61: ½ cup of strawberries credits as ½ cup fruit | N61: 100350 Peas, Green, No Salt Added, Frozen
D62: 110857 | E62: Flour, 100% White Whole Wheat | F62: Grains | G62: This item is 100% white whole wheat flour. It is available in a case containing eight 5‐pound bags. | H62: 8/5 lb bag | I62: 30 grams | J62: Flour is a recipe ingredient, so crediting is based on the portion size and type of grain item served. | N62: 100351 Beans, Green, No Salt Added, Frozen
D63: 100400 | E63: Flour, All Purpose, Enriched, Bleached | F63: Grains | G63: This item is all purpose wheat flour that is enriched. It is available in cases with eight 5‐pound bags. | H63: 8/5 lb bag | I63: 30 grams | J63: Flour is a recipe ingredient, so crediting is based on the portion size and type of grain item served. | N63: 100352 Carrots, Sliced, No Salt Added, Frozen
D64: 110211 | E64: Flour, White Whole Wheat/Enriched 60/40 Blend | F64: Grains | G64: This item is a whole grain‐rich flour blend made from 60% white whole wheat flour and 40% enriched flour. This product is available in cases containing eight 5‐ pound bags. | H64: 8/5 lb bag | I64: 30 grams | J64: Flour is a recipe ingredient, so crediting is based on the portion size and type of grain item served. | N64: 100355 Potatoes, Wedges, Low-sodium, Frozen (IQF)
D65: 110208 | E65: Flour, White Whole Wheat/Enriched 60/40 Blend | F65: Grains | G65: This item is a whole grain‐rich flour blend made from 60% white whole wheat flour and 40% enriched flour. This product is available in 25 pound bags. | H65: 25 lb bag | I65: 30 grams | J65: Flour is a recipe ingredient, so crediting is based on the portion size and type of grain item served. | N65: 100356 Potatoes, Wedges, Fat Free, Low-sodium, Frozen (IQF)
D66: 100465 | E66: Oats, Rolled, Quick Cooking | F66: Grains | G66: This item is quick cooking rolled oats available in cases containing twelve 42‐ounce tubes. | H66: 12/42 oz tube | I66: 1.00 oz dry (1 oz equivalent grains) | J66: 1 ounce dry or ½ cup cooked oats credits as 1 ounce equivalent grains | N66: 100357 Potatoes, Oven Fries, Low-sodium, Frozen
D67: 110393 | E67: Pancakes, Whole Grain or Whole Grain-Rich, Frozen | F67: Grains | G67: These whole grain-rich pancakes are made with whole wheat flour or a combination of whole wheat flour and enriched wheat flour. This item is delivered frozen in cases containing 144 1.2-ounce servings. | H67: 144 count/case | I67: 1.20 oz (1 oz equivalent grains) | J67: A 1.2-ounce serving of pancakes credits as 1 ounce equivalent grains | N67: 100359 Beans, Black, Low-sodium, Canned
D68: 110501 | E68: Pasta, Macaroni, Whole Grain-Rich Blend | F68: Grains | G68: This item is whole grain‐rich macaroni that is made with 51‐65% U.S. No. 1 whole durum wheat flour and the remaining grain is enriched flour. This item is available in a 20 pound case. | H68: 2/10 lb bag | I68: 1.00 oz dry (1 oz equivalent grains) | J68: ½ cup cooked or 1 ounce dry macaroni credits as 1 ounce equivalent grains | N68: 100360 Beans, Garbanzo, Low-sodium, Canned (K)
D69: 110520 | E69: Pasta, Penne, Whole Grain-Rich Blend | F69: Grains | G69: This item is whole grain‐rich penne pasta that is made with 51‐65% U.S. No. 1 whole durum wheat flour and the remaining grain is enriched flour. This item is available in a 20 pound case. | H69: 2/10 lb bag | I69: 1.00 oz dry (1 oz equivalent grains) | J69: ½ cup cooked or 1 ounce dry penne pasta credits as 1 ounce equivalent grains | N69: 100362 Beans, Refried, Low-sodium, Canned
D70: 110504 | E70: Pasta, Rotini, Whole Grain-Rich Blend | F70: Grains | G70: This item is whole grain‐rich rotini pasta that is made with 51‐65% U.S. No. 1 whole durum wheat flour and the remaining grain is enriched flour. This item is available in a 20 pound case. | H70: 2/10 lb bag | I70: 1.00 oz dry (1 oz equivalent grains) | J70: ½ cup cooked or 1 ounce dry rotini pasta credits as 1 ounce equivalent grains | N70: 100364 Beans, Vegetarian, Low-sodium, Canned
D71: 110506 | E71: Pasta, Spaghetti, Whole Grain-Rich Blend | F71: Grains | G71: This item is whole grain‐rich spaghetti that is made with 51‐65% U.S. No. 1 whole durum wheat flour and the remaining grain is enriched flour. This item is available in a 20 pound case. | H71: 2/10 lb bag | I71: 1.00 oz dry (1 oz equivalent grains) | J71: ½ cup cooked or 1 ounce dry spaghetti credits as 1 ounce equivalent grains | N71: 100365 Beans, Pinto, Low-sodium, Canned
D72: 100425 | E72: Pasta, Spaghetti, Enriched | F72: Grains | G72: This item is spaghetti that is made from semolina flour and is enriched. This item is available in a 20 pound case. | H72: 20 lb case | I72: 1.00 oz dry (1 oz equivalent grains) | J72: ½ cup cooked or 1 ounce dry spaghetti credits as 1 ounce equivalent grains | N72: 100366 Beans, Small Red, Low-sodium, Canned
D73: 101031 | E73: Rice, Brown, Long Grain, Parboiled | F73: Grains | G73: This item is U.S. No. 1 long grain, parboiled brown rice. This product is available in twenty‐five pound bags. | H73: 25 lb bag | I73: 1.00 oz dry (1 oz equivalent grains) | J73: 1 ounce dry or ½ cup cooked rice credits as 1 ounce equivalent grains | N73: 100368 Beans, Black-eyed Pea, Low-sodium, Canned
D74: 100500 | E74: Rice, Brown, Long Grain, Parboiled | F74: Grains | G74: This item is U.S. No. 1 long grain, parboiled brown rice. This product is available in cases containing twenty‐four 2‐pound bags. | H74: 24/2 lb bag | I74: 1.00 oz dry (1 oz equivalent grains) | J74: 1 ounce dry or ½ cup cooked rice credits as 1 ounce equivalent grains | N74: 100369 Beans, Pink, Low-sodium, Canned
D75: 100494 | E75: Rice, Long Grain, Parboiled | F75: Grains | G75: This item is U.S. No. 2 long grain parboiled rice that is enriched. This product is available in 25‐pound bags. | H75: 25 lb bag | I75: 1.00 oz dry (1 oz equivalent grains) | J75: 1 ounce dry or ½ cup cooked rice credits as 1 ounce equivalent grains | N75: 100370 Beans, Kidney, Dark Red, Low-sodium, Canned
D76: 110394 | E76: Tortillas, Whole Grain or Whole Grain-Rich, 8 inch, Frozen | F76: Grains | G76: This item is 8-inch wheat tortillas that are made from whole wheat flour or a combination of whole wheat and enriched wheat flour. This product is delivered frozen in cases containing twelve packages, each with 24 tortillas. | H76: 12/24 count | I76: One 8-inch tortilla (1.50 oz equivalent grains) | J76: 1 whole grain tortilla credits as 1.5 ounce equivalent of grains | N76: 100371 Beans, Baby Lima, Low-sodium, Canned
D77: 100371 | E77: Beans, Baby Lima, Low-sodium, Canned | F77: Legumes | G77: This item is Grade A canned, dried baby lima beans that are low‐sodium. This product is available in cases with six #10 cans. | H77: 6/#10 can | I77: 1/2 cup, drained | J77: ½ cup beans credits as ½ cup legume vegetable OR 2 ounce equivalent meat/meat alternate | N77: 100373 Beans, Great Northern, Low-sodium, Canned
D78: 100359 | E78: Beans, Black, Low-sodium, Canned | F78: Legumes | G78: This item is Grade A canned, dried black turtle beans that are low‐sodium. This product is available in cases with six #10 cans. | H78: 6/#10 can | I78: 1/2 cup, drained | J78: ½ cup beans credit as ½ cup legume vegetable OR 2 ounce equivalents meat/meat alternate | N78: 100382 Beans, Pinto, Dry
D79: 100368 | E79: Beans, Black-eyed Pea, Low-sodium, Canned | F79: Legumes | G79: This item is Grade A canned, dried black‐eyed peas that are low‐sodium. This product is available in cases with six #10 cans. | H79: 6/#10 can | I79: 1/2 cup, drained | J79: ½ cup black‐eyed peas credits as ½ cup legume vegetable OR 2 ounce equivalents meat/meat alternate | N79: 100396 Peanut Butter, Smooth
D80: 100360 | E80: Beans, Garbanzo, Low-sodium, Canned (K) | F80: Legumes | G80: This item is Grade A canned, dried garbanzo beans that are low‐sodium. This item is available in cases with six #10 cans. | H80: 6/#10 can | I80: 1/2 cup, drained | J80: ½ cup garbanzo beans credits as ½ cup legume vegetable OR 2 ounce equivalents meat/meat alternate | N80: 100400 Flour, All Purpose, Enriched, Bleached
D81: 100373 | E81: Beans, Great Northern, Low-sodium, Canned | F81: Legumes | G81: This item is Grade A canned, dried great northern beans that are low‐sodium. This product is available in cases with six #10 cans. | H81: 6/#10 can | I81: 1/2 cup, drained | J81: ½ cup beans credits as ½ cup legume vegetable OR 2 ounce equivalents meat/meat alternate | N81: 100425 Pasta, Spaghetti, Enriched
D82: 100370 | E82: Beans, Kidney, Dark Red, Low-sodium, Canned | F82: Legumes | G82: This item is Grade A canned, dried red kidney beans that are low‐sodium. This product is available in cases with six #10 cans. | H82: 6/#10 can | I82: 1/2 cup, drained | J82: ½ cup beans credits as ½ cup legume vegetable OR 2 ounce equivalents meat/meat alternate | N82: 100439 Oil, Vegetable
D83: 100369 | E83: Beans, Pink, Low-sodium, Canned | F83: Legumes | G83: This item is Grade A canned, dried pink beans that are low‐sodium. This product is available in cases with six #10 cans. | H83: 6/#10 can | I83: 1/2 cup, drained | J83: ½ cup beans credits as ½ cup legume vegetable OR 2 ounce equivalents meat/meat alternate | N83: 100465 Oats, Rolled, Quick Cooking
D84: 100382 | E84: Beans, Pinto, Dry | F84: Legumes | G84: This item is grade U.S. No. 1 dry pinto beans in cases with twelve 2‐pound bags. | H84: 12/2 lb bag | I84: 1/2 cup, cooked, drained | J84: ½ cup cooked pinto beans credits as ½ cup legume vegetable OR 2 ounce equivalents meat/meat alternate | N84: 100494 Rice, Long Grain, Parboiled
D85: 100365 | E85: Beans, Pinto, Low-sodium, Canned | F85: Legumes | G85: This item is Grade A canned, dried pinto beans that are low‐sodium. This product is available in cases with six #10 cans. | H85: 6/#10 can | I85: 1/2 cup, drained | J85: ½ cup beans credits as ½ cup legume vegetable OR 2 ounce equivalents meat/meat alternate | N85: 100500 Rice, Brown, Long Grain, Parboiled
D86: 100362 | E86: Beans, Refried, Low-sodium, Canned | F86: Legumes | G86: This item is canned refried beans made from pinto beans and pink beans. This product is low‐sodium and is prepared with vegetable oil, onion and garlic flavoring, jalapeno, and tomato paste to provide a mild spice profile. It is available in cases with six #10 cans. | H86: 6/#10 can | I86: 1/2 cup, drained | J86: ½ cup beans credits as ½ cup legume vegetable OR 2 ounce equivalent meat/meat alternate | N86: 100877 Chicken, Boned, White Meat, Cooked, Canned
D87: 100366 | E87: Beans, Small Red, Low-sodium, Canned | F87: Legumes | G87: This item is Grade A canned, dried small red beans that are low‐sodium. This product is available in cases with six #10 cans. | H87: 6/#10 can | I87: 1/2 cup, drained | J87: ½ cup beans credits as ½ cup legume vegetable OR 2 ounce equivalents meat/meat alternate | N87: 100935 Sunflower Seed Butter, Smooth (K)
D88: 100364 | E88: Beans, Vegetarian, Low-sodium, Canned | F88: Legumes | G88: This item is U.S. Grade A vegetarian beans made from small white beans or navy beans in tomato sauce. The beans are low sodium and the formulation includes, at a minimum, tomato paste, onion powder, garlic powder, salt and sugar. High fructose corn syrup is not permitted in the formulation. This item is available in cases with six #10 cans. | H88: 6/#10 can | I88: 1/2 cup, drained | J88: ½ cup beans credits as ½ cup legume vegetable OR 2 ounce equivalent meat/meat alternate | N88: 101031 Rice, Brown, Long Grain, Parboiled
D89: 111860 | E89: Black Bean Burger, Patties, Cooked, 2.0 MMA, Frozen | F89: Legumes | G89: This item is a fully cooked black bean burger patty with a mild southwest flavor. This product is individually quick frozen and delivered in a 30-pound case. | H89: 30 lb case | I89: One 3.5 ounce patty (2 oz equivalent meat alternate) | J89: One 3.5-ounce fully cooked black bean burger patty credits as 2 ounce equivalents meat/meat alternate. | N89: 110080 Chicken, Oven Roasted, Cut-up, Cooked, Frozen
D90: 100396 | E90: Peanut Butter, Smooth | F90: Nuts and seeds | G90: This item is a U.S. Grade A smooth peanut butter that has been stabilized to prevent oil separation. This item is available in cases with six 5-pound containers. | H90: 6/5 lb unit | I90: 2 TBSP (1 oz equivalent meat alternate) | J90: 2 Tablespoons of peanut butter credits as 1 ounce equivalent meat/meat alternate | N90: 110161 Mixed Fruit (Apples, Cherries, Cranberries, Raisins), Dried
D91: 110854 | E91: Peanut Butter, Individual Portion, Smooth | F91: Nuts and seeds | G91: This item is a U.S. Grade A smooth peanut butter that has been stabilized to prevent oil separation. This item is packaged in individual cups or pouches with an easy open feature. This item is available in cases with 120 1.1-ounce packages. | H91: 120/1.1 oz unit | I91: 1.1 oz (1 oz equivalent meat alternate) | J91: One 1.1-ounce package of peanut butter credits as 1 ounce equivalent meat/meat alternate | N91: 110177 Spaghetti Sauce, Low-sodium, Pouch
D92: 100935 | E92: Sunflower Seed Butter, Smooth (K) | F92: Nuts and seeds | G92: This item is a smooth blended sunflower seed butter that has been stabilized to prevent oil separation. This item is available in cases with six 5-pound containers. This product is required to contain one of five approved commercial Kosher certifications. | H92: 6/5 lb unit | I92: 2 TBSP (1 oz equivalent meat alternate) | J92: 2 Tablespoons of sunflower seed butter credits as 1 ounce equivalent meat/meat alternate | N92: 110186 Salsa, Low-sodium, Pouch
D93: 100439 | E93: Oil, Vegetable | F93: Oil | G93: This item is vegetable oil made from canola, corn, cottonseed, olive, safflower, soybean, sesame, sunflower, or any other vegetable oil or a combination of these oils. This blend may not include peanut oil. This product is available in cases containing six one‐gallon bottles. | H93: 6/1 gallon bottle | I93: 1 TBSP | J93: Vegetable oil is used as an ingredient and does not credit as a separate meal component. | N93: 110187 Tomato Sauce, Low-sodium, Pouch
D94: 100184 | E94: Ham, 97% Fat Free, Water-Added, Cooked, Frozen | F94: Pork | G94: This item is a 97% fat free, water-added cured ham. This is a fully-cooked item that is shipped frozen. This product is delivered frozen in cases containing four 10- pound hams. | H94: 4/10 lb hams | I94: 1.22 oz (1 oz equivalent meat)* | J94: 1.22 ounces of ham credits as 1 ounce equivalent meat/meat alternate. Use vendor CN Label or Product Formulation Statement to confirm crediting information. | N94: 110208 Flour, White Whole Wheat/Enriched 60/40 Blend
D95: 100188 | E95: Ham, 97% Fat Free, Water-Added, Cooked, Diced, Frozen | F95: Pork | G95: This item is a 97% fat free, water-added cured ham. This product is fully-cooked and diced in pieces that are approximately 1/4 inch. This product is delivered frozen in cases containing eight 5-pound packages. | H95: 8/5 lb or 4/10 lb bag | I95: 1.22 oz (1 oz equivalent meat)* | J95: 1.22 ounces of ham credits as 1 ounce equivalent meat/meat alternate. Use vendor CN Label or Product Formulation Statement to confirm crediting information. | N95: 110211 Flour, White Whole Wheat/Enriched 60/40 Blend
D96: 100187 | E96: Ham, 97% Fat Free, Water-Added, Cooked, Sliced, Frozen | F96: Pork | G96: This item is a 97% fat free, water-added cured ham. This product is fully-cooked and thinly sliced in round or square–shaped pieces that are approximately 4 inches across. This product is delivered frozen in cases containing eight 5-pound packages. | H96: 8/5 lb package | I96: 1.22 oz (1 oz equivalent meat)* | J96: 1.22 ounces of ham credits as 1 ounce equivalent meat/meat alternate. Use vendor CN Label or Product Formulation Statement to confirm crediting information. | N96: 110261 Beef, Fine Ground, 100%, 85/15, LFTB OPT, Raw, Frozen
D97: 100139 | E97: Pork, Coarse Ground, Cooked, Canned | F97: Pork | G97: This item is coarse ground pork cooked in its own juices and canned. This product is delivered in cases containing twenty-four 24-ounce cans. | H97: 24/24 oz can | I97: 2.00 oz (1 oz equivalent meat) | J97: 1 ounce of heated canned pork credits as 1 ounce equivalent meat/meat alternate | N97: 110322 Beef, Patties w/SPP, Cooked, 2.0 MMA, Frozen
D98: 100173 | E98: Pork, Leg Roast, Raw, Frozen | F98: Pork | G98: This item is individual pork leg roasts in 6-10 pound packages. Each leg roast is netted and vacuum packaged for shipping. This product is delivered frozen in cases that contain 36-42 pounds. | H98: 36-42 lb case | I98: 1.00 oz cooked meat (1 oz equivalent meat) | J98: 1 ounce of cooked pork leg roast credits as 1 ounce equivalent meat/meat alternate | N98: 110346 Beef, Patties, 100%, 90/10, Raw, 2.0 MMA, Frozen
D99: 110730 | E99: Pork, Pulled, Cooked, Frozen | F99: Pork | G99: This item is a fully cooked, minimally seasoned pulled pork. This product is delivered frozen in cases containing eight 5-pound or four 10-pound packages. | H99: 8/5 lb or 4/10 lb bag | I99: 1.00 oz equivalent meat* | J99: 2 ounces of pulled pork and juices credits as 1 ounce equivalent meat/meat alternate. Use vendor CN Label or Product Formulation Statement to confirm crediting information. | N99: 110348 Beef, Patties w/SPP, 85/15, Raw, 2.0 MMA, Frozen
D100: 100877 | E100: Chicken, Boned, White Meat, Cooked, Canned | F100: Poultry | G100: This item is a white meat chicken product packed in broth or water. This product is delivered in cases containing twelve 50-ounce cans. | H100: 12/50 oz can | I100: 1.00 oz equivalent meat* | J100: 1 ounce of drained canned chicken credits as 1 ounce equivalent meat/meat alternate. Use vendor CN Label or Product Formulation Statement to confirm crediting information. | N100: 110349 Beef, Patties, 100%, 85/15, Raw, 2.0 MMA, Frozen
D101: 111361 | E101: Chicken, Cut-up, Raw, Frozen | F101: Poultry | G101: This item is raw cut-up chicken made from U.S. Grade A chicken, without necks and giblets. The product includes breasts, thighs, drumsticks, and wings. It is delivered frozen in a 40 pound case containing (4) 10 pound packages. | H101: 4/10 lb bag | I101: 1.00 oz equivalent meat | J101: 1 ounce of cooked chicken meat without bone credits as 1 ounce equivalent meat/meat alternate | N101: 110361 Applesauce, Unsweetened, Cups, Shelf-Stable
D102: 100101 | E102: Chicken, Diced, Cooked, Frozen | F102: Poultry | G102: This item is fully cooked diced chicken meat. This product is diced into approximately 1/2-inch cubes and is a natural proportion product that contains a minimum of 50% white meat. This item is shipped frozen in 40 pound cases containing eight 5-pound or four 10-pound packages. | H102: 8/5 lb or 4/10 lb bag | I102: 1.00 oz equivalent meat* | J102: Approximately 1 ounce of diced chicken credits as 1 ounce equivalent meat/meat alternate. Use vendor CN Label or Product Formulation Statement to confirm crediting information. | N102: 110393 Pancakes, Whole Grain or Whole Grain-Rich, Frozen
D103: 100117 | E103: Chicken, Fajita Seasoned Strips, Cooked, Frozen | F103: Poultry | G103: This item is fully cooked dark meat chicken fajita strips made from boneless, skinless drumsticks, thighs, and/or legs. This product is marinated in fajita seasoning and contains grill markings. The item is shipped frozen in 30 pound cases containing six 5-pound or three 10-pound packages. | H103: 6/5 lb or 3/10 lb bag | I103: 1.00 oz equivalent meat* | J103: Approximately 1.7 ounces of fajita chicken strips credits as 1 ounce equivalent meat/meat alternate. Use vendor CN Label or Product Formulation Statement to confirm crediting information. | N103: 110394 Tortillas, Whole Grain or Whole Grain-Rich, 8 inch, Frozen
D104: 110921 | E104: Chicken, Grilled Fillet, 2.0 MMA, Cooked, Frozen | F104: Poultry | G104: This item is produced from ready-to-cook boneless, skinless, marinated chicken breast meat with a whole breast fillet appearance. The product is pre-cooked and contains grill markings. The item is shipped frozen in 30 pound cases containing six 5-pound or three 10- pound packages. | H104: 6/5 lb or 3/10 lb bag | I104: 2.00 oz equivalent meat* | J104: Approximately 2.45 ounces of chicken fillet credits as 2 ounce equivalents meat/meat alternate. Use vendor CN Label or Product Formulation Statement to confirm crediting information. | N104: 110396 Cheese, Mozzarella, Low Moisture Part Skim, String, Chilled
D105: 110080 | E105: Chicken, Oven Roasted, Cut-up, Cooked, Frozen | F105: Poultry | G105: This item is oven-roasted cut-up chicken made from U.S. Grade A chicken. The product includes breasts, thighs, drumsticks, and wings. It is delivered frozen in a 30 pound case. | H105: 3/10 lb bag | I105: 1.00 oz equivalent meat* | J105: 1 ounce of cooked chicken meat without bone credits as 1 ounce equivalent meat/meat alternate. Use vendor CN Label or Product Formulation Statement to confirm crediting information. | N105: 110400 Yogurt, High-Protein, Blueberry, Chilled (K)
D106: 111881 | E106: Chicken, Pulled, Cooked, Frozen | F106: Poultry | G106: This item is fully cooked, minimally seasoned pulled white meat chicken. This product is delivered frozen in cases containing six 5-pound or three 10-pound packages. | H106: 8/5 lb or 4/10 lb bag | I106: 1.00 oz equivalent meat* | J106: Approximately 2 ounces of pulled chicken credits as 2 ounce equivalent meat/meat alternate. Confirm individual vendor crediting by using the CN Label or the product formulation statement. | N106: 110401 Yogurt, High-Protein, Strawberry, Chilled (K)
D107: 110462 | E107: Chicken, Unseasoned Grilled Strips, Cooked, Frozen | F107: Poultry | G107: This item is fully cooked strips of chicken meat with grill marks and a light marinade to retain moisture. The item contains at least 70% white meat content with the remainder coming from dark meat. Each strip is at least 1/2 inch wide and 1 inch long. This item is shipped frozen in 30 pound cases containing six 5- pound or three 10-pound packages. | H107: 6/5 lb or 3/10 lb bag | I107: 1.00 oz equivalent meat* | J107: Approximately 1.5 ounces of unseasoned chicken strips credits as 1 ounce equivalent meat/meat alternate. Use vendor CN Label or Product Formulation Statement to confirm crediting information. | N107: 110402 Yogurt, High-Protein, Vanilla, Chilled (K)
D108: 100121 | E108: Turkey, Deli Breast, Frozen | F108: Poultry | G108: This item is fully cooked deli-style turkey produced from formed turkey breast meat. This product is shipped frozen in cases containing four individually vacuum-packed deli breasts that are 9-11 pounds. | H108: 4/10 lb logs | I108: 2.00 oz equivalent meat* | J108: Approximately 1.59 ounces of turkey deli breast credits as 1 ounce equivalent meat/meat alternate. Use vendor CN Label or Product Formulation Statement to confirm crediting information. | N108: 110425 Spinach, Chopped, No Salt Added, Frozen (IQF)
D109: 111900 | E109: Turkey, Deli Breast, Sliced, Frozen | F109: Poultry | G109: This item is fully cooked deli-style turkey produced from formed turkey breast meat. This product contains thinly sliced deli meat in a shingle layered package. This item is shipped frozen in cases containing eight 5-pound packages. | H109: 8/5 lb package | I109: 2.00 oz equivalent meat* | J109: Approximately 1.43 ounces of turkey deli breast credits as 1 ounce equivalent meat/meat alternate. Use vendor CN Label or Product Formulation Statement to confirm crediting information. | N109: 110462 Chicken, Unseasoned Grilled Strips, Cooked, Frozen
D110: 100122 | E110: Turkey, Deli Breast, Smoked, Frozen | F110: Poultry | G110: This item is fully cooked deli-style smoked turkey produced from formed turkey breast meat. This product is shipped frozen in cases containing four individually vacuum-packed deli breasts that are 9-11 pounds. | H110: 4/10 lb logs | I110: 2.00 oz equivalent meat* | J110: Approximately 1.5 ounces of smoked deli turkey breast credits as 1 ounce equivalent meat/meat alternate. Use vendor CN Label or Product Formulation Statement to confirm crediting information. | N110: 110473 Broccoli Florets, No Salt Added, Frozen
D111: 111882 | E111: Turkey, Deli Breast, Smoked, Sliced, Frozen | F111: Poultry | G111: This item is fully cooked deli-style smoked turkey produced from formed turkey breast meat. It comes thinly sliced in shingle layered packaging. This product is shipped frozen in cases containing eight 5-pound packages. | H111: 8/5 lb package | I111: 2.00 oz equivalent meat* | J111: Approximately 1.5 ounces of smoked deli turkey breast credits as 1 ounce equivalent meat/ meat alternate. Use vendor CN Label or Product Formulation Statement to confirm crediting information. | N111: 110480 Carrots, Diced, No Salt Added, Frozen
D112: 100126 | E112: Turkey, Deli Ham, Smoked, Frozen | F112: Poultry | G112: This item is fully cooked smoked turkey ham produced from turkey thigh meat. This product is shipped frozen in cases containing four 10-pound vacuum-sealed packages. | H112: 4/10 lb logs | I112: 2.00 oz equivalent meat* | J112: Approximately 1.63 ounces of turkey ham credits as 1 ounce equivalent meat/meat alternate. Use vendor CN Label or Product Formulation Statement to confirm crediting information. | N112: 110501 Pasta, Macaroni, Whole Grain-Rich Blend
D113: 111893 | E113: Turkey, Deli Ham, Smoked, Sliced, Frozen | F113: Poultry | G113: This item is fully cooked smoked turkey ham produced from turkey thigh meat. This product is presliced and shipped frozen in cases containing eight 5- pound vacuum-sealed packages. | H113: 8/5 lb package | I113: 2.00 oz equivalent meat* | J113: Approximately 1.54 ounces of turkey ham credits as 1 ounce equivalent meat/meat alternate. Use vendor CN Label or Product Formulation Statement to confirm crediting information. | N113: 110504 Pasta, Rotini, Whole Grain-Rich Blend
D114: 100125 | E114: Turkey, Roast, Raw, Frozen | F114: Poultry | G114: This item is Grade A, ready-to-cook turkey roast produced from breast meat, thigh meat, and skin. This product is shipped frozen in cases containing four 8-12 pound roasts. | H114: 4/8-12 lb roasts | I114: 1.00 oz equivalent meat | J114: 1 ounce cooked turkey roast credits as 1 ounce equivalent meat/meat alternate | N114: 110506 Pasta, Spaghetti, Whole Grain-Rich Blend
D115: 100119 | E115: Turkey, Taco Filling, Cooked, Frozen | F115: Poultry | G115: This item is a fully cooked turkey taco filling that consists of ground turkey and spices/seasonings. This product is delivered frozen in a 30-pound case containing ten 3-pound or six 5-pound packages. | H115: 10/3 lb or 6/5 lb bag | I115: 1.00 oz equivalent meat* | J115: Approximately 1.72 ounces of fully cooked turkey taco filling credits as 1 ounce equivalent meat/meat alternate. Use vendor CN Label or Product Formulation Statement to confirm crediting information. | N115: 110520 Pasta, Penne, Whole Grain-Rich Blend
D116: 111368 | E116: K Chicken, Cut-Up, Frozen | F116: Poultry | H116: 40 lb case | I116: 1.00 oz equivalent meat* | N116: 110541 Applesauce, Unsweetened, Canned (K)
D117: 100307 | E117: Beans, Green, Low-sodium, Canned (K) | F117: Vegetables | G117: This item is U.S. Grade B or better cut green beans that are one inch in length or longer and are low‐sodium. This product is available in cases containing six #10 cans. | H117: 6/#10 can | I117: 1/2 cup, drained | J117: ½ cup heated, drained green beans credits as ½ cup other vegetable | N117: 110562 Sweet Potatoes, Cubes, No Salt Added, Frozen
D118: 100351 | E118: Beans, Green, No Salt Added, Frozen | F118: Vegetables | G118: This item is U.S. Grade B or better frozen green beans with no salt added. These green beans are cut into pieces that must be one inch or longer. This product is delivered frozen in a 30 pound bulk case. | H118: 30 lb case | I118: 1/2 cup, thawed | J118: ½ cup cooked, drained green beans credits as ½ cup other vegetable | N118: 110623 Blueberries, Unsweetened, Frozen
D119: 111054 | E119: Beans, Green, No Salt Added, Frozen | F119: Vegetables | G119: This item is U.S. Grade B or better frozen green beans with no salt added. These green beans are cut into pieces that must be one inch or longer. This product is delivered frozen in a case with twelve 2‐pound packages. | H119: 12/2 lb bag | I119: 1/2 cup, thawed | J119: ½ cup cooked, drained green beans credits as ½ cup other vegetable | N119: 110624 Blueberries, Unsweetened, Frozen
D120: 110473 | E120: Broccoli Florets, No Salt Added, Frozen | F120: Vegetables | G120: This item is U.S. Grade A broccoli in short spears or florets. This product is delivered frozen in a case with 6/5 pound bags. | H120: 30 lb case | I120: 1/2 cup, thawed | J120: ½ cup cooked broccoli credits as ½ cup dark green vegetable | N120: 110711 Beef, Patties, Cooked, 2.0 MMA, Frozen
D121: 110480 | E121: Carrots, Diced, No Salt Added, Frozen | F121: Vegetables | G121: This item is Grade A frozen carrots that are diced into 3/8‐1/2 inch cubes. This product is delivered frozen in a 30 pound bulk case. | H121: 30 lb case | I121: 1/2 cup, thawed | J121: ½ cup cooked, drained carrots credits as ½ cup red/orange vegetable | N121: 110721 Sweet Potatoes, Crinkle Cut Fries, Low-Sodium, Frozen
D122: 111052 | E122: Carrots, Diced, No Salt Added, Frozen | F122: Vegetables | G122: This item is Grade A frozen carrots that are diced into 3/8‐1/2 inch cubes. This product is delivered frozen in 12 2‐pound packages. | H122: 12/2 lb bag | I122: 1/2 cup, thawed | J122: ½ cup cooked, drained carrots credits as ½ cup red/orange vegetable | N122: 110723 Cranberries, Dried, Individual Portion
D123: 100309 | E123: Carrots, Sliced, Low-sodium, Canned | F123: Vegetables | G123: This product is U.S. Grade A carrots that are sliced, less than 1.75 inches in diameter and are low‐sodium. This item is available in cases containing six #10 cans. | H123: 6/#10 can | I123: 1/2 cup, drained | J123: ½ cup heated, drained carrots credits as ½ cup red/orange vegetable | N123: 110724 Pepper/Onion Strips, No Salt Added, Frozen
D124: 100352 | E124: Carrots, Sliced, No Salt Added, Frozen | F124: Vegetables | G124: This item is Grade A frozen sliced carrots that can be either straight or crinkle cut and have a maximum diameter of 1.5 inches. This item is delivered frozen in a 30‐pound case. | H124: 30 lb case | I124: 1/2 cup, thawed | J124: ½ cup cooked, drained carrots credits as ½ cup red/orange vegetable | N124: 110730 Pork, Pulled, Cooked, Frozen
D125: 100313 | E125: Corn, Whole Kernel, No Salt Added, Canned (K) | F125: Vegetables | G125: This product is U.S. Grade B whole kernel corn that is canned with no added salt. This item is available in cases containing six #10 cans. | H125: 6/#10 can | I125: 1/2 cup, drained | J125: ½ cup heated, drained corn credits as ½ cup starchy vegetable | N125: 110763 Peas, Green, No Salt Added, Frozen
D126: 100348 | E126: Corn, Whole Kernel, No Salt Added, Frozen | F126: Vegetables | G126: This item is U.S. Grade B or better whole kernel yellow corn with no added salt. It is delivered frozen in a 30 pound case. | H126: 30 lb case | I126: 1/2 cup, thawed | J126: ½ cup cooked corn credits as ½ cup starchy vegetable | N126: 110844 Potatoes, Diced, No Salt Added, Frozen
D127: 111053 | E127: Corn, Whole Kernel, No Salt Added, Frozen | F127: Vegetables | G127: This item is U.S. Grade B or better whole kernel yellow corn with no added salt. It is delivered frozen in a case with 12 2.5‐pound packages. | H127: 12/2.5 lb bag | I127: 1/2 cup, thawed | J127: ½ cup cooked corn credits as ½ cup starchy vegetable | N127: 110845 Eggs, Liquid Whole, Frozen
D128: 111230 | E128: Mixed Vegetables, No Salt Added, Frozen | F128: Vegetables | G128: This product is a U.S. Grade B or better vegetable mix that includes diced carrots, corn, green beans, and peas, with no added salt. Carrots are diced approximately 3/8 to 1/2 inch cube and green beans are cut approximately 1/2—1 1/2 inches long. This product is delivered frozen in cases with six 5‐pound packages. | H128: 6/5 lb bag | I128: 1/2 cup, thawed | J128: ½ cup mixed vegetables credits as ½ cup additional vegetable | N128: 110846 Strawberries, Whole, Unsweetened, Frozen (IQF)
D129: 100315 | E129: Peas, Green, Low-sodium, Canned | F129: Vegetables | G129: This item is U.S. Grade B or better green sweet peas that are low‐sodium. This item is available in cases containing six #10 cans. | H129: 6/#10 can | I129: 1/2 cup, drained | J129: ½ cup heated, drained peas credits as ½ cup starchy vegetable | N129: 110851 Alaska Pollock, Whole Grain-Rich Breaded Sticks, Frozen
D130: 100350 | E130: Peas, Green, No Salt Added, Frozen | F130: Vegetables | G130: This item is U.S. Grade B or better frozen peas with no salt added. This item is delivered frozen in a 30 pound case. | H130: 30 lb case | I130: 1/2 cup, thawed | J130: ½ cup cooked, drained green peas credits as ½ cup starchy vegetable | N130: 110854 Peanut Butter, Individual Portion, Smooth
D131: 110763 | E131: Peas, Green, No Salt Added, Frozen | F131: Vegetables | G131: This item is U.S. Grade B or better frozen peas with no salt added. This item is delivered frozen in a case with 12 2.5‐pound packages. | H131: 12/2.5 lb bag | I131: 1/2 cup, thawed | J131: ½ cup cooked, drained green peas credits as ½ cup starchy vegetable | N131: 110857 Flour, 100% White Whole Wheat
D132: 110724 | E132: Pepper/Onion Strips, No Salt Added, Frozen | F132: Vegetables | G132: This item is a blend of U.S. Grade A frozen pepper strips with frozen onion strips. This product will include a mix of red peppers, green peppers, and onions cut into 3/8 inch wide strips. This item is delivered frozen in a 30 pound case. | H132: 30 lb case | I132: 1/2 cup, thawed | J132: ½ cup cooked, drained pepper/onion blend credits as ½ cup other vegetable | N132: 110859 Mixed Berries (Blueberries, Strawberries), Cups, Frozen
D133: 110844 | E133: Potatoes, Diced, No Salt Added, Frozen | F133: Vegetables | G133: This item is U. S. Grade A diced potatoes. The potatoes are blanched and diced in approximately 1/2 x 1/2 inch cubes, with no added salt. This product is delivered frozen in cases containing six 5‐pound bags. | H133: 6/5 lb bag | I133: 1/2 cup, thawed | J133: ½ cup cooked, diced potatoes credit as ½ cup starchy vegetable | N133: 110860 Strawberries, Sliced, Unsweetened, Frozen (IQF)
D134: 100357 | E134: Potatoes, Oven Fries, Low-sodium, Frozen | F134: Vegetables | G134: This item is U.S. Grade A French cut oven ready potatoes that are low‐sodium. This product is delivered frozen in cases containing six 5‐pound packages. | H134: 6/5 lb bag | I134: 1/2 cup, thawed | J134: ½ cup cooked potatoes credits as ½ cup starchy vegetable | N134: 110872 Cherries, Sweet, Pitted, Unsweetened, Frozen (IQF)
D135: 100356 | E135: Potatoes, Wedges, Fat Free, Low-sodium, Frozen (IQF) | F135: Vegetables | G135: This item is U. S. Grade A individually quick frozen (IQF) potato wedges prepared from Russet type potatoes. The potato wedges are low‐sodium and fat free as they are just blanched with water. This item is delivered frozen in cases containing six 5‐pound bags. | H135: 6/5 lb bag | I135: 1/2 cup, thawed | J135: ½ cup baked potato wedges credits as ½ cup starchy vegetable | N135: 110921 Chicken, Grilled Fillet, 2.0 MMA, Cooked, Frozen
D136: 100355 | E136: Potatoes, Wedges, Low-sodium, Frozen (IQF) | F136: Vegetables | G136: This item is U. S. Grade A individually quick frozen (IQF) potato wedges prepared from Russet type potatoes. The potato wedges are low‐sodium and they are blanched with oil and water to be an oven ready item. This product is delivered frozen in cases containing six 5‐pound bags. | H136: 6/5 lb bag | I136: 1/2 cup, thawed | J136: ½ cup baked potato wedges credits as ½ cup starchy vegetable | N136: 111052 Carrots, Diced, No Salt Added, Frozen
D137: 100330 | E137: Salsa, Low-sodium, Canned | F137: Vegetables | G137: This item is low‐sodium tomato salsa made from peeled tomatoes, tomato puree, fresh or dried onions, green peppers, garlic, and jalapenos to achieve a medium spice level. Additional flavoring and ingredients are permitted. This item is available in cases containing six #10 cans. | H137: 6/#10 can | I137: 1/2 cup | J137: ½ cup salsa credits as ½ cup red/orange vegetable | N137: 111053 Corn, Whole Kernel, No Salt Added, Frozen
D138: 110186 | E138: Salsa, Low-sodium, Pouch | F138: Vegetables | G138: This item is low‐sodium tomato salsa made from peeled tomatoes, tomato puree, fresh or dried onions, green peppers, garlic, and jalapenos to achieve a medium spice level. Additional flavoring and ingredients are permitted. This item is available in cases containing six 106‐ounce pouches. | H138: 6/106 oz pouch | I138: 1/2 cup | J138: ½ cup salsa credits as ½ cup red/orange vegetable | N138: 111054 Beans, Green, No Salt Added, Frozen
D139: 100336 | E139: Spaghetti Sauce, Low-sodium, Canned | F139: Vegetables | G139: This item is a low‐sodium, smooth spaghetti sauce. It has a tomato base with basil, garlic, onion, and other spices used to achieve a traditional spaghetti sauce flavor. This item is low‐sodium and is available in cases containing six #10 cans. | H139: 6/#10 can | I139: 1/2 cup | J139: ½ cup spaghetti sauce credits as ½ cup red/orange vegetable | N139: 111110 Cheese, Cheddar, Yellow, Sliced, Chilled
D140: 110177 | E140: Spaghetti Sauce, Low-sodium, Pouch | F140: Vegetables | G140: This item is a low‐sodium, smooth spaghetti sauce. It has a tomato base with basil, garlic, onion, and other spices used to achieve a traditional spaghetti sauce flavor. This item is low‐sodium and is available in cases containing six 106‐ounce pouches. | H140: 6/106 oz pouch | I140: 1/2 cup | J140: ½ cup spaghetti sauce credits as ½ cup red/orange vegetable | N140: 111220 Cheese, Pepper Jack, Shredded, Chilled
D141: 110425 | E141: Spinach, Chopped, No Salt Added, Frozen (IQF) | F141: Vegetables | G141: This is U.S. Grade A frozen, chopped spinach. This product is individually quick frozen or IQF meaning that each piece is frozen separately and a scoop can be used to take out exactly what is needed. This item is delivered frozen in a 20‐pound case. | H141: 20 lb case | I141: 1/2 cup, thawed | J141: ½ cup cooked spinach credits as ½ cup dark green vegetable | N141: 111230 Mixed Vegetables, No Salt Added, Frozen
D142: 110562 | E142: Sweet Potatoes, Cubes, No Salt Added, Frozen | F142: Vegetables | G142: This item is U.S. Grade A sweet potatoes cut into 1/2 to 1 inch cubes with no added salt. This item is delivered frozen in cases containing six 5‐pound packages. | H142: 6/5 lb bag | I142: 1/2 cup, thawed | J142: ½ cup cooked sweet potatoes credit as ½ cup red/orange vegetable | N142: 111361 Chicken, Cut-up, Raw, Frozen
D143: 110721 | E143: Sweet Potatoes, Crinkle Cut Fries, Low-Sodium, Frozen | F143: Vegetables | G143: This item is U.S. Grade A sweet potato crinkle cut oven fries. Each piece is approximately 2 inches in length or longer and the product is low‐sodium. This item is delivered frozen in cases with six 5‐pound packages. | H143: 6/5 lb bag | I143: 1/2 cup, thawed | J143: ½ cup cooked sweet potato fries credit as ½ cup red/orange vegetable | N143: 111368 K Chicken, Cut-Up, Frozen
D144: 100317 | E144: Sweet Potatoes, Light Syrup, No Salt Added, Canned | F144: Vegetables | G144: This item is U.S. Grade A canned sweet potatoes that contain whole, halved, or pieces of sweet potatoes packed in light syrup with no added salt. This product is available in cases containing six #10 cans. | H144: 6/#10 can | I144: 1/2 cup, drained | J144: ½ cup of heated sweet potatoes credit as ½ cup red/orange vegetable | N144: 111643 Cherries, Tart, Dried, Individual Portion
D145: 100327 | E145: Tomato Paste, No Salt Added, Canned | F145: Vegetables | G145: This item is U.S. Grade A canned tomato paste with no salt added. This product can be extra heavy, heavy, medium or light concentration with a fine or coarse texture. This item is available cases containing six #10 cans. | H145: 6/#10 can | I145: 2 TBSP (1/2 cup equivalent) | J145: 2 Tablespoons of tomato paste credit as ½ cup red/orange vegetable | N145: 111750 Yogurt, High-Protein, Vanilla, Chilled (K)
D146: 100334 | E146: Tomato Sauce, Low-sodium, Canned | F146: Vegetables | G146: This item is U.S. Grade A tomato sauce which may include spices, sweetening ingredients, vinegar, onions, garlic, or other vegetable flavoring. This item is low‐sodium and is available in cases containing six #10 cans. | H146: 6/#10 can | I146: 1/2 cup | J146: ½ cup tomato sauce credits as ½ cup red/orange vegetable | N146: 111751 Eggs, Patties, Cooked, 1.0 MMA, Round, Frozen
D147: 110187 | E147: Tomato Sauce, Low-sodium, Pouch | F147: Vegetables | G147: This item is U.S. Grade A tomato sauce which may include spices, sweetening ingredients, vinegar, onions, garlic, or other vegetable flavoring. This item is low‐sodium and is available in cases containing six 106‐ounce pouches. | H147: 6/106 oz pouch | I147: 1/2 cup | J147: ½ cup tomato sauce credits as ½ cup red/orange vegetable | N147: 111790 Apple Juice, 100%, Unsweetened, Cups, Frozen
D148: 100329 | E148: Tomatoes, Diced, No Salt Added, Canned | F148: Vegetables | G148: This item is U.S. Grade B or better canned diced tomatoes with no salt added. This item is available in cases with six #10 cans. | H148: 6/#10 can | I148: 1/2 cup | J148: ½ cup heated tomatoes and juice credits as ½ cup red/orange vegetable | N148: 111860 Black Bean Burger, Patties, Cooked, 2.0 MMA, Frozen
D149: 111750 | E149: Yogurt, High-Protein, Vanilla, Chilled (K) | F149: Yogurt | G149: This item is a nonfat vanilla high protein yogurt. This yogurt is delivered refrigerated and is offered in cases containing six 32-ounce containers. This product is required to contain a commercial Kosher certification, with approved symbols identified in the specification. | H149: 6/32 oz tub | I149: 4.00 oz (1 oz equivalent meat alternate) | J149: ½ cup of yogurt credits as 1 ounce equivalent meat/meat alternate | N149: 111881 Chicken, Pulled, Cooked, Frozen
D150: 110400 | E150: Yogurt, High-Protein, Blueberry, Chilled (K) | F150: Yogurt | G150: This item is a nonfat high protein yogurt that is blueberry flavor and is blended. This yogurt is delivered refrigerated and is offered in cases containing twenty-four 4-ounce cups. This product is required to contain a commercial Kosher certification, with approved symbols identified in the specification. | H150: 24/4 oz cup | I150: 4.00 oz (1 oz equivalent meat alternate) | J150: One 4-ounce cup of yogurt credits as 1 ounce equivalent meat/meat alternate | N150: 111882 Turkey, Deli Breast, Smoked, Sliced, Frozen
D151: 110401 | E151: Yogurt, High-Protein, Strawberry, Chilled (K) | F151: Yogurt | G151: This item is a nonfat high protein yogurt that is strawberry flavor and is blended. This yogurt is delivered refrigerated and is offered in cases containing twenty-four 4-ounce cups. This product is required to contain a commercial Kosher certification, with approved symbols identified in the specification. | H151: 24/4 oz cup | I151: 4.00 oz (1 oz equivalent meat alternate) | J151: One 4-ounce cup of yogurt credits as 1 ounce equivalent meat/meat alternate | N151: 111893 Turkey, Deli Ham, Smoked, Sliced, Frozen
D152: 110402 | E152: Yogurt, High-Protein, Vanilla, Chilled (K) | F152: Yogurt | G152: This item is a nonfat vanilla high protein yogurt. This yogurt is delivered refrigerated and is offered in cases containing twenty-four 4-ounce cups. This product is required to contain a commercial Kosher certification, with approved symbols identified in the specification. | H152: 24/4 oz cup | I152: 4.00 oz (1 oz equivalent meat alternate) | J152: One 4-ounce cup of yogurt credits as 1 ounce equivalent meat/meat alternate | N152: 111900 Turkey, Deli Breast, Sliced, Frozen
